Workbook

Sheet Table S1
A1: Title: A Zea mays alanyl-tRNA synthetase mutant conditions an albino phenotype and reveals a retrograde signal from plastid rrn16 leader and derived nuclear lncRNAs
A2: Authors: A. Dhingra, I. Adhikari, and C.D. Rock. Texas Tech University Department of Biological Sciences. Email: chris.rock@ttu.edu
A4: Table S1: gDNA and RNA libraries quality control parameters.
C6: Sample Name | D6: library details | E6: Total raw reads | F6: Number of reads mapped to B73 ref genome | H6: % reads mapped to B73 ref genome | I6: Coverage | K6: total% mitochondrial reads mapped to ref genome NC_007982.1
C7: alb | D7: alb-605F MT genomic library | E7: 579,472,222 | F7: 573,098,028 | H7: =(F7/E7)*100 -> 98.90 | I7: 76x
C8: WT | D8: WT genomic library | E8: 605,054,393 | F8: 603,239,230 | H8: =(F8/E8)*100 -> 99.70000003 | I8: 79x
D9: total% chloroplast paired reads mapped to ref genome NC_001666.2 | E9: %ct paired read maps exactly once | F9: %ct paired read maps concordantly more than once (due to 22 kbp inverted repeat) | H9: %ct paired read maps discordantly exactly once | I9: %ct paired read maps discordantly or concordantly once | J9: %ct read paired maps discordantly or concordantly more than once (due to 22 kbp inverted repeat)
C10: alb | D10: =SUM(E10:J10) -> 6.44 | E10: 1.65 | F10: 0.75 | H10: 2.56 | I10: 0.13 | J10: 1.35
C11: WT | D11: =SUM(E11:J11) -> 0.82 | E11: 0.25 | F11: 0.13 | H11: 0.27 | I11: 0.02 | J11: 0.15
C12: ratio ct read type | D12: =D10/D11 -> 7.85 | E12: 6.60 | F12: 5.77 | H12: =H10/H11 -> 9.48 | I12: 6.50 | J12: 9.00
D13: total% mitochondria paired reads mapped to ref genome NC_001666.2 | E13: %mt paired read maps exactly once | F13: %mt paired read maps concordantly more than once (due to 22 kbp inverted repeat) | H13: %mt paired read maps discordantly exactly once | I13: %mt paired read maps discordantly or concordantly once | J13: %mt paired read maps discordantly or concordantly more than once
C14: alb | D14: =SUM(E14:J14) -> 2.84 | E14: 0.93 | F14: 0.06 | H14: 1.50 | I14: 0.22 | J14: 0.13
C15: WT | D15: 1.26 | E15: 0.51 | F15: 0.07 | H15: 0.56 | I15: 0.04 | J15: 0.08
C16: ratio mt read type | D16: =D14/D15 -> 2.25 | E16: =E14/E15 -> 1.82 | F16: =F14/F15 -> 0.86 | H16: 2.68 | I16: 5.50 | J16: 1.63
C17: Whether a read pair in Bowtie2 is annotated as aligned "concordantly or discordantly": it means that the alignment software found a single (exact) valid alignment for the pair, where either both mates aligned in the expected orientation and distance apart (concordant), or they aligned in a way that deviated from the expected pattern (discordant), and only one such alignment (exact) was found. When a read pair in Bowtie2 is aligned "more than once," it means that the alignment software found more than one valid alignment for the pair, where either both (concordant), or one of mates aligned in the expected orientation and distance apart but the other aligned in a way that deviated from the expected pattern (discordant). The 22 kbp inverted repeat in chloroplast genome explains the phenomenon of 'more than once' paired read mapping types in that organelle.
D18: Coverage = read length X number of reads/genome length
D19: Read length - 2X150 bp
D20: Maize genome size = 2.4 Gb
C21: SRR | D21: Raw Reads | E21: rRNA cleaned Reads | F21: tRNA cleaned Reads | G21: snoRNA cleaned Reads | H21: snRNA cleaned Reads | I21: TERNA cleaned Reads
A22: this study: | B22: W.T. rep1 | C22: SRR26841634 | D22: 23,417,262 | E22: 20418349 | F22: 20418319 | G22: 20359454 | H22: 20345849 | I22: 20345496
B23: W.T. rep2 | C23: SRR26841635 | D23: 15,819,589 | E23: 13004251 | F23: 13004239 | G23: 12969150 | H23: 12960949 | I23: 12960804
B24: W.T. rep3 | C24: SRR26841636 | D24: 26,803,268 | E24: 24321924 | F24: 24321898 | G24: 24255125 | H24: 24241367 | I24: 24241127
B25: alb605F rep1 | C25: SRR26841637 | D25: 25,030,395 | E25: 15981028 | F25: 15981009 | G25: 15909757 | H25: 15899032 | I25: 15898977
B26: alb605F rep2 | C26: SRR26841638 | D26: 29,174,933 | E26: 24105428 | F26: 24105388 | G26: 23988922 | H26: 23972227 | I26: 23972134
B27: alb605F rep3 | C27: SRR26841639 | D27: 37,483,332 | E27: 29868801 | F27: 29868729 | G27: 29742953 | H27: 29707667 | I27: 29707574
B29: Kendrick et al. (2022) | C29: SRR18735298 | D29: 24,318,934 | E29: 22712716 | F29: 22712716 | G29: 22711748 | H29: 22710804 | I29: 22710627
C30: SRR18735299 | D30: 22538277 | E30: 20680601 | F30: 20680601 | G30: 20679908 | H30: 20678877 | I30: 20678756
C31: SRR18735300 | D31: 22254590 | E31: 19578832 | F31: 19578832 | G31: 19578424 | H31: 19577371 | I31: 19577189
C32: SRR18735301 | D32: 20704939 | E32: 14511594 | F32: 14511594 | G32: 14511225 | H32: 14510297 | I32: 14510116
C33: SRR18735302 | D33: 23810492 | E33: 21595100 | F33: 21595100 | G33: 21594639 | H33: 21593723 | I33: 21593578
C34: SRR18735303 | D34: 11422883 | E34: 10061927 | F34: 10061927 | G34: 10061669 | H34: 10061190 | I34: 10061122
C35: SRR18735304 | D35: 22485114 | E35: 18647132 | F35: 18647132 | G35: 18646483 | H35: 18645406 | I35: 18645191
C36: SRR18735314 | D36: 28360050 | E36: 21348984 | F36: 21348984 | G36: 21348549 | H36: 21347324 | I36: 21347268
C37: SRR18735318 | D37: 21295414 | E37: 11823038 | F37: 11823038 | G37: 11822653 | H37: 11821667 | I37: 11821553
C38: SRR18735319 | D38: 21439401 | E38: 16626291 | F38: 16626291 | G38: 16625666 | H38: 16624424 | I38: 16624283
C39: SRR18735320 | D39: 20810120 | E39: 16894849 | F39: 16894849 | G39: 16894129 | H39: 16892962 | I39: 16892842
C40: SRR18735321 | D40: 21209546 | E40: 18645727 | F40: 18645727 | G40: 18644774 | H40: 18643517 | I40: 18643380
C41: SRR18735322 | D41: 20294026 | E41: 18721288 | F41: 18721288 | G41: 18720630 | H41: 18719839 | I41: 18719703
C42: SRR18735323 | D42: 23760843 | E42: 18286086 | F42: 18286086 | G42: 18285316 | H42: 18283698 | I42: 18283490
C43: SRR18735324 | D43: 20439215 | E43: 16187181 | F43: 16187181 | G43: 16186651 | H43: 16185417 | I43: 16185310
C44: SRR18735325 | D44: 20054097 | E44: 18019080 | F44: 18019080 | G44: 18018684 | H44: 18018174 | I44: 18018090
C45: SRR18735326 | D45: 21745152 | E45: 19531010 | F45: 19531010 | G45: 19530477 | H45: 19529771 | I45: 19529686
C47: Raw reads that aligned to all the Zm.. Ids from Zea mays annotation V4. using Bowtie2 default mode
C48: SRR | D48: concordantly aligned 1 times | E48: concordantly alined more than 1 times | F48: did not alingned | G48: disconcordantly aligned | H48: concordantly or disconcordantlly once | I48: concordantly or disconcordantly more than 1
C49: SRR26841634 | D49: 44.22% | E49: 19.67% | F49: 36.10% | G49: 0.56% | H49: 7.73% | I49: 2.20% | J49: =SUM(G49:I49) -> 10.49%
C50: SRR26841635 | D50: 44.43% | E50: 18.75% | F50: 36.82% | G50: 0.53% | H50: 8.30% | I50: 2.47% | J50: =SUM(G50:I50) -> 11.30%
C51: SRR26841636 | D51: 45.91% | E51: 19.88% | F51: 34.21% | G51: 0.63% | H51: 9.02% | I51: 2.83% | J51: 12.48%
C52: SRR26841637 | D52: 36.39% | E52: 14.98% | F52: 48.63% | G52: 0.35% | H52: 4.64% | I52: 1.23% | J52: 6.22%
C53: SRR26841638 | D53: 41.15% | E53: 17.19% | F53: 41.66% | G53: 0.48% | H53: 5.99% | I53: 1.62% | J53: 8.09%
C54: SRR26841639 | D54: 39.49% | E54: 16.17% | F54: 44.34% | G54: 0.41% | H54: 5.46% | I54: 1.43% | J54: 7.30%
C56: SRR18735298 | D56: 56.10% | E56: 26.46% | F56: 17.44%
C57: SRR18735299 | D57: 57.46% | E57: 27.13% | F57: 16.41%
C58: SRR18735300 | D58: 55.34% | E58: 29.41% | F58: 15.25%
C59: SRR18735301 | D59: 52.56% | E59: 26.40% | F59: 21.03%
C60: SRR18735302 | D60: 56.91% | E60: 28.52% | F60: 14.56%
C61: SRR18735303 | D61: 57.61% | E61: 28.24% | F61: 14.15%
C62: SRR18735304 | D62: 55.09% | E62: 27.91% | F62: 17.00%
C63: SRR18735314 | D63: 48.52% | E63: 26.81% | F63: 24.67%
C64: SRR18735318 | D64: 51.84% | E64: 27.20% | F64: 20.96%
C65: SRR18735319 | D65: 56.64% | E65: 27.41% | F65: 15.95%
C66: SRR18735320 | D66: 53.55% | E66: 24.37% | F66: 22.09%
C67: SRR18735321 | D67: 56.53% | E67: 26.65% | F67: 16.82%
C68: SRR18735322 | D68: 57.14% | E68: 26.22% | F68: 16.64%
C69: SRR18735323 | D69: 55.31% | E69: 27.51% | F69: 17.18%
C70: SRR18735324 | D70: 53.89% | E70: 24.50% | F70: 21.26%
C71: SRR18735325 | D71: 55.81% | E71: 30.22% | F71: 13.97%
C72: SRR18735326 | D72: 56.45% | E72: 29.11% | F72: 14.44%
C75: Kallisto alignments of above subset bowtie2 outputs to whole primary transcriptome
D76: unstranded | E76: sense strand run | F76: antisense strand run | G76: Total Reads, aligned | H76: fraction anti | I76: %kallisto mapped to sense from bowtie
A77: =D49+E49 -> 63.89% | B77: =G77/I22*100 -> 63.89539975 | C77: SRR26841634 | D77: 12,755,454 | E77: 12,556,587 | F77: 2,364,596 | G77: 12,999,836 | H77: =F77/E77 -> 0.1883151847 | I77: =E77/G77 -> 0.9659034929
C78: SRR26841635 | D78: 8,016,734 | E78: 7,864,851 | F78: 2,011,801 | G78: 8,188,342 | H78: =F78/E78 -> 0.2557964544 | I78: =E78/G78 -> 0.9604937117
C79: SRR26841636 | D79: 15,639,541 | E79: 15,376,815 | F79: 3,431,480 | G79: 15,948,289 | H79: 0.2231593474 | I79: 0.9641670652
C80: SRR26841637 | D80: 8,022,497 | E80: 7,883,142 | F80: 1,290,067 | G80: 8,167,823 | H80: 0.1636488344 | I80: 0.9651460371
C81: SRR26841638 | D81: 13,735,440 | E81: 13,523,198 | F81: 2,033,151 | G81: 13,984,241 | H81: 0.1503454286 | I81: 0.9670312461
C82: SRR26841639 | D82: 16,243,767 | E82: 15,975,060 | F82: 2,469,446 | G82: 16,535,890 | H82: 0.1545813286 | I82: 0.9660840753
A84: =D56+E56 -> 82.56% | B84: =G84/I29*100 -> 82.55878625 | C84: SRR18735298 | D84: 17,988,456 | E84: 17,880,421 | F84: 954,053 | G84: 18,749,618 | H84: =F84/E84 -> 0.05335741256 | I84: =E84/G84 -> 0.9536418822
C85: SRR18735299 | D85: 16,794,616 | E85: 16,702,062 | F85: 926,162 | G85: 17,491,896 | H85: 0.05545195557 | I85: 0.9548457183
C86: SRR18735300 | D86: 15,993,494 | E86: 15,826,840 | F86: 1,575,621 | G86: 16,591,969 | H86: 0.09955373277 | I86: 0.9538855816
C87: SRR18735301 | D87: 10,998,834 | E87: 10,892,488 | F87: 951,390 | G87: 11,458,436 | H87: 0.08734368126 | I87: 0.9506086171
C88: SRR18735302 | D88: 17,734,083 | E88: 17,575,897 | F88: 1,431,863 | G88: 18,449,345 | H88: 0.08146742098 | I88: 0.9526569642
C89: SRR18735303 | D89: 8,279,086 | E89: 8,207,233 | F89: 649,202 | G89: 8,637,912 | H89: 0.07910120256 | I89: 0.9501408442
C90: SRR18735304 | D90: 14,957,199 | E90: 14,821,374 | F90: 1,294,630 | G90: 15,474,951 | H90: 0.08734885173 | I90: 0.9577654882
C91: SRR18735314 | D91: 15,438,855 | E91: 15,273,239 | F91: 1,542,177 | G91: 16,079,830 | H91: 0.1009724918 | I91: 0.9498383378
C92: SRR18735318 | D92: 9,020,663 | E92: 8,920,625 | F92: 936,511 | G92: 9,344,009 | H92: 0.1049826666 | I92: 0.954689256
C93: SRR18735319 | D93: 13,551,593 | E93: 13,456,418 | F93: 991,560 | G93: 13,972,233 | H93: 0.07368677162 | I93: 0.9630828515
C94: SRR18735320 | D94: 12,700,381 | E94: 12,633,308 | F94: 665,653 | G94: 13,161,439 | H94: 0.05269031674 | I94: 0.9598728528
C95: SRR18735321 | D95: 15,010,161 | E95: 14,925,466 | F95: 809,989 | G95: 15,507,569 | H95: 0.05426892534 | I95: 0.9624632978
C96: SRR18735322 | D96: 15,070,453 | E96: 14,996,736 | F96: 639,353 | G96: 15,604,966 | H96: 0.04263281023 | I96: 0.961023305
C97: SRR18735323 | D97: 14,512,235 | E97: 14,388,972 | F97: 1,110,961 | G97: 15,143,013 | H97: 0.07720919882 | I97: 0.9502053521
C98: SRR18735324 | D98: 12,112,569 | E98: 12,044,208 | F98: 576,843 | G98: 12,688,113 | H98: 0.04789380921 | I98: 0.9492513189
C99: SRR18735325 | D99: 15,007,307 | E99: 14,867,915 | F99: 1,367,705 | G99: 15,500,790 | H99: 0.09199036987 | I99: 0.9591714358
C100: SRR18735326 | D100: 16,117,791 | E100: 15,982,993 | F100: 1,312,642 | G100: 16,709,606 | H100: 0.08212742132 | I100: 0.9565152524

Sheet Table S2A sense
A1: Table S2A: Gene level plus long non-coding RNA sense RNA-seq analysis of alb-605F vs. WT siblings, and four photosynthetic mutants tha1, ptac12, ppr5-1, and murE-2 (Kendrick et al. 2022) which vary by increasing physiologic phenotypic severity, respectively.
D2: highlighted red are organellar genes | G2: highlighted tan are 540 retrograde cluster#4 genes claimed by Kendrick et al. (2022) down in ppr5-1 and murE-2
A3: Used as input for MapMan; sorted for bins listed in Table 2. The first 9 rows are kallisto isoform expressions for the causal mutant ZmAlaRS | D3: alb605_v_WT | G3: tha1_v_WT | J3: ptac12_v_WT | M3: ppr5-1_v_WT | P3: murE-2_v_WT
A4: Transcript ID | B4: BINCODE | C4: DESCRIPTION | D4: baseMean | E4: log2FoldChange | F4: padj | G4: baseMean | H4: log2FoldChange | I4: padj | J4: baseMean | K4: log2FoldChange | L4: padj | M4: baseMean | N4: log2FoldChange | O4: padj | P4: baseMean | Q4: log2FoldChange | R4: padj
A5: zm00001d044745_p006 | B5: '17.6.3.10' | C5: 'mercator4v7.0: organellar alanine-tRNA ligase *(AlaTS2) & original description: pacid=40250993 locus=Zm00001d044745 ID=Zm00001d044745_T006.RefGen_V4 annot-version=RefGen_V4' | D5: 52.6 | E5: -2.01 | F5: 0.595780006 | G5: primary transcript, per phytozome
A6: zm00001d044745_p017 | B6: '17.6.3.10' | C6: 'mercator4v7.0: organellar alanine-tRNA ligase *(AlaTS2) & original description: pacid=40250993 locus=Zm00001d044745 ID=Zm00001d044745_T006.RefGen_V4 annot-version=RefGen_V4' | D6: 51.0 | E6: 0.74 | F6: 0.741270114
A7: zm00001d044745_p015 | B7: '17.6.3.10' | C7: 'mercator4v7.0: organellar alanine-tRNA ligase *(AlaTS2) & original description: pacid=40250993 locus=Zm00001d044745 ID=Zm00001d044745_T006.RefGen_V4 annot-version=RefGen_V4' | D7: 40.6 | E7: -0.41 | F7: 1
A8: zm00001d044745_p008 | B8: '17.6.3.10' | C8: 'mercator4v7.0: organellar alanine-tRNA ligase *(AlaTS2) & original description: pacid=40250993 locus=Zm00001d044745 ID=Zm00001d044745_T006.RefGen_V4 annot-version=RefGen_V4' | D8: 25.8 | E8: -0.15 | F8: 0.93587539
A9: zm00001d044745_p007 | B9: '17.6.3.10' | C9: 'mercator4v7.0: organellar alanine-tRNA ligase *(AlaTS2) & original description: pacid=40250993 locus=Zm00001d044745 ID=Zm00001d044745_T006.RefGen_V4 annot-version=RefGen_V4' | D9: 15.1 | E9: -6.37 | F9: 0.000790576
A10: zm00001d044745_p009 | B10: '17.6.3.10' | C10: 'mercator4v7.0: organellar alanine-tRNA ligase *(AlaTS2) & original description: pacid=40250993 locus=Zm00001d044745 ID=Zm00001d044745_T006.RefGen_V4 annot-version=RefGen_V4' | D10: 11.9 | E10: 0.17 | F10: 0.984202462
A11: zm00001d044745_p011 | B11: '17.6.3.10' | C11: 'mercator4v7.0: organellar alanine-tRNA ligase *(AlaTS2) & original description: pacid=40250993 locus=Zm00001d044745 ID=Zm00001d044745_T006.RefGen_V4 annot-version=RefGen_V4' | D11: 8.5 | E11: -2.04 | F11: 0.719904629
A12: zm00001d044745_p013 | B12: '17.6.3.10' | C12: 'mercator4v7.0: organellar alanine-tRNA ligase *(AlaTS2) & original description: pacid=40250993 locus=Zm00001d044745 ID=Zm00001d044745_T006.RefGen_V4 annot-version=RefGen_V4' | D12: 8.1 | E12: -0.88 | F12: 0.919107255
A13: zm00001d044745_p002 | B13: '17.6.3.10' | C13: 'mercator4v7.0: organellar alanine-tRNA ligase *(AlaTS2) & original description: pacid=40250993 locus=Zm00001d044745 ID=Zm00001d044745_T006.RefGen_V4 annot-version=RefGen_V4' | D13: 0.4 | E13: 2.17 | F13: 1
A15: novel long non-coding RNAs homologous to rrn16S/23S candidate retrograde signal and annotated by Mercator4 as protein-coding genes in ontology bins; see Table 1. Ranked respectively 87th, 11th, and 44th of top 100 most DE across all genotypes by Liklihood Ratio Test
A16: URS00023C28EA_4577_1 | B16: '1.1.2.9.2.1' | C16: 'mercator4v7.0: assembly factor CcsA of CCS cytochrome f/c6 maturation system (system II) & original description: Zea mays (Z. mays) long non-coding RNA (ZMAY_LNC004241)_1' | D16: 177187.3 | E16: 1.15 | F16: 1.036515627e-16 | G16: 14949.2 | H16: -0.25 | I16: 0.8527307615 | J16: 11807.6 | K16: -1.05 | L16: 1 | M16: 12304.4 | N16: -5.21 | O16: 1 | P16: 12319.6 | Q16: -4.89 | R16: 1
A17: URS00023DA7D7_4577_11 | B17: '17.6.2.2.21' | C17: 'mercator4v7.0: component *(uL23c) of large plastid ribosomal-subunit proteome & original description: Zea mays (Z. mays) long non-coding RNA (ZMAY_LNC005853)_11' | D17: 144063.4 | E17: 2.16 | F17: 0.001103042459 | G17: 158.7 | H17: -0.97 | I17: 0.1191428068 | J17: 186.0 | K17: 0.14 | L17: 0.8577241356 | M17: 188.4 | N17: -1.15 | O17: 0.03224358049 | P17: 184.3 | Q17: -1.28 | R17: 0.02401319452
A18: URS00023E179E_4577_1 | B18: '2.4.6.2.1' | C18: 'mercator4v7.0: subunit alpha of ATP synthase peripheral MF1 subcomplex & original description: Zea mays (Z. mays) long non-coding RNA (ZMAY_LNC005855)_1' | D18: 13910.3 | E18: 1.47 | F18: 0.03589046964 | G18: 14.4 | H18: -1.08 | I18: 0.3804857833 | J18: 15.5 | K18: -0.30 | L18: 0.878996445 | M18: 25.7 | N18: 0.52 | O18: 0.51086147 | P18: 22.1 | Q18: 0.04 | R18: 0.9833729888
A20: relevant to above signal? Plastid RNA Polymerases: PEP and NEP
A21: GRMZM5G879235_T01_zemaCp054_rpoA | B21: '14.7.1.1.1' | C21: 'mercator4v7.0: core component *(RpoA) of plastid-encoded RNA polymerase & original description: pacid=40173928 locus=GRMZM5G879235 ID=GRMZM5G879235_T01_zemaCp054_rpoA.RefGen_V4 annot-version=RefGen_V4' | D21: 10976.8 | E21: 1.92 | F21: 2.831324379e-71 | G21: 472.7 | H21: -0.44 | I21: 0.3656790233 | J21: 380.5 | K21: -1.23 | L21: 4.676671845e-05 | M21: 436.5 | N21: -2.74 | O21: 9.132793422e-13 | P21: 422.4 | Q21: -3.38 | R21: 7.17654984e-22
A22: URS0002351E2F_4577_1 | B22: '14.7.1.1.1' | C22: 'mercator4v7.0: core component *(RpoA) of plastid-encoded RNA polymerase & original description: Zea mays (Z. mays) long non-coding RNA (ZMAY_LNC001166)_1' | D22: 30.9 | E22: 0.04 | F22: 0.9510446052 | G22: 4.9 | H22: -0.16 | I22: 0.9361102566 | J22: 4.7 | K22: -0.02 | L22: 0.9904063113 | M22: 5.9 | N22: -0.19 | O22: 0.9024819744 | P22: 4.5 | Q22: -1.75 | R22: 0.1939936532
A23: Zm00001d000270_T001 | B23: '14.7.1.1.2' | C23: 'mercator4v7.0: core component *(RpoB) of plastid-encoded RNA polymerase & original description: pacid=40174026 locus=Zm00001d000270 ID=Zm00001d000270_T001.RefGen_V4 annot-version=RefGen_V4' | D23: 41050.2 | E23: 2.56 | F23: 7.024892898e-224 | G23: 536.1 | H23: -0.12 | I23: 0.906350806 | J23: 883.4 | K23: 1.56 | L23: 0.01368866305 | M23: 711.3 | N23: 0.20 | O23: 0.8191472732 | P23: 587.3 | Q23: -0.60 | R23: 0.5352173952
A24: GRMZM5G877454_T01_zemaCp013_rpoB | B24: '14.7.1.1.2' | C24: 'mercator4v7.0: core component *(RpoB) of plastid-encoded RNA polymerase & original description: pacid=40173939 locus=GRMZM5G877454 ID=GRMZM5G877454_T01_zemaCp013_rpoB.RefGen_V4 annot-version=RefGen_V4' | D24: 16924.7 | E24: 7.24 | F24: 1.684845839e-15 | G24: 1.1 | H24: -1.04 | I24: 1 | J24: 45.7 | K24: 6.43 | L24: 3.762646782e-14 | M24: 80.9 | N24: 6.83 | O24: 4.814652746e-29 | P24: 82.3 | Q24: 6.91 | R24: 2.040792332e-12
A25: GRMZM5G899366_T01_zemaCp014_rpoC1 | B25: '14.7.1.1.3' | C25: 'mercator4v7.0: core component *(RpoC1) of plastid-encoded RNA polymerase & original description: pacid=40173911 locus=GRMZM5G899366 ID=GRMZM5G899366_T01_zemaCp014_rpoC1.RefGen_V4 annot-version=RefGen_V4' | D25: 20349.2 | E25: 3.71 | F25: 3.209955411e-288 | G25: 86.5 | H25: 0.17 | I25: 0.6979498557 | J25: 274.8 | K25: 2.99 | L25: 5.08400082e-26 | M25: 196.6 | N25: 1.83 | O25: 7.868886849e-15 | P25: 157.5 | Q25: 1.32 | R25: 0.03452734039
A26: Zm00001d036307_T001 | B26: '14.7.1.1.3' | C26: 'mercator4v7.0: core component *(RpoC1) of plastid-encoded RNA polymerase & original description: pacid=40230030 locus=Zm00001d036307 ID=Zm00001d036307_T001.RefGen_V4 annot-version=RefGen_V4' | D26: 35.8 | E26: 3.40 | F26: 6.477668829e-09 | G26: 0.0 | H26: 0.00 | I26: 1 | J26: 0.4 | K26: 2.65 | L26: 1 | M26: 0.5 | N26: 2.50 | O26: 1 | P26: 1.0 | Q26: 3.55 | R26: 1
A27: GRMZM5G892247_T01_zemaCp015_rpoC2 | B27: '14.7.1.1.4' | C27: 'mercator4v7.0: core component *(RpoC2) of plastid-encoded RNA polymerase & original description: pacid=40173960 locus=GRMZM5G892247 ID=GRMZM5G892247_T01_zemaCp015_rpoC2.RefGen_V4 annot-version=RefGen_V4' | D27: 24662.2 | E27: 3.51 | F27: 0 | G27: 320.6 | H27: 0.56 | I27: 0.3544181919 | J27: 777.1 | K27: 2.72 | L27: 2.095390232e-12 | M27: 552.6 | N27: 1.47 | O27: 0.0005866709739 | P27: 407.2 | Q27: 0.69 | R27: 0.3577464073
A28: Zm00001d032790_T002 | B28: '14.7.1.2.1' | C28: 'mercator4v7.0: cofactor of plastid-encoded RNA polymerase *(PAP1/TAC3) & original description: pacid=40208003 locus=Zm00001d032790 ID=Zm00001d032790_T002.RefGen_V4 annot-version=RefGen_V4' | D28: 1174.3 | E28: 2.19 | F28: 1.120018119e-80 | G28: 294.3 | H28: 0.84 | I28: 0.2777821609 | J28: 542.0 | K28: 2.38 | L28: 0.0002223258439 | M28: 968.0 | N28: 2.94 | O28: 2.219586511e-07 | P28: 589.6 | Q28: 2.01 | R28: 0.0007892593162
A29: Zm00001d032337_T001 | B29: '14.7.1.2.10' | C29: 'mercator4v7.0: cofactor of plastid-encoded RNA polymerase *(PAP10/TrxZ) & original description: pacid=40214227 locus=Zm00001d032337 ID=Zm00001d032337_T001.RefGen_V4 annot-version=RefGen_V4' | D29: 363.6 | E29: 2.32 | F29: 4.016507112e-29 | G29: 376.1 | H29: 0.98 | I29: 0.0002955605998 | J29: 449.0 | K29: 1.60 | L29: 8.232982054e-10 | M29: 548.3 | N29: 1.42 | O29: 5.644697307e-06 | P29: 469.6 | Q29: 1.04 | R29: 0.0001862171327
A30: Zm00001d043707_T001 | B30: '14.7.1.2.12' | C30: 'mercator4v7.0: cofactor of plastid-encoded RNA polymerase *(PAP12/TAC7) & original description: pacid=40238371 locus=Zm00001d043707 ID=Zm00001d043707_T001.RefGen_V4 annot-version=RefGen_V4' | D30: 540.9 | E30: 2.07 | F30: 9.833942212e-33 | G30: 830.8 | H30: 0.01 | I30: 0.9614389149 | J30: 666.6 | K30: -0.61 | L30: 1.168550443e-07 | M30: 1118.2 | N30: 0.36 | O30: 0.1656974177 | P30: 1016.1 | Q30: 0.03 | R30: 0.9217901162
A31: Zm00001d011680_T002 | B31: '14.7.1.2.12' | C31: 'mercator4v7.0: cofactor of plastid-encoded RNA polymerase *(PAP12/TAC7) & original description: pacid=40256822 locus=Zm00001d011680 ID=Zm00001d011680_T002.RefGen_V4 annot-version=RefGen_V4' | D31: 488.3 | E31: 2.18 | F31: 4.733380547e-46 | G31: 509.8 | H31: 1.15 | I31: 7.524150355e-06 | J31: 443.6 | K31: 1.00 | L31: 8.276324099e-05 | M31: 525.5 | N31: 0.69 | O31: 0.007943623024 | P31: 488.8 | Q31: 0.48 | R31: 0.09546752483
A32: Zm00001d033181_T001 | B32: '14.7.1.2.13' | C32: 'mercator4v7.0: component *(FLN2) of plastid-encoded RNA polymerase & original description: pacid=40208440 locus=Zm00001d033181 ID=Zm00001d033181_T001.RefGen_V4 annot-version=RefGen_V4' | D32: 1086.7 | E32: 2.26 | F32: 3.268929055e-92 | G32: 50.9 | H32: 1.72 | I32: 0.04375158207 | J32: 141.7 | K32: 3.72 | L32: 8.570884541e-09 | M32: 292.8 | N32: 4.43 | O32: 1.300968576e-13 | P32: 230.4 | Q32: 4.06 | R32: 2.651847066e-11
A33: Zm00001d022599_T002 | B33: '14.7.1.2.2' | C33: 'mercator4v7.0: cofactor of plastid-encoded RNA polymerase *(PAP2/TAC2) & original description: pacid=40169149 locus=Zm00001d022599 ID=Zm00001d022599_T002.RefGen_V4 annot-version=RefGen_V4' | D33: 696.2 | E33: 1.48 | F33: 1.620788419e-26 | G33: 409.5 | H33: 1.67 | I33: 0.001524021619 | J33: 345.5 | K33: 1.46 | L33: 0.001035038557 | M33: 526.6 | N33: 1.78 | O33: 1.522319781e-05 | P33: 518.6 | Q33: 1.75 | R33: 9.217246165e-05
A34: Zm00001d012141_T001 | B34: '14.7.1.2.3' | C34: 'mercator4v7.0: cofactor of plastid-encoded RNA polymerase *(PAP3/TAC10) & original description: pacid=40257039 locus=Zm00001d012141 ID=Zm00001d012141_T001.RefGen_V4 annot-version=RefGen_V4' | D34: 2113.7 | E34: 2.46 | F34: 6.356678001e-58 | G34: 1015.1 | H34: 1.57 | I34: 0.00668439083 | J34: 1261.3 | K34: 2.19 | L34: 3.798188706e-05 | M34: 1812.2 | N34: 2.35 | O34: 2.396269832e-06 | P34: 1497.7 | Q34: 1.98 | R34: 0.0001393328998
A35: Zm00001d043325_T001 | B35: '14.7.1.2.5' | C35: 'mercator4v7.0: cofactor of plastid-encoded RNA polymerase *(PAP5/TAC12) & original description: pacid=40243098 locus=Zm00001d043325 ID=Zm00001d043325_T001.RefGen_V4 annot-version=RefGen_V4' | D35: 1260.8 | E35: 3.05 | F35: 6.087785902e-113 | G35: 331.4 | H35: 1.47 | I35: 7.488960282e-18 | J35: 153.9 | K35: -0.84 | L35: 0.001683094268 | M35: 989.0 | N35: 3.20 | O35: 1.667320014e-78 | P35: 868.6 | Q35: 2.98 | R35: 8.241259694e-84
A36: Zm00001d042847_T001 | B36: '14.7.1.2.6' | C36: 'mercator4v7.0: cofactor of plastid-encoded RNA polymerase *(PAP6/FLN1) & original description: pacid=40237425 locus=Zm00001d042847 ID=Zm00001d042847_T001.RefGen_V4 annot-version=RefGen_V4' | D36: 806.2 | E36: 2.56 | F36: 1.609625469e-69 | G36: 120.5 | H36: 2.27 | I36: 2.451436837e-08 | J36: 261.8 | K36: 3.76 | L36: 3.243783626e-27 | M36: 604.4 | N36: 4.64 | O36: 4.067202774e-43 | P36: 468.2 | Q36: 4.25 | R36: 8.49896723e-37
A37: Zm00001d009723_T001 | B37: '14.7.1.2.7' | C37: 'mercator4v7.0: cofactor of plastid-encoded RNA polymerase *(PAP7/TAC14) & original description: pacid=40256235 locus=Zm00001d009723 ID=Zm00001d009723_T001.RefGen_V4 annot-version=RefGen_V4' | D37: 483.4 | E37: 1.88 | F37: 1.92142768e-30 | G37: 602.3 | H37: 0.75 | I37: 0.002093853506 | J37: 653.8 | K37: 1.18 | L37: 8.761991889e-08 | M37: 882.9 | N37: 1.23 | O37: 1.17737145e-08 | P37: 781.7 | Q37: 0.93 | R37: 7.18716511e-05
A38: Zm00001d052329_T002 | B38: '14.7.1.2.8' | C38: 'mercator4v7.0: cofactor of plastid-encoded RNA polymerase *(PAP8/TAC6) & original description: pacid=40267195 locus=Zm00001d052329 ID=Zm00001d052329_T002.RefGen_V4 annot-version=RefGen_V4' | D38: 657.0 | E38: 2.07 | F38: 1.775176991e-52 | G38: 729.3 | H38: 1.17 | I38: 0.001799060186 | J38: 761.0 | K38: 1.46 | L38: 4.8053594e-05 | M38: 997.3 | N38: 1.44 | O38: 2.326501018e-05 | P38: 919.8 | Q38: 1.25 | R38: 0.0003753433174
A39: Zm00001d025848_T001 | B39: '14.7.1.3.1' | C39: 'mercator4v7.0: cofactor of plastid-encoded RNA polymerase *(TAC5) & original description: pacid=40182601 locus=Zm00001d025848 ID=Zm00001d025848_T001.RefGen_V4 annot-version=RefGen_V4' | D39: 593.0 | E39: -0.02 | F39: 0.9441824476 | G39: 1089.1 | H39: 0.07 | I39: 0.8704984808 | J39: 995.9 | K39: 0.03 | L39: 0.9426569047 | M39: 982.4 | N39: -1.57 | O39: 0.0003047921865 | P39: 983.5 | Q39: -1.53 | R39: 1.200583549e-08
A40: Zm00001d034699_T001 | B40: '14.7.1.3.3' | C40: 'mercator4v7.0: cofactor of plastid-encoded RNA polymerase *(NusG) & original description: pacid=40205056 locus=Zm00001d034699 ID=Zm00001d034699_T001.RefGen_V4 annot-version=RefGen_V4' | D40: 279.6 | E40: 2.72 | F40: 3.024198459e-22 | G40: 373.7 | H40: 1.18 | I40: 0.02144834763 | J40: 520.3 | K40: 2.09 | L40: 8.272371546e-06 | M40: 465.6 | N40: 1.23 | O40: 0.01256727753 | P40: 413.0 | Q40: 0.92 | R40: 0.07603049094
A41: Zm00001d009877_T001 | B41: '14.7.1.3.5' | C41: 'mercator4v7.0: cofactor of plastid-encoded RNA polymerase *(TAC16) & original description: pacid=40256864 locus=Zm00001d009877 ID=Zm00001d009877_T001.RefGen_V4 annot-version=RefGen_V4' | D41: 1270.7 | E41: 0.90 | F41: 6.676680893e-10 | G41: 13674.5 | H41: 0.67 | I41: 0.1298757266 | J41: 12035.2 | K41: 0.53 | L41: 0.215168939 | M41: 10023.2 | N41: -1.78 | O41: 1.813975094e-05 | P41: 9478.9 | Q41: -2.40 | R41: 2.436274136e-09
A42: Zm00001d030153_T001 | B42: '14.7.1.3.6' | C42: 'mercator4v7.0: cofactor of plastid-encoded RNA polymerase *(TAC18) & original description: pacid=40209050 locus=Zm00001d030153 ID=Zm00001d030153_T001.RefGen_V4 annot-version=RefGen_V4' | D42: 114.0 | E42: 2.21 | F42: 9.103922819e-10 | G42: 125.3 | H42: 1.07 | I42: 0.0006444895682 | J42: 154.9 | K42: 1.75 | L42: 7.766192714e-10 | M42: 167.7 | N42: 1.30 | O42: 3.561210608e-06 | P42: 166.8 | Q42: 1.29 | R42: 1.049889848e-05
A43: Zm00001d049152_T001 | B43: '14.7.1.3.7' | C43: 'mercator4v7.0: FSD2-interacting component of plastid-encoded RNA polymerase & original description: pacid=40274444 locus=Zm00001d049152 ID=Zm00001d049152_T001.RefGen_V4 annot-version=RefGen_V4' | D43: 797.2 | E43: 1.64 | F43: 7.554880569e-24 | G43: 245.3 | H43: 0.76 | I43: 0.0722714782 | J43: 270.9 | K43: 1.22 | L43: 0.007990507992 | M43: 485.3 | N43: 1.91 | O43: 1.332115051e-08 | P43: 428.8 | Q43: 1.66 | R43: 8.387587924e-07
A44: Zm00001d005694_T001 | B44: '14.7.1.4.1' | C44: 'mercator4v7.0: regulatory factor *(PRIN2) of plastid-encoded RNA polymerase activity & original description: pacid=40196309 locus=Zm00001d005694 ID=Zm00001d005694_T001.RefGen_V4 annot-version=RefGen_V4' | D44: 501.4 | E44: 2.36 | F44: 4.099536191e-18 | G44: 533.9 | H44: 1.06 | I44: 0.0001618231251 | J44: 474.5 | K44: 0.96 | L44: 0.0004511198609 | M44: 546.1 | N44: 0.56 | O44: 0.08686960474 | P44: 536.4 | Q44: 0.51 | R44: 0.09006328073
A45: Zm00001d034962_T004 | B45: '14.7.1.4.2' | C45: 'mercator4v7.0: regulatory factor *(DG1) of plastid-encoded RNA polymerase activity & original description: pacid=40214811 locus=Zm00001d034962 ID=Zm00001d034962_T004.RefGen_V4 annot-version=RefGen_V4' | D45: 612.4 | E45: 1.53 | F45: 1.581393936e-29 | G45: 653.4 | H45: 0.36 | I45: 0.2174667905 | J45: 870.4 | K45: 1.37 | L45: 1.312060663e-06 | M45: 970.8 | N45: 0.94 | O45: 2.353689208e-05 | P45: 725.9 | Q45: 0.04 | R45: 0.9118496091
A46: Zm00001d010259_T001 | B46: '14.7.1.4.3' | C46: 'mercator4v7.0: regulatory factor *(NCP/RCB) of plastid-encoded RNA polymerase activity & original description: pacid=40264787 locus=Zm00001d010259 ID=Zm00001d010259_T001.RefGen_V4 annot-version=RefGen_V4' | D46: 314.3 | E46: 2.24 | F46: 4.640710336e-31 | G46: 430.8 | H46: 0.63 | I46: 0.1082525379 | J46: 457.9 | K46: 1.02 | L46: 0.006845834288 | M46: 537.2 | N46: 0.69 | O46: 0.07065760441 | P46: 496.2 | Q46: 0.45 | R46: 0.2616915036
A47: Zm00001d043009_T002 | B47: '14.7.1.4.3' | C47: 'mercator4v7.0: regulatory factor *(NCP/RCB) of plastid-encoded RNA polymerase activity & original description: pacid=40238984 locus=Zm00001d043009 ID=Zm00001d043009_T002.RefGen_V4 annot-version=RefGen_V4' | D47: 231.3 | E47: 1.95 | F47: 2.352393861e-13 | G47: 136.9 | H47: 0.04 | I47: 0.960072866 | J47: 184.5 | K47: 1.17 | L47: 0.003137913579 | M47: 299.7 | N47: 1.66 | O47: 3.369434689e-06 | P47: 242.3 | Q47: 1.17 | R47: 0.002911608057
A48: Zm00001d010261_T001 | B48: '14.7.1.4.3' | C48: 'mercator4v7.0: regulatory factor *(NCP/RCB) of plastid-encoded RNA polymerase activity & original description: pacid=40256774 locus=Zm00001d010261 ID=Zm00001d010261_T001.RefGen_V4 annot-version=RefGen_V4' | D48: 176.5 | E48: 1.47 | F48: 8.82052194e-10 | G48: 156.3 | H48: 0.53 | I48: 0.2593809757 | J48: 156.6 | K48: 0.77 | L48: 0.1061295206 | M48: 188.1 | N48: 0.48 | O48: 0.3196869329 | P48: 183.7 | Q48: 0.41 | R48: 0.3534291642
A49: Zm00001d022169_T001 | B49: '14.7.2' | C49: AT5G15700-like/RPOTmp; 'mercator4v7.0: nuclear-encoded organellar RNA polymerase *(NEP) & original description: pacid=40168246 locus=Zm00001d022169 ID=Zm00001d022169_T001.RefGen_V4 annot-version=RefGen_V4' | D49: 618.0 | E49: -1.05 | F49: 6.694741317e-11 | G49: 47.8 | H49: -0.20 | I49: 0.7889763542 | J49: 48.6 | K49: 0.17 | L49: 0.8155743001 | M49: 90.4 | N49: 1.16 | O49: 0.00298195843 | P49: 85.9 | Q49: 1.04 | R49: 0.009188938479
A50: Zm00001d046835_T002 | B50: '14.7.2' | C50: AT2G24120-like/RPOTp; SCA3, PDE319/PIGMENT DEFECTIVE 319; 'mercator4v7.0: nuclear-encoded organellar RNA polymerase *(NEP) & original description: pacid=40254306 locus=Zm00001d046835 ID=Zm00001d046835_T002.RefGen_V4 annot-version=RefGen_V4' | D50: 592.2 | E50: 0.47 | F50: 0.003371378759 | G50: 50.0 | H50: 1.43 | I50: 0.01478873856 | J50: 94.6 | K50: 2.84 | L50: 2.017037134e-10 | M50: 189.4 | N50: 3.56 | O50: 3.179496265e-19 | P50: 174.3 | Q50: 3.43 | R50: 7.473423919e-16
A51: URS00023ACECD_4577_1 | B51: '14.7.2' | C51: 'mercator4v7.0: nuclear-encoded organellar RNA polymerase *(NEP) & original description: Zea mays (Z. mays) long non-coding RNA (ZMAY_LNC005032)_1' | D51: 556.5 | E51: 0.95 | F51: 1.576265924e-07 | G51: 1106.3 | H51: 0.51 | I51: 0.1704160239 | J51: 980.4 | K51: 0.38 | L51: 0.2684197192 | M51: 1049.0 | N51: -0.44 | O51: 0.2568587963 | P51: 948.7 | Q51: -0.96 | R51: 0.002445855117
A52: Zm00001d045595_T001 | B52: '14.7.2' | C52: 'mercator4v7.0: nuclear-encoded organellar RNA polymerase *(NEP) & original description: pacid=40250947 locus=Zm00001d045595 ID=Zm00001d045595_T001.RefGen_V4 annot-version=RefGen_V4' | D52: 1.1 | E52: 2.39 | F52: 1 | G52: 0.0 | H52: 0.00 | I52: 1 | J52: 0.0 | K52: 0.00 | L52: 1 | M52: 0.0 | N52: 0.00 | O52: 1 | P52: 0.0 | Q52: 0.00 | R52: 1
A53: Zm00001d035375_T002 | B53: '14.7.2' | C53: 'mercator4v7.0: nuclear-encoded organellar RNA polymerase *(NEP) & original description: pacid=40220829 locus=Zm00001d035375 ID=Zm00001d035375_T002.RefGen_V4 annot-version=RefGen_V4' | D53: 1.0 | E53: 0.01 | F53: 1 | G53: 0.0 | H53: 0.00 | I53: 1 | J53: 0.0 | K53: 0.00 | L53: 1 | M53: 0.1 | N53: 0.16 | O53: 1 | P53: 0.1 | Q53: 0.18 | R53: 1
A54: Zm00001d026323_T001 | B54: '14.7.2' | C54: 'mercator4v7.0: nuclear-encoded organellar RNA polymerase *(NEP) & original description: pacid=40177926 locus=Zm00001d026323 ID=Zm00001d026323_T001.RefGen_V4 annot-version=RefGen_V4' | D54: 0.6 | E54: -1.47 | F54: 1 | G54: 0.0 | H54: 0.00 | I54: 1 | J54: 0.0 | K54: 0.00 | L54: 1 | M54: 0.1 | N54: 0.16 | O54: 1 | P54: 0.0 | Q54: 0.00 | R54: 1
A55: Zm00001d014049_T001 | B55: '14.7.2' | C55: 'mercator4v7.0: nuclear-encoded organellar RNA polymerase *(NEP) & original description: pacid=40284717 locus=Zm00001d014049 ID=Zm00001d014049_T001.RefGen_V4 annot-version=RefGen_V4' | D55: 0.6 | E55: 2.70 | F55: 1 | G55: 0.0 | H55: 0.00 | I55: 1 | J55: 0.0 | K55: 0.00 | L55: 1 | M55: 0.0 | N55: 0.00 | O55: 1 | P55: 0.0 | Q55: 0.00 | R55: 1
A56: Zm00001d043127_T001 | B56: '14.7.2' | C56: 'mercator4v7.0: nuclear-encoded organellar RNA polymerase *(NEP) & original description: pacid=40231227 locus=Zm00001d043127 ID=Zm00001d043127_T001.RefGen_V4 annot-version=RefGen_V4' | D56: 0.5 | E56: 2.42 | F56: 1 | G56: 0.0 | H56: 0.00 | I56: 1 | J56: 0.0 | K56: 0.00 | L56: 1 | M56: 0.0 | N56: 0.00 | O56: 1 | P56: 0.0 | Q56: 0.00 | R56: 1
A57: Zm00001d044404_T001 | B57: '14.7.2' | C57: 'mercator4v7.0: nuclear-encoded organellar RNA polymerase *(NEP) & original description: pacid=40236348 locus=Zm00001d044404 ID=Zm00001d044404_T001.RefGen_V4 annot-version=RefGen_V4' | D57: 0.2 | E57: -1.61 | F57: 1 | G57: 0.0 | H57: 0.00 | I57: 1 | J57: 0.0 | K57: 0.00 | L57: 1 | M57: 0.0 | N57: 0.00 | O57: 1 | P57: 0.0 | Q57: 0.00 | R57: 1
A58: Zm00001d043100_T001 | B58: '14.7.2' | C58: 'mercator4v7.0: nuclear-encoded organellar RNA polymerase *(NEP) & original description: pacid=40241258 locus=Zm00001d043100 ID=Zm00001d043100_T001.RefGen_V4 annot-version=RefGen_V4' | D58: 0.2 | E58: 1.60 | F58: 1 | G58: 0.0 | H58: 0.00 | I58: 1 | J58: 0.0 | K58: 0.00 | L58: 1 | M58: 1.4 | N58: 4.05 | O58: 1 | P58: 0.0 | Q58: 0.00 | R58: 1
A59: Zm00001d030829_T001 | B59: '14.7.2' | C59: 'mercator4v7.0: nuclear-encoded organellar RNA polymerase *(NEP) & original description: pacid=40217223 locus=Zm00001d030829 ID=Zm00001d030829_T001.RefGen_V4 annot-version=RefGen_V4' | D59: 0.1 | E59: 0.96 | F59: 1 | G59: 0.0 | H59: 0.00 | I59: 1 | J59: 0.0 | K59: 0.00 | L59: 1 | M59: 0.0 | N59: 0.00 | O59: 1 | P59: 0.0 | Q59: 0.00 | R59: 1
A60: Zm00001d007570_T001 | B60: '14.7.2' | C60: 'mercator4v7.0: nuclear-encoded organellar RNA polymerase *(NEP) & original description: pacid=40192640 locus=Zm00001d007570 ID=Zm00001d007570_T001.RefGen_V4 annot-version=RefGen_V4' | D60: 0.1 | E60: -0.97 | F60: 1 | G60: 0.0 | H60: 0.00 | I60: 1 | J60: 0.0 | K60: 0.00 | L60: 1 | M60: 0.0 | N60: 0.00 | O60: 1 | P60: 0.0 | Q60: 0.00 | R60: 1
A61: Zm00001d023696_T001 | B61: '14.7.2' | C61: 'mercator4v7.0: nuclear-encoded organellar RNA polymerase *(NEP) & original description: pacid=40182268 locus=Zm00001d023696 ID=Zm00001d023696_T001.RefGen_V4 annot-version=RefGen_V4' | D61: 0.1 | E61: -0.97 | F61: 1 | G61: 0.0 | H61: 0.00 | I61: 1 | J61: 0.0 | K61: 0.00 | L61: 1 | M61: 0.1 | N61: 0.16 | O61: 1 | P61: 0.1 | Q61: 0.18 | R61: 1
A63: Novel histone retrograde signal targets
A64: Zm00001d002601_T001 | B64: '11.1.2.1' | C64: 'mercator4v7.0: linker histone *(H1) & original description: pacid=40191430 locus=Zm00001d002601 ID=Zm00001d002601_T001.RefGen_V4 annot-version=RefGen_V4' | D64: 690.8 | E64: 1.75 | F64: 3.15432152e-14 | G64: 719.7 | H64: 0.05 | I64: 0.9492138341 | J64: 721.5 | K64: 0.33 | L64: 0.535337583 | M64: 906.4 | N64: 0.16 | O64: 0.7594186182 | P64: 839.7 | Q64: -0.12 | R64: 0.85603789
A65: Zm00001d018981_T002 | B65: '11.1.2.1' | C65: 'mercator4v7.0: linker histone *(H1) & original description: pacid=40170833 locus=Zm00001d018981 ID=Zm00001d018981_T002.RefGen_V4 annot-version=RefGen_V4' | D65: 459.9 | E65: 1.25 | F65: 9.477887216e-06 | G65: 1813.9 | H65: -0.68 | I65: 0.3191984812 | J65: 1715.6 | K65: -0.57 | L65: 0.2070552766 | M65: 2391.5 | N65: -0.31 | O65: 0.6069253443 | P65: 2291.3 | Q65: -0.49 | R65: 0.3378621124
A66: Zm00001d013067_T002 | B66: '11.1.2.1' | C66: 'mercator4v7.0: linker histone *(H1) & original description: pacid=40290664 locus=Zm00001d013067 ID=Zm00001d013067_T002.RefGen_V4 annot-version=RefGen_V4' | D66: 355.8 | E66: 2.20 | F66: 1.949761333e-23 | G66: 2125.0 | H66: 0.28 | I66: 0.7126088401 | J66: 1921.4 | K66: 0.20 | L66: 0.7533401038 | M66: 2215.2 | N66: -0.35 | O66: 0.5433485414 | P66: 2077.6 | Q66: -0.64 | R66: 0.2475133854
A67: Zm00001d034479_T001 | B67: '11.1.2.1' | C67: 'mercator4v7.0: linker histone *(H1) & original description: pacid=40209053 locus=Zm00001d034479 ID=Zm00001d034479_T001.RefGen_V4 annot-version=RefGen_V4' | D67: 352.4 | E67: 2.12 | F67: 2.27086518e-20 | G67: 2258.2 | H67: 0.51 | I67: 0.5128843888 | J67: 2236.5 | K67: 0.72 | L67: 0.193541352 | M67: 2577.0 | N67: 0.28 | O67: 0.6496384054 | P67: 2575.0 | Q67: 0.29 | R67: 0.6753881545
A68: Zm00001d013066_T002 | B68: '11.1.2.1' | C68: 'mercator4v7.0: linker histone *(H1) & original description: pacid=40292128 locus=Zm00001d013066 ID=Zm00001d013066_T002.RefGen_V4 annot-version=RefGen_V4' | D68: 131.2 | E68: 2.84 | F68: 1.428659966e-15 | G68: 707.4 | H68: -0.14 | I68: 0.8376769904 | J68: 645.1 | K68: -0.20 | L68: 0.7008748684 | M68: 707.2 | N68: -1.19 | O68: 0.001921024965 | P68: 687.8 | Q68: -1.37 | R68: 0.000295104018
A69: Zm00001d045478_T001 | B69: '11.1.2.1' | C69: 'mercator4v7.0: linker histone *(H1) & original description: pacid=40249060 locus=Zm00001d045478 ID=Zm00001d045478_T001.RefGen_V4 annot-version=RefGen_V4' | D69: 23.2 | E69: 0.80 | F69: 0.4373621376 | G69: 602.6 | H69: -1.84 | I69: 6.262595337e-10 | J69: 567.5 | K69: -1.67 | L69: 0.0009306374547 | M69: 680.3 | N69: -2.93 | O69: 9.131554072e-12 | P69: 723.9 | Q69: -1.98 | R69: 1.720862038e-05
A70: URS0002359932_4577 | B70: '11.1.2.1' | C70: 'mercator4v7.0: linker histone *(H1) & original description: Zea mays (Z. mays) long non-coding RNA (ZMAY_LNC005257)' | D70: 0.7 | E70: 2.92 | F70: 1 | G70: 4.5 | H70: -2.30 | I70: 0.09025669096 | J70: 4.1 | K70: -2.96 | L70: 0.06303966117 | M70: 5.0 | N70: -4.96 | O70: 0.002128734304 | P70: 6.0 | Q70: -1.43 | R70: 0.1561354292
A71: Zm00001d047787_T001 | B71: '11.1.1.1.1' | C71: 'mercator4v7.0: histone *(H2A/HTA) & original description: pacid=40250684 locus=Zm00001d047787 ID=Zm00001d047787_T001.RefGen_V4 annot-version=RefGen_V4' | D71: 1505.4 | E71: 3.36 | F71: 2.281127051e-53 | G71: 169.0 | H71: 0.87 | I71: 0.2451057742 | J71: 125.7 | K71: 0.19 | L71: 0.7788671116 | M71: 174.8 | N71: 0.37 | O71: 0.6492839275 | P71: 157.3 | Q71: 0.01 | R71: 0.9956925634
A72: Zm00001d013300_T001 | B72: '11.1.1.1.1' | C72: 'mercator4v7.0: histone *(H2A/HTA) & original description: pacid=40283752 locus=Zm00001d013300 ID=Zm00001d013300_T001.RefGen_V4 annot-version=RefGen_V4' | D72: 823.4 | E72: 1.45 | F72: 1.784668207e-13 | G72: 205.3 | H72: 0.27 | I72: 0.4376131661 | J72: 208.5 | K72: 0.57 | L72: 0.046564228 | M72: 296.2 | N72: 0.79 | O72: 0.003249832789 | P72: 304.6 | Q72: 0.88 | R72: 0.0004651482231
A73: Zm00001d038381_T001 | B73: '11.1.1.1.1' | C73: 'mercator4v7.0: histone *(H2A/HTA) & original description: pacid=40225038 locus=Zm00001d038381 ID=Zm00001d038381_T001.RefGen_V4 annot-version=RefGen_V4' | D73: 540.6 | E73: 0.71 | F73: 0.0003851188235 | G73: 1221.3 | H73: -0.61 | I73: 0.07059583103 | J73: 1160.9 | K73: -0.47 | L73: 0.1085370181 | M73: 1434.7 | N73: -0.81 | O73: 0.001217480379 | P73: 1373.7 | Q73: -1.06 | R73: 3.912205787e-06
A74: Zm00001d033979_T001 | B74: '11.1.1.1.1' | C74: 'mercator4v7.0: histone *(H2A/HTA) & original description: pacid=40204815 locus=Zm00001d033979 ID=Zm00001d033979_T001.RefGen_V4 annot-version=RefGen_V4' | D74: 498.1 | E74: 0.53 | F74: 0.03167887831 | G74: 223.7 | H74: 0.11 | I74: 0.7074497676 | J74: 193.7 | K74: -0.14 | L74: 0.5686065358 | M74: 234.2 | N74: -0.54 | O74: 0.1890997333 | P74: 243.1 | Q74: -0.35 | R74: 0.4089006214
A75: Zm00001d006548_T001 | B75: '11.1.1.1.1' | C75: 'mercator4v7.0: histone *(H2A/HTA) & original description: pacid=40194262 locus=Zm00001d006548 ID=Zm00001d006548_T001.RefGen_V4 annot-version=RefGen_V4' | D75: 451.3 | E75: 1.76 | F75: 5.172711281e-06 | G75: 847.3 | H75: -0.26 | I75: 0.3620741827 | J75: 768.9 | K75: -0.35 | L75: 0.1283289069 | M75: 966.4 | N75: -0.58 | O75: 0.008263850185 | P75: 949.4 | Q75: -0.66 | R75: 0.002558721874
A76: Zm00001d044246_T002 | B76: '11.1.1.1.1' | C76: 'mercator4v7.0: histone *(H2A/HTA) & original description: pacid=40234292 locus=Zm00001d044246 ID=Zm00001d044246_T002.RefGen_V4 annot-version=RefGen_V4' | D76: 398.0 | E76: 3.42 | F76: 2.104457842e-24 | G76: 203.0 | H76: -0.13 | I76: 0.8309329941 | J76: 201.5 | K76: 0.14 | L76: 0.7025151039 | M76: 259.2 | N76: 0.04 | O76: 0.939331301 | P76: 245.9 | Q76: -0.15 | R76: 0.7052218557
A77: Zm00001d021707_T001 | B77: '11.1.1.1.1' | C77: 'mercator4v7.0: histone *(H2A/HTA) & original description: pacid=40166295 locus=Zm00001d021707 ID=Zm00001d021707_T001.RefGen_V4 annot-version=RefGen_V4' | D77: 348.8 | E77: 1.01 | F77: 1.687503649e-06 | G77: 349.7 | H77: -0.35 | I77: 0.4776494911 | J77: 359.5 | K77: 0.09 | L77: 0.8716708862 | M77: 474.6 | N77: 0.09 | O77: 0.8658689305 | P77: 497.2 | Q77: 0.27 | R77: 0.5701864533
A78: Zm00001d021706_T001 | B78: '11.1.1.1.1' | C78: 'mercator4v7.0: histone *(H2A/HTA) & original description: pacid=40163513 locus=Zm00001d021706 ID=Zm00001d021706_T001.RefGen_V4 annot-version=RefGen_V4' | D78: 337.8 | E78: 2.69 | F78: 1.811472449e-24 | G78: 73.7 | H78: 0.61 | I78: 0.4389172855 | J78: 87.6 | K78: 1.29 | L78: 0.03250872086 | M78: 86.9 | N78: 0.50 | O78: 0.5209580258 | P78: 104.3 | Q78: 1.03 | R78: 0.1191163471
A79: Zm00001d006213_T001 | B79: '11.1.1.1.1' | C79: 'mercator4v7.0: histone *(H2A/HTA) & original description: pacid=40183961 locus=Zm00001d006213 ID=Zm00001d006213_T001.RefGen_V4 annot-version=RefGen_V4' | D79: 292.9 | E79: 2.69 | F79: 5.910587491e-12 | G79: 422.0 | H79: -0.78 | I79: 0.005637101608 | J79: 377.9 | K79: -0.97 | L79: 7.217204011e-05 | M79: 462.4 | N79: -1.50 | O79: 8.71949525e-06 | P79: 451.4 | Q79: -1.68 | R79: 1.530868531e-12
A80: Zm00001d021300_T001 | B80: '11.1.1.1.1' | C80: 'mercator4v7.0: histone *(H2A/HTA) & original description: pacid=40164614 locus=Zm00001d021300 ID=Zm00001d021300_T001.RefGen_V4 annot-version=RefGen_V4' | D80: 248.5 | E80: 3.71 | F80: 4.150835919e-32 | G80: 119.0 | H80: 0.95 | I80: 0.2926517351 | J80: 117.2 | K80: 1.11 | L80: 0.1679656822 | M80: 141.0 | N80: 0.86 | O80: 0.3029628906 | P80: 141.6 | Q80: 0.88 | R80: 0.2970061288
A81: Zm00001d019045_T001 | B81: '11.1.1.1.1' | C81: 'mercator4v7.0: histone *(H2A/HTA) & original description: pacid=40165952 locus=Zm00001d019045 ID=Zm00001d019045_T001.RefGen_V4 annot-version=RefGen_V4' | D81: 186.6 | E81: 5.02 | F81: 5.878661602e-39 | G81: 119.3 | H81: -0.15 | I81: 0.8769074618 | J81: 112.0 | K81: -0.08 | L81: 0.8568040895 | M81: 149.9 | N81: -0.03 | O81: 0.9524797575 | P81: 148.0 | Q81: -0.07 | R81: 0.8716606799
A82: URS000235BCC9_4577_1 | B82: '11.1.1.1.1' | C82: 'mercator4v7.0: histone *(H2A/HTA) & original description: Zea mays (Z. mays) long non-coding RNA (ZMAY_LNC003802)_1' | D82: 165.0 | E82: -1.44 | F82: 5.369389267e-08 | G82: 36.4 | H82: 0.09 | I82: 0.9068475051 | J82: 30.8 | K82: -0.26 | L82: 0.7039127012 | M82: 41.3 | N82: -0.20 | O82: 0.7444385914 | P82: 38.7 | Q82: -0.47 | R82: 0.4022509488
A83: Zm00001d006547_T001 | B83: '11.1.1.1.1' | C83: 'mercator4v7.0: histone *(H2A/HTA) & original description: pacid=40197808 locus=Zm00001d006547 ID=Zm00001d006547_T001.RefGen_V4 annot-version=RefGen_V4' | D83: 158.8 | E83: 2.80 | F83: 2.74929255e-17 | G83: 318.1 | H83: 0.56 | I83: 0.1430132608 | J83: 340.4 | K83: 0.98 | L83: 0.007688975351 | M83: 402.8 | N83: 0.67 | O83: 0.06756800992 | P83: 350.8 | Q83: 0.24 | R83: 0.5767158405
A84: Zm00001d023901_T001 | B84: '11.1.1.1.1' | C84: 'mercator4v7.0: histone *(H2A/HTA) & original description: pacid=40177012 locus=Zm00001d023901 ID=Zm00001d023901_T001.RefGen_V4 annot-version=RefGen_V4' | D84: 143.0 | E84: 4.62 | F84: 3.175171867e-34 | G84: 8.5 | H84: -3.13 | I84: 0.1520808804 | J84: 19.6 | K84: 1.51 | L84: 0.370524818 | M84: 31.9 | N84: 1.95 | O84: 0.1829886707 | P84: 36.7 | Q84: 2.25 | R84: 0.06989234037
A85: URS00023813D6_4577 | B85: '11.1.1.1.1' | C85: 'mercator4v7.0: histone *(H2A/HTA) & original description: Zea mays (Z. mays) long non-coding RNA (ZMAY_LNC000604)' | D85: 141.1 | E85: 0.41 | F85: 0.1640048525 | G85: 12.4 | H85: -0.95 | I85: 0.4014106947 | J85: 12.2 | K85: -0.59 | L85: 0.5419259053 | M85: 21.0 | N85: 0.48 | O85: 0.6789286334 | P85: 15.4 | Q85: -0.82 | R85: 0.3439193237
A86: Zm00001d013392_T001 | B86: '11.1.1.1.1' | C86: 'mercator4v7.0: histone *(H2A/HTA) & original description: pacid=40281849 locus=Zm00001d013392 ID=Zm00001d013392_T001.RefGen_V4 annot-version=RefGen_V4' | D86: 76.2 | E86: 1.12 | F86: 0.002491900236 | G86: 61.7 | H86: -0.14 | I86: 0.8345998418 | J86: 55.0 | K86: -0.29 | L86: 0.6562929858 | M86: 75.3 | N86: -0.15 | O86: 0.7979859378 | P86: 74.9 | Q86: -0.16 | R86: 0.8065677605
A87: Zm00001d012837_T001 | B87: '11.1.1.1.1' | C87: 'mercator4v7.0: histone *(H2A/HTA) & original description: pacid=40285645 locus=Zm00001d012837 ID=Zm00001d012837_T001.RefGen_V4 annot-version=RefGen_V4' | D87: 51.8 | E87: 4.56 | F87: 4.686247563e-17 | G87: 9.1 | H87: 1.60 | I87: 0.1445009464 | J87: 7.2 | K87: 1.24 | L87: 0.2761298659 | M87: 11.5 | N87: 1.66 | O87: 0.1201506501 | P87: 10.9 | Q87: 1.56 | R87: 0.1393581545
A88: URS00023EC9A9_4577_1 | B88: '11.1.1.1.1' | C88: 'mercator4v7.0: histone *(H2A/HTA) & original description: Zea mays (Z. mays) long non-coding RNA (ZMAY_LNC002518)_1' | D88: 46.8 | E88: -0.50 | F88: 0.2871610216 | G88: 26.9 | H88: -0.60 | I88: 0.3077753442 | J88: 25.8 | K88: -0.43 | L88: 0.4813071041 | M88: 35.8 | N88: -0.21 | O88: 0.6975044448 | P88: 35.9 | Q88: -0.18 | R88: 0.746121773
A89: URS000240EE31_4577_1 | B89: '11.1.1.1.1' | C89: 'mercator4v7.0: histone *(H2A/HTA) & original description: Zea mays (Z. mays) long non-coding RNA (ZMAY_LNC002518)_1' | D89: 46.8 | E89: -0.50 | F89: 0.2871610216 | G89: 26.9 | H89: -0.60 | I89: 0.3077753442 | J89: 25.8 | K89: -0.43 | L89: 0.4813071041 | M89: 35.8 | N89: -0.21 | O89: 0.6975044448 | P89: 35.9 | Q89: -0.18 | R89: 0.746121773
A90: Zm00001d042278_T001 | B90: '11.1.1.1.1' | C90: 'mercator4v7.0: histone *(H2A/HTA) & original description: pacid=40237862 locus=Zm00001d042278 ID=Zm00001d042278_T001.RefGen_V4 annot-version=RefGen_V4' | D90: 41.2 | E90: 7.85 | F90: 4.243295566e-09 | G90: 22.6 | H90: -21.76 | I90: 1 | J90: 20.9 | K90: -21.53 | L90: 1 | M90: 67.5 | N90: 1.31 | O90: 1 | P90: 28.9 | Q90: -3.35 | R90: 1
A91: Zm00001d027760_T001 | B91: '11.1.1.1.1' | C91: 'mercator4v7.0: histone *(H2A/HTA) & original description: pacid=40203598 locus=Zm00001d027760 ID=Zm00001d027760_T001.RefGen_V4 annot-version=RefGen_V4' | D91: 27.8 | E91: 3.56 | F91: 9.324318512e-08 | G91: 2.6 | H91: 3.86 | I91: 0.1397517648 | J91: 1.9 | K91: 3.44 | L91: 1 | M91: 6.3 | N91: 4.96 | O91: 0.01624601074 | P91: 6.2 | Q91: 4.95 | R91: 0.003337726461
A92: Zm00001d033822_T001 | B92: '11.1.1.1.1' | C92: 'mercator4v7.0: histone *(H2A/HTA) & original description: pacid=40206884 locus=Zm00001d033822 ID=Zm00001d033822_T001.RefGen_V4 annot-version=RefGen_V4' | D92: 24.9 | E92: 6.26 | F92: 2.637960878e-07 | G92: 0.6 | H92: -2.50 | I92: 1 | J92: 0.6 | K92: -2.20 | L92: 1 | M92: 1.1 | N92: -0.74 | O92: 1 | P92: 0.9 | Q92: -2.29 | R92: 1
A93: URS000241F4ED_4577 | B93: '11.1.1.1.1' | C93: 'mercator4v7.0: histone *(H2A/HTA) & original description: Zea mays (Z. mays) long non-coding RNA (ZMAY_LNC001260)' | D93: 23.0 | E93: 2.15 | F93: 0.0001708796604 | G93: 100.5 | H93: -0.25 | I93: 0.6153290269 | J93: 94.6 | K93: -0.18 | L93: 0.6970203022 | M93: 112.6 | N93: -0.65 | O93: 0.01690556176 | P93: 118.0 | Q93: -0.40 | R93: 0.2243605681
A94: Zm00001d009350_T001 | B94: '11.1.1.1.1' | C94: 'mercator4v7.0: histone *(H2A/HTA) & original description: pacid=40261663 locus=Zm00001d009350 ID=Zm00001d009350_T001.RefGen_V4 annot-version=RefGen_V4' | D94: 5.6 | E94: 5.93 | F94: 0.0006197884438 | G94: 3.2 | H94: -4.82 | I94: 1 | J94: 3.1 | K94: -3.56 | L94: 1 | M94: 8.7 | N94: 1.08 | O94: 0.7389493996 | P94: 3.8 | Q94: -5.57 | R94: 1
A95: Zm00001d045964_T001 | B95: '11.1.1.1.1' | C95: 'mercator4v7.0: histone *(H2A/HTA) & original description: pacid=40252365 locus=Zm00001d045964 ID=Zm00001d045964_T001.RefGen_V4 annot-version=RefGen_V4' | D95: 2.8 | E95: -4.97 | F95: 0.02326410254 | G95: 0.1 | H95: -0.60 | I95: 1 | J95: 0.2 | K95: 0.66 | L95: 1 | M95: 0.1 | N95: -1.38 | O95: 1 | P95: 0.1 | Q95: -1.36 | R95: 1
A96: Zm00001d011011_T001 | B96: '11.1.1.1.1' | C96: 'mercator4v7.0: histone *(H2A/HTA) & original description: pacid=40256254 locus=Zm00001d011011 ID=Zm00001d011011_T001.RefGen_V4 annot-version=RefGen_V4' | D96: 1.7 | E96: 4.24 | F96: 0.1133349853 | G96: 0.0 | H96: 0.00 | I96: 1 | J96: 0.0 | K96: 0.00 | L96: 1 | M96: 0.0 | N96: 0.00 | O96: 1 | P96: 0.0 | Q96: 0.00 | R96: 1
A97: Zm00001d007567_T001 | B97: '11.1.1.1.1' | C97: 'mercator4v7.0: histone *(H2A/HTA) & original description: pacid=40186177 locus=Zm00001d007567 ID=Zm00001d007567_T001.RefGen_V4 annot-version=RefGen_V4' | D97: 1.4 | E97: 3.96 | F97: 0.1679575331 | G97: 0.0 | H97: 0.00 | I97: 1 | J97: 0.0 | K97: 0.00 | L97: 1 | M97: 1.4 | N97: 4.03 | O97: 1 | P97: 0.4 | Q97: 2.41 | R97: 1
A98: Zm00001d018293_T001 | B98: '11.1.1.1.1' | C98: 'mercator4v7.0: histone *(H2A/HTA) & original description: pacid=40279909 locus=Zm00001d018293 ID=Zm00001d018293_T001.RefGen_V4 annot-version=RefGen_V4' | D98: 0.8 | E98: 3.05 | F98: 1 | G98: 0.0 | H98: 0.00 | I98: 1 | J98: 0.0 | K98: 0.00 | L98: 1 | M98: 0.0 | N98: 0.00 | O98: 1 | P98: 0.0 | Q98: 0.00 | R98: 1
A99: Zm00001d007553_T001 | B99: '11.1.1.1.1' | C99: 'mercator4v7.0: histone *(H2A/HTA) & original description: pacid=40190511 locus=Zm00001d007553 ID=Zm00001d007553_T001.RefGen_V4 annot-version=RefGen_V4' | D99: 0.3 | E99: -0.97 | F99: 1 | G99: 0.1 | H99: -0.60 | I99: 1 | J99: 0.1 | K99: -0.30 | L99: 1 | M99: 0.5 | N99: 1.66 | O99: 1 | P99: 0.3 | Q99: 0.47 | R99: 1
A100: Zm00001d015078_T001 | B100: '11.1.1.1.1' | C100: 'mercator4v7.0: histone *(H2A/HTA) & original description: pacid=40290736 locus=Zm00001d015078 ID=Zm00001d015078_T001.RefGen_V4 annot-version=RefGen_V4' | D100: 0.1 | E100: -0.97 | F100: 1 | G100: 0.0 | H100: 0.00 | I100: 1 | J100: 0.0 | K100: 0.00 | L100: 1 | M100: 0.0 | N100: 0.00 | O100: 1 | P100: 0.0 | Q100: 0.00 | R100: 1
A101: Zm00001d039821_T001 | B101: '11.1.1.1.2' | C101: 'mercator4v7.0: histone *(H2B/HTB) & original description: pacid=40236114 locus=Zm00001d039821 ID=Zm00001d039821_T001.RefGen_V4 annot-version=RefGen_V4' | D101: 436.9 | E101: 1.98 | F101: 2.050664068e-19 | G101: 271.3 | H101: 0.06 | I101: 0.8904055816 | J101: 230.1 | K101: -0.29 | L101: 0.3955374575 | M101: 309.5 | N101: -0.21 | O101: 0.5639752646 | P101: 292.3 | Q101: -0.45 | R101: 0.1345118771
A102: Zm00001d007084_T001 | B102: '11.1.1.1.2' | C102: 'mercator4v7.0: histone *(H2B/HTB) & original description: pacid=40194585 locus=Zm00001d007084 ID=Zm00001d007084_T001.RefGen_V4 annot-version=RefGen_V4' | D102: 399.6 | E102: 1.59 | F102: 9.523178781e-10 | G102: 756.4 | H102: 0.10 | I102: 0.8628586371 | J102: 698.6 | K102: 0.09 | L102: 0.8317951944 | M102: 1006.4 | N102: 0.40 | O102: 0.3437568179 | P102: 897.1 | Q102: -0.00 | R102: 0.9989665357
A103: Zm00001d025913_T001 | B103: '11.1.1.1.2' | C103: 'mercator4v7.0: histone *(H2B/HTB) & original description: pacid=40176185 locus=Zm00001d025913 ID=Zm00001d025913_T001.RefGen_V4 annot-version=RefGen_V4' | D103: 384.2 | E103: 2.70 | F103: 5.582200546e-22 | G103: 218.9 | H103: 0.49 | I103: 1 | J103: 155.1 | K103: -0.55 | L103: 0.6156122728 | M103: 247.7 | N103: 0.22 | O103: 0.8560354355 | P103: 245.6 | Q103: 0.21 | R103: 0.8648955286
A104: Zm00001d012423_T001 | B104: '11.1.1.1.2' | C104: 'mercator4v7.0: histone *(H2B/HTB) & original description: pacid=40262711 locus=Zm00001d012423 ID=Zm00001d012423_T001.RefGen_V4 annot-version=RefGen_V4' | D104: 369.1 | E104: 3.83 | F104: 3.129310066e-33 | G104: 171.8 | H104: 0.38 | I104: 0.5661575234 | J104: 128.5 | K104: -0.45 | L104: 0.3836424325 | M104: 206.3 | N104: 0.32 | O104: 0.5700975711 | P104: 173.3 | Q104: -0.34 | R104: 0.5804980885
A105: Zm00001d044247_T001 | B105: '11.1.1.1.2' | C105: 'mercator4v7.0: histone *(H2B/HTB) & original description: pacid=40238638 locus=Zm00001d044247 ID=Zm00001d044247_T001.RefGen_V4 annot-version=RefGen_V4' | D105: 346.9 | E105: 1.02 | F105: 0.0003606222209 | G105: 705.4 | H105: -0.06 | I105: 0.8433576875 | J105: 617.4 | K105: -0.29 | L105: 0.2132126884 | M105: 823.5 | N105: -0.24 | O105: 0.3302143405 | P105: 774.5 | Q105: -0.51 | R105: 0.02017137247
A106: Zm00001d020580_T001 | B106: '11.1.1.1.2' | C106: 'mercator4v7.0: histone *(H2B/HTB) & original description: pacid=40168332 locus=Zm00001d020580 ID=Zm00001d020580_T001.RefGen_V4 annot-version=RefGen_V4' | D106: 333.2 | E106: 1.58 | F106: 3.265531037e-11 | G106: 277.1 | H106: 0.29 | I106: 0.5293713684 | J106: 248.3 | K106: 0.17 | L106: 0.6484722482 | M106: 354.2 | N106: 0.43 | O106: 0.1895192511 | P106: 312.0 | Q106: 0.00 | R106: 0.9985619231
A107: Zm00001d042930_T001 | B107: '11.1.1.1.2' | C107: 'mercator4v7.0: histone *(H2B/HTB) & original description: pacid=40236962 locus=Zm00001d042930 ID=Zm00001d042930_T001.RefGen_V4 annot-version=RefGen_V4' | D107: 322.8 | E107: 4.88 | F107: 3.240424015e-51 | G107: 31.2 | H107: 1.74 | I107: 0.04129320153 | J107: 42.9 | K107: 2.54 | L107: 9.495446997e-05 | M107: 75.9 | N107: 3.07 | O107: 1.502082909e-07 | P107: 52.2 | Q107: 2.39 | R107: 0.0007096487662
A108: Zm00001d032070_T001 | B108: '11.1.1.1.2' | C108: 'mercator4v7.0: histone *(H2B/HTB) & original description: pacid=40207234 locus=Zm00001d032070 ID=Zm00001d032070_T001.RefGen_V4 annot-version=RefGen_V4' | D108: 278.8 | E108: 4.85 | F108: 5.951235106e-65 | G108: 62.3 | H108: 1.67 | I108: 0.0433667896 | J108: 54.6 | K108: 1.55 | L108: 0.08893322926 | M108: 105.0 | N108: 2.33 | O108: 0.0007118263306 | P108: 117.1 | Q108: 2.55 | R108: 0.0001689127147
A109: Zm00001d047788_T005 | B109: '11.1.1.1.2' | C109: 'mercator4v7.0: histone *(H2B/HTB) & original description: pacid=40253139 locus=Zm00001d047788 ID=Zm00001d047788_T005.RefGen_V4 annot-version=RefGen_V4' | D109: 278.1 | E109: 0.82 | F109: 0.0002388283376 | G109: 1946.0 | H109: 0.38 | I109: 0.4313367562 | J109: 1490.9 | K109: -0.34 | L109: 0.4435833693 | M109: 1790.4 | N109: -0.83 | O109: 0.04476355094 | P109: 1616.8 | Q109: -1.49 | R109: 5.284235561e-05
A110: Zm00001d048491_T001 | B110: '11.1.1.1.2' | C110: 'mercator4v7.0: histone *(H2B/HTB) & original description: pacid=40252450 locus=Zm00001d048491 ID=Zm00001d048491_T001.RefGen_V4 annot-version=RefGen_V4' | D110: 270.0 | E110: 4.17 | F110: 1.002973964e-40 | G110: 11.5 | H110: 2.76 | I110: 0.001844965207 | J110: 10.4 | K110: 2.70 | L110: 0.0002876218581 | M110: 22.1 | N110: 3.54 | O110: 8.418315001e-07 | P110: 13.8 | Q110: 2.73 | R110: 0.003236366863
A111: URS00023A0D43_4577 | B111: '11.1.1.1.2' | C111: 'mercator4v7.0: histone *(H2B/HTB) & original description: Zea mays (Z. mays) long non-coding RNA (ZMAY_LNC004471)' | D111: 204.1 | E111: 1.86 | F111: 9.511565432e-07 | G111: 70.8 | H111: -0.03 | I111: 0.9607011308 | J111: 63.6 | K111: -0.16 | L111: 0.7369855069 | M111: 88.6 | N111: 0.05 | O111: 0.9120194654 | P111: 80.8 | Q111: -0.31 | R111: 0.4741278135
A112: Zm00001d051591_T001 | B112: '11.1.1.1.2' | C112: 'mercator4v7.0: histone *(H2B/HTB) & original description: pacid=40271703 locus=Zm00001d051591 ID=Zm00001d051591_T001.RefGen_V4 annot-version=RefGen_V4' | D112: 198.5 | E112: 4.73 | F112: 3.973382913e-17 | G112: 23.7 | H112: -0.11 | I112: 0.9572867593 | J112: 18.3 | K112: -0.98 | L112: 0.5233413709 | M112: 26.8 | N112: -0.44 | O112: 0.7908825751 | P112: 23.7 | Q112: -1.11 | R112: 0.4234550266
A113: URS00023F816E_4577 | B113: '11.1.1.1.2' | C113: 'mercator4v7.0: histone *(H2B/HTB) & original description: Zea mays (Z. mays) long non-coding RNA (ZMAY_LNC002599)' | D113: 182.7 | E113: 4.63 | F113: 3.950385442e-39 | G113: 5.2 | H113: 1.08 | I113: 0.4909123332 | J113: 3.2 | K113: -0.21 | L113: 0.9189164521 | M113: 5.8 | N113: 0.83 | O113: 0.6508690711 | P113: 4.3 | Q113: -0.21 | R113: 0.9163771218
A114: Zm00001d011236_T001 | B114: '11.1.1.1.2' | C114: 'mercator4v7.0: histone *(H2B/HTB) & original description: pacid=40256773 locus=Zm00001d011236 ID=Zm00001d011236_T001.RefGen_V4 annot-version=RefGen_V4' | D114: 179.4 | E114: 1.39 | F114: 0.00137008446 | G114: 93.9 | H114: -0.70 | I114: 0.08526090437 | J114: 86.5 | K114: -0.72 | L114: 0.09229572338 | M114: 128.6 | N114: -0.17 | O114: 0.7687952845 | P114: 129.1 | Q114: -0.13 | R114: 0.7908589172
A115: Zm00001d005789_T001 | B115: '11.1.1.1.2' | C115: 'mercator4v7.0: histone *(H2B/HTB) & original description: pacid=40186417 locus=Zm00001d005789 ID=Zm00001d005789_T001.RefGen_V4 annot-version=RefGen_V4' | D115: 130.5 | E115: 2.53 | F115: 2.00970715e-09 | G115: 119.5 | H115: -1.59 | I115: 0.001806093257 | J115: 134.2 | K115: -0.40 | L115: 0.4656191267 | M115: 159.1 | N115: -0.97 | O115: 0.1497877346 | P115: 173.9 | Q115: -0.47 | R115: 0.3636621639
A116: Zm00001d050100_T001 | B116: '11.1.1.1.2' | C116: 'mercator4v7.0: histone *(H2B/HTB) & original description: pacid=40278812 locus=Zm00001d050100 ID=Zm00001d050100_T001.RefGen_V4 annot-version=RefGen_V4' | D116: 90.4 | E116: 5.12 | F116: 8.419758574e-25 | G116: 2.4 | H116: 2.76 | I116: 0.269456303 | J116: 3.2 | K116: 3.38 | L116: 0.05209988538 | M116: 5.1 | N116: 3.68 | O116: 0.0637666484 | P116: 5.2 | Q116: 3.70 | R116: 0.008452163293
A117: URS00023674EF_4577 | B117: '11.1.1.1.2' | C117: 'mercator4v7.0: histone *(H2B/HTB) & original description: Zea mays (Z. mays) long non-coding RNA (ZMAY_LNC005709)' | D117: 0.4 | E117: -0.00 | F117: 1 | G117: 0.0 | H117: 0.00 | I117: 1 | J117: 0.1 | K117: 1.24 | L117: 1 | M117: 0.0 | N117: 0.00 | O117: 1 | P117: 0.0 | Q117: 0.00 | R117: 1
A118: Zm00001d005322_T001 | B118: '11.1.1.1.2' | C118: 'mercator4v7.0: histone *(H2B/HTB) & original description: pacid=40198413 locus=Zm00001d005322 ID=Zm00001d005322_T001.RefGen_V4 annot-version=RefGen_V4' | D118: 0.1 | E118: -0.97 | F118: 1 | G118: 0.0 | H118: 0.00 | I118: 1 | J118: 0.0 | K118: 0.00 | L118: 1 | M118: 0.0 | N118: 0.00 | O118: 1 | P118: 0.0 | Q118: 0.00 | R118: 1
A119: Zm00001d029394_T003 | B119: '11.1.1.2.1' | C119: 'mercator4v7.0: histone *(H3) & original description: pacid=40202777 locus=Zm00001d029394 ID=Zm00001d029394_T003.RefGen_V4 annot-version=RefGen_V4' | D119: 3613.0 | E119: 0.33 | F119: 0.0672613442 | G119: 2736.4 | H119: -0.02 | I119: 0.9623176861 | J119: 2390.3 | K119: -0.25 | L119: 0.3322738593 | M119: 3050.0 | N119: -0.40 | O119: 0.1505283577 | P119: 2896.0 | Q119: -0.64 | R119: 0.003459529335
A120: Zm00001d016908_T006 | B120: '11.1.1.2.1' | C120: 'mercator4v7.0: histone *(H3) & original description: pacid=40288138 locus=Zm00001d016908 ID=Zm00001d016908_T006.RefGen_V4 annot-version=RefGen_V4' | D120: 521.0 | E120: 0.78 | F120: 0.002089173054 | G120: 275.4 | H120: 0.30 | I120: 0.2853243946 | J120: 241.2 | K120: 0.11 | L120: 0.7210023814 | M120: 326.8 | N120: 0.20 | O120: 0.4974695328 | P120: 324.4 | Q120: 0.19 | R120: 0.5517289414
A121: Zm00001d003493_T001 | B121: '11.1.1.2.1' | C121: 'mercator4v7.0: histone *(H3) & original description: pacid=40185123 locus=Zm00001d003493 ID=Zm00001d003493_T001.RefGen_V4 annot-version=RefGen_V4' | D121: 503.4 | E121: -0.02 | F121: 0.9344248068 | G121: 533.7 | H121: -0.26 | I121: 0.1189054906 | J121: 496.1 | K121: -0.23 | L121: 0.08529490253 | M121: 616.5 | N121: -0.51 | O121: 3.413610121e-06 | P121: 619.7 | Q121: -0.47 | R121: 0.004814702011
A122: Zm00001d036036_T001 | B122: '11.1.1.2.1' | C122: 'mercator4v7.0: histone *(H3) & original description: pacid=40221814 locus=Zm00001d036036 ID=Zm00001d036036_T001.RefGen_V4 annot-version=RefGen_V4' | D122: 410.6 | E122: 2.09 | F122: 3.725251507e-08 | G122: 1976.3 | H122: -0.52 | I122: 0.1332855085 | J122: 1946.0 | K122: -0.24 | L122: 0.5155292799 | M122: 2175.9 | N122: -1.12 | O122: 6.651778452e-05 | P122: 2117.6 | Q122: -1.28 | R122: 5.706607246e-06
A123: Zm00001d012276_T001 | B123: '11.1.1.2.1' | C123: 'mercator4v7.0: histone *(H3) & original description: pacid=40258134 locus=Zm00001d012276 ID=Zm00001d012276_T001.RefGen_V4 annot-version=RefGen_V4' | D123: 402.5 | E123: 4.13 | F123: 8.305902243e-62 | G123: 38.6 | H123: 1.02 | I123: 0.307201419 | J123: 30.5 | K123: 0.57 | L123: 0.5048941947 | M123: 56.3 | N123: 1.45 | O123: 0.1256266132 | P123: 48.1 | Q123: 1.07 | R123: 0.2092241252
A124: Zm00001d045475_T001 | B124: '11.1.1.2.1' | C124: 'mercator4v7.0: histone *(H3) & original description: pacid=40252061 locus=Zm00001d045475 ID=Zm00001d045475_T001.RefGen_V4 annot-version=RefGen_V4' | D124: 377.0 | E124: 0.77 | F124: 0.0005967761114 | G124: 1165.1 | H124: -0.29 | I124: 0.6019237591 | J124: 1099.6 | K124: -0.21 | L124: 0.707385606 | M124: 1324.0 | N124: -0.63 | O124: 0.1043941624 | P124: 1306.8 | Q124: -0.69 | R124: 0.2480446628
A125: Zm00001d025381_T001 | B125: '11.1.1.2.1' | C125: 'mercator4v7.0: histone *(H3) & original description: pacid=40177395 locus=Zm00001d025381 ID=Zm00001d025381_T001.RefGen_V4 annot-version=RefGen_V4' | D125: 136.9 | E125: 4.44 | F125: 2.05200467e-30 | G125: 2.0 | H125: -0.92 | I125: 1 | J125: 2.3 | K125: -0.01 | L125: 0.995719161 | M125: 5.1 | N125: 1.53 | O125: 0.4844627162 | P125: 4.0 | Q125: 0.99 | R125: 0.5538458414
A126: URS000234BBF7_4577_1 | B126: '11.1.1.2.1' | C126: 'mercator4v7.0: histone *(H3) & original description: Zea mays (Z. mays) long non-coding RNA (ZMAY_LNC001930)_1' | D126: 103.9 | E126: 0.36 | F126: 0.4009840112 | G126: 11.3 | H126: -1.01 | I126: 0.5405570898 | J126: 12.1 | K126: -0.31 | L126: 0.8588509508 | M126: 20.3 | N126: 0.61 | O126: 0.6497351621 | P126: 14.6 | Q126: -0.66 | R126: 0.651865599
A127: Zm00001d003730_T001 | B127: '11.1.1.2.1' | C127: 'mercator4v7.0: histone *(H3) & original description: pacid=40185294 locus=Zm00001d003730 ID=Zm00001d003730_T001.RefGen_V4 annot-version=RefGen_V4' | D127: 64.9 | E127: 7.66 | F127: 9.81160456e-11 | G127: 2.6 | H127: 3.98 | I127: 0.09540491856 | J127: 1.6 | K127: 3.33 | L127: 1 | M127: 6.0 | N127: 4.94 | O127: 0.01141344699 | P127: 3.8 | Q127: 4.24 | R127: 0.03225533352
A128: Zm00001d003725_T001 | B128: '11.1.1.2.1' | C128: 'mercator4v7.0: histone *(H3) & original description: pacid=40188434 locus=Zm00001d003725 ID=Zm00001d003725_T001.RefGen_V4 annot-version=RefGen_V4' | D128: 61.2 | E128: 6.28 | F128: 2.321200821e-16 | G128: 1.2 | H128: 2.64 | I128: 1 | J128: 0.9 | K128: 2.35 | L128: 1 | M128: 2.3 | N128: 3.49 | O128: 0.09406461635 | P128: 1.3 | Q128: 2.43 | R128: 1
A129: Zm00001d016723_T001 | B129: '11.1.1.2.1' | C129: 'mercator4v7.0: histone *(H3) & original description: pacid=40289257 locus=Zm00001d016723 ID=Zm00001d016723_T001.RefGen_V4 annot-version=RefGen_V4' | D129: 46.9 | E129: 9.01 | F129: 9.883988096e-10 | G129: 12.0 | H129: 0.39 | I129: 0.8138065271 | J129: 9.0 | K129: -0.43 | L129: 0.8009364933 | M129: 10.0 | N129: -1.50 | O129: 0.2543817205 | P129: 16.2 | Q129: 0.71 | R129: 0.5948835566
A130: Zm00001d045268_T001 | B130: '11.1.1.2.1' | C130: 'mercator4v7.0: histone *(H3) & original description: pacid=40253899 locus=Zm00001d045268 ID=Zm00001d045268_T001.RefGen_V4 annot-version=RefGen_V4' | D130: 40.9 | E130: 5.24 | F130: 6.057899243e-10 | G130: 77.8 | H130: 0.78 | I130: 0.4828764058 | J130: 44.2 | K130: -1.30 | L130: 0.2500196052 | M130: 71.0 | N130: -0.23 | O130: 0.8728349683 | P130: 65.1 | Q130: -0.62 | R130: 0.6006071436
A131: Zm00001d042730_T001 | B131: '11.1.1.2.1' | C131: 'mercator4v7.0: histone *(H3) & original description: pacid=40240301 locus=Zm00001d042730 ID=Zm00001d042730_T001.RefGen_V4 annot-version=RefGen_V4' | D131: 29.8 | E131: 4.74 | F131: 4.959276566e-09 | G131: 16.4 | H131: -0.42 | I131: 0.6845559074 | J131: 14.3 | K131: -0.78 | L131: 0.2624737327 | M131: 32.2 | N131: 1.12 | O131: 0.1940439158 | P131: 25.8 | Q131: 0.52 | R131: 0.4829807295
A132: Zm00001d039790_T001 | B132: '11.1.1.2.1' | C132: 'mercator4v7.0: histone *(H3) & original description: pacid=40234428 locus=Zm00001d039790 ID=Zm00001d039790_T001.RefGen_V4 annot-version=RefGen_V4' | D132: 26.0 | E132: 6.35 | F132: 6.234434205e-07 | G132: 2.5 | H132: 2.54 | I132: 0.2898074385 | J132: 1.4 | K132: 1.58 | L132: 1 | M132: 5.5 | N132: 3.52 | O132: 0.02396960695 | P132: 2.9 | Q132: 2.42 | R132: 0.1377383879
A133: Zm00001d050697_T001 | B133: '11.1.1.2.1' | C133: 'mercator4v7.0: histone *(H3) & original description: pacid=40275003 locus=Zm00001d050697 ID=Zm00001d050697_T001.RefGen_V4 annot-version=RefGen_V4' | D133: 20.2 | E133: 4.61 | F133: 9.313203775e-07 | G133: 21.3 | H133: 0.63 | I133: 0.2702248114 | J133: 30.3 | K133: 1.71 | L133: 2.694007799e-05 | M133: 45.7 | N133: 1.98 | O133: 1.706768984e-08 | P133: 34.2 | Q133: 1.36 | R133: 0.0006516131099
A134: Zm00001d036250_T001 | B134: '11.1.1.2.1' | C134: 'mercator4v7.0: histone *(H3) & original description: pacid=40219686 locus=Zm00001d036250 ID=Zm00001d036250_T001.RefGen_V4 annot-version=RefGen_V4' | D134: 5.9 | E134: 5.02 | F134: 0.003674571948 | G134: 7.8 | H134: -3.15 | I134: 1 | J134: 17.9 | K134: 1.47 | L134: 0.779468005 | M134: 10.2 | N134: -2.17 | O134: 1 | P134: 9.1 | Q134: -5.04 | R134: 1
A135: Zm00001d025406_T001 | B135: '11.1.1.2.1' | C135: 'mercator4v7.0: histone *(H3) & original description: pacid=40177597 locus=Zm00001d025406 ID=Zm00001d025406_T001.RefGen_V4 annot-version=RefGen_V4' | D135: 3.4 | E135: 5.22 | F135: 0.05753051473 | G135: 13.3 | H135: -0.59 | I135: 0.52897091 | J135: 11.2 | K135: -1.14 | L135: 0.2136630647 | M135: 15.8 | N135: -0.76 | O135: 0.5859146899 | P135: 15.0 | Q135: -1.00 | R135: 0.1827603828
A136: Zm00001d041672_T001 | B136: '11.1.1.2.1' | C136: 'mercator4v7.0: histone *(H3) & original description: pacid=40243800 locus=Zm00001d041672 ID=Zm00001d041672_T001.RefGen_V4 annot-version=RefGen_V4' | D136: 2.3 | E136: 4.68 | F136: 0.04124215445 | G136: 13.1 | H136: 0.88 | I136: 0.4685036138 | J136: 14.6 | K136: 1.38 | L136: 0.106602889 | M136: 24.0 | N136: 1.85 | O136: 0.02614354741 | P136: 23.3 | Q136: 1.80 | R136: 0.03444332106
A137: Zm00001d021422_T001 | B137: '11.1.1.2.2' | C137: 'mercator4v7.0: histone *(H4) & original description: pacid=40165987 locus=Zm00001d021422 ID=Zm00001d021422_T001.RefGen_V4 annot-version=RefGen_V4' | D137: 183.0 | E137: 2.91 | F137: 1.48404667e-14 | G137: 278.1 | H137: -0.24 | I137: 0.7144409081 | J137: 278.3 | K137: 0.07 | L137: 0.8899144366 | M137: 279.7 | N137: -1.31 | O137: 0.0003365836029 | P137: 292.0 | Q137: -0.99 | R137: 0.00499675068
A138: Zm00001d051478_T001 | B138: '11.1.1.2.2' | C138: 'mercator4v7.0: histone *(H4) & original description: pacid=40277559 locus=Zm00001d051478 ID=Zm00001d051478_T001.RefGen_V4 annot-version=RefGen_V4' | D138: 147.3 | E138: 7.07 | F138: 3.887368884e-22 | G138: 6.9 | H138: 4.89 | I138: 0.0009567500482 | J138: 3.6 | K138: 3.99 | L138: 0.0176287276 | M138: 11.3 | N138: 5.32 | O138: 0.0007377456999 | P138: 7.7 | Q138: 4.75 | R138: 0.000831586411
A139: Zm00001d020585_T001 | B139: '11.1.1.2.2' | C139: 'mercator4v7.0: histone *(H4) & original description: pacid=40167600 locus=Zm00001d020585 ID=Zm00001d020585_T001.RefGen_V4 annot-version=RefGen_V4' | D139: 136.0 | E139: 4.39 | F139: 1.023377517e-18 | G139: 47.7 | H139: -1.69 | I139: 0.1084206769 | J139: 42.3 | K139: -2.15 | L139: 0.01058146954 | M139: 60.0 | N139: -1.40 | O139: 0.1171045073 | P139: 58.2 | Q139: -1.66 | R139: 0.06363520283
A140: URS000235A774_4577 | B140: '11.1.1.2.2' | C140: 'mercator4v7.0: histone *(H4) & original description: Zea mays (Z. mays) long non-coding RNA (ZMAY_LNC004687)' | D140: 129.8 | E140: 2.46 | F140: 3.141914177e-16 | G140: 157.5 | H140: -0.20 | I140: 0.7246590144 | J140: 137.4 | K140: -0.45 | L140: 0.3792702232 | M140: 163.9 | N140: -1.02 | O140: 0.06673546766 | P140: 184.4 | Q140: -0.37 | R140: 0.3918884948
A141: Zm00001d002546_T001 | B141: '11.1.1.2.2' | C141: 'mercator4v7.0: histone *(H4) & original description: pacid=40190077 locus=Zm00001d002546 ID=Zm00001d002546_T001.RefGen_V4 annot-version=RefGen_V4' | D141: 124.4 | E141: 5.32 | F141: 2.045375917e-26 | G141: 5.3 | H141: 2.43 | I141: 0.1342517642 | J141: 4.4 | K141: 2.20 | L141: 0.07162094445 | M141: 11.1 | N141: 3.37 | O141: 0.01013042811 | P141: 12.0 | Q141: 3.51 | R141: 0.001767400809
A142: Zm00001d039733_T001 | B142: '11.1.1.2.2' | C142: 'mercator4v7.0: histone *(H4) & original description: pacid=40243578 locus=Zm00001d039733 ID=Zm00001d039733_T001.RefGen_V4 annot-version=RefGen_V4' | D142: 91.2 | E142: 2.83 | F142: 9.72895834e-20 | G142: 59.9 | H142: 0.38 | I142: 0.7485268564 | J142: 47.0 | K142: -0.23 | L142: 0.83589821 | M142: 65.7 | N142: 0.00 | O142: 0.9987573695 | P142: 64.7 | Q142: -0.05 | R142: 0.9657053955
A143: Zm00001d005791_T001 | B143: '11.1.1.2.2' | C143: 'mercator4v7.0: histone *(H4) & original description: pacid=40183869 locus=Zm00001d005791 ID=Zm00001d005791_T001.RefGen_V4 annot-version=RefGen_V4' | D143: 84.2 | E143: 3.91 | F143: 1.6549848e-10 | G143: 93.5 | H143: -0.65 | I143: 0.2770087023 | J143: 96.1 | K143: -0.16 | L143: 0.805964713 | M143: 142.9 | N143: 0.30 | O143: 0.696684518 | P143: 111.0 | Q143: -0.77 | R143: 0.1177148569
A144: Zm00001d027394_T001 | B144: '11.1.1.2.2' | C144: 'mercator4v7.0: histone *(H4) & original description: pacid=40206198 locus=Zm00001d027394 ID=Zm00001d027394_T001.RefGen_V4 annot-version=RefGen_V4' | D144: 81.1 | E144: 3.60 | F144: 8.92925588e-14 | G144: 18.0 | H144: 0.14 | I144: 0.9187481342 | J144: 15.8 | K144: -0.08 | L144: 0.9414026763 | M144: 25.7 | N144: 0.66 | O144: 0.4664584998 | P144: 21.4 | Q144: 0.07 | R144: 0.9522338916
A145: URS00023F6EA0_4577_3 | B145: '11.1.1.2.2' | C145: 'mercator4v7.0: histone *(H4) & original description: Zea mays (Z. mays) long non-coding RNA (ZMAY_LNC000710)_3' | D145: 45.6 | E145: -0.64 | F145: 0.123562123 | G145: 12.4 | H145: 0.42 | I145: 0.6958690833 | J145: 13.5 | K145: 0.89 | L145: 0.3580514255 | M145: 17.3 | N145: 0.82 | O145: 0.2336457109 | P145: 17.1 | Q145: 0.79 | R145: 0.2716828405
A146: Zm00001d020584_T001 | B146: '11.1.1.2.2' | C146: 'mercator4v7.0: histone *(H4) & original description: pacid=40169289 locus=Zm00001d020584 ID=Zm00001d020584_T001.RefGen_V4 annot-version=RefGen_V4' | D146: 36.7 | E146: 2.11 | F146: 1.410149677e-05 | G146: 28.8 | H146: -1.66 | I146: 0.04759734294 | J146: 38.3 | K146: 0.26 | L146: 0.7460508382 | M146: 47.7 | N146: 0.05 | O146: 0.9608201076 | P146: 50.1 | Q146: 0.23 | R146: 0.7699780024
A147: Zm00001d012439_T001 | B147: '11.1.1.2.2' | C147: 'mercator4v7.0: histone *(H4) & original description: pacid=40262425 locus=Zm00001d012439 ID=Zm00001d012439_T001.RefGen_V4 annot-version=RefGen_V4' | D147: 35.2 | E147: 4.98 | F147: 1.137833542e-06 | G147: 76.5 | H147: -0.04 | I147: 0.9558367518 | J147: 64.7 | K147: -0.41 | L147: 0.3727203021 | M147: 96.9 | N147: 0.10 | O147: 0.893293304 | P147: 105.6 | Q147: 0.41 | R147: 0.3205259406
A148: Zm00001d042954_T001 | B148: '11.1.1.2.2' | C148: 'mercator4v7.0: histone *(H4) & original description: pacid=40244182 locus=Zm00001d042954 ID=Zm00001d042954_T001.RefGen_V4 annot-version=RefGen_V4' | D148: 30.0 | E148: 8.37 | F148: 4.001262196e-08 | G148: 109.9 | H148: -1.05 | I148: 0.2593809757 | J148: 82.1 | K148: -3.90 | L148: 1.291122165e-17 | M148: 166.7 | N148: 0.01 | O148: 0.9762587706 | P148: 159.4 | Q148: -0.15 | R148: 0.7184015467
A149: Zm00001d026015_T001 | B149: '11.1.1.2.2' | C149: 'mercator4v7.0: histone *(H4) & original description: pacid=40177187 locus=Zm00001d026015 ID=Zm00001d026015_T001.RefGen_V4 annot-version=RefGen_V4' | D149: 29.7 | E149: 5.96 | F149: 2.156642409e-08 | G149: 1.0 | H149: 2.45 | I149: 1 | J149: 0.7 | K149: 1.85 | L149: 1 | M149: 1.5 | N149: 2.75 | O149: 0.1933302841 | P149: 1.2 | Q149: 2.28 | R149: 1
A150: Zm00001d002543_T001 | B150: '11.1.1.2.2' | C150: 'mercator4v7.0: histone *(H4) & original description: pacid=40189877 locus=Zm00001d002543 ID=Zm00001d002543_T001.RefGen_V4 annot-version=RefGen_V4' | D150: 12.3 | E150: 6.11 | F150: 0.0001505393863 | G150: 1.7 | H150: 1.54 | I150: 1 | J150: 1.3 | K150: 1.01 | L150: 1 | M150: 3.3 | N150: 2.49 | O150: 0.09667712527 | P150: 1.9 | Q150: 1.37 | R150: 0.4710605353
A151: Zm00001d010575_T001 | B151: '11.1.1.2.2' | C151: 'mercator4v7.0: histone *(H4) & original description: pacid=40263550 locus=Zm00001d010575 ID=Zm00001d010575_T001.RefGen_V4 annot-version=RefGen_V4' | D151: 10.3 | E151: 6.83 | F151: 3.283522633e-05 | G151: 2.4 | H151: 1.33 | I151: 0.5412339052 | J151: 2.4 | K151: 1.46 | L151: 0.4864435312 | M151: 3.0 | N151: 1.36 | O151: 0.505931138 | P151: 2.5 | Q151: 0.94 | R151: 0.6577190197
A152: URS000237D9AF_4577_1 | B152: '11.1.1.2.2' | C152: 'mercator4v7.0: histone *(H4) & original description: Zea mays (Z. mays) long non-coding RNA (ZMAY_LNC000710)_1' | D152: 10.1 | E152: -0.13 | F152: 0.9224182039 | G152: 4.2 | H152: -1.48 | I152: 0.3219257721 | J152: 4.7 | K152: -0.33 | L152: 0.8242353955 | M152: 5.0 | N152: -1.73 | O152: 0.1318975041 | P152: 4.9 | Q152: -2.05 | R152: 0.09907228359
A153: URS00023F6EA0_4577_1 | B153: '11.1.1.2.2' | C153: 'mercator4v7.0: histone *(H4) & original description: Zea mays (Z. mays) long non-coding RNA (ZMAY_LNC000710)_1' | D153: 10.1 | E153: -0.13 | F153: 0.9224182039 | G153: 4.2 | H153: -1.48 | I153: 0.3219257721 | J153: 4.7 | K153: -0.33 | L153: 0.8242353955 | M153: 5.0 | N153: -1.73 | O153: 0.1318975041 | P153: 4.9 | Q153: -2.05 | R153: 0.09907228359
A154: Zm00001d008437_T001 | B154: '11.1.1.2.2' | C154: 'mercator4v7.0: histone *(H4) & original description: pacid=40256871 locus=Zm00001d008437 ID=Zm00001d008437_T001.RefGen_V4 annot-version=RefGen_V4' | D154: 9.4 | E154: -0.88 | F154: 0.3980474073 | G154: 0.7 | H154: 1.65 | I154: 1 | J154: 0.6 | K154: 1.47 | L154: 1 | M154: 0.5 | N154: -0.06 | O154: 1 | P154: 2.7 | Q154: 3.71 | R154: 0.06821708373
A155: Zm00001d021477_T001 | B155: '11.1.1.2.2' | C155: 'mercator4v7.0: histone *(H4) & original description: pacid=40168359 locus=Zm00001d021477 ID=Zm00001d021477_T001.RefGen_V4 annot-version=RefGen_V4' | D155: 9.0 | E155: 4.47 | F155: 0.007984094907 | G155: 0.3 | H155: 2.33 | I155: 1 | J155: 0.6 | K155: 3.32 | L155: 1 | M155: 2.2 | N155: 4.70 | O155: 0.07029978722 | P155: 1.4 | Q155: 4.11 | R155: 1
A156: URS000237D9AF_4577_3 | B156: '11.1.1.2.2' | C156: 'mercator4v7.0: histone *(H4) & original description: Zea mays (Z. mays) long non-coding RNA (ZMAY_LNC000710)_3' | D156: 0.6 | E156: -1.53 | F156: 1 | G156: 0.4 | H156: -1.97 | I156: 1 | J156: 0.4 | K156: -1.67 | L156: 1 | M156: 0.7 | N156: -0.70 | O156: 1 | P156: 0.5 | Q156: -2.72 | R156: 1
A157: Zm00001d013727_T001 | B157: '11.1.1.2.2' | C157: 'mercator4v7.0: histone *(H4) & original description: pacid=40281723 locus=Zm00001d013727 ID=Zm00001d013727_T001.RefGen_V4 annot-version=RefGen_V4' | D157: 0.5 | E157: 1.00 | F157: 1 | G157: 0.2 | H157: -1.17 | I157: 1 | J157: 0.4 | K157: 0.70 | L157: 1 | M157: 0.7 | N157: 1.04 | O157: 1 | P157: 0.4 | Q157: -0.97 | R157: 1
A158: histone chaperones; significantly overrepresented up-regulated bins, for ppr5, murE
A159: Zm00001d019349_T008 | B159: '11.2.1.1' | C159: 'mercator4v7.0: component *(CAF1a/FAS1) of CAF1 histone chaperone complex & original description: pacid=40166708 locus=Zm00001d019349 ID=Zm00001d019349_T008.RefGen_V4 annot-version=RefGen_V4' | D159: 121.8 | E159: -1.31 | F159: 4.003419391e-07 | G159: 45.6 | H159: -0.21 | I159: 0.7761664584 | J159: 39.8 | K159: -0.50 | L159: 0.4589242531 | M159: 79.3 | N159: 0.96 | O159: 0.04359226282 | P159: 73.3 | Q159: 0.75 | R159: 0.1301421746
A160: Zm00001d026374_T007 | B160: '11.2.1.1' | C160: 'mercator4v7.0: component *(CAF1a/FAS1) of CAF1 histone chaperone complex & original description: pacid=40174930 locus=Zm00001d026374 ID=Zm00001d026374_T007.RefGen_V4 annot-version=RefGen_V4' | D160: 79.3 | E160: -0.81 | F160: 0.01652726926 | G160: 49.1 | H160: -0.02 | I160: 0.9858217082 | J160: 34.6 | K160: -1.47 | L160: 0.1511208416 | M160: 49.1 | N160: -1.01 | O160: 0.5220602406 | P160: 60.7 | Q160: 0.04 | R160: 0.9724222248
A161: Zm00001d042528_T002 | B161: '11.2.1.1' | C161: 'mercator4v7.0: component *(CAF1a/FAS1) of CAF1 histone chaperone complex & original description: pacid=40240597 locus=Zm00001d042528 ID=Zm00001d042528_T002.RefGen_V4 annot-version=RefGen_V4' | D161: 72.2 | E161: 1.35 | F161: 0.0001052998764 | G161: 2.3 | H161: 1.43 | I161: 0.5403733328 | J161: 1.5 | K161: 0.58 | L161: 1 | M161: 3.9 | N161: 2.14 | O161: 0.2201955891 | P161: 2.8 | Q161: 1.41 | R161: 0.4995481875
A162: Zm00001d012166_T002 | B162: '11.2.1.1' | C162: 'mercator4v7.0: component *(CAF1a/FAS1) of CAF1 histone chaperone complex & original description: pacid=40258420 locus=Zm00001d012166 ID=Zm00001d012166_T002.RefGen_V4 annot-version=RefGen_V4' | D162: 57.1 | E162: 3.60 | F162: 6.967875526e-13 | G162: 0.6 | H162: 0.57 | I162: 1 | J162: 0.3 | K162: -1.36 | L162: 1 | M162: 1.5 | N162: 2.00 | O162: 0.4142625325 | P162: 1.3 | Q162: 1.83 | R162: 1
A163: Zm00001d045909_T001 | B163: '11.2.1.1' | C163: 'mercator4v7.0: component *(CAF1a/FAS1) of CAF1 histone chaperone complex & original description: pacid=40248210 locus=Zm00001d045909 ID=Zm00001d045909_T001.RefGen_V4 annot-version=RefGen_V4' | D163: 1.3 | E163: 2.45 | F163: 1 | G163: 0.4 | H163: 1.35 | I163: 1 | J163: 0.1 | K163: -0.30 | L163: 1 | M163: 0.1 | N163: -1.38 | O163: 1 | P163: 0.3 | Q163: 0.47 | R163: 1
A164: Zm00001d012351_T001 | B164: '11.2.1.1' | C164: 'mercator4v7.0: component *(CAF1a/FAS1) of CAF1 histone chaperone complex & original description: pacid=40256165 locus=Zm00001d012351 ID=Zm00001d012351_T001.RefGen_V4 annot-version=RefGen_V4' | D164: 1.2 | E164: -3.73 | F164: 1 | G164: 0.5 | H164: -2.24 | I164: 1 | J164: 0.5 | K164: -1.94 | L164: 1 | M164: 1.5 | N164: 1.13 | O164: 0.6705511989 | P164: 0.9 | Q164: -0.60 | R164: 1
A165: Zm00001d020199_T001 | B165: '11.2.1.1' | C165: 'mercator4v7.0: component *(CAF1a/FAS1) of CAF1 histone chaperone complex & original description: pacid=40173025 locus=Zm00001d020199 ID=Zm00001d020199_T001.RefGen_V4 annot-version=RefGen_V4' | D165: 0.8 | E165: 3.20 | F165: 1 | G165: 0.9 | H165: -3.06 | I165: 1 | J165: 0.9 | K165: -2.76 | L165: 1 | M165: 1.4 | N165: -1.38 | O165: 0.6684207724 | P165: 1.1 | Q165: -3.81 | R165: 1
A166: Zm00001d035023_T001 | B166: '11.2.1.2' | C166: 'mercator4v7.0: component *(CAF1b/FAS2) of CAF1 histone chaperone complex & original description: pacid=40226200 locus=Zm00001d035023 ID=Zm00001d035023_T001.RefGen_V4 annot-version=RefGen_V4' | D166: 58.7 | E166: -0.03 | F166: 0.9612776478 | G166: 3.2 | H166: -2.32 | I166: 0.384307907 | J166: 3.0 | K166: -2.16 | L166: 0.3893594156 | M166: 6.9 | N166: 0.67 | O166: 0.722460374 | P166: 6.2 | Q166: 0.39 | R166: 0.8476750053
A167: Zm00001d033248_T002 | B167: '11.2.1.3' | C167: 'mercator4v7.0: component *(CAF1c/MSI) of CAF1 histone chaperone complex & original description: pacid=40210282 locus=Zm00001d033248 ID=Zm00001d033248_T002.RefGen_V4 annot-version=RefGen_V4' | D167: 368.1 | E167: -0.29 | F167: 0.186173635 | G167: 204.8 | H167: -0.01 | I167: 0.9788279791 | J167: 185.1 | K167: -0.10 | L167: 0.7626378945 | M167: 267.1 | N167: 0.23 | O167: 0.3483988511 | P167: 264.1 | Q167: 0.21 | R167: 0.4653719825
A168: Zm00001d033247_T001 | B168: '11.2.1.3' | C168: 'mercator4v7.0: component *(CAF1c/MSI) of CAF1 histone chaperone complex & original description: pacid=40206738 locus=Zm00001d033247 ID=Zm00001d033247_T001.RefGen_V4 annot-version=RefGen_V4' | D168: 218.2 | E168: -1.26 | F168: 1.737111677e-11 | G168: 64.7 | H168: -0.64 | I168: 0.3973206145 | J168: 66.5 | K168: -0.16 | L168: 0.8542896806 | M168: 154.2 | N168: 1.50 | O168: 0.007223997889 | P168: 159.6 | Q168: 1.59 | R168: 0.003001184782
A169: Zm00001d022614_T001 | B169: '11.2.1.3' | C169: 'mercator4v7.0: component *(CAF1c/MSI) of CAF1 histone chaperone complex & original description: pacid=40164167 locus=Zm00001d022614 ID=Zm00001d022614_T001.RefGen_V4 annot-version=RefGen_V4' | D169: 114.9 | E169: 0.96 | F169: 0.002148401014 | G169: 9.2 | H169: 0.31 | I169: 0.7829145935 | J169: 8.4 | K169: 0.26 | L169: 0.8123563113 | M169: 19.3 | N169: 1.75 | O169: 0.01052357367 | P169: 16.5 | Q169: 1.40 | R169: 0.1042461755
A170: Zm00001d013702_T001 | B170: '11.2.1.3' | C170: 'mercator4v7.0: component *(CAF1c/MSI) of CAF1 histone chaperone complex & original description: pacid=40283612 locus=Zm00001d013702 ID=Zm00001d013702_T001.RefGen_V4 annot-version=RefGen_V4' | D170: 34.7 | E170: -0.60 | F170: 0.2280953475 | G170: 13.4 | H170: -0.57 | I170: 0.6102538606 | J170: 16.2 | K170: 0.47 | L170: 0.635130525 | M170: 23.3 | N170: 0.72 | O170: 0.3819605068 | P170: 26.3 | Q170: 1.06 | R170: 0.1425664105
A171: Zm00001d014998_T001 | B171: '11.2.2.1' | C171: 'mercator4v7.0: component *(SPT16) of FACT histone chaperone complex & original description: pacid=40291540 locus=Zm00001d014998 ID=Zm00001d014998_T001.RefGen_V4 annot-version=RefGen_V4' | D171: 2306.6 | E171: 0.34 | F171: 0.009393298011 | G171: 681.5 | H171: 0.46 | I171: 0.0495881348 | J171: 740.4 | K171: 0.93 | L171: 0.0001299019662 | M171: 1071.4 | N171: 1.17 | O171: 1.430831511e-06 | P171: 974.5 | Q171: 0.93 | R171: 0.0001347437099
A172: Zm00001d008847_T001 | B172: '11.2.2.2' | C172: 'mercator4v7.0: component *(SSRP) of FACT histone chaperone complex & original description: pacid=40263395 locus=Zm00001d008847 ID=Zm00001d008847_T001.RefGen_V4 annot-version=RefGen_V4' | D172: 1723.2 | E172: 0.10 | F172: 0.4913024759 | G172: 715.0 | H172: 0.36 | I172: 0.02639336047 | J172: 632.5 | K172: 0.21 | L172: 0.3012439954 | M172: 921.5 | N172: 0.53 | O172: 0.00188187241 | P172: 888.4 | Q172: 0.43 | R172: 0.0006924698554
A173: Zm00001d037615_T002 | B173: '11.2.2.2' | C173: 'mercator4v7.0: component *(SSRP) of FACT histone chaperone complex & original description: pacid=40227533 locus=Zm00001d037615 ID=Zm00001d037615_T002.RefGen_V4 annot-version=RefGen_V4' | D173: 105.5 | E173: 0.33 | F173: 0.3376628308 | G173: 25.2 | H173: 1.22 | I173: 0.187006127 | J173: 49.7 | K173: 2.78 | L173: 2.116668235e-05 | M173: 69.5 | N173: 2.88 | O173: 7.549513141e-05 | P173: 74.3 | Q173: 3.00 | R173: 1.825090888e-06
A174: Zm00001d019789_T003 | B174: '11.2.3.1' | C174: 'mercator4v7.0: component *(HIRA) of HIRA chaperone complex & original description: pacid=40168363 locus=Zm00001d019789 ID=Zm00001d019789_T003.RefGen_V4 annot-version=RefGen_V4' | D174: 591.6 | E174: -0.14 | F174: 0.3891362084 | G174: 607.9 | H174: -0.43 | I174: 0.008800763939 | J174: 543.0 | K174: -0.60 | L174: 0.0002974000874 | M174: 677.2 | N174: -0.91 | O174: 1.756920095e-10 | P174: 676.0 | Q174: -0.90 | R174: 2.163344895e-09
A175: Zm00001d039528_T001 | B175: '11.2.3.1' | C175: 'mercator4v7.0: component *(HIRA) of HIRA chaperone complex & original description: pacid=40239409 locus=Zm00001d039528 ID=Zm00001d039528_T001.RefGen_V4 annot-version=RefGen_V4' | D175: 396.1 | E175: -0.25 | F175: 0.1665689647 | G175: 159.1 | H175: -0.13 | I175: 0.6762558319 | J175: 145.6 | K175: -0.19 | L175: 0.5347220693 | M175: 194.1 | N175: -0.13 | O175: 0.6301142306 | P175: 194.1 | Q175: -0.12 | R175: 0.6273477807
A176: Zm00001d042615_T003 | B176: '11.2.3.2' | C176: 'mercator4v7.0: component *(UBN) of HIRA chaperone complex & original description: pacid=40237550 locus=Zm00001d042615 ID=Zm00001d042615_T003.RefGen_V4 annot-version=RefGen_V4' | D176: 843.6 | E176: -0.25 | F176: 0.06607299499 | G176: 323.7 | H176: -0.28 | I176: 0.2519244383 | J176: 313.1 | K176: -0.10 | L176: 0.7111844807 | M176: 426.2 | N176: 0.03 | O176: 0.9327696468 | P176: 424.3 | Q176: 0.02 | R176: 0.9440875317
A177: Zm00001d012213_T003 | B177: '11.2.3.2' | C177: 'mercator4v7.0: component *(UBN) of HIRA chaperone complex & original description: pacid=40263775 locus=Zm00001d012213 ID=Zm00001d012213_T003.RefGen_V4 annot-version=RefGen_V4' | D177: 153.3 | E177: -0.05 | F177: 0.8795162122 | G177: 93.9 | H177: 0.01 | I177: 0.9815245038 | J177: 89.2 | K177: 0.12 | L177: 0.7397585214 | M177: 132.4 | N177: 0.52 | O177: 0.2215324362 | P177: 125.2 | Q177: 0.34 | R177: 0.356438066
A178: Zm00001d033533_T001 | B178: '11.2.3.3' | C178: 'mercator4v7.0: component *(CABIN1) of HIRA chaperone complex & original description: pacid=40203343 locus=Zm00001d033533 ID=Zm00001d033533_T001.RefGen_V4 annot-version=RefGen_V4' | D178: 1239.7 | E178: -0.46 | F178: 0.0007411409132 | G178: 460.7 | H178: 0.16 | I178: 0.5719733982 | J178: 435.5 | K178: 0.23 | L178: 0.403370939 | M178: 512.6 | N178: -0.20 | O178: 0.5772367129 | P178: 484.0 | Q178: -0.45 | R178: 0.06673254387
A179: Zm00001d038932_T001 | B179: '11.2.4' | C179: 'mercator4v7.0: histone chaperone *(ASF1) & original description: pacid=40228915 locus=Zm00001d038932 ID=Zm00001d038932_T001.RefGen_V4 annot-version=RefGen_V4' | D179: 70.6 | E179: 1.14 | F179: 0.0002731076852 | G179: 85.2 | H179: -0.50 | I179: 0.3504284527 | J179: 71.7 | K179: -0.98 | L179: 0.004436991625 | M179: 83.9 | N179: -2.00 | O179: 6.211543013e-11 | P179: 87.2 | Q179: -1.60 | R179: 4.996360526e-08
A180: Zm00001d009493_T001 | B180: '11.2.4' | C180: 'mercator4v7.0: histone chaperone *(ASF1) & original description: pacid=40265226 locus=Zm00001d009493 ID=Zm00001d009493_T001.RefGen_V4 annot-version=RefGen_V4' | D180: 15.6 | E180: 2.93 | F180: 0.0001201762809 | G180: 10.4 | H180: -0.66 | I180: 0.6178850534 | J180: 9.5 | K180: -0.72 | L180: 0.5230775339 | M180: 13.7 | N180: -0.30 | O180: 0.7729561233 | P180: 11.8 | Q180: -1.11 | R180: 0.2434813483
A181: Zm00001d007972_T002 | B181: '11.2.5' | C181: 'mercator4v7.0: histone chaperone *(NASP) & original description: pacid=40196195 locus=Zm00001d007972 ID=Zm00001d007972_T002.RefGen_V4 annot-version=RefGen_V4' | D181: 856.4 | E181: 0.09 | F181: 0.5621085448 | G181: 251.2 | H181: -0.30 | I181: 0.1584728957 | J181: 238.1 | K181: -0.19 | L181: 0.3492143649 | M181: 330.6 | N181: 0.01 | O181: 0.9694883588 | P181: 337.6 | Q181: 0.10 | R181: 0.6984317876
A182: Zm00001d050299_T002 | B182: '11.2.5' | C182: 'mercator4v7.0: histone chaperone *(NASP) & original description: pacid=40271241 locus=Zm00001d050299 ID=Zm00001d050299_T002.RefGen_V4 annot-version=RefGen_V4' | D182: 35.2 | E182: 1.39 | F182: 0.004490858093 | G182: 19.8 | H182: -6.47 | I182: 6.194724628e-05 | J182: 27.5 | K182: -0.20 | L182: 0.8485513914 | M182: 43.6 | N182: 0.47 | O182: 0.5796998621 | P182: 37.9 | Q182: -0.02 | R182: 0.9864161564
A183: Zm00001d018713_T002 | B183: '11.2.5' | C183: 'mercator4v7.0: histone chaperone *(NASP) & original description: pacid=40171876 locus=Zm00001d018713 ID=Zm00001d018713_T002.RefGen_V4 annot-version=RefGen_V4' | D183: 4.8 | E183: 3.84 | F183: 0.03467018035 | G183: 0.1 | H183: 0.94 | I183: 1 | J183: 0.0 | K183: 0.00 | L183: 1 | M183: 0.1 | N183: 0.16 | O183: 1 | P183: 0.0 | Q183: 0.00 | R183: 1
A184: Zm00001d038851_T001 | B184: '11.2.6' | C184: 'mercator4v7.0: histone chaperone *(NAP) & original description: pacid=40219491 locus=Zm00001d038851 ID=Zm00001d038851_T001.RefGen_V4 annot-version=RefGen_V4' | D184: 1310.0 | E184: 0.79 | F184: 3.799155969e-10 | G184: 787.1 | H184: 0.62 | I184: 0.00248371598 | J184: 785.9 | K184: 0.84 | L184: 1.685890486e-05 | M184: 1099.5 | N184: 1.00 | O184: 2.042436424e-05 | P184: 969.9 | Q184: 0.66 | R184: 0.0007267739421
A185: Zm00001d045352_T002 | B185: '11.2.6' | C185: 'mercator4v7.0: histone chaperone *(NAP) & original description: pacid=40249841 locus=Zm00001d045352 ID=Zm00001d045352_T002.RefGen_V4 annot-version=RefGen_V4' | D185: 1011.5 | E185: -0.00 | F185: 0.9929955078 | G185: 171.8 | H185: 1.44 | I185: 1.358624464e-06 | J185: 233.5 | K185: 2.25 | L185: 6.456934647e-16 | M185: 443.3 | N185: 2.92 | O185: 1.740738844e-17 | P185: 408.9 | Q185: 2.78 | R185: 6.829522838e-21
A186: Zm00001d011130_T002 | B186: '11.2.6' | C186: 'mercator4v7.0: histone chaperone *(NAP) & original description: pacid=40254760 locus=Zm00001d011130 ID=Zm00001d011130_T002.RefGen_V4 annot-version=RefGen_V4' | D186: 680.7 | E186: 1.09 | F186: 4.616549349e-16 | G186: 567.8 | H186: 0.44 | I186: 0.1638658661 | J186: 640.9 | K186: 1.01 | L186: 0.00015220892 | M186: 955.8 | N186: 1.32 | O186: 2.95933022e-07 | P186: 944.3 | Q186: 1.30 | R186: 2.908061617e-05
A187: Zm00001d036177_T001 | B187: '11.2.6' | C187: 'mercator4v7.0: histone chaperone *(NAP) & original description: pacid=40221017 locus=Zm00001d036177 ID=Zm00001d036177_T001.RefGen_V4 annot-version=RefGen_V4' | D187: 12.5 | E187: 0.53 | F187: 0.548466653 | G187: 5.1 | H187: -0.83 | I187: 0.6404770682 | J187: 4.4 | K187: -1.18 | L187: 0.4603345725 | M187: 10.0 | N187: 0.96 | O187: 0.4517832197 | P187: 8.6 | Q187: 0.52 | R187: 0.6992880192
A188: Zm00001d050874_T001 | B188: '11.2.7' | C188: 'mercator4v7.0: histone chaperone *(NRP) & original description: pacid=40270135 locus=Zm00001d050874 ID=Zm00001d050874_T001.RefGen_V4 annot-version=RefGen_V4' | D188: 603.8 | E188: 0.16 | F188: 0.4277780718 | G188: 94.3 | H188: 0.39 | I188: 0.2002935242 | J188: 98.9 | K188: 0.76 | L188: 0.007043841201 | M188: 186.2 | N188: 1.65 | O188: 3.395703549e-20 | P188: 195.4 | Q188: 1.76 | R188: 2.580829938e-11
A189: Zm00001d016935_T001 | B189: '11.2.7' | C189: 'mercator4v7.0: histone chaperone *(NRP) & original description: pacid=40293103 locus=Zm00001d016935 ID=Zm00001d016935_T001.RefGen_V4 annot-version=RefGen_V4' | D189: 435.2 | E189: -0.25 | F189: 0.1810683969 | G189: 62.6 | H189: -0.08 | I189: 0.9028426923 | J189: 68.2 | K189: 0.49 | L189: 0.3571845721 | M189: 136.3 | N189: 1.58 | O189: 1.566498523e-06 | P189: 127.0 | Q189: 1.43 | R189: 0.0002003864165
A190: Zm00001d033420_T001 | B190: '11.2.8' | C190: 'mercator4v7.0: histone chaperone *(ANP32) & original description: pacid=40218915 locus=Zm00001d033420 ID=Zm00001d033420_T001.RefGen_V4 annot-version=RefGen_V4' | D190: 345.8 | E190: 0.37 | F190: 0.1184045215 | G190: 21.0 | H190: -0.09 | I190: 0.943021104 | J190: 24.7 | K190: 0.72 | L190: 0.2943070186 | M190: 73.2 | N190: 2.53 | O190: 8.395461201e-09 | P190: 83.6 | Q190: 2.78 | R190: 2.999531273e-11
A191: Zm00001d022106_T001 | B191: '11.2.8' | C191: 'mercator4v7.0: histone chaperone *(ANP32) & original description: pacid=40166913 locus=Zm00001d022106 ID=Zm00001d022106_T001.RefGen_V4 annot-version=RefGen_V4' | D191: 107.8 | E191: -0.09 | F191: 0.7910517465 | G191: 736.2 | H191: -0.09 | I191: 0.8450360645 | J191: 670.7 | K191: -0.15 | L191: 0.5767172955 | M191: 852.1 | N191: -0.32 | O191: 0.3079939528 | P191: 914.8 | Q191: -0.01 | R191: 0.9843269039
A192: Zm00001d013572_T001 | B192: '11.2.8' | C192: 'mercator4v7.0: histone chaperone *(ANP32) & original description: pacid=40283040 locus=Zm00001d013572 ID=Zm00001d013572_T001.RefGen_V4 annot-version=RefGen_V4' | D192: 27.8 | E192: 1.33 | F192: 0.05195182511 | G192: 11.1 | H192: -0.23 | I192: 0.822162469 | J192: 9.2 | K192: -0.79 | L192: 0.3894884362 | M192: 13.4 | N192: -0.34 | O192: 0.711485503 | P192: 16.7 | Q192: 0.53 | R192: 0.5976878066
A193: Zm00001d007435_T008 | B193: '11.2.9' | C193: 'mercator4v7.0: histone chaperone *(CHZ) & original description: pacid=40186772 locus=Zm00001d007435 ID=Zm00001d007435_T008.RefGen_V4 annot-version=RefGen_V4' | D193: 707.8 | E193: -0.93 | F193: 8.015762541e-09 | G193: 182.9 | H193: -0.25 | I193: 0.6859372697 | J193: 171.2 | K193: -0.21 | L193: 0.7139881119 | M193: 296.9 | N193: 0.73 | O193: 0.09198023126 | P193: 308.7 | Q193: 0.85 | R193: 0.050104407
A194: DNA replication; relevant to histone deregulation
A195: Zm00001d045080_T001 | B195: '12.1.1.1.1' | C195: 'mercator4v7.0: component *(ORC1) of origin recognition complex & original description: pacid=40245063 locus=Zm00001d045080 ID=Zm00001d045080_T001.RefGen_V4 annot-version=RefGen_V4' | D195: 133.0 | E195: -0.48 | F195: 0.08126636906 | G195: 34.0 | H195: -0.03 | I195: 0.9760474655 | J195: 31.0 | K195: -0.10 | L195: 0.908579725 | M195: 45.4 | N195: 0.29 | O195: 0.7016681265 | P195: 48.0 | Q195: 0.49 | R195: 0.4385590671
A196: Zm00001d037086_T006 | B196: '12.1.1.1.1' | C196: 'mercator4v7.0: component *(ORC1) of origin recognition complex & original description: pacid=40228686 locus=Zm00001d037086 ID=Zm00001d037086_T006.RefGen_V4 annot-version=RefGen_V4' | D196: 320.8 | E196: -0.18 | F196: 0.4871197078 | G196: 65.8 | H196: -0.38 | I196: 0.3441175649 | J196: 60.4 | K196: -0.42 | L196: 0.2610869503 | M196: 82.1 | N196: -0.29 | O196: 0.4153798328 | P196: 90.3 | Q196: 0.11 | R196: 0.8583300528
A197: Zm00001d017423_T001 | B197: '12.1.1.1.2' | C197: 'mercator4v7.0: component *(ORC2) of origin recognition complex & original description: pacid=40292349 locus=Zm00001d017423 ID=Zm00001d017423_T001.RefGen_V4 annot-version=RefGen_V4' | D197: 16.1 | E197: 1.45 | F197: 0.05361844638 | G197: 1.2 | H197: 1.50 | I197: 1 | J197: 0.4 | K197: -1.72 | L197: 1 | M197: 1.5 | N197: 1.47 | O197: 0.5045732706 | P197: 2.0 | Q197: 2.04 | R197: 0.2474377958
A198: Zm00001d031073_T001 | B198: '12.1.1.1.3' | C198: 'mercator4v7.0: component *(ORC3) of origin recognition complex & original description: pacid=40200136 locus=Zm00001d031073 ID=Zm00001d031073_T001.RefGen_V4 annot-version=RefGen_V4' | D198: 49.6 | E198: 0.41 | F198: 0.3608157104 | G198: 31.7 | H198: 0.64 | I198: 0.2434318486 | J198: 37.2 | K198: 1.26 | L198: 0.005525386192 | M198: 61.8 | N198: 1.80 | O198: 6.371228459e-06 | P198: 57.3 | Q198: 1.64 | R198: 8.932641528e-06
A199: Zm00001d043840_T001 | B199: '12.1.1.1.4' | C199: 'mercator4v7.0: component *(ORC4) of origin recognition complex & original description: pacid=40237286 locus=Zm00001d043840 ID=Zm00001d043840_T001.RefGen_V4 annot-version=RefGen_V4' | D199: 115.7 | E199: 0.01 | F199: 0.9750600505 | G199: 158.7 | H199: 0.05 | I199: 0.9142789637 | J199: 148.3 | K199: 0.09 | L199: 0.8103224996 | M199: 179.7 | N199: -0.25 | O199: 0.3687015341 | P199: 167.5 | Q199: -0.57 | R199: 0.02662971266
A200: Zm00001d013238_T001 | B200: '12.1.1.1.5' | C200: 'mercator4v7.0: component *(ORC5) of origin recognition complex & original description: pacid=40283963 locus=Zm00001d013238 ID=Zm00001d013238_T001.RefGen_V4 annot-version=RefGen_V4' | D200: 4.9 | E200: 0.46 | F200: 0.8022957029 | G200: 0.4 | H200: -0.68 | I200: 1 | J200: 0.6 | K200: 0.50 | L200: 1 | M200: 1.2 | N200: 1.65 | O200: 1 | P200: 0.5 | Q200: -1.43 | R200: 1
A201: Zm00001d022226_T002 | B201: '12.1.1.1.6' | C201: 'mercator4v7.0: component *(ORC6) of origin recognition complex & original description: pacid=40166518 locus=Zm00001d022226 ID=Zm00001d022226_T002.RefGen_V4 annot-version=RefGen_V4' | D201: 19.2 | E201: 2.15 | F201: 0.0009009801266 | G201: 0.2 | H201: 1.62 | I201: 1 | J201: 0.5 | K201: 3.08 | L201: 1 | M201: 1.4 | N201: 4.05 | O201: 0.1591503091 | P201: 0.4 | Q201: 2.43 | R201: 1
A202: Zm00001d049190_T002 | B202: '12.1.1.2.1' | C202: 'mercator4v7.0: component *(MCM2) of MCM replicative DNA helicase complex & original description: pacid=40278455 locus=Zm00001d049190 ID=Zm00001d049190_T002.RefGen_V4 annot-version=RefGen_V4' | D202: 313.8 | E202: 1.38 | F202: 2.187725551e-09 | G202: 6.7 | H202: 2.24 | I202: 0.02257449204 | J202: 4.7 | K202: 1.69 | L202: 0.1275992886 | M202: 16.7 | N202: 3.50 | O202: 0.0003742084478 | P202: 12.9 | Q202: 3.06 | R202: 0.0002560894825
A203: Zm00001d038467_T001 | B203: '12.1.1.2.2' | C203: 'mercator4v7.0: component *(MCM3) of MCM replicative DNA helicase complex & original description: pacid=40226500 locus=Zm00001d038467 ID=Zm00001d038467_T001.RefGen_V4 annot-version=RefGen_V4' | D203: 245.9 | E203: 2.20 | F203: 1.262467426e-21 | G203: 3.0 | H203: 2.71 | I203: 0.2172145553 | J203: 3.2 | K203: 2.95 | L203: 0.1182492724 | M203: 14.6 | N203: 4.97 | O203: 0.0002383983837 | P203: 9.6 | Q203: 4.33 | R203: 0.002001588605
... 4283 more rows

Sheet Table S2B antisense
A1: Table S2B: Gene level plus long non-coding RNA antisense RNA-seq analysis of alb-605F vs. WT siblings, and four photosynthetic mutants tha1, ptac12, ppr5-1, and murE-2 (Kendrick et al. 2022) which vary by increasing physiologic phenotypic severity, respectively.
A2: highlighted red are organellar genes | D2: alb605_v_WT | G2: tha1_v_WT | J2: ptac12_v_WT | M2: ppr5-1_v_WT | P2: murE-2_v_WT
A3: Transcript ID | B3: BINCODE | C3: DESCRIPTION | D3: baseMean | E3: log2FoldChange | F3: padj | G3: baseMean | H3: log2FoldChange | I3: padj | J3: baseMean | K3: log2FoldChange | L3: padj | M3: baseMean | N3: log2FoldChange | O3: padj | P3: baseMean | Q3: log2FoldChange | R3: padj
A4: novel long non-coding RNAs homologous to rrn16S/23S candidate retrograde signal and annotated by Mercator4 as protein-coding genes in ontology bins; see Table 1. URS00023C28EA ranked 91st; other two lncRNAs had several adjacent lncRNA loci ranked in top 100 most DE across all genotypes by Liklihood Ratio Test, highlighted green below.
A5: URS00023C28EA_4577_1 | B5: '1.1.2.9.2.1' | C5: 'mercator4v7.0: assembly factor CcsA of CCS cytochrome f/c6 maturation system (system II) & original description: Zea mays (Z. mays) long non-coding RNA (ZMAY_LNC004241)_1' | D5: 420432.6 | E5: 1.41 | F5: 0.002803506676 | G5: 3095.9 | H5: -0.72 | I5: 0.3533617391 | J5: 3287.6 | K5: -0.12 | L5: 0.9341851846 | M5: 3011.8 | N5: -2.08 | O5: 0.001917585358 | P5: 2803.3 | Q5: -2.89 | R5: 1.178549106e-07
A6: URS00023DA7D7_4577_11 | B6: '17.6.2.2.21' | C6: 'mercator4v7.0: component *(uL23c) of large plastid ribosomal-subunit proteome & original description: Zea mays (Z. mays) long non-coding RNA (ZMAY_LNC005853)_11' | D6: 193526.3 | E6: 1.21 | F6: 4.985528826e-07 | G6: 12373.8 | H6: 0.21 | I6: NA | J6: 9534.4 | K6: -0.59 | L6: NA | M6: 8840.7 | N6: -4.04 | O6: 1.948154423e-06 | P6: 8653.5 | Q6: -4.14 | R6: 1.740204575e-06
A7: URS00023E179E_4577_1 | B7: '2.4.6.2.1' | C7: 'mercator4v7.0: subunit alpha of ATP synthase peripheral MF1 subcomplex & original description: Zea mays (Z. mays) long non-coding RNA (ZMAY_LNC005855)_1' | D7: 86490.2 | E7: 1.79 | F7: 7.472185281e-13 | G7: 1692.0 | H7: -0.33 | I7: 0.8454146234 | J7: 1500.3 | K7: -0.59 | L7: 0.6940062957 | M7: 1558.8 | N7: -1.81 | O7: 0.05456243362 | P7: 1607.1 | Q7: -1.41 | R7: 0.1430876956
A8: List of top 100 most significantly differentially expressed antisense strand loci, in descending order ranking. | D8: tan highlighted DESCRIPTIONs are PHANG-like lncRNAs that may be antisense sequences correlated to the speculated Kendrick et al. (2022) retrograde cluster#4 phenomenon
A9: URS000239EB96_4577 | B9: '1.2.1.1.2' | C9: 'mercator4v7.0: small subunit of ribulose-1,5-bisphosphat carboxylase/oxygenase heterodimer & original description: Zea mays (Z. mays) long non-coding RNA (ZMAY_LNC002677)' | D9: 1.0 | E9: 3.55 | F9: NA | G9: 69611.2 | H9: 0.51 | I9: 0.5695971834 | J9: 53132.8 | K9: -0.20 | L9: 0.8687134187 | M9: 48830.9 | N9: -2.33 | O9: 0.0002790869586 | P9: 45790.9 | Q9: -3.21 | R9: 1.642800021e-10
A10: URS00023E6594_4577 | B10: '35.2' | C10: 'mercator4v7.0: not classified & original description: Zea mays (Z. mays) long non-coding RNA (ZMAY_LNC005411)' | D10: 0.0 | E10: NA | F10: NA | G10: 19613.6 | H10: 0.40 | I10: 0.6940673586 | J10: 17621.2 | K10: 0.29 | L10: 0.8020240801 | M10: 15644.1 | N10: -1.41 | O10: 0.05157576566 | P10: 14646.6 | Q10: -1.85 | R10: 0.00257973899
A11: URS0002356B72_4577 | B11: '35.2' | C11: 'mercator4v7.0: not classified & original description: Zea mays (Z. mays) long non-coding RNA (ZMAY_LNC005740)' | D11: 667644.5 | E11: 1.45 | F11: 0.01160005352 | G11: 90.4 | H11: -0.19 | I11: 0.9091544822 | J11: 74.6 | K11: -0.79 | L11: 0.2931017728 | M11: 87.9 | N11: -1.09 | O11: 0.2305450692 | P11: 89.7 | Q11: -0.88 | R11: 0.2074490329
A12: URS0002396DCF_4577 | B12: '35.2' | C12: 'mercator4v7.0: not classified & original description: Zea mays (Z. mays) long non-coding RNA (ZMAY_LNC000230)' | D12: 0.0 | E12: NA | F12: NA | G12: 9619.0 | H12: 0.33 | I12: 0.6719402753 | J12: 7359.0 | K12: -0.46 | L12: 0.5063436345 | M12: 7873.7 | N12: -1.33 | O12: 0.01961595019 | P12: 7695.6 | Q12: -1.39 | R12: 0.00418725846
A13: URS00023F6C9C_4577 | B13: '1.1.1.1.1' | C13: 'mercator4v7.0: component *(LHCb1/2/3) of LHC-II complex & original description: Zea mays (Z. mays) long non-coding RNA (ZMAY_LNC004853)' | D13: 0.0 | E13: NA | F13: NA | G13: 9583.4 | H13: 0.81 | I13: 0.3836893254 | J13: 8831.1 | K13: 0.78 | L13: 0.3114314592 | M13: 5849.4 | N13: -2.87 | O13: 4.14065882e-07 | P13: 5546.2 | Q13: -4.01 | R13: 7.085507624e-09
A14: URS00023B312A_4577 | B14: '1.1.5.1.1' | C14: 'mercator4v7.0: ferredoxin electron transfer protein *(Fd1/2/3) & original description: Zea mays (Z. mays) long non-coding RNA (ZMAY_LNC003533)' | D14: 11.9 | E14: 5.26 | F14: 0.001449972166 | G14: 25202.4 | H14: 0.35 | I14: 0.6844876645 | J14: 20822.1 | K14: -0.09 | L14: 0.9438650319 | M14: 18791.2 | N14: -2.18 | O14: 0.0003160979466 | P14: 17948.0 | Q14: -2.62 | R14: 1.479833366e-08
A15: URS0000D77FD8_4577 | B15: '35.2' | C15: 'mercator4v7.0: not classified & original description: Zea mays uncharacterized LOC100278699 (LOC100278699)' | D15: 0.0 | E15: NA | F15: NA | G15: 8041.8 | H15: 1.14 | I15: NA | J15: 5242.5 | K15: 0.04 | L15: 0.9906594826 | M15: 6200.8 | N15: -0.16 | O15: 0.9425914198 | P15: 6396.4 | Q15: 0.03 | R15: 0.9885265065
A16: URS00023E179E_4577_2 | B16: '17.6.1.3.1' | C16: 'mercator4v7.0: component *(uS2m) of small mitoribosomal-subunit proteome & original description: Zea mays (Z. mays) long non-coding RNA (ZMAY_LNC005855)_2' | D16: 15513.3 | E16: 0.48 | F16: 0.1073846244 | G16: 0.0 | H16: NA | I16: NA | J16: 0.5 | K16: 3.06 | L16: NA | M16: 61.9 | N16: 9.65 | O16: 2.024710277e-15 | P16: 66.1 | Q16: 9.77 | R16: 1.172486173e-17
A17: URS00023E82B4_4577 | B17: '1.1.5.1.1' | C17: 'mercator4v7.0: ferredoxin electron transfer protein *(Fd1/2/3) & original description: Zea mays (Z. mays) long non-coding RNA (ZMAY_LNC003533)' | D17: 122.8 | E17: 2.46 | F17: 0.7702567022 | G17: 37230.4 | H17: 0.52 | I17: 0.5070875502 | J17: 34164.4 | K17: 0.47 | L17: 0.5711503946 | M17: 27756.2 | N17: -1.61 | O17: 0.007039555092 | P17: 25568.5 | Q17: -2.36 | R17: 6.119697213e-07
A18: URS000241590D_4577 | B18: '1.1.9.2.3' | C18: 'mercator4v7.0: subunit gamma of peripheral CF1 subcomplex of ATP synthase complex & original description: Zea mays (Z. mays) long non-coding RNA (ZMAY_LNC004562)' | D18: 241.8 | E18: 11.45 | F18: 2.871208801e-18 | G18: 30448.4 | H18: 0.49 | I18: 0.5477791803 | J18: 26288.6 | K18: 0.23 | L18: 0.8175234211 | M18: 21849.7 | N18: -2.16 | O18: 0.0001677492721 | P18: 20546.5 | Q18: -2.84 | R18: 1.404020591e-09
A19: URS00023A52A1_4577 | B19: '1.1.1.2.8' | C19: 'mercator4v7.0: component *(PsbR) of PS-II complex & original description: Zea mays (Z. mays) long non-coding RNA (ZMAY_LNC002201)' | D19: 19.2 | E19: 1.96 | F19: 0.8069089838 | G19: 14720.2 | H19: 0.18 | I19: 0.8454146234 | J19: 12865.0 | K19: -0.07 | L19: 0.9587647956 | M19: 11235.3 | N19: -2.56 | O19: 3.209404858e-07 | P19: 10951.8 | Q19: -2.71 | R19: 6.114757634e-10
A20: URS000241F481_4577_2 | B20: '2.4.6.2.1' | C20: 'mercator4v7.0: subunit alpha of ATP synthase peripheral MF1 subcomplex & original description: Zea mays (Z. mays) long non-coding RNA (ZMAY_LNC005854)_2' | D20: 145572.8 | E20: 0.10 | F20: 0.854192058 | G20: 24.7 | H20: 0.03 | I20: 0.9888492574 | J20: 29.9 | K20: 0.85 | L20: 0.5799345585 | M20: 121.0 | N20: 3.28 | O20: 1.732493242e-06 | P20: 142.3 | Q20: 3.57 | R20: 4.769525071e-11
A21: URS000239050A_4577_2 | B21: '2.4.6.1.8' | C21: 'mercator4v7.0: subunit A6L of ATP synthase membrane MF0 subcomplex & original description: Zea mays (Z. mays) long non-coding RNA (ZMAY_LNC000893)_2' | D21: 6139.8 | E21: -0.75 | F21: 0.01521285552 | G21: 0.3 | H21: 2.40 | I21: NA | J21: 0.2 | K21: 1.90 | L21: NA | M21: 0.1 | N21: 0.41 | O21: NA | P21: 0.0 | Q21: NA | R21: NA
A22: URS00023C2ED2_4577_2 | B22: '2.4.6.2.1' | C22: 'mercator4v7.0: subunit alpha of ATP synthase peripheral MF1 subcomplex & original description: Zea mays (Z. mays) long non-coding RNA (ZMAY_LNC005853)_2' | D22: 18235.3 | E22: -11.99 | F22: 4.528265149e-07 | G22: 0.0 | H22: NA | I22: NA | J22: 0.0 | K22: NA | L22: NA | M22: 0.0 | N22: NA | O22: NA | P22: 0.0 | Q22: NA | R22: NA
A23: URS00023EB8E6_4577 | B23: '35.2' | C23: 'mercator4v7.0: not classified & original description: Zea mays (Z. mays) long non-coding RNA (ZMAY_LNC004559)' | D23: 4.3 | E23: 5.64 | F23: 0.1134558427 | G23: 2782.0 | H23: 1.22 | I23: 0.03636532945 | J23: 2407.9 | K23: 1.03 | L23: 0.1066266671 | M23: 2488.6 | N23: 0.49 | O23: 0.5598183679 | P23: 2663.6 | Q23: 0.74 | R23: 0.2434147025
A24: URS00023DDC67_4577 | B24: '1.1.2.3' | C24: 'mercator4v7.0: Rieske iron-sulfur component *(PetC) of cytochrome b6/f complex & original description: Zea mays (Z. mays) long non-coding RNA (ZMAY_LNC003288)' | D24: 127.2 | E24: 10.52 | F24: 0.04302607498 | G24: 8225.0 | H24: 0.14 | I24: 0.901941489 | J24: 7521.4 | K24: 0.06 | L24: 0.9642363087 | M24: 6386.5 | N24: -2.52 | O24: 6.998495974e-05 | P24: 6388.8 | Q24: -2.27 | R24: 2.584976314e-07
A25: URS000235BD5C_4577 | B25: '35.2' | C25: 'mercator4v7.0: not classified & original description: Zea mays (Z. mays) long non-coding RNA (ZMAY_LNC005532)' | D25: 12.7 | E25: 7.20 | F25: 9.911836814e-05 | G25: 6290.3 | H25: 0.04 | I25: 0.974733101 | J25: 5555.0 | K25: -0.17 | L25: 0.8406770764 | M25: 5192.1 | N25: -1.97 | O25: 9.977933374e-05 | P25: 4902.6 | Q25: -2.54 | R25: 3.892474762e-08
A26: URS0002367712_4577 | B26: '1.1.1.1.1' | C26: 'mercator4v7.0: component *(LHCb1/2/3) of LHC-II complex & original description: Zea mays (Z. mays) long non-coding RNA (ZMAY_LNC004548)' | D26: 3181.0 | E26: -0.51 | F26: 0.4269227374 | G26: 0.0 | H26: NA | I26: NA | J26: 0.0 | K26: NA | L26: NA | M26: 0.0 | N26: NA | O26: NA | P26: 0.0 | Q26: NA | R26: NA
A27: URS00023EC1EE_4577 | B27: '50.1.2' | C27: 'mercator4v7.0: EC_1.2 oxidoreductase acting on aldehyde or oxo group of donor & original description: Zea mays (Z. mays) long non-coding RNA (ZMAY_LNC000794)' | D27: 12.7 | E27: 3.96 | F27: 0.004351948688 | G27: 7821.3 | H27: 0.43 | I27: 0.6382078994 | J27: 6724.5 | K27: 0.15 | L27: 0.8939462348 | M27: 5712.5 | N27: -2.17 | O27: 0.000111716249 | P27: 5342.6 | Q27: -2.97 | R27: 2.590613422e-09
A28: URS00023A4390_4577 | B28: '35.2' | C28: 'mercator4v7.0: not classified & original description: Zea mays (Z. mays) long non-coding RNA (ZMAY_LNC000099)' | D28: 4232.1 | E28: 11.31 | F28: 5.202988469e-110 | G28: 1092.2 | H28: 3.84 | I28: 0.2992913634 | J28: 868.2 | K28: 3.58 | L28: 0.3280893617 | M28: 719.9 | N28: 2.87 | O28: 0.5368455816 | P28: 1278.4 | Q28: 3.87 | R28: 0.2778226768
A29: URS0002352DFB_4577 | B29: '35.2' | C29: 'mercator4v7.0: not classified & original description: Zea mays (Z. mays) long non-coding RNA (ZMAY_LNC000150)' | D29: 83.7 | E29: 5.98 | F29: 3.412167069e-11 | G29: 14711.6 | H29: 0.32 | I29: 0.717831587 | J29: 12550.8 | K29: 0.00 | L29: 0.9979215964 | M29: 11497.8 | N29: -1.75 | O29: 0.003382082318 | P29: 10442.5 | Q29: -2.82 | R29: 1.870805917e-07
A30: URS00023AED38_4577 | B30: '35.2' | C30: 'mercator4v7.0: not classified & original description: Zea mays (Z. mays) long non-coding RNA (ZMAY_LNC001681)' | D30: 19318.9 | E30: 1.92 | F30: 0.39348436 | G30: 9.7 | H30: -0.10 | I30: 0.973638512 | J30: 8.4 | K30: -0.43 | L30: 0.8469923833 | M30: 8.1 | N30: -2.46 | O30: 0.07247693972 | P30: 9.0 | Q30: -1.27 | R30: 0.4918315658
A31: URS00023ED147_4577 | B31: '5.1.7.3.1' | C31: 'mercator4v7.0: delta-12/delta-15 fatty acid desaturase & original description: Zea mays (Z. mays) long non-coding RNA (ZMAY_LNC003464)' | D31: 294.5 | E31: 11.73 | F31: 4.373630046e-08 | G31: 10798.0 | H31: 1.45 | I31: 0.01929856039 | J31: 7991.2 | K31: 0.86 | L31: 0.2102583209 | M31: 6117.1 | N31: -1.08 | O31: 0.09051453685 | P31: 5835.0 | Q31: -1.31 | R31: 0.01870296475
A32: URS000242107C_4577 | B32: '35.2' | C32: 'mercator4v7.0: not classified & original description: Zea mays (Z. mays) long non-coding RNA (ZMAY_LNC005097)' | D32: 0.8 | E32: 3.15 | F32: NA | G32: 1472.1 | H32: 0.89 | I32: 0.187272078 | J32: 1684.3 | K32: 1.41 | L32: 0.01125587462 | M32: 1405.1 | N32: 0.30 | O32: 0.7591205647 | P32: 1245.0 | Q32: -0.10 | R32: 0.9198383477
A33: Zm00001d046313_T001 | B33: '22.7.1.1' | C33: 'mercator4v7.0: A-class RAB GTPase & original description: pacid=40254514 locus=Zm00001d046313 ID=Zm00001d046313_T001.RefGen_V4 annot-version=RefGen_V4' | D33: 2317.7 | E33: 0.28 | F33: 0.7945232317 | G33: 0.0 | H33: NA | I33: NA | J33: 0.2 | K33: 1.26 | L33: NA | M33: 0.0 | N33: NA | O33: NA | P33: 0.0 | Q33: NA | R33: NA
A34: GRMZM5G861353_T01_ZemaCp110_ZemaCp110 | B34: '35.2' | C34: 'mercator4v7.0: not classified & original description: pacid=40183421 locus=GRMZM5G861353 ID=GRMZM5G861353_T01_ZemaCp110_ZemaCp110.RefGen_V4 annot-version=RefGen_V4' | D34: 2505.1 | E34: 1.74 | F34: 3.67291982e-12 | G34: 0.0 | H34: NA | I34: NA | J34: 5.2 | K34: 6.39 | L34: 0.003618529975 | M34: 0.0 | N34: NA | O34: NA | P34: 0.0 | Q34: NA | R34: NA
A35: NC_007982.1:347110-347523 | B35: '35.2' | C35: 'mercator4v7.0: not classified & original description: orf137-a-ct [organism=Zea mays subsp. mays] [GeneID=4055946] [chromosome=MT]' | D35: 2505.1 | E35: 1.74 | F35: 3.67291982e-12 | G35: 0.0 | H35: NA | I35: NA | J35: 5.2 | K35: 6.39 | L35: 0.003618529975 | M35: 0.0 | N35: NA | O35: NA | P35: 0.0 | Q35: NA | R35: NA
A36: NC_001666.2:83036-83449 | B36: '35.2' | C36: 'mercator4v7.0: not classified & original description: ZemaCp066 [organism=Zea mays] [GeneID=1466366] [chromosome=Plastid: chloroplast]' | D36: 2505.1 | E36: 1.74 | F36: 3.67291982e-12 | G36: 0.0 | H36: NA | I36: NA | J36: 5.2 | K36: 6.39 | L36: 0.003618529975 | M36: 0.0 | N36: NA | O36: NA | P36: 0.0 | Q36: NA | R36: NA
A37: URS00023CAF2B_4577_2 | B37: '35.2' | C37: 'mercator4v7.0: not classified & original description: Zea mays (Z. mays) long non-coding RNA (ZMAY_LNC005762)_2' | D37: 1598.4 | E37: 1.25 | F37: 0.05018281719 | G37: 2675.8 | H37: 0.10 | I37: NA | J37: 2966.0 | K37: 0.67 | L37: NA | M37: 2487.1 | N37: -0.99 | O37: NA | P37: 1874.9 | Q37: -7.27 | R37: NA
A38: URS000236AD71_4577 | B38: '35.2' | C38: 'mercator4v7.0: not classified & original description: Zea mays (Z. mays) long non-coding RNA (ZMAY_LNC000634)' | D38: 0.9 | E38: 3.35 | F38: NA | G38: 506.0 | H38: 3.89 | I38: 0.01684707964 | J38: 450.9 | K38: 3.82 | L38: 0.024619127 | M38: 604.6 | N38: 3.92 | O38: 0.01631004435 | P38: 552.4 | Q38: 3.81 | R38: 0.02477489335
A39: URS000242C7FE_4577 | B39: '35.2' | C39: 'mercator4v7.0: not classified & original description: Zea mays (Z. mays) long non-coding RNA (ZMAY_LNC000311)' | D39: 0.0 | E39: NA | F39: NA | G39: 601.2 | H39: 3.22 | I39: 0.5192647179 | J39: 215.9 | K39: 1.27 | L39: 0.8511211858 | M39: 108.1 | N39: -23.12 | O39: 9.193192736e-09 | P39: 106.8 | Q39: -24.12 | R39: 9.591423217e-10
A40: URS00024068AF_4577 | B40: '2.4.6.1.3' | C40: 'mercator4v7.0: subunit c of ATP synthase membrane MF0 subcomplex & original description: Zea mays (Z. mays) long non-coding RNA (ZMAY_LNC002464)' | D40: 93748.2 | E40: -0.04 | F40: 0.9432270242 | G40: 142.5 | H40: -0.55 | I40: 0.6773734216 | J40: 154.6 | K40: 0.09 | L40: 0.9626965437 | M40: 153.1 | N40: -0.95 | O40: 0.284690662 | P40: 159.1 | Q40: -0.65 | R40: 0.4784364992
A41: URS00007624CA_4577 | B41: '35.2' | C41: 'mercator4v7.0: not classified & original description: Zea mays drought responsive lncRNA' | D41: 9022.0 | E41: 0.64 | F41: 0.01629598337 | G41: 54.8 | H41: -0.56 | I41: 0.6831757412 | J41: 43.5 | K41: -1.62 | L41: 0.1344458649 | M41: 45.9 | N41: -6.22 | O41: 7.860478477e-08 | P41: 46.7 | Q41: -3.79 | R41: 1.522757021e-05
A42: URS000235D840_4577 | B42: '35.2' | C42: 'mercator4v7.0: not classified & original description: Zea mays (Z. mays) long non-coding RNA (ZMAY_LNC000311)' | D42: 9.9 | E42: 6.83 | F42: 0.2633383008 | G42: 157.3 | H42: -10.43 | I42: 0.04756640265 | J42: 170.5 | K42: -1.80 | L42: 0.8080623379 | M42: 708.9 | N42: 2.36 | O42: NA | P42: 281.9 | Q42: 0.02 | R42: 0.996241446
A43: URS000235ED1D_4577 | B43: '35.2' | C43: 'mercator4v7.0: not classified & original description: Zea mays (Z. mays) long non-coding RNA (ZMAY_LNC000169)' | D43: 0.3 | E43: 1.09 | F43: NA | G43: 445.0 | H43: 1.43 | I43: 0.1251018543 | J43: 444.2 | K43: 1.59 | L43: 0.07025816799 | M43: 761.4 | N43: 2.24 | O43: 0.00565413324 | P43: 600.8 | Q43: 1.80 | R43: 0.02688997894
A44: URS00023AC155_4577 | B44: '1.1.1.2.1.1' | C44: 'mercator4v7.0: component *(PsbA/D1) of PS-II reaction center complex & original description: Zea mays (Z. mays) long non-coding RNA (ZMAY_LNC005724)' | D44: 882711.8 | E44: -1.12 | F44: 0.000588806772 | G44: 23560.2 | H44: -1.86 | I44: 0.04928329904 | J44: 20768.4 | K44: -2.60 | L44: 0.003993385487 | M44: 23737.9 | N44: -5.93 | O44: 1.027313427e-14 | P44: 23183.4 | Q44: -6.77 | R44: 2.079900661e-22
A45: URS00023C9AD1_4577_8 | B45: '17.6.1.3.11' | C45: 'mercator4v7.0: component *(uS12m) of small mitoribosomal-subunit proteome & original description: Zea mays (Z. mays) long non-coding RNA (ZMAY_LNC005852)_8' | D45: 1655.7 | E45: -0.74 | F45: 0.7521264503 | G45: 14.2 | H45: 2.39 | I45: 0.7710480337 | J45: 3.2 | K45: -4.68 | L45: 0.3182992925 | M45: 3.9 | N45: -5.47 | O45: 0.1877816865 | P45: 3.9 | Q45: -5.42 | R45: 0.1652086447
A46: URS000239F319_4577 | B46: '1.1.1.1.1' | C46: 'mercator4v7.0: component *(LHCb1/2/3) of LHC-II complex & original description: Zea mays (Z. mays) long non-coding RNA (ZMAY_LNC004548)' | D46: 813.7 | E46: 2.65 | F46: 0.03992420468 | G46: 106515.4 | H46: 0.30 | I46: 0.7609328465 | J46: 100548.1 | K46: 0.35 | L46: 0.701438641 | M46: 82494.4 | N46: -1.93 | O46: 0.0004370736786 | P46: 78371.2 | Q46: -2.36 | R46: 4.643228718e-06
A47: URS00023A85BA_4577 | B47: '1.1.1.1.1' | C47: 'mercator4v7.0: component *(LHCb1/2/3) of LHC-II complex & original description: Zea mays (Z. mays) long non-coding RNA (ZMAY_LNC004853)' | D47: 88.1 | E47: -3.43 | F47: 6.525008988e-10 | G47: 11898.7 | H47: 0.61 | I47: 0.5142425033 | J47: 10605.8 | K47: 0.48 | L47: 0.6179005556 | M47: 7713.8 | N47: -2.93 | O47: 3.427527193e-06 | P47: 7355.1 | Q47: -3.95 | R47: 1.100145562e-08
A48: URS00023F194B_4577 | B48: '35.2' | C48: 'mercator4v7.0: not classified & original description: Zea mays (Z. mays) long non-coding RNA (ZMAY_LNC005681)' | D48: 19.2 | E48: 1.96 | F48: 0.6505725691 | G48: 3961.2 | H48: 0.41 | I48: 0.5827414008 | J48: 3131.1 | K48: -0.20 | L48: 0.8387400386 | M48: 2882.9 | N48: -2.25 | O48: 1.732493242e-06 | P48: 2838.2 | Q48: -2.26 | R48: 5.699772425e-08
A49: URS0002419247_4577 | B49: '17.6.2.3.15' | C49: 'mercator4v7.0: component *(uS15c) of small plastid ribosomal-subunit proteome & original description: Zea mays (Z. mays) long non-coding RNA (ZMAY_LNC000133)' | D49: 3502.3 | E49: 0.51 | F49: 0.1303989126 | G49: 42.8 | H49: -2.82 | I49: 1.515308698e-05 | J49: 55.1 | K49: -0.27 | L49: 0.8465807659 | M49: 45.6 | N49: -9.02 | O49: 6.314461411e-10 | P49: 45.0 | Q49: -8.94 | R49: 5.32257528e-10
A50: URS00023E179E_4577_3 | B50: '35.2' | C50: 'mercator4v7.0: not classified & original description: Zea mays (Z. mays) long non-coding RNA (ZMAY_LNC005855)_3' | D50: 11833.4 | E50: -0.37 | F50: 0.2767558257 | G50: 15.8 | H50: -1.09 | I50: 0.5237153278 | J50: 16.8 | K50: -0.35 | L50: 0.8193059382 | M50: 34.8 | N50: 1.28 | O50: 0.04607117951 | P50: 34.5 | Q50: 1.29 | R50: 0.02572951459
A51: URS00023C9AD1_4577_7 | B51: '2.4.6.1.8' | C51: 'mercator4v7.0: subunit A6L of ATP synthase membrane MF0 subcomplex & original description: Zea mays (Z. mays) long non-coding RNA (ZMAY_LNC005852)_7' | D51: 1085.7 | E51: 0.26 | F51: 0.7608216731 | G51: 0.0 | H51: NA | I51: NA | J51: 0.0 | K51: NA | L51: NA | M51: 0.0 | N51: NA | O51: NA | P51: 0.3 | Q51: 2.03 | R51: NA
A52: URS0002403948_4577 | B52: '35.2' | C52: 'mercator4v7.0: not classified & original description: Zea mays (Z. mays) long non-coding RNA (ZMAY_LNC000240)' | D52: 2257.1 | E52: 7.12 | F52: 5.525143278e-12 | G52: 27142.9 | H52: -1.00 | I52: 0.1487993275 | J52: 28576.8 | K52: -0.36 | L52: 0.6179880821 | M52: 33237.5 | N52: -0.67 | O52: 0.2370000722 | P52: 31588.1 | Q52: -0.86 | R52: 0.2762283468
A53: URS00024153F9_4577 | B53: '18.4.1.19.1.2' | C53: 'mercator4v7.0: SD-2 protein kinase & original description: Zea mays (Z. mays) long non-coding RNA (ZMAY_LNC005249)' | D53: 315935.3 | E53: 2.49 | F53: 0.05464110066 | G53: 340.2 | H53: 0.16 | I53: 0.8836270514 | J53: 324.9 | K53: 0.23 | L53: 0.7568077717 | M53: 342.5 | N53: -0.40 | O53: 0.5853964542 | P53: 414.6 | Q53: 0.39 | R53: 0.4918315658
A54: URS000237F562_4577 | B54: '1.1.1.2.1.2' | C54: 'mercator4v7.0: component *(PsbD/D2) of PS-II reaction center complex & original description: Zea mays (Z. mays) long non-coding RNA (ZMAY_LNC005856)' | D54: 171654.5 | E54: 1.55 | F54: 3.256398432e-10 | G54: 1144.4 | H54: -0.65 | I54: 0.3666864648 | J54: 1005.3 | K54: -1.00 | L54: 0.09520791778 | M54: 1018.0 | N54: -3.35 | O54: 5.905601295e-10 | P54: 979.7 | Q54: -4.03 | R54: 4.042399652e-15
A55: URS00023B439A_4577 | B55: '35.2' | C55: 'mercator4v7.0: not classified & original description: Zea mays (Z. mays) long non-coding RNA (ZMAY_LNC000311)' | D55: 152.4 | E55: -10.68 | F55: 2.287264647e-15 | G55: 135.3 | H55: -10.21 | I55: 0.001420525233 | J55: 138.7 | K55: -2.50 | L55: 0.6613508553 | M55: 282.5 | N55: 0.40 | O55: 0.934299311 | P55: 336.2 | Q55: 0.97 | R55: 0.6696900952
A56: URS00023C4706_4577 | B56: '50.1.2' | C56: 'mercator4v7.0: EC_1.2 oxidoreductase acting on aldehyde or oxo group of donor & original description: Zea mays (Z. mays) long non-coding RNA (ZMAY_LNC000794)' | D56: 113.1 | E56: 2.37 | F56: 2.894695459e-05 | G56: 17593.6 | H56: 0.33 | I56: 0.6715284661 | J56: 15027.2 | K56: 0.02 | L56: 0.9901265012 | M56: 13119.7 | N56: -2.24 | O56: 3.112552662e-05 | P56: 12717.8 | Q56: -2.46 | R56: 4.423743053e-07
A57: URS00023AF160_4577 | B57: '35.2' | C57: 'mercator4v7.0: not classified & original description: Zea mays (Z. mays) long non-coding RNA (ZMAY_LNC003446)' | D57: 1489.9 | E57: 6.79 | F57: 0.0002568393185 | G57: 8.9 | H57: 3.47 | I57: 0.1861736839 | J57: 39.0 | K57: 5.79 | L57: 0.1788478561 | M57: 19.3 | N57: 4.36 | O57: NA | P57: 179.0 | Q57: 7.70 | R57: NA
A58: URS00023DA7D7_4577_3 | B58: '2.4.6.1.2' | C58: 'mercator4v7.0: subunit b of ATP synthase membrane MF0 subcomplex & original description: Zea mays (Z. mays) long non-coding RNA (ZMAY_LNC005853)_3' | D58: 70149.0 | E58: -0.43 | F58: 0.1370932131 | G58: 135.3 | H58: -0.44 | I58: 0.7541727807 | J58: 147.9 | K58: 0.19 | L58: 0.9108626005 | M58: 166.3 | N58: -0.19 | O58: 0.8970397509 | P58: 161.4 | Q58: -0.24 | R58: 0.8415364264
A59: URS00023FDBDB_4577_3 | B59: '2.4.6.1.2' | C59: 'mercator4v7.0: subunit b of ATP synthase membrane MF0 subcomplex & original description: Zea mays (Z. mays) long non-coding RNA (ZMAY_LNC005853)_3' | D59: 70149.0 | E59: -0.43 | F59: 0.1370932131 | G59: 135.3 | H59: -0.44 | I59: 0.7541727807 | J59: 147.9 | K59: 0.19 | L59: 0.9108626005 | M59: 166.3 | N59: -0.19 | O59: 0.8970397509 | P59: 161.4 | Q59: -0.24 | R59: 0.8415364264
A60: URS00023F79BD_4577_3 | B60: '1.1.1.2.1.5.1' | C60: 'mercator4v7.0: component alpha *(PsbE) of PS-II cytochrome b559 heterodimer & original description: Zea mays (Z. mays) long non-coding RNA (ZMAY_LNC001250)_3' | D60: 307741.2 | E60: -2.13 | F60: 1.536317049e-20 | G60: 67026.5 | H60: -0.06 | I60: 0.9804170342 | J60: 42628.1 | K60: -2.95 | L60: 0.0002330778766 | M60: 50046.3 | N60: -7.48 | O60: 8.875955578e-24 | P60: 49049.2 | Q60: -7.83 | R60: 2.804613268e-28
A61: GRMZM5G807592_T01_zeamMp137_orf147-b | B61: '35.2' | C61: 'mercator4v7.0: not classified & original description: pacid=40183410 locus=GRMZM5G807592 ID=GRMZM5G807592_T01_zeamMp137_orf147-b.RefGen_V4 annot-version=RefGen_V4' | D61: 28543.9 | E61: -0.09 | F61: 0.8682730654 | G61: 58.5 | H61: -0.72 | I61: 0.5491448931 | J61: 63.4 | K61: -0.04 | L61: 0.9899285108 | M61: 77.5 | N61: -0.09 | O61: 0.9536799646 | P61: 81.7 | Q61: 0.17 | R61: 0.890164309
A62: GRMZM5G899892_T01_zeamMp132_orf109-b-ct | B62: '35.2' | C62: 'mercator4v7.0: not classified & original description: pacid=40183474 locus=GRMZM5G899892 ID=GRMZM5G899892_T01_zeamMp132_orf109-b-ct.RefGen_V4 annot-version=RefGen_V4' | D62: 4674.3 | E62: 2.16 | F62: 1.651092951e-16 | G62: 13.2 | H62: 3.72 | I62: 0.1332084111 | J62: 96.4 | K62: 6.87 | L62: 0.0339514711 | M62: 62.9 | N62: 5.86 | O62: 0.002495592896 | P62: 30.6 | Q62: 4.81 | R62: 0.01401156333
A63: URS0002382A75_4577 | B63: '35.2' | C63: 'mercator4v7.0: not classified & original description: Zea mays (Z. mays) long non-coding RNA (ZMAY_LNC003838)' | D63: 0.0 | E63: NA | F63: NA | G63: 181.4 | H63: 2.37 | I63: 0.0004114428346 | J63: 241.5 | K63: 3.01 | L63: 1.500258145e-06 | M63: 253.6 | N63: 2.70 | O63: 7.589534893e-05 | P63: 361.3 | Q63: 3.36 | R63: 7.025194394e-06
A64: GRMZM5G801958_T01_Zemacp040_petE | B64: '1.1.1.2.1.5.1' | C64: 'mercator4v7.0: component alpha *(PsbE) of PS-II cytochrome b559 heterodimer & original description: pacid=40173956 locus=GRMZM5G801958 ID=GRMZM5G801958_T01_Zemacp040_petE.RefGen_V4 annot-version=RefGen_V4' | D64: 30511.2 | E64: 0.19 | F64: 0.7076038809 | G64: 2754.4 | H64: -1.05 | I64: 0.2976932684 | J64: 2077.5 | K64: -3.79 | L64: 1.419746981e-08 | M64: 2521.2 | N64: -6.25 | O64: 4.167650213e-17 | P64: 2464.8 | Q64: -6.96 | R64: 1.081023481e-23
A65: URS00023DA7D7_4577_10 | B65: '17.6.1.3.12' | C65: 'mercator4v7.0: component *(uS13m) of small mitoribosomal-subunit proteome & original description: Zea mays (Z. mays) long non-coding RNA (ZMAY_LNC005853)_10' | D65: 10544.5 | E65: 0.71 | F65: 0.006632874447 | G65: 23.5 | H65: -0.67 | I65: 0.7030367158 | J65: 26.6 | K65: 0.16 | L65: 0.9449323849 | M65: 30.4 | N65: -0.13 | O65: 0.9356148176 | P65: 29.7 | Q65: -0.17 | R65: 0.9100683042
A66: URS00023F60DD_4577_3 | B66: '50.2.1' | C66: 'mercator4v7.0: EC_2.1 transferase transferring one-carbon group & original description: Zea mays (Z. mays) long non-coding RNA (ZMAY_LNC005180)_3' | D66: 13.3 | E66: 1.41 | F66: 0.5765447745 | G66: 1088.2 | H66: -1.45 | I66: 0.1029807707 | J66: 894.6 | K66: -3.01 | L66: 6.064641971e-07 | M66: 1017.3 | N66: -8.06 | O66: 6.033370321e-35 | P66: 1014.3 | Q66: -7.14 | R66: 1.059067525e-12
A67: URS000241352B_4577_1 | B67: '1.1.1.1.1' | C67: 'mercator4v7.0: component *(LHCb1/2/3) of LHC-II complex & original description: Zea mays (Z. mays) long non-coding RNA (ZMAY_LNC004853)_1' | D67: 64.2 | E67: -0.24 | F67: 0.8362525072 | G67: 9522.5 | H67: 0.64 | I67: 0.5174129664 | J67: 8766.3 | K67: 0.62 | L67: 0.5074352576 | M67: 6130.1 | N67: -2.88 | O67: 1.235823583e-05 | P67: 5820.7 | Q67: -4.01 | R67: 2.032040573e-08
A68: URS000239DAE2_4577 | B68: '35.2' | C68: 'mercator4v7.0: not classified & original description: Zea mays (Z. mays) long non-coding RNA (ZMAY_LNC000873)' | D68: 2342.8 | E68: 4.89 | F68: 1.113550694e-97 | G68: 2.5 | H68: 4.60 | I68: NA | J68: 26.9 | K68: 8.17 | L68: 0.04187237416 | M68: 17.8 | N68: 7.27 | O68: 4.743043302e-05 | P68: 41.4 | Q68: 8.51 | R68: 4.312183615e-05
A69: URS00024085B8_4577 | B69: '35.2' | C69: 'mercator4v7.0: not classified & original description: Zea mays (Z. mays) long non-coding RNA (ZMAY_LNC002723)' | D69: 21.8 | E69: -4.70 | F69: 1.682667132e-05 | G69: 836.7 | H69: 0.10 | I69: 0.9409780446 | J69: 581.8 | K69: -1.38 | L69: 0.0425047353 | M69: 594.2 | N69: -7.24 | O69: 5.516840815e-33 | P69: 583.9 | Q69: -9.01 | R69: 4.454023843e-27
A70: URS000240C39B_4577 | B70: '35.2' | C70: 'mercator4v7.0: not classified & original description: Zea mays (Z. mays) long non-coding RNA (ZMAY_LNC001661)' | D70: 1117.8 | E70: 2.59 | F70: 2.9786729e-26 | G70: 6.2 | H70: -5.75 | I70: 0.01515249928 | J70: 5.8 | K70: -5.50 | L70: 0.02175104022 | M70: 9.8 | N70: -0.62 | O70: 0.8782355478 | P70: 7.0 | Q70: -6.25 | R70: 0.002992621206
A71: URS00023C9AD1_4577_4 | B71: '17.6.1.2.14' | C71: 'mercator4v7.0: component *(uL16m) of large mitoribosomal-subunit proteome & original description: Zea mays (Z. mays) long non-coding RNA (ZMAY_LNC005852)_4' | D71: 4888.7 | E71: 3.87 | F71: 1.043752275e-17 | G71: 39.2 | H71: 0.43 | I71: 0.9140916776 | J71: 46.2 | K71: 1.10 | L71: 0.7521351305 | M71: 47.6 | N71: 0.54 | O71: 0.8955597241 | P71: 77.0 | Q71: 1.81 | R71: 0.231796628
A72: URS00023A0D35_4577 | B72: '35.2' | C72: 'mercator4v7.0: not classified & original description: Zea mays (Z. mays) long non-coding RNA (ZMAY_LNC001412)' | D72: 82.2 | E72: 9.89 | F72: 2.738225954e-12 | G72: 1806.2 | H72: 0.54 | I72: 0.5403195673 | J72: 1492.3 | K72: 0.14 | L72: 0.8860880649 | M72: 1315.8 | N72: -1.78 | O72: 0.0008453773453 | P72: 1253.9 | Q72: -2.13 | R72: 0.002992621206
A73: URS0002404647_4577 | B73: '35.2' | C73: 'mercator4v7.0: not classified & original description: Zea mays (Z. mays) long non-coding RNA (ZMAY_LNC000311)' | D73: 266.6 | E73: -3.26 | F73: 0.1306640657 | G73: 20.6 | H73: -7.49 | I73: 0.2047292825 | J73: 19.2 | K73: -7.24 | L73: 0.2212830638 | M73: 72.4 | N73: 1.79 | O73: 0.7732492228 | P73: 206.6 | Q73: 3.74 | R73: 0.2215469144
A74: URS00023876A7_4577 | B74: '35.2' | C74: 'mercator4v7.0: not classified & original description: Zea mays (Z. mays) long non-coding RNA (ZMAY_LNC003170)' | D74: 1389.8 | E74: -1.72 | F74: 1.548085549e-09 | G74: 26.3 | H74: -1.70 | I74: 0.2435394493 | J74: 22.4 | K74: -2.92 | L74: 0.02937795143 | M74: 25.7 | N74: -8.19 | O74: 1.066527353e-06 | P74: 25.3 | Q74: -8.10 | R74: 7.577157287e-07
A75: URS0002429605_4577 | B75: '35.2' | C75: 'mercator4v7.0: not classified & original description: Zea mays (Z. mays) long non-coding RNA (ZMAY_LNC000976)' | D75: 306.9 | E75: 0.72 | F75: NA | G75: 287.7 | H75: 4.01 | I75: NA | J75: 252.6 | K75: 3.92 | L75: NA | M75: 63.3 | N75: 0.74 | O75: 0.8584729656 | P75: 237.5 | Q75: 3.48 | R75: NA
A76: URS000234C758_4577_1 | B76: '35.2' | C76: 'mercator4v7.0: not classified & original description: Zea mays (Z. mays) long non-coding RNA (ZMAY_LNC003723)_1' | D76: 20675.4 | E76: -0.04 | F76: 0.9409082917 | G76: 63.0 | H76: -0.77 | I76: 0.5844167449 | J76: 69.9 | K76: 0.02 | L76: 0.9958585667 | M76: 82.9 | N76: -0.17 | O76: 0.9203169926 | P76: 84.8 | Q76: -0.01 | R76: 0.995323594
A77: URS000241E0C8_4577_12 | B77: '1.1.9.1.2' | C77: 'mercator4v7.0: subunit b of membrane CF0 subcomplex of ATP synthase complex & original description: Zea mays (Z. mays) long non-coding RNA (ZMAY_LNC005863)_12' | D77: 3863.3 | E77: -1.53 | F77: 1.625048933e-05 | G77: 378.9 | H77: -2.24 | I77: 0.2752034627 | J77: 375.6 | K77: -1.62 | L77: 0.08749279219 | M77: 405.3 | N77: -4.29 | O77: 1.364619013e-06 | P77: 388.1 | Q77: -6.43 | R77: 8.041390448e-06
A78: URS00023F98D6_4577_3 | B78: '50.2.1' | C78: 'mercator4v7.0: EC_2.1 transferase transferring one-carbon group & original description: Zea mays (Z. mays) long non-coding RNA (ZMAY_LNC005179)_3' | D78: 23.7 | E78: -7.99 | F78: NA | G78: 261.8 | H78: -0.25 | I78: 0.9307697629 | J78: 290.8 | K78: 0.38 | L78: 0.8777517549 | M78: 204.2 | N78: -11.19 | O78: 1.733520875e-10 | P78: 223.7 | Q78: -2.31 | R78: 0.08991719031
A79: URS000240DC10_4577_3 | B79: '17.6.1.3.3' | C79: 'mercator4v7.0: component *(uS4m) of small mitoribosomal-subunit proteome & original description: Zea mays (Z. mays) long non-coding RNA (ZMAY_LNC000895)_3' | D79: 46515.0 | E79: 0.03 | F79: 0.963945272 | G79: 116.7 | H79: -0.08 | I79: 0.9746661675 | J79: 127.6 | K79: 0.46 | L79: 0.7903095378 | M79: 175.3 | N79: 0.79 | O79: 0.5333970877 | P79: 188.3 | Q79: 1.01 | R79: 0.3309849931
A80: URS000239F259_4577 | B80: '35.2' | C80: 'mercator4v7.0: not classified & original description: Zea mays (Z. mays) long non-coding RNA (ZMAY_LNC003837)' | D80: 672.8 | E80: 3.77 | F80: 1.782075579e-25 | G80: 25.0 | H80: -7.78 | I80: 0.1834936525 | J80: 23.1 | K80: -7.50 | L80: 0.2012552079 | M80: 38.7 | N80: -0.59 | O80: 0.9472318591 | P80: 28.0 | Q80: -22.32 | R80: 2.032040573e-08
A81: URS00023A2E65_4577 | B81: '35.2' | C81: 'mercator4v7.0: not classified & original description: Zea mays (Z. mays) long non-coding RNA (ZMAY_LNC000092)' | D81: 0.0 | E81: NA | F81: NA | G81: 209.4 | H81: 0.96 | I81: 0.5403195673 | J81: 215.9 | K81: 1.18 | L81: 0.4190249191 | M81: 195.3 | N81: 0.28 | O81: 0.9368307779 | P81: 171.8 | Q81: -0.14 | R81: 0.9434696056
A82: URS00023D8338_4577 | B82: '35.2' | C82: 'mercator4v7.0: not classified & original description: Zea mays (Z. mays) long non-coding RNA (ZMAY_LNC000542)' | D82: 1731.5 | E82: 3.52 | F82: 2.294103603e-31 | G82: 1.0 | H82: 3.11 | I82: NA | J82: 1.7 | K82: 4.09 | L82: NA | M82: 1.8 | N82: 3.91 | O82: NA | P82: 4.7 | Q82: 5.34 | R82: 0.02031861119
A83: URS000237B18B_4577 | B83: '3.13.3.2.1' | C83: 'mercator4v7.0: myo-inositol oxygenase & original description: Zea mays (Z. mays) long non-coding RNA (ZMAY_LNC005433)' | D83: 197.4 | E83: 11.15 | F83: 1.729383995e-07 | G83: 182.6 | H83: 5.20 | I83: 9.155967644e-06 | J83: 356.4 | K83: 6.29 | L83: 4.462797411e-06 | M83: 208.6 | N83: 5.16 | O83: 3.004981452e-05 | P83: 232.2 | Q83: 5.34 | R83: 6.19936214e-05
A84: URS00023806B6_4577 | B84: '35.2' | C84: 'mercator4v7.0: not classified & original description: Zea mays (Z. mays) long non-coding RNA (ZMAY_LNC003591)' | D84: 22.1 | E84: -0.53 | F84: 0.7395818644 | G84: 3812.3 | H84: -1.17 | I84: 0.0003875309677 | J84: 3415.7 | K84: -1.50 | L84: 2.443710305e-05 | M84: 3866.5 | N84: -2.51 | O84: 5.385740643e-08 | P84: 3820.3 | Q84: -2.44 | R84: 1.701987969e-13
A85: URS0002419D65_4577_6 | B85: '35.2' | C85: 'mercator4v7.0: not classified & original description: Zea mays (Z. mays) long non-coding RNA (ZMAY_LNC005179)_6' | D85: 3.2 | E85: 1.43 | F85: 0.6903796062 | G85: 512.6 | H85: -1.81 | I85: 0.04607387552 | J85: 431.4 | K85: -3.41 | L85: 6.384973582e-07 | M85: 497.3 | N85: -9.26 | O85: 4.723019578e-23 | P85: 495.7 | Q85: -8.60 | R85: 1.27784912e-20
A86: URS000235539F_4577 | B86: '35.2' | C86: 'mercator4v7.0: not classified & original description: Zea mays (Z. mays) long non-coding RNA (ZMAY_LNC005751)' | D86: 365.0 | E86: 8.22 | F86: 1.568381407e-06 | G86: 253.6 | H86: -2.05 | I86: 0.4169202762 | J86: 462.9 | K86: 1.07 | L86: 0.7488731025 | M86: 899.6 | N86: 2.14 | O86: 0.2543716204 | P86: 259.2 | Q86: -3.87 | R86: 0.0208784652
A87: URS00023BB9AF_4577_1 | B87: '35.2' | C87: 'mercator4v7.0: not classified & original description: Zea mays (Z. mays) long non-coding RNA (ZMAY_LNC003209)_1' | D87: 2252.1 | E87: -0.25 | F87: 0.5083876948 | G87: 5.3 | H87: -1.64 | I87: 0.4390917255 | J87: 6.3 | K87: -0.18 | L87: 0.9603663425 | M87: 8.8 | N87: 0.34 | O87: 0.8839903902 | P87: 6.5 | Q87: -1.03 | R87: 0.5521186045
A88: URS00023FBCC2_4577 | B88: '35.2' | C88: 'mercator4v7.0: not classified & original description: Zea mays (Z. mays) long non-coding RNA (ZMAY_LNC001510)' | D88: 264.0 | E88: 0.13 | F88: 0.889172813 | G88: 28627.5 | H88: -0.13 | I88: 0.8898151065 | J88: 24519.9 | K88: -0.51 | L88: 0.3209509531 | M88: 27783.9 | N88: -1.02 | O88: 0.01234666217 | P88: 30684.5 | Q88: -0.41 | R88: 0.5903989415
A89: URS000239E3E9_4577_1 | B89: '35.2' | C89: 'mercator4v7.0: not classified & original description: Zea mays (Z. mays) long non-coding RNA (ZMAY_LNC003590)_1' | D89: 78.4 | E89: -0.84 | F89: 0.1577427546 | G89: 11631.4 | H89: -1.13 | I89: 0.0003435922208 | J89: 10408.0 | K89: -1.46 | L89: 1.684998768e-05 | M89: 11668.3 | N89: -2.56 | O89: 1.053405595e-08 | P89: 11592.6 | Q89: -2.42 | R89: 8.318258201e-16
A90: URS00023B9F78_4577 | B90: '35.2' | C90: 'mercator4v7.0: not classified & original description: Zea mays (Z. mays) long non-coding RNA (ZMAY_LNC002411)' | D90: 2258.2 | E90: 3.73 | F90: 2.540742035e-24 | G90: 16.9 | H90: 2.30 | I90: 0.2570272476 | J90: 4.5 | K90: -2.18 | L90: 0.5325550171 | M90: 10.6 | N90: 0.95 | O90: 0.7724935977 | P90: 42.1 | Q90: 3.69 | R90: 0.04685231057
A91: GRMZM5G844030_T01_zeamMp174_orf101-c | B91: '35.2' | C91: 'mercator4v7.0: not classified & original description: pacid=40183467 locus=GRMZM5G844030 ID=GRMZM5G844030_T01_zeamMp174_orf101-c.RefGen_V4 annot-version=RefGen_V4' | D91: 1705.9 | E91: 1.08 | F91: 7.085679486e-05 | G91: 2.0 | H91: 0.88 | I91: NA | J91: 2.7 | K91: 1.84 | L91: 0.4126535782 | M91: 5.7 | N91: 2.86 | O91: 0.04221062717 | P91: 4.1 | Q91: 2.30 | R91: 0.1106963213
A92: NC_007982.1:c21434-21087 | B92: '35.2' | C92: 'mercator4v7.0: not classified & original description: orf115-b [organism=Zea mays subsp. mays] [GeneID=4055871] [chromosome=MT]' | D92: 720.3 | E92: -0.84 | F92: 0.0007385404833 | G92: 0.8 | H92: 0.56 | I92: NA | J92: 1.3 | K92: 1.93 | L92: NA | M92: 0.7 | N92: -1.53 | O92: NA | P92: 0.6 | Q92: -1.45 | R92: NA
A93: URS0002383807_4577 | B93: '1.1.2.3' | C93: 'mercator4v7.0: Rieske iron-sulfur component *(PetC) of cytochrome b6/f complex & original description: Zea mays (Z. mays) long non-coding RNA (ZMAY_LNC002793)' | D93: 42.4 | E93: 8.93 | F93: 0.001416713775 | G93: 916.4 | H93: 0.11 | I93: 0.8909680667 | J93: 815.0 | K93: -0.08 | L93: 0.940129841 | M93: 774.9 | N93: -1.58 | O93: 0.02354274147 | P93: 751.7 | Q93: -1.71 | R93: 5.225900816e-06
A94: URS00023504A1_4577_5 | B94: '35.2' | C94: 'mercator4v7.0: not classified & original description: Zea mays (Z. mays) long non-coding RNA (ZMAY_LNC001661)_5' | D94: 726.5 | E94: 1.93 | F94: 3.936726471e-11 | G94: 15.3 | H94: 5.08 | I94: 0.4156071364 | J94: 0.7 | K94: -2.46 | L94: NA | M94: 5.4 | N94: 3.12 | O94: 0.3889595777 | P94: 8.4 | Q94: 3.90 | R94: 0.4784364992
A95: Zm00001d010956_T001 | B95: '16.6.1.9.1' | C95: 'mercator4v7.0: OXS2-type post-transcriptional regulator & original description: pacid=40260908 locus=Zm00001d010956 ID=Zm00001d010956_T001.RefGen_V4 annot-version=RefGen_V4' | D95: 0.0 | E95: NA | F95: NA | G95: 151.4 | H95: -0.30 | I95: 0.9218793588 | J95: 96.0 | K95: -6.92 | L95: 0.0001949158796 | M95: 174.4 | N95: -0.27 | O95: 0.9255891047 | P95: 196.8 | Q95: 0.24 | R95: 0.9239415206
A96: URS00023CE15C_4577 | B96: '35.2' | C96: 'mercator4v7.0: not classified & original description: Zea mays (Z. mays) long non-coding RNA (ZMAY_LNC000099)' | D96: 3035.1 | E96: 6.67 | F96: 8.175269869e-164 | G96: 595.2 | H96: 3.83 | I96: 0.03466146258 | J96: 438.3 | K96: 3.44 | L96: 0.07533676732 | M96: 432.2 | N96: 3.03 | O96: 0.2129410185 | P96: 1018.1 | Q96: 4.46 | R96: 0.02485589588
A97: URS00023756EE_4577 | B97: '35.2' | C97: 'mercator4v7.0: not classified & original description: Zea mays (Z. mays) long non-coding RNA (ZMAY_LNC002460)' | D97: 27826.3 | E97: 0.62 | F97: 0.02235107127 | G97: 107.7 | H97: -0.31 | I97: 0.7620917436 | J97: 108.5 | K97: -0.00 | L97: 0.9995801129 | M97: 118.5 | N97: -0.55 | O97: 0.5523955906 | P97: 126.5 | Q97: -0.18 | R97: 0.8477792814
A98: URS000242C9B9_4577 | B98: '1.1.2.4' | C98: 'mercator4v7.0: component *(PetD/IV) of cytochrome b6/f complex & original description: Zea mays (Z. mays) long non-coding RNA (ZMAY_LNC003498)' | D98: 65339.9 | E98: -0.14 | F98: 0.8019209753 | G98: 931.6 | H98: -1.27 | I98: 0.1518519669 | J98: 911.2 | K98: -0.96 | L98: 0.3209509531 | M98: 920.7 | N98: -3.25 | O98: 2.598248544e-06 | P98: 882.8 | Q98: -4.01 | R98: 1.703608466e-09
A99: URS000237765C_4577 | B99: '35.2' | C99: 'mercator4v7.0: not classified & original description: Zea mays (Z. mays) long non-coding RNA (ZMAY_LNC005411)' | D99: 603.5 | E99: 2.74 | F99: 1.731808791e-06 | G99: 29693.5 | H99: 0.03 | I99: 0.9843134757 | J99: 27012.6 | K99: -0.06 | L99: 0.9636457701 | M99: 26004.8 | N99: -1.49 | O99: 0.01359062494 | P99: 24291.0 | Q99: -1.99 | R99: 0.0003814329778
A100: URS00023C28EA_4577_2 | B100: '17.6.2.3.15' | C100: 'mercator4v7.0: component *(uS15c) of small plastid ribosomal-subunit proteome & original description: Zea mays (Z. mays) long non-coding RNA (ZMAY_LNC004241)_2' | D100: 704.4 | E100: 0.88 | F100: 0.005699088348 | G100: 6.9 | H100: -3.47 | I100: 0.1164807928 | J100: 7.4 | K100: -1.66 | L100: 0.445698946 | M100: 7.7 | N100: -5.50 | O100: 0.007389189104 | P100: 7.6 | Q100: -5.42 | R100: 0.007572232179
A101: URS00023FDBDB_4577_4 | B101: '17.6.1.2.14' | C101: 'mercator4v7.0: component *(uL16m) of large mitoribosomal-subunit proteome & original description: Zea mays (Z. mays) long non-coding RNA (ZMAY_LNC005853)_4' | D101: 5647.7 | E101: -0.79 | F101: 0.003971322751 | G101: 17.3 | H101: 0.67 | I101: 0.7817428264 | J101: 25.9 | K101: 1.83 | L101: 0.2203033408 | M101: 38.3 | N101: 2.24 | O101: 0.07663036041 | P101: 28.4 | Q101: 1.62 | R101: 0.2225235611
A102: URS00023DA7D7_4577_7 | B102: '2.4.6.1.8' | C102: 'mercator4v7.0: subunit A6L of ATP synthase membrane MF0 subcomplex & original description: Zea mays (Z. mays) long non-coding RNA (ZMAY_LNC005853)_7' | D102: 54412.2 | E102: 0.07 | F102: 0.8926262358 | G102: 204.2 | H102: -0.23 | I102: 0.8820422107 | J102: 233.3 | K102: 0.50 | L102: 0.7147400244 | M102: 303.4 | N102: 0.64 | O102: 0.5741184147 | P102: 313.5 | Q102: 0.78 | R102: 0.4065488741
A103: URS00023A8427_4577 | B103: '35.2' | C103: 'mercator4v7.0: not classified & original description: Zea mays (Z. mays) long non-coding RNA (ZMAY_LNC005732)' | D103: 25196.4 | E103: -0.46 | F103: 0.2215078446 | G103: 1357.6 | H103: -0.90 | I103: NA | J103: 1053.9 | K103: -2.58 | L103: NA | M103: 1221.2 | N103: -4.79 | O103: NA | P103: 1194.3 | Q103: -5.13 | R103: NA
A104: URS00023DA7D7_4577_9 | B104: '2.4.4.2.3.2' | C104: 'mercator4v7.0: component *(CcmFn) of apocytochrome-heme assembly complex & original description: Zea mays (Z. mays) long non-coding RNA (ZMAY_LNC005853)_9' | D104: 33064.2 | E104: -0.11 | F104: 0.8420373109 | G104: 143.5 | H104: -0.55 | I104: 0.6644683717 | J104: 154.2 | K104: 0.04 | L104: 0.9882943024 | M104: 186.6 | N104: -0.05 | O104: 0.9716427974 | P104: 186.1 | Q104: 0.00 | R104: 0.996241446
A105: GRMZM5G804708_T01_zemaCp047_clpP | B105: '1.1.4.2.10' | C105: 'mercator4v7.0: component *(PsaJ) of PS-I complex & original description: pacid=40173931 locus=GRMZM5G804708 ID=GRMZM5G804708_T01_zemaCp047_clpP.RefGen_V4 annot-version=RefGen_V4' | D105: 27301.7 | E105: 0.99 | F105: 0.0002062900355 | G105: 3262.2 | H105: -0.02 | I105: 0.9925842408 | J105: 2118.0 | K105: -2.42 | L105: 0.001757619415 | M105: 2437.0 | N105: -5.18 | O105: 5.051241237e-13 | P105: 2371.3 | Q105: -6.23 | R105: 1.615495926e-15
A106: URS000237CD0C_4577 | B106: '35.2' | C106: 'mercator4v7.0: not classified & original description: Zea mays (Z. mays) long non-coding RNA (ZMAY_LNC004534)' | D106: 0.0 | E106: NA | F106: NA | G106: 207.2 | H106: -24.74 | I106: NA | J106: 191.5 | K106: -24.53 | L106: NA | M106: 347.8 | N106: -0.13 | O106: NA | P106: 229.6 | Q106: -25.19 | R106: NA
A107: URS000076BD5E_4577 | B107: '35.2' | C107: 'mercator4v7.0: not classified & original description: Zea mays drought responsive lncRNA' | D107: 634.8 | E107: 2.25 | F107: 9.117288766e-22 | G107: 0.9 | H107: 1.75 | I107: NA | J107: 0.5 | K107: 0.75 | L107: NA | M107: 1.9 | N107: 3.06 | O107: NA | P107: 3.2 | Q107: 4.02 | R107: 0.2001400063
A109: siRNA-related loci explored for antisense production | C109: http://bioinfo.bti.cornell.edu/cgi-bin/phasiRNA/list.cgi | D109: annotated genes that are documented to produce phased small RNAs in anthers are highlighted yellow https://doi.org/10.1073/pnas.1418918112 ; https://doi.org/10.1038/s41467-019-08543-0
A110: Zm00001d028925_T001 | B110: 35.2' /TAS3a1 | C110: 'mercator4v7.0: not classified & original description: pacid=40208143 locus=Zm00001d028925 ID=Zm00001d028925_T001.RefGen_V4 annot-version=RefGen_V4' | D110: 0.1 | E110: -0.86 | F110: NA | G110: 0.0 | H110: NA | I110: NA | J110: 0.0 | K110: NA | L110: NA | M110: 0.0 | N110: NA | O110: NA | P110: 0.0 | Q110: NA | R110: NA
A111: Zm00001d010936_T003 | B111: 35.2' /TAS3a2 | C111: 'mercator4v7.0: not classified & original description: pacid=40258002 locus=Zm00001d010936 ID=Zm00001d010936_T003.RefGen_V4 annot-version=RefGen_V4' | D111: 0.7 | E111: -1.72 | F111: NA | G111: 0.0 | H111: NA | I111: NA | J111: 0.0 | K111: NA | L111: NA | M111: 0.1 | N111: 0.41 | O111: NA | P111: 0.1 | Q111: 0.49 | R111: NA
A112: Zm00001d051054_T001 | B112: 35.2' /TAS3b1 | C112: 'mercator4v7.0: not classified & original description: pacid=40269529 locus=Zm00001d051054 ID=Zm00001d051054_T001.RefGen_V4 annot-version=RefGen_V4' | D112: 0.0 | E112: NA | F112: NA | G112: 0.0 | H112: NA | I112: NA | J112: 0.0 | K112: NA | L112: NA | M112: 0.0 | N112: NA | O112: NA | P112: 0.0 | Q112: NA | R112: NA
A113: Zm00001d034337_T005 | B113: '22.5.2.4' | C113: 'mercator4v7.0: small subunit sigma of AP-1 trans-Golgi network cargo adaptor complex & original description: pacid=40215718 locus=Zm00001d034337 ID=Zm00001d034337_T005.RefGen_V4 annot-version=RefGen_V4' | D113: 0.0 | E113: NA | F113: NA | G113: 0.1 | H113: 1.00 | I113: NA | J113: 0.0 | K113: NA | L113: NA | M113: 0.0 | N113: NA | O113: NA | P113: 0.0 | Q113: NA | R113: NA
A114: Zm00001d005228_T001 | B114: '17.6.1.2.20' | C114: 'mercator4v7.0: component *(bL22m) of large mitoribosomal-subunit proteome & original description: pacid=40197454 locus=Zm00001d005228 ID=Zm00001d005228_T001.RefGen_V4 annot-version=RefGen_V4' | D114: 0.0 | E114: NA | F114: NA | G114: 0.1 | H114: 1.00 | I114: NA | J114: 0.0 | K114: NA | L114: NA | M114: 0.0 | N114: NA | O114: NA | P114: 0.0 | Q114: NA | R114: NA
A115: Zm00001d039335_T001 | B115: '35.2' | C115: 'mercator4v7.0: not classified & original description: pacid=40240613 locus=Zm00001d039335 ID=Zm00001d039335_T001.RefGen_V4 annot-version=RefGen_V4' | D115: 0.0 | E115: NA | F115: NA | G115: 0.0 | H115: NA | I115: NA | J115: 0.0 | K115: NA | L115: NA | M115: 0.0 | N115: NA | O115: NA | P115: 0.0 | Q115: NA | R115: NA
A116: Zm00001d024644_T001 | B116: '14.5.3.2.7' | C116: 'mercator4v7.0: MYBR-R-type transcription factor & original description: pacid=40179289 locus=Zm00001d024644 ID=Zm00001d024644_T001.RefGen_V4 annot-version=RefGen_V4' | D116: 0.4 | E116: 0.13 | F116: NA | G116: 0.2 | H116: 0.43 | I116: NA | J116: 0.1 | K116: -0.28 | L116: NA | M116: 0.5 | N116: 1.81 | O116: NA | P116: 0.3 | Q116: 0.78 | R116: NA
A117: Zm00001d046656_T004 | B117: '7.9.6.2' | C117: 'mercator4v7.0: NADH pyrophosphohydrolase *(NUDX2/6/7) & original description: pacid=40245160 locus=Zm00001d046656 ID=Zm00001d046656_T004.RefGen_V4 annot-version=RefGen_V4' | D117: 0.6 | E117: -1.25 | F117: NA | G117: 0.2 | H117: -1.11 | I117: NA | J117: 0.2 | K117: -0.86 | L117: NA | M117: 0.2 | N117: -1.70 | O117: NA | P117: 0.2 | Q117: -1.62 | R117: NA
A118: Zm00001d032655_T006 | B118: '11.5.1.1.4' | C118: 'mercator4v7.0: endoribonuclease *(DCL3) & original description: pacid=40217723 locus=Zm00001d032655 ID=Zm00001d032655_T006.RefGen_V4 annot-version=RefGen_V4' | D118: 3.0 | E118: -1.28 | F118: 0.6401874289 | G118: 0.9 | H118: 1.55 | I118: NA | J118: 0.6 | K118: 0.66 | L118: NA | M118: 0.4 | N118: -2.15 | O118: NA | P118: 1.2 | Q118: 1.76 | R118: NA
A119: Zm00001d005065_T002 | B119: '16.5.1.1.1.2.1' | C119: 'mercator4v7.0: component *(HYL1) of DCL1-HYL1 miRNA biogenesis complex & original description: pacid=40197116 locus=Zm00001d005065 ID=Zm00001d005065_T002.RefGen_V4 annot-version=RefGen_V4' | D119: 15.5 | E119: -1.16 | F119: 0.3513209874 | G119: 0.9 | H119: -1.88 | I119: NA | J119: 1.8 | K119: 1.12 | L119: NA | M119: 1.6 | N119: 0.16 | O119: NA | P119: 1.5 | Q119: 0.08 | R119: NA
A120: Zm00001d049767_T001 | B120: '16.5.1.1.1.3' | C120: 'mercator4v7.0: component *(SERRATE) of DCL1-HYL1 miRNA biogenesis complex & original description: pacid=40276856 locus=Zm00001d049767 ID=Zm00001d049767_T001.RefGen_V4 annot-version=RefGen_V4' | D120: 9.7 | E120: 4.26 | F120: 0.002348492764 | G120: 3.1 | H120: 3.54 | I120: NA | J120: 8.9 | K120: 5.37 | L120: 7.077346201e-05 | M120: 5.5 | N120: 4.28 | O120: 0.004501398291 | P120: 4.9 | Q120: 4.12 | R120: 0.005564199474
A121: Zm00001d036495_T001 | B121: '16.5.1.1.1.3' | C121: 'mercator4v7.0: component *(SERRATE) of DCL1-HYL1 miRNA biogenesis complex & original description: pacid=40224086 locus=Zm00001d036495 ID=Zm00001d036495_T001.RefGen_V4 annot-version=RefGen_V4' | D121: 4.6 | E121: -0.64 | F121: 0.8069221665 | G121: 1.1 | H121: -2.05 | I121: NA | J121: 1.0 | K121: -1.79 | L121: NA | M121: 1.2 | N121: -1.96 | O121: NA | P121: 1.8 | Q121: 0.20 | R121: NA
A122: Zm00001d004434_T003 | B122: '16.5.1.1.1.3' | C122: 'mercator4v7.0: component *(SERRATE) of DCL1-HYL1 miRNA biogenesis complex & original description: pacid=40187983 locus=Zm00001d004434 ID=Zm00001d004434_T003.RefGen_V4 annot-version=RefGen_V4' | D122: 2.7 | E122: 0.08 | F122: 0.9841597066 | G122: 0.7 | H122: 0.84 | I122: NA | J122: 0.3 | K122: -1.37 | L122: NA | M122: 0.6 | N122: -0.27 | O122: NA | P122: 0.9 | Q122: 1.02 | R122: NA
A123: URS00023AD86B_4577 | B123: '16.5.1.1.1.5' | C123: 'mercator4v7.0: scaffold factor *(CARP9) of HYL1-DCL1 association & original description: Zea mays (Z. mays) long non-coding RNA (ZMAY_LNC003220)' | D123: 38.3 | E123: -8.69 | F123: 3.015989244e-08 | G123: 0.6 | H123: 0.66 | I123: NA | J123: 0.3 | K123: -0.86 | L123: NA | M123: 0.4 | N123: -1.70 | O123: NA | P123: 0.4 | Q123: -1.62 | R123: NA
A124: URS00023BF39E_4577_3 | B124: '16.5.1.1.1.5' | C124: 'mercator4v7.0: scaffold factor *(CARP9) of HYL1-DCL1 association & original description: Zea mays (Z. mays) long non-coding RNA (ZMAY_LNC003219)_3' | D124: 23.7 | E124: -7.01 | F124: 5.494135946e-06 | G124: 0.5 | H124: -0.15 | I124: NA | J124: 0.3 | K124: -0.86 | L124: NA | M124: 0.4 | N124: -1.70 | O124: NA | P124: 0.4 | Q124: -1.62 | R124: NA
A125: Zm00001d015825_T001 | B125: '16.5.1.1.1.5' | C125: 'mercator4v7.0: scaffold factor *(CARP9) of HYL1-DCL1 association & original description: pacid=40292663 locus=Zm00001d015825 ID=Zm00001d015825_T001.RefGen_V4 annot-version=RefGen_V4' | D125: 13.9 | E125: -0.05 | F125: 0.9821349516 | G125: 4.0 | H125: -0.67 | I125: 0.7628546516 | J125: 4.2 | K125: -0.16 | L125: 0.9588007727 | M125: 6.2 | N125: 0.55 | O125: 0.7052553304 | P125: 4.5 | Q125: -0.64 | R125: 0.6696900952
A126: Zm00001d023501_T001 | B126: '16.5.1.1.4' | C126: 'mercator4v7.0: regulatory RNA helicase *(RH27/RH51) of miRNA biogenesis pathway & original description: pacid=40181729 locus=Zm00001d023501 ID=Zm00001d023501_T001.RefGen_V4 annot-version=RefGen_V4' | D126: 2.8 | E126: -0.78 | F126: 0.8122413348 | G126: 5.2 | H126: 0.72 | I126: 0.7469191873 | J126: 3.5 | K126: -0.51 | L126: 0.8696310119 | M126: 5.4 | N126: 0.40 | O126: 0.8385359776 | P126: 4.5 | Q126: -0.30 | R126: 0.8883337713
A127: Zm00001d013056_T001 | B127: '16.5.1.1.4' | C127: 'mercator4v7.0: regulatory RNA helicase *(RH27/RH51) of miRNA biogenesis pathway & original description: pacid=40292077 locus=Zm00001d013056 ID=Zm00001d013056_T001.RefGen_V4 annot-version=RefGen_V4' | D127: 3.6 | E127: -0.04 | F127: 0.9921027963 | G127: 0.1 | H127: -0.54 | I127: NA | J127: 0.1 | K127: -0.28 | L127: NA | M127: 0.2 | N127: -0.17 | O127: NA | P127: 0.4 | Q127: 1.34 | R127: NA
A128: Zm00001d039350_T001 | B128: '16.5.1.1.8' | C128: 'mercator4v7.0: regulatory protein *(CWC15) of miRNA biogenesis & original description: pacid=40243263 locus=Zm00001d039350 ID=Zm00001d039350_T001.RefGen_V4 annot-version=RefGen_V4' | D128: 8.8 | E128: -0.23 | F128: 0.9248643123 | G128: 0.4 | H128: -0.61 | I128: NA | J128: 0.8 | K128: 1.46 | L128: NA | M128: 0.5 | N128: -0.35 | O128: NA | P128: 0.5 | Q128: -1.12 | R128: NA
A129: Zm00001d029066_T005 | B129: '16.5.1.1.6' | C129: 'mercator4v7.0: miRNA cytidylyltransferase *(NTP2/6/7/8) & original description: pacid=40212388 locus=Zm00001d029066 ID=Zm00001d029066_T005.RefGen_V4 annot-version=RefGen_V4' | D129: 12.8 | E129: -1.34 | F129: 0.2676381868 | G129: 6.1 | H129: -0.63 | I129: 0.7448538147 | J129: 6.5 | K129: -0.14 | L129: 0.9625380786 | M129: 10.7 | N129: 0.87 | O129: 0.3565226454 | P129: 11.5 | Q129: 1.11 | R129: 0.1780476836
A130: Zm00001d048115_T026 | B130: '16.5.1.1.6' | C130: 'mercator4v7.0: miRNA cytidylyltransferase *(NTP2/6/7/8) & original description: pacid=40254345 locus=Zm00001d048115 ID=Zm00001d048115_T026.RefGen_V4 annot-version=RefGen_V4' | D130: 6.2 | E130: -0.62 | F130: 0.8042814292 | G130: 5.1 | H130: 0.53 | I130: 0.7940524599 | J130: 5.6 | K130: 1.04 | L130: 0.5048488678 | M130: 5.8 | N130: 0.44 | O130: 0.7890928353 | P130: 5.0 | Q130: 0.06 | R130: 0.9774130024
A131: Zm00001d011096_T059 | B131: '16.5.1.2.1' | C131: 'mercator4v7.0: miRNA recruiting factor *(AGO) of RNA-induced silencing complex (RISC) assembly & original description: pacid=40255069 locus=Zm00001d011096 ID=Zm00001d011096_T059.RefGen_V4 annot-version=RefGen_V4' | D131: 18.5 | E131: 2.86 | F131: 0.000419955001 | G131: 0.8 | H131: -0.16 | I131: NA | J131: 1.9 | K131: 2.48 | L131: NA | M131: 4.0 | N131: 3.34 | O131: 0.04745610084 | P131: 2.1 | Q131: 2.17 | R131: NA
A132: Zm00001d035747_T027 | B132: '16.5.1.2.1' | C132: 'mercator4v7.0: miRNA recruiting factor *(AGO) of RNA-induced silencing complex (RISC) assembly & original description: pacid=40223825 locus=Zm00001d035747 ID=Zm00001d035747_T027.RefGen_V4 annot-version=RefGen_V4' | D132: 16.7 | E132: -0.43 | F132: 0.7744588977 | G132: 1.9 | H132: 0.11 | I132: NA | J132: 1.9 | K132: 0.27 | L132: NA | M132: 2.3 | N132: 0.35 | O132: 0.9062465029 | P132: 2.7 | Q132: 0.89 | R132: NA
A133: Zm00001d030051_T001 | B133: '16.5.1.2.6' | C133: 'mercator4v7.0: regulatory protein *(SUO) of miRNA biogenesis pathway & original description: pacid=40218417 locus=Zm00001d030051 ID=Zm00001d030051_T001.RefGen_V4 annot-version=RefGen_V4' | D133: 2.5 | E133: -0.71 | F133: 0.8794167852 | G133: 0.1 | H133: 1.00 | I133: NA | J133: 0.1 | K133: 1.26 | L133: NA | M133: 0.0 | N133: NA | O133: NA | P133: 0.2 | Q133: 1.37 | R133: NA
A134: Zm00001d017964_T001 | B134: '16.5.2.2' | C134: 'mercator4v7.0: siRNA polymerase *(RDR1) & original description: pacid=40285633 locus=Zm00001d017964 ID=Zm00001d017964_T001.RefGen_V4 annot-version=RefGen_V4' | D134: 5.7 | E134: 1.88 | F134: 0.3184881429 | G134: 0.8 | H134: 0.70 | I134: NA | J134: 1.4 | K134: 2.39 | L134: NA | M134: 2.8 | N134: 3.19 | O134: 0.06505562534 | P134: 2.1 | Q134: 2.70 | R134: NA
A135: URS0002372AC8_4577 | B135: '16.5.2.8' | C135: 'mercator4v7.0: stabilization factor *(SGS3) of transacting siRNA pathway & original description: Zea mays (Z. mays) long non-coding RNA (ZMAY_LNC003495)' | D135: 101.7 | E135: -2.52 | F135: 1.47691315e-08 | G135: 1.1 | H135: -0.99 | I135: NA | J135: 1.2 | K135: 0.11 | L135: NA | M135: 2.8 | N135: 1.70 | O135: 0.4276812715 | P135: 2.9 | Q135: 1.77 | R135: NA
A136: Zm00001d034018_T002 | B136: '16.5.2.10' | C136: 'mercator4v7.0: regulatory protein kinase *(TSL) of transacting siRNA pathway & original description: pacid=40218286 locus=Zm00001d034018 ID=Zm00001d034018_T002.RefGen_V4 annot-version=RefGen_V4' | D136: 688.7 | E136: -0.55 | F136: 0.054560636 | G136: 94.7 | H136: 0.31 | I136: 0.8044873282 | J136: 68.5 | K136: -0.82 | L136: 0.4130662144 | M136: 95.6 | N136: -0.18 | O136: 0.8839903902 | P136: 78.1 | Q136: -1.20 | R136: 0.144646922
A137: Zm00001d018152_T001 | B137: '16.5.2.8' | C137: 'mercator4v7.0: stabilization factor *(SGS3) of transacting siRNA pathway & original description: pacid=40279865 locus=Zm00001d018152 ID=Zm00001d018152_T001.RefGen_V4 annot-version=RefGen_V4' | D137: 3.3 | E137: -1.25 | F137: 0.679808983 | G137: 0.0 | H137: NA | I137: NA | J137: 0.0 | K137: NA | L137: NA | M137: 0.0 | N137: NA | O137: NA | P137: 0.0 | Q137: NA | R137: NA
A138: Zm00001d041788_T001 | B138: '16.5.2.8' | C138: 'mercator4v7.0: stabilization factor *(SGS3) of transacting siRNA pathway & original description: pacid=40243348 locus=Zm00001d041788 ID=Zm00001d041788_T001.RefGen_V4 annot-version=RefGen_V4' | D138: 2.3 | E138: 1.02 | F138: NA | G138: 0.0 | H138: NA | I138: NA | J138: 0.1 | K138: 1.26 | L138: NA | M138: 0.0 | N138: NA | O138: NA | P138: 0.1 | Q138: 0.49 | R138: NA
A139: Zm00001d039815_T001 | B139: '16.5.2.8' | C139: 'mercator4v7.0: stabilization factor *(SGS3) of transacting siRNA pathway & original description: pacid=40239718 locus=Zm00001d039815 ID=Zm00001d039815_T001.RefGen_V4 annot-version=RefGen_V4' | D139: 0.7 | E139: -2.88 | F139: NA | G139: 0.0 | H139: NA | I139: NA | J139: 0.0 | K139: NA | L139: NA | M139: 0.0 | N139: NA | O139: NA | P139: 0.0 | Q139: NA | R139: NA
A140: Zm00001d035256_T002 | B140: '16.5.2.8' | C140: 'mercator4v7.0: stabilization factor *(SGS3) of transacting siRNA pathway & original description: pacid=40224943 locus=Zm00001d035256 ID=Zm00001d035256_T002.RefGen_V4 annot-version=RefGen_V4' | D140: 0.5 | E140: 0.06 | F140: NA | G140: 0.2 | H140: -0.54 | I140: NA | J140: 0.2 | K140: -0.28 | L140: NA | M140: 0.3 | N140: -0.17 | O140: NA | P140: 0.3 | Q140: -0.08 | R140: NA
A141: Zm00001d037055_T003 | B141: '16.5.1.1.1.2.2' | C141: 'mercator4v7.0: regulatory protein *(RCF3) of HYL1 activity & original description: pacid=40228164 locus=Zm00001d037055 ID=Zm00001d037055_T003.RefGen_V4 annot-version=RefGen_V4' | D141: 0.0 | E141: NA | F141: NA | G141: 0.0 | H141: NA | I141: NA | J141: 0.0 | K141: NA | L141: NA | M141: 0.2 | N141: 1.28 | O141: NA | P141: 0.1 | Q141: 0.49 | R141: NA
A142: Zm00001d046033_T001 | B142: '16.5.1.1.1.2.2' | C142: 'mercator4v7.0: regulatory protein *(RCF3) of HYL1 activity & original description: pacid=40250129 locus=Zm00001d046033 ID=Zm00001d046033_T001.RefGen_V4 annot-version=RefGen_V4' | D142: 0.0 | E142: NA | F142: NA | G142: 0.0 | H142: NA | I142: NA | J142: 0.0 | K142: NA | L142: NA | M142: 0.0 | N142: NA | O142: NA | P142: 0.0 | Q142: NA | R142: NA
A143: Zm00001d023724_T002 | B143: '16.5.1.1.1.3' | C143: 'mercator4v7.0: component *(SERRATE) of DCL1-HYL1 miRNA biogenesis complex & original description: pacid=40179606 locus=Zm00001d023724 ID=Zm00001d023724_T002.RefGen_V4 annot-version=RefGen_V4' | D143: 1.2 | E143: 0.75 | F143: NA | G143: 0.2 | H143: -1.11 | I143: NA | J143: 0.7 | K143: 1.78 | L143: NA | M143: 0.4 | N143: -0.15 | O143: NA | P143: 0.3 | Q143: -0.66 | R143: NA
A144: Zm00001d047626_T001 | B144: '16.5.1.1.1.3' | C144: 'mercator4v7.0: component *(SERRATE) of DCL1-HYL1 miRNA biogenesis complex & original description: pacid=40245967 locus=Zm00001d047626 ID=Zm00001d047626_T001.RefGen_V4 annot-version=RefGen_V4' | D144: 0.8 | E144: 3.13 | F144: NA | G144: 0.0 | H144: NA | I144: NA | J144: 0.0 | K144: NA | L144: NA | M144: 0.0 | N144: NA | O144: NA | P144: 0.0 | Q144: NA | R144: NA
A145: Zm00001d031542_T001 | B145: '16.5.1.1.1.3' | C145: 'mercator4v7.0: component *(SERRATE) of DCL1-HYL1 miRNA biogenesis complex & original description: pacid=40202816 locus=Zm00001d031542 ID=Zm00001d031542_T001.RefGen_V4 annot-version=RefGen_V4' | D145: 0.5 | E145: -0.50 | F145: NA | G145: 0.5 | H145: 0.74 | I145: NA | J145: 0.2 | K145: -0.86 | L145: NA | M145: 0.4 | N145: 0.12 | O145: NA | P145: 0.2 | Q145: -1.62 | R145: NA
A146: Zm00001d013800_T001 | B146: '16.5.1.1.1.3' | C146: 'mercator4v7.0: component *(SERRATE) of DCL1-HYL1 miRNA biogenesis complex & original description: pacid=40287979 locus=Zm00001d013800 ID=Zm00001d013800_T001.RefGen_V4 annot-version=RefGen_V4' | D146: 0.3 | E146: -1.72 | F146: NA | G146: 0.0 | H146: NA | I146: NA | J146: 0.0 | K146: NA | L146: NA | M146: 0.0 | N146: NA | O146: NA | P146: 0.0 | Q146: NA | R146: NA
A147: Zm00001d033903_T001 | B147: '16.5.1.1.1.3' | C147: 'mercator4v7.0: component *(SERRATE) of DCL1-HYL1 miRNA biogenesis complex & original description: pacid=40217049 locus=Zm00001d033903 ID=Zm00001d033903_T001.RefGen_V4 annot-version=RefGen_V4' | D147: 0.2 | E147: 1.64 | F147: NA | G147: 0.0 | H147: NA | I147: NA | J147: 0.0 | K147: NA | L147: NA | M147: 0.0 | N147: NA | O147: NA | P147: 0.0 | Q147: NA | R147: NA
A148: Zm00001d037665_T001 | B148: '16.5.1.1.1.3' | C148: 'mercator4v7.0: component *(SERRATE) of DCL1-HYL1 miRNA biogenesis complex & original description: pacid=40228620 locus=Zm00001d037665 ID=Zm00001d037665_T001.RefGen_V4 annot-version=RefGen_V4' | D148: 0.2 | E148: 1.09 | F148: NA | G148: 0.4 | H148: -0.15 | I148: NA | J148: 0.3 | K148: -0.86 | L148: NA | M148: 0.3 | N148: -1.70 | O148: NA | P148: 0.3 | Q148: -1.62 | R148: NA
A149: Zm00001d014655_T001 | B149: '16.5.1.1.1.3' | C149: 'mercator4v7.0: component *(SERRATE) of DCL1-HYL1 miRNA biogenesis complex & original description: pacid=40286722 locus=Zm00001d014655 ID=Zm00001d014655_T001.RefGen_V4 annot-version=RefGen_V4' | D149: 0.1 | E149: 1.05 | F149: NA | G149: 0.2 | H149: -1.11 | I149: NA | J149: 0.3 | K149: 0.10 | L149: NA | M149: 0.2 | N149: -1.70 | O149: NA | P149: 0.3 | Q149: -0.66 | R149: NA
A150: Zm00001d018785_T001 | B150: '16.5.1.1.1.3' | C150: 'mercator4v7.0: component *(SERRATE) of DCL1-HYL1 miRNA biogenesis complex & original description: pacid=40163746 locus=Zm00001d018785 ID=Zm00001d018785_T001.RefGen_V4 annot-version=RefGen_V4' | D150: 0.1 | E150: -0.86 | F150: NA | G150: 0.0 | H150: NA | I150: NA | J150: 0.0 | K150: NA | L150: NA | M150: 0.0 | N150: NA | O150: NA | P150: 0.0 | Q150: NA | R150: NA
A151: Zm00001d022054_T001 | B151: '16.5.1.1.1.3' | C151: 'mercator4v7.0: component *(SERRATE) of DCL1-HYL1 miRNA biogenesis complex & original description: pacid=40164665 locus=Zm00001d022054 ID=Zm00001d022054_T001.RefGen_V4 annot-version=RefGen_V4' | D151: 0.0 | E151: NA | F151: NA | G151: 0.0 | H151: NA | I151: NA | J151: 0.0 | K151: NA | L151: NA | M151: 0.0 | N151: NA | O151: NA | P151: 0.0 | Q151: NA | R151: NA
A152: Zm00001d006696_T001 | B152: '16.5.1.1.1.3' | C152: 'mercator4v7.0: component *(SERRATE) of DCL1-HYL1 miRNA biogenesis complex & original description: pacid=40183951 locus=Zm00001d006696 ID=Zm00001d006696_T001.RefGen_V4 annot-version=RefGen_V4' | D152: 0.0 | E152: NA | F152: NA | G152: 0.0 | H152: NA | I152: NA | J152: 0.0 | K152: NA | L152: NA | M152: 0.0 | N152: NA | O152: NA | P152: 0.0 | Q152: NA | R152: NA
A153: Zm00001d046814_T001 | B153: '16.5.1.1.1.3' | C153: 'mercator4v7.0: component *(SERRATE) of DCL1-HYL1 miRNA biogenesis complex & original description: pacid=40253405 locus=Zm00001d046814 ID=Zm00001d046814_T001.RefGen_V4 annot-version=RefGen_V4' | D153: 0.0 | E153: NA | F153: NA | G153: 0.0 | H153: NA | I153: NA | J153: 0.0 | K153: NA | L153: NA | M153: 0.0 | N153: NA | O153: NA | P153: 0.0 | Q153: NA | R153: NA
A154: Zm00001d046965_T001 | B154: '16.5.1.1.1.3' | C154: 'mercator4v7.0: component *(SERRATE) of DCL1-HYL1 miRNA biogenesis complex & original description: pacid=40248805 locus=Zm00001d046965 ID=Zm00001d046965_T001.RefGen_V4 annot-version=RefGen_V4' | D154: 0.0 | E154: NA | F154: NA | G154: 0.0 | H154: NA | I154: NA | J154: 0.0 | K154: NA | L154: NA | M154: 0.0 | N154: NA | O154: NA | P154: 0.0 | Q154: NA | R154: NA
A155: Zm00001d045954_T004 | B155: '16.5.1.1.1.4' | C155: 'mercator4v7.0: component *(TOUGH) of DCL1-HYL1 miRNA biogenesis complex & original description: pacid=40252405 locus=Zm00001d045954 ID=Zm00001d045954_T004.RefGen_V4 annot-version=RefGen_V4' | D155: 0.3 | E155: 1.96 | F155: NA | G155: 0.1 | H155: -0.54 | I155: NA | J155: 0.3 | K155: 0.68 | L155: NA | M155: 0.1 | N155: -1.13 | O155: NA | P155: 0.1 | Q155: -1.05 | R155: NA
A156: Zm00001d027969_T006 | B156: '16.5.1.1.1.5' | C156: 'mercator4v7.0: scaffold factor *(CARP9) of HYL1-DCL1 association & original description: pacid=40217569 locus=Zm00001d027969 ID=Zm00001d027969_T006.RefGen_V4 annot-version=RefGen_V4' | D156: 0.6 | E156: -0.60 | F156: NA | G156: 0.0 | H156: NA | I156: NA | J156: 0.0 | K156: NA | L156: NA | M156: 0.0 | N156: NA | O156: NA | P156: 0.0 | Q156: NA | R156: NA
A157: Zm00001d048236_T004 | B157: '16.5.1.1.1.5' | C157: 'mercator4v7.0: scaffold factor *(CARP9) of HYL1-DCL1 association & original description: pacid=40252827 locus=Zm00001d048236 ID=Zm00001d048236_T004.RefGen_V4 annot-version=RefGen_V4' | D157: 0.2 | E157: -1.48 | F157: NA | G157: 0.1 | H157: 1.00 | I157: NA | J157: 0.0 | K157: NA | L157: NA | M157: 0.2 | N157: 1.28 | O157: NA | P157: 0.2 | Q157: 1.37 | R157: NA
A158: Zm00001d006346_T001 | B158: '16.5.1.1.1.5' | C158: 'mercator4v7.0: scaffold factor *(CARP9) of HYL1-DCL1 association & original description: pacid=40192926 locus=Zm00001d006346 ID=Zm00001d006346_T001.RefGen_V4 annot-version=RefGen_V4' | D158: 0.0 | E158: NA | F158: NA | G158: 0.0 | H158: NA | I158: NA | J158: 0.0 | K158: NA | L158: NA | M158: 0.0 | N158: NA | O158: NA | P158: 0.0 | Q158: NA | R158: NA
A159: Zm00001d015824_T001 | B159: '16.5.1.1.1.5' | C159: 'mercator4v7.0: scaffold factor *(CARP9) of HYL1-DCL1 association & original description: pacid=40287926 locus=Zm00001d015824 ID=Zm00001d015824_T001.RefGen_V4 annot-version=RefGen_V4' | D159: 0.0 | E159: NA | F159: NA | G159: 0.0 | H159: NA | I159: NA | J159: 0.0 | K159: NA | L159: NA | M159: 0.0 | N159: NA | O159: NA | P159: 0.0 | Q159: NA | R159: NA
A160: Zm00001d025589_T001 | B160: 14.5.1.1.8' /DCL1 | C160: RNA homeostasis.mRNA silencing.miRNA pathway.miRNA biogenesis.DCL1-HYL1 miRNA biogenesis complex.scaffold factor *(CARP9) of HYL1-DCL1 association'/ 'mercator4v7.0: bZIP class-H transcription factor & original description: pacid=40181017 locus=Zm00001d025589 ID=Zm00001d025589_T001.RefGen_V4 annot-version=RefGen_V4' | D160: 0.2 | E160: -0.86 | F160: NA | G160: 0.0 | H160: NA | I160: NA | J160: 0.0 | K160: NA | L160: NA | M160: 0.0 | N160: NA | O160: NA | P160: 0.1 | Q160: 0.49 | R160: NA
A161: Zm00001d024861_T007 | B161: '16.5.1.1.2' | C161: 'mercator4v7.0: regulatory protein *(DRB2) of miRNA biogenesis pathway & original description: pacid=40181003 locus=Zm00001d024861 ID=Zm00001d024861_T007.RefGen_V4 annot-version=RefGen_V4' | D161: 1.5 | E161: -1.95 | F161: NA | G161: 0.5 | H161: -0.67 | I161: NA | J161: 0.3 | K161: -1.36 | L161: NA | M161: 0.7 | N161: 0.27 | O161: NA | P161: 0.6 | Q161: -0.24 | R161: NA
A162: Zm00001d006103_T001 | B162: '16.5.1.1.2' | C162: 'mercator4v7.0: regulatory protein *(DRB2) of miRNA biogenesis pathway & original description: pacid=40187762 locus=Zm00001d006103 ID=Zm00001d006103_T001.RefGen_V4 annot-version=RefGen_V4' | D162: 1.0 | E162: -2.21 | F162: NA | G162: 0.5 | H162: -0.65 | I162: NA | J162: 0.4 | K162: -0.41 | L162: NA | M162: 0.6 | N162: 0.09 | O162: NA | P162: 0.7 | Q162: 0.25 | R162: NA
A163: Zm00001d032679_T001 | B163: '16.5.1.1.2' | C163: 'mercator4v7.0: regulatory protein *(DRB2) of miRNA biogenesis pathway & original description: pacid=40203419 locus=Zm00001d032679 ID=Zm00001d032679_T001.RefGen_V4 annot-version=RefGen_V4' | D163: 1.0 | E163: 0.45 | F163: NA | G163: 0.0 | H163: NA | I163: NA | J163: 0.0 | K163: NA | L163: NA | M163: 0.0 | N163: NA | O163: NA | P163: 0.0 | Q163: NA | R163: NA
A164: Zm00001d014011_T001 | B164: '16.5.1.1.2' | C164: 'mercator4v7.0: regulatory protein *(DRB2) of miRNA biogenesis pathway & original description: pacid=40284851 locus=Zm00001d014011 ID=Zm00001d014011_T001.RefGen_V4 annot-version=RefGen_V4' | D164: 0.0 | E164: NA | F164: NA | G164: 0.1 | H164: 1.00 | I164: NA | J164: 0.0 | K164: NA | L164: NA | M164: 0.0 | N164: NA | O164: NA | P164: 0.0 | Q164: NA | R164: NA
A165: Zm00001d013453_T001 | B165: '16.5.1.1.3' | C165: 'mercator4v7.0: regulatory RNA helicase *(SMA1) involved in miRNA biogenesis & original description: pacid=40289133 locus=Zm00001d013453 ID=Zm00001d013453_T001.RefGen_V4 annot-version=RefGen_V4' | D165: 0.4 | E165: -0.62 | F165: NA | G165: 0.0 | H165: NA | I165: NA | J165: 0.1 | K165: 1.26 | L165: NA | M165: 0.0 | N165: NA | O165: NA | P165: 0.0 | Q165: NA | R165: NA
A166: Zm00001d033704_T007 | B166: '16.5.1.1.3' | C166: 'mercator4v7.0: regulatory RNA helicase *(SMA1) involved in miRNA biogenesis & original description: pacid=40218086 locus=Zm00001d033704 ID=Zm00001d033704_T007.RefGen_V4 annot-version=RefGen_V4' | D166: 0.3 | E166: 1.09 | F166: NA | G166: 0.0 | H166: NA | I166: NA | J166: 0.0 | K166: NA | L166: NA | M166: 0.0 | N166: NA | O166: NA | P166: 0.0 | Q166: NA | R166: NA
A167: Zm00001d000431_T001 | B167: '16.5.1.1.4' | C167: 'mercator4v7.0: regulatory RNA helicase *(RH27/RH51) of miRNA biogenesis pathway & original description: pacid=40183237 locus=Zm00001d000431 ID=Zm00001d000431_T001.RefGen_V4 annot-version=RefGen_V4' | D167: 0.0 | E167: NA | F167: NA | G167: 0.0 | H167: NA | I167: NA | J167: 0.0 | K167: NA | L167: NA | M167: 0.0 | N167: NA | O167: NA | P167: 0.0 | Q167: NA | R167: NA
A168: Zm00001d018863_T003 | B168: '16.5.1.1.5' | C168: 'mercator4v7.0: miRNA/siRNA methyltransferase *(HEN1) & original description: pacid=40166334 locus=Zm00001d018863 ID=Zm00001d018863_T003.RefGen_V4 annot-version=RefGen_V4' | D168: 0.6 | E168: -2.61 | F168: NA | G168: 0.0 | H168: NA | I168: NA | J168: 0.0 | K168: NA | L168: NA | M168: 0.1 | N168: 0.41 | O168: NA | P168: 0.1 | Q168: 0.49 | R168: NA
A169: Zm00001d044397_T001 | B169: '16.5.1.1.5' | C169: 'mercator4v7.0: miRNA/siRNA methyltransferase *(HEN1) & original description: pacid=40238693 locus=Zm00001d044397 ID=Zm00001d044397_T001.RefGen_V4 annot-version=RefGen_V4' | D169: 0.2 | E169: 1.09 | F169: NA | G169: 0.0 | H169: NA | I169: NA | J169: 0.0 | K169: NA | L169: NA | M169: 0.0 | N169: NA | O169: NA | P169: 0.0 | Q169: NA | R169: NA
A170: Zm00001d021133_T001 | B170: '16.5.1.1.5' | C170: 'mercator4v7.0: miRNA/siRNA methyltransferase *(HEN1) & original description: pacid=40169524 locus=Zm00001d021133 ID=Zm00001d021133_T001.RefGen_V4 annot-version=RefGen_V4' | D170: 0.0 | E170: NA | F170: NA | G170: 0.0 | H170: NA | I170: NA | J170: 0.0 | K170: NA | L170: NA | M170: 0.0 | N170: NA | O170: NA | P170: 0.0 | Q170: NA | R170: NA
A171: Zm00001d011219_T001 | B171: '16.5.1.1.5' | C171: 'mercator4v7.0: miRNA/siRNA methyltransferase *(HEN1) & original description: pacid=40258306 locus=Zm00001d011219 ID=Zm00001d011219_T001.RefGen_V4 annot-version=RefGen_V4' | D171: 0.0 | E171: NA | F171: NA | G171: 0.0 | H171: NA | I171: NA | J171: 0.0 | K171: NA | L171: NA | M171: 0.0 | N171: NA | O171: NA | P171: 0.0 | Q171: NA | R171: NA
A172: Zm00001d044689_T002 | B172: '16.5.1.1.6' | C172: 'mercator4v7.0: miRNA cytidylyltransferase *(NTP2/6/7/8) & original description: pacid=40232891 locus=Zm00001d044689 ID=Zm00001d044689_T002.RefGen_V4 annot-version=RefGen_V4' | D172: 1.7 | E172: 1.38 | F172: NA | G172: 0.2 | H172: -1.11 | I172: NA | J172: 0.2 | K172: -0.86 | L172: NA | M172: 0.2 | N172: -1.70 | O172: NA | P172: 0.2 | Q172: -1.62 | R172: NA
A173: URS0002421E84_4577 | B173: '16.5.1.1.6' | C173: 'mercator4v7.0: miRNA cytidylyltransferase *(NTP2/6/7/8) & original description: Zea mays (Z. mays) long non-coding RNA (ZMAY_LNC003808)' | D173: 0.6 | E173: 2.72 | F173: NA | G173: 0.0 | H173: NA | I173: NA | J173: 0.1 | K173: 1.26 | L173: NA | M173: 0.1 | N173: 0.41 | O173: NA | P173: 0.2 | Q173: 1.27 | R173: NA
A174: Zm00001d028022_T001 | B174: '16.5.1.1.6' | C174: 'mercator4v7.0: miRNA cytidylyltransferase *(NTP2/6/7/8) & original description: pacid=40211816 locus=Zm00001d028022 ID=Zm00001d028022_T001.RefGen_V4 annot-version=RefGen_V4' | D174: 0.3 | E174: -1.85 | F174: NA | G174: 0.3 | H174: -0.15 | I174: NA | J174: 0.2 | K174: -0.86 | L174: NA | M174: 0.2 | N174: -1.70 | O174: NA | P174: 0.2 | Q174: -1.62 | R174: NA
A175: Zm00001d007169_T001 | B175: '16.5.1.1.6' | C175: 'mercator4v7.0: miRNA cytidylyltransferase *(NTP2/6/7/8) & original description: pacid=40189509 locus=Zm00001d007169 ID=Zm00001d007169_T001.RefGen_V4 annot-version=RefGen_V4' | D175: 0.3 | E175: 2.08 | F175: NA | G175: 0.0 | H175: NA | I175: NA | J175: 0.0 | K175: NA | L175: NA | M175: 0.0 | N175: NA | O175: NA | P175: 0.0 | Q175: NA | R175: NA
A176: Zm00001d052344_T003 | B176: '16.5.1.1.6' | C176: 'mercator4v7.0: miRNA cytidylyltransferase *(NTP2/6/7/8) & original description: pacid=40276866 locus=Zm00001d052344 ID=Zm00001d052344_T003.RefGen_V4 annot-version=RefGen_V4' | D176: 0.3 | E176: -1.72 | F176: NA | G176: 0.0 | H176: NA | I176: NA | J176: 0.0 | K176: NA | L176: NA | M176: 0.1 | N176: 0.41 | O176: NA | P176: 0.0 | Q176: NA | R176: NA
A177: Zm00001d052346_T002 | B177: '16.5.1.1.6' | C177: 'mercator4v7.0: miRNA cytidylyltransferase *(NTP2/6/7/8) & original description: pacid=40273493 locus=Zm00001d052346 ID=Zm00001d052346_T002.RefGen_V4 annot-version=RefGen_V4' | D177: 0.3 | E177: 1.09 | F177: NA | G177: 0.0 | H177: NA | I177: NA | J177: 0.0 | K177: NA | L177: NA | M177: 0.0 | N177: NA | O177: NA | P177: 0.0 | Q177: NA | R177: NA
A178: Zm00001d022444_T001 | B178: '16.5.1.1.6' | C178: 'mercator4v7.0: miRNA cytidylyltransferase *(NTP2/6/7/8) & original description: pacid=40170051 locus=Zm00001d022444 ID=Zm00001d022444_T001.RefGen_V4 annot-version=RefGen_V4' | D178: 0.0 | E178: NA | F178: NA | G178: 0.0 | H178: NA | I178: NA | J178: 0.0 | K178: NA | L178: NA | M178: 0.0 | N178: NA | O178: NA | P178: 0.0 | Q178: NA | R178: NA
A179: Zm00001d004460_T004 | B179: '16.5.1.1.7' | C179: 'mercator4v7.0: regulatory protein *(AAR2) of miRNA biogenesis & original description: pacid=40187903 locus=Zm00001d004460 ID=Zm00001d004460_T004.RefGen_V4 annot-version=RefGen_V4' | D179: 0.0 | E179: NA | F179: NA | G179: 0.0 | H179: NA | I179: NA | J179: 0.0 | K179: NA | L179: NA | M179: 0.0 | N179: NA | O179: NA | P179: 0.0 | Q179: NA | R179: NA
A180: Zm00001d008951_T001 | B180: '16.5.1.1.8' | C180: 'mercator4v7.0: regulatory protein *(CWC15) of miRNA biogenesis & original description: pacid=40262071 locus=Zm00001d008951 ID=Zm00001d008951_T001.RefGen_V4 annot-version=RefGen_V4' | D180: 0.9 | E180: -2.12 | F180: NA | G180: 0.0 | H180: NA | I180: NA | J180: 0.0 | K180: NA | L180: NA | M180: 0.0 | N180: NA | O180: NA | P180: 0.0 | Q180: NA | R180: NA
A181: Zm00001d043917_T001 | B181: '16.5.1.1.8' | C181: 'mercator4v7.0: regulatory protein *(CWC15) of miRNA biogenesis & original description: pacid=40230752 locus=Zm00001d043917 ID=Zm00001d043917_T001.RefGen_V4 annot-version=RefGen_V4' | D181: 0.0 | E181: NA | F181: NA | G181: 0.0 | H181: NA | I181: NA | J181: 0.0 | K181: NA | L181: NA | M181: 0.0 | N181: NA | O181: NA | P181: 0.0 | Q181: NA | R181: NA
A182: Zm00001d014875_T001 | B182: '16.5.1.2.1' | C182: 'mercator4v7.0: miRNA recruiting factor *(AGO) of RNA-induced silencing complex (RISC) assembly & original description: pacid=40279800 locus=Zm00001d014875 ID=Zm00001d014875_T001.RefGen_V4 annot-version=RefGen_V4' | D182: 0.5 | E182: 2.46 | F182: NA | G182: 0.2 | H182: -1.11 | I182: NA | J182: 0.2 | K182: -0.86 | L182: NA | M182: 0.2 | N182: -1.70 | O182: NA | P182: 0.2 | Q182: -1.62 | R182: NA
A183: Zm00001d026111_T014 | B183: '16.5.1.2.1' | C183: 'mercator4v7.0: miRNA recruiting factor *(AGO) of RNA-induced silencing complex (RISC) assembly & original description: pacid=40177114 locus=Zm00001d026111 ID=Zm00001d026111_T014.RefGen_V4 annot-version=RefGen_V4' | D183: 0.1 | E183: 1.05 | F183: NA | G183: 0.0 | H183: NA | I183: NA | J183: 0.0 | K183: NA | L183: NA | M183: 0.1 | N183: 0.41 | O183: NA | P183: 0.1 | Q183: 0.49 | R183: NA
A184: Zm00001d036917_T009 | B184: '16.5.1.2.1' | C184: 'mercator4v7.0: miRNA recruiting factor *(AGO) of RNA-induced silencing complex (RISC) assembly & original description: pacid=40223121 locus=Zm00001d036917 ID=Zm00001d036917_T009.RefGen_V4 annot-version=RefGen_V4' | D184: 0.0 | E184: NA | F184: NA | G184: 0.0 | H184: NA | I184: NA | J184: 0.0 | K184: NA | L184: NA | M184: 0.0 | N184: NA | O184: NA | P184: 0.0 | Q184: NA | R184: NA
A185: Zm00001d037189_T004 | B185: '16.5.1.2.2' | C185: 'mercator4v7.0: AGO1-regulatory protein *(SQN) of RNA-induced silencing complex (RISC) assembly & original description: pacid=40220385 locus=Zm00001d037189 ID=Zm00001d037189_T004.RefGen_V4 annot-version=RefGen_V4' | D185: 0.1 | E185: -0.86 | F185: NA | G185: 0.0 | H185: NA | I185: NA | J185: 0.0 | K185: NA | L185: NA | M185: 0.4 | N185: 2.40 | O185: NA | P185: 0.2 | Q185: 1.37 | R185: NA
A186: Zm00001d026696_T005 | B186: '16.5.1.2.3' | C186: 'mercator4v7.0: assembly factor *(TRN1) of RNA-induced silencing complex (RISC) assembly & original description: pacid=40182704 locus=Zm00001d026696 ID=Zm00001d026696_T005.RefGen_V4 annot-version=RefGen_V4' | D186: 1.9 | E186: -0.83 | F186: NA | G186: 0.2 | H186: -1.11 | I186: NA | J186: 0.3 | K186: 0.10 | L186: NA | M186: 0.9 | N186: 2.02 | O186: NA | P186: 0.4 | Q186: 0.21 | R186: NA
A187: Zm00001d002936_T010 | B187: '16.5.1.2.3' | C187: 'mercator4v7.0: assembly factor *(TRN1) of RNA-induced silencing complex (RISC) assembly & original description: pacid=40191682 locus=Zm00001d002936 ID=Zm00001d002936_T010.RefGen_V4 annot-version=RefGen_V4' | D187: 1.2 | E187: -0.57 | F187: NA | G187: 0.0 | H187: NA | I187: NA | J187: 0.0 | K187: NA | L187: NA | M187: 0.1 | N187: 0.41 | O187: NA | P187: 0.1 | Q187: 0.49 | R187: NA
A188: Zm00001d016479_T001 | B188: '16.5.1.2.4' | C188: 'mercator4v7.0: assembly factor *(SAD2/EMA) of RNA-induced silencing complex (RISC) assembly & original description: pacid=40291708 locus=Zm00001d016479 ID=Zm00001d016479_T001.RefGen_V4 annot-version=RefGen_V4' | D188: 0.5 | E188: -2.50 | F188: NA | G188: 0.4 | H188: -0.15 | I188: NA | J188: 0.3 | K188: -0.86 | L188: NA | M188: 0.3 | N188: -1.70 | O188: NA | P188: 0.4 | Q188: -0.66 | R188: NA
A189: Zm00001d050526_T008 | B189: '16.5.1.2.4' | C189: 'mercator4v7.0: assembly factor *(SAD2/EMA) of RNA-induced silencing complex (RISC) assembly & original description: pacid=40275587 locus=Zm00001d050526 ID=Zm00001d050526_T008.RefGen_V4 annot-version=RefGen_V4' | D189: 0.5 | E189: -2.31 | F189: NA | G189: 0.1 | H189: -0.54 | I189: NA | J189: 0.2 | K189: 0.68 | L189: NA | M189: 0.1 | N189: -1.13 | O189: NA | P189: 0.3 | Q189: 0.88 | R189: NA
A190: Zm00001d002465_T001 | B190: '16.5.1.2.4' | C190: 'mercator4v7.0: assembly factor *(SAD2/EMA) of RNA-induced silencing complex (RISC) assembly & original description: pacid=40184512 locus=Zm00001d002465 ID=Zm00001d002465_T001.RefGen_V4 annot-version=RefGen_V4' | D190: 0.0 | E190: NA | F190: NA | G190: 0.0 | H190: NA | I190: NA | J190: 0.0 | K190: NA | L190: NA | M190: 0.1 | N190: 0.41 | O190: NA | P190: 0.0 | Q190: NA | R190: NA
A191: Zm00001d027467_T001 | B191: '16.5.1.2.4' | C191: 'mercator4v7.0: assembly factor *(SAD2/EMA) of RNA-induced silencing complex (RISC) assembly & original description: pacid=40201357 locus=Zm00001d027467 ID=Zm00001d027467_T001.RefGen_V4 annot-version=RefGen_V4' | D191: 0.0 | E191: NA | F191: NA | G191: 0.0 | H191: NA | I191: NA | J191: 0.0 | K191: NA | L191: NA | M191: 0.0 | N191: NA | O191: NA | P191: 0.1 | Q191: 0.49 | R191: NA
A192: Zm00001d037824_T001 | B192: '16.5.1.2.4' | C192: 'mercator4v7.0: assembly factor *(SAD2/EMA) of RNA-induced silencing complex (RISC) assembly & original description: pacid=40229399 locus=Zm00001d037824 ID=Zm00001d037824_T001.RefGen_V4 annot-version=RefGen_V4' | D192: 0.0 | E192: NA | F192: NA | G192: 0.0 | H192: NA | I192: NA | J192: 0.0 | K192: NA | L192: NA | M192: 0.0 | N192: NA | O192: NA | P192: 0.0 | Q192: NA | R192: NA
A193: Zm00001d018111_T002 | B193: '16.5.1.2.5' | C193: 'mercator4v7.0: regulatory protein *(FBW2) of RNA-induced silencing complex (RISC) assembly & original description: pacid=40283376 locus=Zm00001d018111 ID=Zm00001d018111_T002.RefGen_V4 annot-version=RefGen_V4' | D193: 0.8 | E193: 1.94 | F193: NA | G193: 1.6 | H193: -2.78 | I193: NA | J193: 1.7 | K193: -1.57 | L193: NA | M193: 1.9 | N193: -2.54 | O193: 0.3039311995 | P193: 2.0 | Q193: -1.78 | R193: NA
A194: Zm00001d052200_T001 | B194: '16.5.1.2.5' | C194: 'mercator4v7.0: regulatory protein *(FBW2) of RNA-induced silencing complex (RISC) assembly & original description: pacid=40271589 locus=Zm00001d052200 ID=Zm00001d052200_T001.RefGen_V4 annot-version=RefGen_V4' | D194: 0.7 | E194: -0.52 | F194: NA | G194: 0.0 | H194: NA | I194: NA | J194: 0.0 | K194: NA | L194: NA | M194: 0.0 | N194: NA | O194: NA | P194: 0.0 | Q194: NA | R194: NA
A195: Zm00001d047028_T001 | B195: '16.5.1.2.6' | C195: 'mercator4v7.0: regulatory protein *(SUO) of miRNA biogenesis pathway & original description: pacid=40245157 locus=Zm00001d047028 ID=Zm00001d047028_T001.RefGen_V4 annot-version=RefGen_V4' | D195: 0.8 | E195: -0.08 | F195: NA | G195: 0.3 | H195: -1.11 | I195: NA | J195: 0.5 | K195: 0.10 | L195: NA | M195: 0.7 | N195: 1.00 | O195: NA | P195: 0.3 | Q195: -1.62 | R195: NA
A196: Zm00001d047030_T006 | B196: '16.5.1.2.6' | C196: 'mercator4v7.0: regulatory protein *(SUO) of miRNA biogenesis pathway & original description: pacid=40247171 locus=Zm00001d047030 ID=Zm00001d047030_T006.RefGen_V4 annot-version=RefGen_V4' | D196: 0.7 | E196: -1.26 | F196: NA | G196: 0.4 | H196: 2.45 | I196: NA | J196: 0.0 | K196: NA | L196: NA | M196: 0.2 | N196: 1.28 | O196: NA | P196: 0.1 | Q196: 0.49 | R196: NA
A197: Zm00001d050708_T002 | B197: '16.5.1.2.7' | C197: 'mercator4v7.0: regulatory substrate adaptor *(RBV) of CUL4-based E3 ubiquitin ligase complex & original description: pacid=40270038 locus=Zm00001d050708 ID=Zm00001d050708_T002.RefGen_V4 annot-version=RefGen_V4' | D197: 0.4 | E197: -1.99 | F197: NA | G197: 0.3 | H197: -1.11 | I197: NA | J197: 0.3 | K197: -0.86 | L197: NA | M197: 0.3 | N197: -1.70 | O197: NA | P197: 0.3 | Q197: -1.62 | R197: NA
A198: Zm00001d042885_T006 | B198: '16.5.1.3.1' | C198: 'mercator4v7.0: miRNA uridylyltransferase *(HESO1) & original description: pacid=40234247 locus=Zm00001d042885 ID=Zm00001d042885_T006.RefGen_V4 annot-version=RefGen_V4' | D198: 0.7 | E198: -0.74 | F198: NA | G198: 0.1 | H198: 1.00 | I198: NA | J198: 0.0 | K198: NA | L198: NA | M198: 0.2 | N198: 1.20 | O198: NA | P198: 0.0 | Q198: NA | R198: NA
A199: Zm00001d015059_T001 | B199: '16.5.1.3.2' | C199: 'mercator4v7.0: miRNA uridylyltransferase *(URT1) & original description: pacid=40285105 locus=Zm00001d015059 ID=Zm00001d015059_T001.RefGen_V4 annot-version=RefGen_V4' | D199: 0.4 | E199: -0.62 | F199: NA | G199: 0.2 | H199: 0.43 | I199: NA | J199: 0.1 | K199: -0.28 | L199: NA | M199: 0.1 | N199: -1.13 | O199: NA | P199: 0.2 | Q199: -0.08 | R199: NA
A200: Zm00001d014321_T007 | B200: '16.5.1.3.2' | C200: 'mercator4v7.0: miRNA uridylyltransferase *(URT1) & original description: pacid=40291134 locus=Zm00001d014321 ID=Zm00001d014321_T007.RefGen_V4 annot-version=RefGen_V4' | D200: 1.4 | E200: 0.06 | F200: NA | G200: 0.1 | H200: -0.54 | I200: NA | J200: 0.1 | K200: -0.28 | L200: NA | M200: 0.2 | N200: -0.17 | O200: NA | P200: 0.2 | Q200: -0.08 | R200: NA
A201: Zm00001d053358_T001 | B201: '16.5.1.3.3' | C201: 'mercator4v7.0: regulatory protein *(HWS) of miRNA degradation & original description: pacid=40270146 locus=Zm00001d053358 ID=Zm00001d053358_T001.RefGen_V4 annot-version=RefGen_V4' | D201: 0.4 | E201: 2.04 | F201: NA | G201: 0.0 | H201: NA | I201: NA | J201: 0.0 | K201: NA | L201: NA | M201: 0.0 | N201: NA | O201: NA | P201: 0.0 | Q201: NA | R201: NA
... 4298 more rows

Sheet Table S3
A1: Table S3: Sequence of the primers used for Indel walking and genotyping alb-605F mutant alleles.
D3: Forward Primer (5' to 3') | E3: Reverse Primer (5' to 3') | F3: Tm (°C) | G3: predicted amplicon sizes | H3: Position on Chr. 9 | I3: Ref | J3: Alt
C4: Primer 1 (P1) | D4: AGAGGCGGGAGACTCATAGC | E4: GCGCCGTTATCGTCATAATC | G4: 339 bp WT; 430 bp alb | H4: 67510 | I4: A | J4: ACCGTGTACCATGGCGTTATAATTCAGACTGCCACGCCAGCATGGTATTGACAACAATTTCTACGATATTGCATCCTTTACATTATCTGCT
C5: Primer 2 (P2) | D5: TATACAATCCACCGCGCTTT | E5: ATGAAGCGAGCAAAATGAGC | G5: 295 bpWT; 361 bp alb | H5: 932490 | I5: T | J5: TGAATAATGCAAAATTGAACTATCCAGCGACAACTAAAAAGAAACGGAGGGAGTAGCTAGCTAGCC
C6: Primer 3 (P3) | D6: GTAGAACCCGCTACCCAGGA | E6: CCGAACCAAGTCTCAGGTTG | G6: 322 bp for WT, 880 bp observed for alb; Sanger sequencing of alb amplicon confirmed the GATK called alt 93 nt insertion maps to left border of a 558 bp TE insertion | H6: 1016218 | I6: G | J6: GGGCCCGTCGGCAAAGCTCCAGCTCCTGCTTCTTCATTCTGATCCTCGTGATGAGCTGATCCTCCTGATTCTCCTAAAAAATCAGAATCATTT
C7: Primer 4 (P4) | D7: TAGACTCCACCGGACGACAG | E7: GCCGGACAGGTAAAGGAAGA | G7: 364 bp WT; 394 bp alb | H7: 1127089 | I7: T | J7: TTGTTTCCCCGTGAGGGCACTCCTAAGTCC
C8: Gene Specific Forward for UFMu-1041912 genotyping | D8: CCCGAGAGCAAGCGAACCAA | F8: 71.7
C9: Gene Specific reverse, for UFMu-1041912 sequencing | E9: GCCAGACGGATGAGGAGGAA | F9: 68.8
C10: TIR8 UFMu primer | D10: CGCCTCCATTTCGTCGAATCCSCTT | F10: 74.1
C11: Gene Specific Forward for Bmu-98370.7 sequencing | D11: GAACCCGCTACCCAGGAATT | F11: 66
C12: Gene Specific Forward for Bmu-98370.7 genotyping complementation test | D12: CGTCGGCGTTTCCTTGAATT | F12: 68.1 | G12: 252 bp
C13: Barkan Mu primer | D13: GCCTCCATTTCGTCGAATCCC | F13: 70.7

Sheet Table S4
A1: Table S4: List of Maize Genetics Co-op and Mutator reverse genetic stock lines tested for alb-605F complementation.
A4: maize GDB lookup | B4: S. No. | C4: CR_Name 2021 field plot | D4: Line name | E4: Mutant phenotype observed in the parent stock screen | F4: Mutant phenotype reported of the parent stock | G4: Phenotype observed of the progeny obtained from 2022 field crosses with albino-605F heterozygote
A5: https://www.maizegdb.org/gene_center/gene/74729 | B5: 1 | C5: 15-A | D5: 3510C w*-N627B/(W23/L317) | E5: Albino seedling | F5: Albino seedling | G5: Albino seedling
A6: https://www.maizegdb.org/gene_center/gene/74658 | B6: 2 | C6: 15-B | D6: 3511I w*- N1830 | E6: No segregation | F6: Albino seedling | G6: No segregation
A7: https://www.maizegdb.org/gene_center/gene/74665 | B7: 3 | C7: 16-A | D7: 3511O w*-N1854/(M14/W23) | E7: Albino seedling | F7: Albino seedling | G7: No segregation
A8: https://www.maizegdb.org/gene_center/gene/74667 | B8: 4 | C8: 16-B | D8: 3511P w*-N1865 | E8: Albino seedling | F8: Albino seedling | G8: No segregation
A9: https://www.maizegdb.org/gene_center/gene/74803 | B9: 5 | C9: 17-A | D9: 4208E wl*-N1803/(W23/L317) | E9: No segregation | F9: White luteus seedling | G9: No segregation
A10: https://www.maizegdb.org/gene_center/gene/74810 | B10: 6 | C10: 17-B | D10: 4208K wl*-N1857/(W23/L317) | E10: Yellowish/greenish white seedling | F10: White luteus seedling/greenish yellowish white mutant seedling | G10: IOJAP/Variagated seedling
A11: https://www.maizegdb.org/gene_center/gene/74569 | B11: 7 | C11: 18-A | D11: 4508D v*-N829A(W23/L317) | E11: Virescent seedling | F11: Virescent seedling, with green at tips | G11: No segregation
A12: https://www.maizegdb.org/gene_center/gene/74444 | B12: 8 | C12: 18-B | D12: 4511D w*-N1893(B73Ht1/Mo17) | E12: Albino seedling | F12: Albino seedling/lethal | G12: Albino seedling
A13: https://www.maizegdb.org/data_center/locus/12575 | B13: 9 | C13: 19-A | D13: 920N pyd1c1-m2 | E13: Albino seedling | F13: pale yellow deficiency; White luteus seedling | G13: No segregation
A14: http://teosinte.uoregon.edu/mu-illumina/# | B14: 11 | C14: 20-A | D14: Bmu-illumina_89370.7 | E14: Two virescent; 2 albino; supporting evidence for novel allele of candidate causal mutation | F14: mistakenly mapped to exon3; see Maize Genome Database refgen_v4 annotation | G14: segregated ~3:1 chlorotic from 2024 cross
A15: https://www.maizegdb.org/uniformmu | B15: 12 | C15: 20-B | D15: UFmu-04588; locus Ufmu_1041912 | E15: No segregation | F15: NA | G15: No segregation
A16: https://www.maizegdb.org/uniformmu | B16: 13 | D16: BonnMu0078882 | E16: not tested; Mu reported to map upstream of transcript
A17: https://www.maizegdb.org/uniformmu | B17: 14 | D17: BonnMu0033912 | E17: not tested; Mu reported to map upstream of transcript

Sheet Table S5
A1: Table S5: List of all the SNPs/Indels for candidate causal alb-605F genes identified by SnpEff software within the fine mapped 10 Mbp interval on short arm of Chr. 9.
A2: Chr | B2: Position | C2: Ref allele | D2: Alt allele | E2: Albino | F2: Albino ref allele reads | G2: Albino alt allele reads | H2: WT hybrid cousin | I2: WT ref allele | J2: WT alt allele | K2: Gene id
A3: 9 | B3: 483572 | C3: G | D3: A | E3: Homozygous alt | F3: 3 | G3: 58 | H3: Homozygous ref | I3: 71 | J3: 0 | K3: Zm00001d044726
A4: 9 | B4: 483808 | C4: G | D4: C | E4: Homozygous alt | F4: 3 | G4: 72 | H4: Homozygous ref | I4: 71 | J4: 0 | K4: Zm00001d044726
A5: 9 | B5: 483835 | C5: T | D5: C | E5: Homozygous alt | F5: 3 | G5: 79 | H5: Homozygous ref | I5: 71 | J5: 0 | K5: Zm00001d044726
A6: 9 | B6: 484006 | C6: C | D6: T | E6: Homozygous alt | F6: 6 | G6: 68 | H6: Homozygous ref | I6: 71 | J6: 0 | K6: Zm00001d044726
A7: 9 | B7: 484036 | C7: C | D7: T | E7: Homozygous alt | F7: 7 | G7: 71 | H7: Homozygous ref | I7: 71 | J7: 0 | K7: Zm00001d044726
A8: 9 | B8: 484062 | C8: T | D8: C | E8: Homozygous alt | F8: 6 | G8: 67 | H8: Homozygous ref | I8: 71 | J8: 0 | K8: Zm00001d044726
A9: 9 | B9: 484664 | C9: A | D9: G | E9: Homozygous alt | F9: 1 | G9: 64 | H9: Homozygous ref | I9: 76 | J9: 0 | K9: Zm00001d044726
A10: 9 | B10: 484665 | C10: A | D10: C | E10: Homozygous alt | F10: 1 | G10: 63 | H10: Homozygous ref | I10: 76 | J10: 0 | K10: Zm00001d044726
A11: 9 | B11: 484741 | C11: C | D11: T | E11: Homozygous alt | F11: 3 | G11: 80 | H11: Homozygous ref | I11: 35 | J11: 0 | K11: Zm00001d044726
A12: 9 | B12: 485161 | C12: G | D12: A | E12: Homozygous alt | F12: 2 | G12: 49 | H12: Homozygous ref | I12: 35 | J12: 0 | K12: Zm00001d044726
A13: 9 | B13: 485222 | C13: T | D13: A | E13: Homozygous alt | F13: 2 | G13: 41 | H13: Homozygous ref | I13: 35 | J13: 0 | K13: Zm00001d044726
A14: 9 | B14: 485380 | C14: C | D14: G | E14: Homozygous alt | F14: 1 | G14: 36 | H14: Homozygous ref | I14: 34 | J14: 0 | K14: Zm00001d044726
A15: 9 | B15: 485393 | C15: C | D15: G | E15: Homozygous alt | F15: 1 | G15: 41 | H15: Homozygous ref | I15: 27 | J15: 0 | K15: Zm00001d044726
A16: 9 | B16: 485605 | C16: A | D16: G | E16: Homozygous alt | F16: 0 | G16: 4 | H16: Homozygous ref | I16: 1 | J16: 0 | K16: Zm00001d044726
A18: 9 | B18: 1016059 | C18: CAT | D18: C | E18: Homozygous alt | F18: 0 | G18: 24 | H18: Homozygous ref | I18: 54 | J18: 0 | K18: Zm00001d044745
A19: 9 | B19: 1016218 | C19: G | D19: GGGCCCGTCGGCAAAGCTCCAGCTCCTGCTTCTTCATTCTGATCCTCGTGATGAGCTGATCCTCCTGATTCTCCTAAAAAATCAGAATCATTT | E19: Homozygous alt | F19: 0 | G19: 20 | H19: Homozygous ref | I19: 54 | J19: 0 | K19: Zm00001d044745
A20: 9 | B20: 1016576 | C20: CACGAGG | D20: C | E20: Homozygous alt | F20: 0 | G20: 42 | H20: Homozygous ref | I20: 54 | J20: 0 | K20: Zm00001d044745
A21: 9 | B21: 1017343 | C21: AG | D21: A | E21: Homozygous alt | F21: 0 | G21: 57 | H21: Homozygous ref | I21: 54 | J21: 0 | K21: Zm00001d044745
A22: 9 | B22: 1018273 | C22: GTA | D22: G | E22: Homozygous alt | F22: 0 | G22: 76 | H22: Homozygous ref | I22: 82 | J22: 0 | K22: Zm00001d044745
A23: 9 | B23: 1018880 | C23: C | D23: T | E23: Homozygous alt | F23: 0 | G23: 3 | H23: Homozygous ref | I23: 22 | J23: 0 | K23: Zm00001d044745
A24: 9 | B24: 1018893 | C24: C | D24: T | E24: Homozygous alt | F24: 0 | G24: 3 | H24: Homozygous ref | I24: 16 | J24: 0 | K24: Zm00001d044745
A25: 9 | B25: 1018923 | C25: A | D25: G | E25: Homozygous alt | F25: 0 | G25: 3 | H25: Homozygous ref | I25: 6 | J25: 0 | K25: Zm00001d044745
A26: 9 | B26: 1020317 | C26: GGGA | D26: G | E26: Homozygous alt | F26: 0 | G26: 5 | H26: Homozygous ref | I26: 0 | J26: 0 | K26: Zm00001d044745
A27: 9 | B27: 1021005 | C27: GAC | D27: G | E27: Homozygous alt | F27: 0 | G27: 58 | H27: Homozygous ref | I27: 72 | J27: 0 | K27: Zm00001d044745
A28: 9 | B28: 1022758 | C28: GA | D28: G | E28: Homozygous alt | F28: 0 | G28: 78 | H28: Homozygous ref | I28: 79 | J28: 0 | K28: Zm00001d044745
A29: 9 | B29: 1023368 | C29: TG | D29: T | E29: Homozygous alt | F29: 0 | G29: 68 | H29: Homozygous ref | I29: 83 | J29: 0 | K29: Zm00001d044745
A30: 9 | B30: 1023437 | C30: GGC | D30: G | E30: Homozygous alt | F30: 0 | G30: 70 | H30: Homozygous ref | I30: 83 | J30: 0 | K30: Zm00001d044745
A31: 9 | B31: 1023442 | C31: ATT | D31: A | E31: Homozygous alt | F31: 0 | G31: 69 | H31: Homozygous ref | I31: 83 | J31: 0 | K31: Zm00001d044745
A32: 9 | B32: 1023447 | C32: GT | D32: G | E32: Homozygous alt | F32: 0 | G32: 71 | H32: Homozygous ref | I32: 83 | J32: 0 | K32: Zm00001d044745
A34: 9 | B34: 1121417 | C34: AT | D34: A | E34: Homozygous alt | F34: 1 | G34: 40 | H34: Homozygous ref | I34: 56 | J34: 0 | K34: Zm00001d044748
A35: 9 | B35: 1121854 | C35: CAGAA | D35: C | E35: Heterozygous | F35: 2 | G35: 12 | H35: Homozygous ref | I35: 56 | J35: 0 | K35: Zm00001d044748
A36: 9 | B36: 1122323 | C36: GA | D36: G | E36: Homozygous alt | F36: 1 | G36: 70 | H36: Homozygous ref | I36: 56 | J36: 0 | K36: Zm00001d044748
A37: 9 | B37: 1122707 | C37: TAAAAA | D37: T | E37: Homozygous alt | F37: 2 | G37: 59 | H37: Homozygous ref | I37: 74 | J37: 0 | K37: Zm00001d044748
A38: 9 | B38: 1123021 | C38: T | D38: TGA | E38: Homozygous alt | F38: 0 | G38: 75 | H38: Homozygous ref | I38: 76 | J38: 0 | K38: Zm00001d044748
A39: 9 | B39: 1123694 | C39: TGC | D39: T | E39: Homozygous alt | F39: 1 | G39: 96 | H39: Homozygous ref | I39: 76 | J39: 0 | K39: Zm00001d044748
A40: 9 | B40: 1124024 | C40: TA | D40: T | E40: Heterozygous | F40: 2 | G40: 55 | H40: Homozygous ref | I40: 82 | J40: 0 | K40: Zm00001d044748
A41: 9 | B41: 1124026 | C41: A | D41: T | E41: Heterozygous | F41: 2 | G41: 55 | H41: Homozygous ref | I41: 82 | J41: 0 | K41: Zm00001d044748
A42: 9 | B42: 1124131 | C42: C | D42: CAGGCGAAGCGAAGGGATCCTCTCCTCTGTTACCGTGTATTTGTTTATCTGGT | E42: Homozygous alt | F42: 1 | G42: 53 | H42: Homozygous ref | I42: 75 | J42: 0 | K42: Zm00001d044748
A43: 9 | B43: 1124220 | C43: T | D43: TTATAGGGCCTGTTTGGTTTACTACCTAACTTGCCACATTTTTCCTAACTTTTCTGCCTAAGGTTAGTTCTTCAATTCGGACGACTAACCTTAGGCAAAGTGTGGCACAGTTAGCCGCGAACCAAACAGGCC | E43: Homozygous alt | F43: 1 | G43: 44 | H43: Homozygous ref | I43: 75 | J43: 0 | K43: Zm00001d044748
A44: 9 | B44: 1124300 | C44: TCTTCTGCTCTACTGCAACA | D44: T | E44: Homozygous alt | F44: 0 | G44: 26 | H44: Homozygous ref | I44: 75 | J44: 0 | K44: Zm00001d044748
A45: 9 | B45: 1124441 | C45: T | D45: TGCACCCAAACATGAAACTAAGCGTGTGTTTGGTTAGCGGGTTGAACCTGTATCAACCTGTGTTTGGTTCAAAACGTTCGCGGGTTAGGTTGGTTCCGG | E45: Homozygous alt | F45: 0 | G45: 17 | H45: Homozygous ref | I45: 75 | J45: 0 | K45: Zm00001d044748
A47: 9 | B47: 1933837 | C47: TCTTCAA | D47: T | E47: Homozygous alt | F47: 1 | G47: 23 | H47: Homozygous ref | I47: 27 | J47: 0 | K47: Zm00001d044768
A49: 9 | B49: 1978011 | C49: A | D49: ACTG | E49: Homozygous alt | F49: 0 | G49: 11 | H49: Homozygous ref | I49: 7 | J49: 0 | K49: Zm00001d044771
A50: 9 | B50: 1978016 | C50: G | D50: GACCAAC | E50: Homozygous alt | F50: 0 | G50: 10 | H50: Homozygous ref | I50: 7 | J50: 0 | K50: Zm00001d044771
A51: 9 | B51: 1979099 | C51: TGGGTTTCGGGGAGAA | D51: T | E51: Homozygous alt | F51: 1 | G51: 21 | H51: Homozygous ref | I51: 30 | J51: 0 | K51: Zm00001d044771
A53: 9 | B53: 3987108 | C53: GCA | D53: G | E53: Homozygous alt | F53: 0 | G53: 17 | H53: Homozygous ref | I53: 6 | J53: 0 | K53: Zm00001d044824
A54: 9 | B54: 3987132 | C54: CG | D54: C | E54: Homozygous alt | F54: 0 | G54: 15 | H54: Homozygous ref | I54: 4 | J54: 0 | K54: Zm00001d044824
A55: 9 | B55: 3987270 | C55: ACT | D55: A | E55: Homozygous alt | F55: 0 | G55: 2 | H55: Homozygous ref | I55: 0 | J55: 0 | K55: Zm00001d044824
A57: 9 | B57: 4090127 | C57: G | D57: GTGATCAAGCTAAGCTAATAATAT | E57: Homozygous alt | F57: 0 | G57: 8 | H57: Homozygous ref | I57: 1 | J57: 0 | K57: Zm00001d044826
A58: 9 | B58: 4090852 | C58: GAGGC | D58: G | E58: Heterozygous | F58: 3 | G58: 29 | H58: Homozygous ref | I58: 33 | J58: 0 | K58: Zm00001d044826
A59: 9 | B59: 4091008 | C59: C | D59: CA | E59: Homozygous ref | F59: 0 | G59: 3 | H59: Heterozygous | I59: 43 | J59: 1 | K59: Zm00001d044826
A60: 9 | B60: 4091559 | C60: T | D60: A | E60: Homozygous alt | F60: 0 | G60: 7 | H60: Homozygous ref | I60: 15 | J60: 0 | K60: Zm00001d044826
A61: 9 | B61: 4091563 | C61: C | D61: CA | E61: Homozygous alt | F61: 0 | G61: 7 | H61: Homozygous ref | I61: 15 | J61: 0 | K61: Zm00001d044826
A62: 9 | B62: 4091565 | C62: C | D62: G | E62: Homozygous alt | F62: 0 | G62: 7 | H62: Homozygous ref | I62: 15 | J62: 0 | K62: Zm00001d044826
A63: 9 | B63: 4091568 | C63: CTTATAT | D63: C | E63: Homozygous alt | F63: 0 | G63: 7 | H63: Homozygous ref | I63: 13 | J63: 0 | K63: Zm00001d044826
A64: 9 | B64: 4091577 | C64: AT | D64: A | E64: Homozygous alt | F64: 0 | G64: 7 | H64: Homozygous ref | I64: 10 | J64: 0 | K64: Zm00001d044826
A65: 9 | B65: 4091579 | C65: CAT | D65: C | E65: Homozygous alt | F65: 0 | G65: 7 | H65: Homozygous ref | I65: 10 | J65: 0 | K65: Zm00001d044826
A66: 9 | B66: 4091662 | C66: T | D66: TAGAGAACAGCTAGTGTGTTGATGATCATGATTCATGCCATCAAGACGCGCGATGGTGGCCATCATGGTACTTACTAGTTAGCGACGGCAGGTGGTGTCGCCGAGACGAG | E66: Homozygous alt | F66: 0 | G66: 0 | H66: Homozygous ref | I66: 1 | J66: 0 | K66: Zm00001d044826
A67: 9 | B67: 4091688 | C67: TA | D67: T | E67: Homozygous alt | F67: 0 | G67: 3 | H67: Homozygous ref | I67: 1 | J67: 0 | K67: Zm00001d044826
A68: 9 | B68: 4091732 | C68: C | D68: CT | E68: Homozygous alt | F68: 0 | G68: 8 | H68: Homozygous ref | I68: 1 | J68: 0 | K68: Zm00001d044826
A69: 9 | B69: 4091856 | C69: GA | D69: G | E69: Homozygous alt | F69: 0 | G69: 9 | H69: Homozygous ref | I69: 5 | J69: 0 | K69: Zm00001d044826
A70: 9 | B70: 4091861 | C70: TGGATCCGTACGTCGGCCCCGCAGGGCTCGA | D70: T | E70: Homozygous alt | F70: 0 | G70: 9 | H70: Homozygous ref | I70: 5 | J70: 0 | K70: Zm00001d044826
A71: 9 | B71: 4091896 | C71: CG | D71: C | E71: Homozygous alt | F71: 0 | G71: 8 | H71: Homozygous ref | I71: 6 | J71: 0 | K71: Zm00001d044826
A72: 9 | B72: 4091909 | C72: G | D72: A | E72: Homozygous alt | F72: 0 | G72: 4 | H72: Homozygous ref | I72: 4 | J72: 0 | K72: Zm00001d044826
A73: 9 | B73: 4091919 | C73: CTTAA | D73: C | E73: Homozygous alt | F73: 0 | G73: 4 | H73: Homozygous ref | I73: 4 | J73: 0 | K73: Zm00001d044826
A74: 9 | B74: 4091954 | C74: TGCAC | D74: T | E74: Homozygous alt | F74: 0 | G74: 5 | H74: Homozygous ref | I74: 4 | J74: 0 | K74: Zm00001d044826
A75: 9 | B75: 4091964 | C75: C | D75: A | E75: Homozygous alt | F75: 0 | G75: 5 | H75: Homozygous ref | I75: 4 | J75: 0 | K75: Zm00001d044826
A76: 9 | B76: 4091973 | C76: TTGTTTTGTTTTG | D76: T | E76: Homozygous alt | F76: 0 | G76: 5 | H76: Homozygous ref | I76: 4 | J76: 0 | K76: Zm00001d044826
A77: 9 | B77: 4092248 | C77: ACATC | D77: A | E77: Heterozygous | F77: 2 | G77: 31 | H77: Homozygous ref | I77: 27 | J77: 0 | K77: Zm00001d044826
A78: 9 | B78: 4092265 | C78: T | D78: TCTGCATG | E78: Heterozygous | F78: 2 | G78: 32 | H78: Homozygous ref | I78: 30 | J78: 0 | K78: Zm00001d044826
A79: 9 | B79: 4092272 | C79: G | D79: GTCGA | E79: Heterozygous | F79: 1 | G79: 36 | H79: Homozygous ref | I79: 30 | J79: 0 | K79: Zm00001d044826
A80: 9 | B80: 4092281 | C80: A | D80: ACC | E80: Heterozygous | F80: 1 | G80: 37 | H80: Homozygous ref | I80: 33 | J80: 0 | K80: Zm00001d044826
A81: 9 | B81: 4092287 | C81: TACC | D81: T | E81: Heterozygous | F81: 1 | G81: 37 | H81: Homozygous ref | I81: 34 | J81: 0 | K81: Zm00001d044826
A82: 9 | B82: 4092297 | C82: TCTAG | D82: T | E82: Heterozygous | F82: 1 | G82: 37 | H82: Homozygous ref | I82: 34 | J82: 0 | K82: Zm00001d044826
A83: 9 | B83: 4092305 | C83: ATTGGCTGTTGCTTCAACTTTGTTTTTTTTTTTAATT | D83: A | E83: Heterozygous | F83: 1 | G83: 38 | H83: Homozygous ref | I83: 37 | J83: 0 | K83: Zm00001d044826
A84: 9 | B84: 4092574 | C84: G | D84: GC | E84: Homozygous alt | F84: 1 | G84: 29 | H84: Homozygous ref | I84: 37 | J84: 0 | K84: Zm00001d044826
A85: 9 | B85: 4092621 | C85: TAG | D85: T | E85: Homozygous alt | F85: 0 | G85: 16 | H85: Homozygous ref | I85: 42 | J85: 0 | K85: Zm00001d044826
A86: 9 | B86: 4092732 | C86: T | D86: A | E86: Homozygous alt | F86: 2 | G86: 40 | H86: Homozygous ref | I86: 47 | J86: 0 | K86: Zm00001d044826
A87: 9 | B87: 4092790 | C87: C | D87: CCTAG | E87: Heterozygous | F87: 3 | G87: 33 | H87: Homozygous ref | I87: 47 | J87: 0 | K87: Zm00001d044826
A88: 9 | B88: 4092797 | C88: C | D88: CTATATATA | E88: Heterozygous | F88: 3 | G88: 30 | H88: Homozygous ref | I88: 45 | J88: 0 | K88: Zm00001d044826
A89: 9 | B89: 4092843 | C89: CTCTAGCAG | D89: C | E89: Heterozygous | F89: 2 | G89: 26 | H89: Homozygous ref | I89: 40 | J89: 0 | K89: Zm00001d044826
A90: 9 | B90: 4093368 | C90: ACG | D90: A | E90: Heterozygous | F90: 6 | G90: 7 | H90: Homozygous ref | I90: 37 | J90: 0 | K90: Zm00001d044826
A91: SnpEff output
A92: #CHROM | B92: POS | C92: location of SNP/indel | D92: REF | E92: ALT | F92: QUAL | G92: INFO | H92: Albino | N92: B73 | T92: wi1_WT
H93: ref allele | I93: alt allele | J93: other allele | K93: total | L93: score | M93: type | N93: ref allele | O93: alt allele | P93: other allele | Q93: total | R93: score | S93: type | T93: ref allele | U93: alt allele | V93: other allele | W93: total | X93: score
A94: 9 | B94: 114107 | C94: in disordered motif | D94: C | E94: T | F94: 186.68 | G94: AC=2;AF=0.333;AN=6;DP=38;ExcessHet=0.4576;FS=0.000;MLEAC=2;MLEAF=0.333;MQ=47.00;QD=26.67;SOR=4.174;ANN=T|missense_variant|MODERATE|Zm00001d044719|Zm00001d044719|transcript|Zm00001d044719_T001.1|protein_coding|1/2|c.8C>T|p.Ala3Val|8/684|8/684|3/227|| | H94: 0 | I94: 7 | K94: 7 | L94: 21 | M94: 0/0 | N94: 29 | O94: 0 | Q94: 29 | R94: 81 | S94: 0/0 | T94: 2 | U94: 0 | W94: 2 | X94: 6 | Y94: missense_variant | Z94: MODERATE | AA94: Zm00001d044719 | AB94: BTB/POZ domain-containing protein | AC94: protein_coding | AD94: c.8C>T | AE94: p.Ala3Val
A95: 9 | B95: 483572 | D95: G | E95: A | F95: 1744.14 | G95: AC=2;AF=0.333;AN=6;BaseQRankSum=-2.831e+00;ClippingRankSum=0.00;DP=176;ExcessHet=0.4576;FS=2.130;MLEAC=2;MLEAF=0.333;MQ=59.91;MQRankSum=-1.520e-01;QD=28.59;ReadPosRankSum=0.604;SOR=0.462;ANN=A|missense_variant|MODERATE|Zm00001d044726|Zm00001d044726|transcript|Zm00001d044726_T001.1|protein_coding|1/1|c.2255C>T|p.Ala752Val|2255/2883|2255/2883|752/960|| | H95: 3 | I95: 58 | K95: 61 | L95: 80 | M95: 0/0 | N95: 42 | O95: 0 | Q95: 42 | R95: 99 | S95: 0/0 | T95: 71 | U95: 0 | W95: 71 | X95: 99 | Y95: missense_variant | Z95: MODERATE | AA95: Zm00001d044726 | AB95: NF-X1-type zinc finger protein NFXL1 | AC95: protein_coding | AD95: c.2255C>T | AE95: p.Ala752Val
A96: 9 | B96: 483808 | D96: G | E96: C | F96: 2291.14 | G96: AC=2;AF=0.333;AN=6;BaseQRankSum=0.549;ClippingRankSum=0.00;DP=188;ExcessHet=0.4576;FS=5.914;MLEAC=2;MLEAF=0.333;MQ=51.41;MQRankSum=-2.353e+00;QD=30.55;ReadPosRankSum=-8.150e-01;SOR=1.565;ANN=C|missense_variant|MODERATE|Zm00001d044726|Zm00001d044726|transcript|Zm00001d044726_T001.1|protein_coding|1/1|c.2019C>G|p.Asp673Glu|2019/2883|2019/2883|673/960|| | H96: 3 | I96: 72 | K96: 75 | L96: 99 | M96: 0/0 | N96: 42 | O96: 0 | Q96: 42 | R96: 99 | S96: 0/0 | T96: 71 | U96: 0 | W96: 71 | X96: 99 | Y96: missense_variant | Z96: MODERATE | AA96: Zm00001d044726 | AB96: NF-X1-type zinc finger protein NFXL2 | AC96: protein_coding | AD96: c.2019C>G | AE96: p.Asp673Glu
A97: 9 | B97: 484062 | D97: T | E97: C | F97: 2092.14 | G97: AC=2;AF=0.333;AN=6;BaseQRankSum=2.27;ClippingRankSum=0.00;DP=188;ExcessHet=0.4576;FS=0.000;MLEAC=2;MLEAF=0.333;MQ=59.61;MQRankSum=-2.490e-01;QD=28.66;ReadPosRankSum=0.925;SOR=0.849;ANN=C|missense_variant|MODERATE|Zm00001d044726|Zm00001d044726|transcript|Zm00001d044726_T001.1|protein_coding|1/1|c.1765A>G|p.Lys589Glu|1765/2883|1765/2883|589/960|| | H97: 6 | I97: 67 | K97: 73 | L97: 40 | M97: 0/0 | N97: 42 | O97: 0 | Q97: 42 | R97: 99 | S97: 0/0 | T97: 71 | U97: 0 | W97: 71 | X97: 99 | Y97: missense_variant | Z97: MODERATE | AA97: Zm00001d044726 | AB97: NF-X1-type zinc finger protein NFXL3 | AC97: protein_coding | AD97: c.1765A>G | AE97: p.Lys589Glu
A98: 9 | B98: 484664 | C98: in NF-X1-type domain | D98: A | E98: G | F98: 2744.12 | G98: AC=2;AF=0.333;AN=6;BaseQRankSum=1.06;ClippingRankSum=0.00;DP=183;ExcessHet=1.0474;FS=0.000;MLEAC=3;MLEAF=0.500;MQ=56.06;MQRankSum=-7.330e-01;QD=32.85;ReadPosRankSum=-5.970e-01;SOR=0.223;ANN=G|missense_variant|MODERATE|Zm00001d044726|Zm00001d044726|transcript|Zm00001d044726_T001.1|protein_coding|1/1|c.1163T>C|p.Leu388Ser|1163/2883|1163/2883|388/960|| | H98: 1 | I98: 64 | K98: 65 | L98: 99 | M98: 0/0 | N98: 42 | O98: 0 | Q98: 42 | R98: 99 | S98: 0/0 | T98: 76 | U98: 0 | W98: 76 | X98: 0 | Y98: missense_variant | Z98: MODERATE | AA98: Zm00001d044726 | AB98: NF-X1-type zinc finger protein NFXL4 | AC98: protein_coding | AD98: c.1163T>C | AE98: p.Leu388Ser
A99: 9 | B99: 484665 | C99: in NF-X1-type domain | D99: A | E99: C | F99: 2744.12 | G99: AC=2;AF=0.333;AN=6;BaseQRankSum=1.13;ClippingRankSum=0.00;DP=182;ExcessHet=1.0474;FS=0.000;MLEAC=3;MLEAF=0.500;MQ=56.38;MQRankSum=-7.190e-01;QD=29.56;ReadPosRankSum=-6.260e-01;SOR=0.273;ANN=C|missense_variant|MODERATE|Zm00001d044726|Zm00001d044726|transcript|Zm00001d044726_T001.1|protein_coding|1/1|c.1162T>G|p.Leu388Val|1162/2883|1162/2883|388/960|| | H99: 1 | I99: 63 | K99: 64 | L99: 99 | M99: 0/0 | N99: 42 | O99: 0 | Q99: 42 | R99: 99 | S99: 0/0 | T99: 76 | U99: 0 | W99: 76 | X99: 0 | Y99: missense_variant | Z99: MODERATE | AA99: Zm00001d044726 | AB99: NF-X1-type zinc finger protein NFXL5 | AC99: protein_coding | AD99: c.1162T>G | AE99: p.Leu388Val
A100: 9 | B100: 485222 | D100: T | E100: A | F100: 1236.14 | G100: AC=2;AF=0.333;AN=6;BaseQRankSum=1.01;ClippingRankSum=0.00;DP=121;ExcessHet=0.4576;FS=3.461;MLEAC=2;MLEAF=0.333;MQ=60.00;MQRankSum=0.00;QD=28.75;ReadPosRankSum=0.973;SOR=2.247;ANN=A|missense_variant|MODERATE|Zm00001d044726|Zm00001d044726|transcript|Zm00001d044726_T001.1|protein_coding|1/1|c.605A>T|p.Gln202Leu|605/2883|605/2883|202/960|| | H100: 2 | I100: 41 | K100: 43 | L100: 63 | M100: 0/0 | N100: 42 | O100: 0 | Q100: 42 | R100: 99 | S100: 0/0 | T100: 35 | U100: 0 | W100: 35 | X100: 99 | Y100: missense_variant | Z100: MODERATE | AA100: Zm00001d044726 | AB100: NF-X1-type zinc finger protein NFXL6 | AC100: protein_coding | AD100: c.605A>T | AE100: p.Gln202Leu
A101: 9 | B101: 485393 | D101: C | E101: G | F101: 1294.14 | G101: AC=2;AF=0.333;AN=6;BaseQRankSum=-8.110e-01;ClippingRankSum=0.00;DP=112;ExcessHet=0.4576;FS=0.000;MLEAC=2;MLEAF=0.333;MQ=60.00;MQRankSum=0.00;QD=30.81;ReadPosRankSum=-7.090e-01;SOR=3.816;ANN=G|missense_variant|MODERATE|Zm00001d044726|Zm00001d044726|transcript|Zm00001d044726_T001.1|protein_coding|1/1|c.434G>C|p.Gly145Ala|434/2883|434/2883|145/960|| | H101: 1 | I101: 41 | K101: 42 | L101: 92 | M101: 0/0 | N101: 42 | O101: 0 | Q101: 42 | R101: 99 | S101: 0/0 | T101: 27 | U101: 0 | W101: 27 | X101: 72 | Y101: missense_variant | Z101: MODERATE | AA101: Zm00001d044726 | AB101: NF-X1-type zinc finger protein NFXL7 | AC101: protein_coding | AD101: c.434G>C | AE101: p.Gly145Ala
A102: 9 | B102: 639512 | D102: C | E102: CTGCATGCATACACATATATATATACA | F102: 1216.22 | G102: AC=2;AF=0.333;AN=6;BaseQRankSum=-6.370e-01;ClippingRankSum=0.00;DP=122;ExcessHet=0.4576;FS=2.688;MLEAC=1;MLEAF=0.167;MQ=59.50;MQRankSum=0.00;QD=25.56;ReadPosRankSum=-2.292e+00;SOR=0.278;ANN=CTGCATGCATACACATATATATATACA|splice_acceptor_variant&intron_variant|HIGH|Zm00001d044729|Zm00001d044729|transcript|Zm00001d044729_T001.1|protein_coding|2/2|c.944-2_944-1insTGTATATATATATGTGTATGCATGCA||||||,CTGCATGCATACACATATATATATACA|downstream_gene_variant|MODIFIER|Zm00001d044730|Zm00001d044730|transcript|Zm00001d044730_T001.1|protein_coding||c.*5388_*5389insTGTATATATATATGTGTATGCATGCA|||||4913|;LOF=(Zm00001d044729|Zm00001d044729|1|1.00) | H102: 2 | I102: 25 | K102: 27 | L102: 5 | M102: 0/0 | N102: 41 | O102: 0 | Q102: 41 | R102: 99 | S102: 0/0 | T102: 41 | U102: 0 | W102: 41 | X102: 90 | Y102: splice_acceptor_variant&intron_variant | Z102: HIGH | AA102: Zm00001d044729 | AB102: Cysteine-rich repeat secretory protein 15 | AC102: protein_coding | AD102: c.944-2_944-1insTGTATATATATATGTGTATGCATGCA
A103: 9 | B103: 639592 | D103: A | E103: AGAT | F103: 1571.13 | G103: AC=2;AF=0.333;AN=6;BaseQRankSum=2.11;ClippingRankSum=0.00;DP=109;ExcessHet=0.4576;FS=2.695;MLEAC=2;MLEAF=0.333;MQ=60.00;MQRankSum=0.00;QD=31.09;ReadPosRankSum=0.948;SOR=0.283;ANN=AGAT|splice_region_variant&intron_variant|LOW|Zm00001d044729|Zm00001d044729|transcript|Zm00001d044729_T001.1|protein_coding|2/2|c.943+8_943+9insATC||||||,AGAT|downstream_gene_variant|MODIFIER|Zm00001d044730|Zm00001d044730|transcript|Zm00001d044730_T001.1|protein_coding||c.*5308_*5309insATC|||||4833| | H103: 2 | I103: 36 | K103: 38 | L103: 29 | M103: 0/0 | N103: 36 | O103: 0 | Q103: 36 | R103: 99 | S103: 0/0 | T103: 34 | U103: 0 | W103: 34 | X103: 93 | Y103: splice_region_variant&intron_variant | Z103: LOW | AA103: Zm00001d044729 | AB103: Cysteine-rich repeat secretory protein 16 | AC103: protein_coding | AD103: c.943+8_943+9insATC
A104: 9 | B104: 648920 | D104: AGAGAGAC | E104: A | F104: 1752.1 | G104: AC=2;AF=0.333;AN=6;BaseQRankSum=-1.423e+00;ClippingRankSum=0.00;DP=166;ExcessHet=0.4576;FS=3.222;MLEAC=2;MLEAF=0.333;MQ=60.00;MQRankSum=0.00;QD=30.76;ReadPosRankSum=0.042;SOR=0.453;ANN=A|splice_region_variant&intron_variant|LOW|Zm00001d044730|Zm00001d044730|transcript|Zm00001d044730_T001.1|protein_coding|3/5|c.297+8_297+14delGTCTCTC||||||,A|upstream_gene_variant|MODIFIER|Zm00001d044731|Zm00001d044731|transcript|Zm00001d044731_T001.1|protein_coding||c.-1672_-1666delGAGAGAC|||||1672| | H104: 1 | I104: 41 | K104: 42 | L104: 81 | M104: 0/0 | N104: 46 | O104: 0 | Q104: 46 | R104: 99 | S104: 0/0 | T104: 78 | U104: 0 | W104: 78 | X104: 99 | Y104: splice_region_variant&intron_variant | Z104: LOW | AA104: Zm00001d044730 | AB104: Putative peroxygenase 4 | AC104: protein_coding | AD104: c.297+8_297+14delGTCTCTC
A105: 9 | B105: 649479 | D105: C | E105: CACCGT | F105: 3090.1 | G105: AC=2;AF=0.333;AN=6;BaseQRankSum=1.52;ClippingRankSum=0.00;DP=183;ExcessHet=0.4576;FS=5.903;MLEAC=2;MLEAF=0.333;MQ=60.00;MQRankSum=0.00;QD=35.04;ReadPosRankSum=0.542;SOR=0.093;ANN=CACCGT|splice_donor_variant&intron_variant|HIGH|Zm00001d044730|Zm00001d044730|transcript|Zm00001d044730_T001.1|protein_coding|2/5|c.211+2_211+3insACGGT||||||,CACCGT|upstream_gene_variant|MODIFIER|Zm00001d044731|Zm00001d044731|transcript|Zm00001d044731_T001.1|protein_coding||c.-1114_-1113insACCGT|||||1113|;LOF=(Zm00001d044730|Zm00001d044730|1|1.00) | H105: 3 | I105: 70 | K105: 73 | L105: 98 | M105: 0/0 | N105: 46 | O105: 0 | Q105: 46 | R105: 99 | S105: 0/0 | T105: 61 | U105: 0 | W105: 61 | X105: 99 | Y105: splice_donor_variant&intron_variant | Z105: HIGH | AA105: Zm00001d044730 | AB105: Putative peroxygenase 5 | AC105: protein_coding | AD105: c.211+2_211+3insACGGT
A106: 9 | B106: 649596 | D106: CT | E106: C | F106: 2216.1 | G106: AC=2;AF=0.333;AN=6;BaseQRankSum=0.634;ClippingRankSum=0.00;DP=191;ExcessHet=0.4576;FS=10.428;MLEAC=2;MLEAF=0.333;MQ=60.00;MQRankSum=0.00;QD=31.66;ReadPosRankSum=0.667;SOR=0.561;ANN=C|splice_acceptor_variant&intron_variant|HIGH|Zm00001d044730|Zm00001d044730|transcript|Zm00001d044730_T001.1|protein_coding|1/5|c.98-2delA||||||,C|upstream_gene_variant|MODIFIER|Zm00001d044731|Zm00001d044731|transcript|Zm00001d044731_T001.1|protein_coding||c.-996delT|||||996|;LOF=(Zm00001d044730|Zm00001d044730|1|1.00) | H106: 3 | I106: 67 | K106: 70 | L106: 99 | M106: 0/0 | N106: 46 | O106: 0 | Q106: 46 | R106: 99 | S106: 0/0 | T106: 61 | U106: 0 | W106: 61 | X106: 99 | Y106: splice_acceptor_variant&intron_variant | Z106: HIGH | AA106: Zm00001d044730 | AB106: Putative peroxygenase 6 | AC106: protein_coding | AD106: c.98-2delA
A107: 9 | B107: 700720 | D107: C | E107: T | F107: 2165.14 | G107: AC=2;AF=0.333;AN=6;BaseQRankSum=0.130;ClippingRankSum=0.00;DP=184;ExcessHet=0.4576;FS=0.000;MLEAC=2;MLEAF=0.333;MQ=60.00;MQRankSum=0.00;QD=31.38;ReadPosRankSum=-5.000e-02;SOR=0.273;ANN=T|5_prime_UTR_premature_start_codon_gain_variant|LOW|Zm00001d044733|Zm00001d044733|transcript|Zm00001d044733_T002.1|protein_coding|3/10|c.-150C>T||||||,T|5_prime_UTR_premature_start_codon_gain_variant|LOW|Zm00001d044733|Zm00001d044733|transcript|Zm00001d044733_T001.1|protein_coding|3/7|c.-397C>T||||||,T|5_prime_UTR_variant|MODIFIER|Zm00001d044733|Zm00001d044733|transcript|Zm00001d044733_T002.1|protein_coding|3/10|c.-150C>T|||||569|,T|5_prime_UTR_variant|MODIFIER|Zm00001d044733|Zm00001d044733|transcript|Zm00001d044733_T001.1|protein_coding|3/7|c.-397C>T|||||4102|,T|upstream_gene_variant|MODIFIER|Zm00001d044733|Zm00001d044733|transcript|Zm00001d044733_T003.1|protein_coding||c.-1711C>T|||||1017| | H107: 1 | I107: 68 | K107: 69 | L107: 99 | M107: 0/0 | N107: 37 | O107: 0 | Q107: 37 | R107: 99 | S107: 0/0 | T107: 78 | U107: 0 | W107: 78 | X107: 99 | Y107: 5_prime_UTR_premature_start_codon_gain_variant | Z107: LOW | AA107: Zm00001d044733 | AB107: rRNA_proc-arch domain-containing protein | AC107: protein_coding | AD107: c.-150C>T
A108: 9 | B108: 701258 | D108: C | E108: T | F108: 3091.14 | G108: AC=2;AF=0.333;AN=6;BaseQRankSum=-1.378e+00;ClippingRankSum=0.00;DP=152;ExcessHet=0.4576;FS=0.000;MLEAC=2;MLEAF=0.333;MQ=50.40;MQRankSum=-1.157e+00;QD=32.71;ReadPosRankSum=-1.638e+00;SOR=0.471;ANN=T|5_prime_UTR_premature_start_codon_gain_variant|LOW|Zm00001d044733|Zm00001d044733|transcript|Zm00001d044733_T002.1|protein_coding|5/10|c.-31C>T||||||,T|5_prime_UTR_premature_start_codon_gain_variant|LOW|Zm00001d044733|Zm00001d044733|transcript|Zm00001d044733_T001.1|protein_coding|5/7|c.-278C>T||||||,T|5_prime_UTR_variant|MODIFIER|Zm00001d044733|Zm00001d044733|transcript|Zm00001d044733_T002.1|protein_coding|5/10|c.-31C>T|||||31|,T|5_prime_UTR_variant|MODIFIER|Zm00001d044733|Zm00001d044733|transcript|Zm00001d044733_T001.1|protein_coding|5/7|c.-278C>T|||||3564|,T|upstream_gene_variant|MODIFIER|Zm00001d044733|Zm00001d044733|transcript|Zm00001d044733_T003.1|protein_coding||c.-1173C>T|||||479| | H108: 1 | I108: 72 | K108: 73 | L108: 99 | M108: 0/0 | N108: 37 | O108: 0 | Q108: 37 | R108: 99 | S108: 0/0 | T108: 42 | U108: 0 | W108: 42 | X108: 99 | Y108: 5_prime_UTR_premature_start_codon_gain_variant | Z108: LOW | AA108: Zm00001d044733 | AB108: rRNA_proc-arch domain-containing protein | AC108: protein_coding | AD108: c.-31C>T
A109: 9 | B109: 883549 | D109: G | E109: T | F109: 64.26 | G109: AC=2;AF=0.333;AN=6;DP=98;ExcessHet=0.4576;FS=0.000;MLEAC=2;MLEAF=0.333;MQ=40.00;QD=21.42;SOR=2.833;ANN=T|splice_region_variant&intron_variant|LOW|Zm00001d044740|Zm00001d044740|transcript|Zm00001d044740_T005.1|protein_coding|4/7|c.90+5G>T||||||,T|splice_region_variant&intron_variant|LOW|Zm00001d044740|Zm00001d044740|transcript|Zm00001d044740_T002.1|protein_coding|6/7|c.*266+5G>T||||||,T|splice_region_variant&intron_variant|LOW|Zm00001d044740|Zm00001d044740|transcript|Zm00001d044740_T003.1|protein_coding|8/11|c.90+5G>T||||||,T|splice_region_variant&intron_variant|LOW|Zm00001d044740|Zm00001d044740|transcript|Zm00001d044740_T004.1|protein_coding|6/9|c.90+5G>T||||||,T|splice_region_variant&intron_variant|LOW|Zm00001d044740|Zm00001d044740|transcript|Zm00001d044740_T006.1|protein_coding|6/9|c.90+5G>T||||||,T|splice_region_variant&intron_variant|LOW|Zm00001d044740|Zm00001d044740|transcript|Zm00001d044740_T007.1|protein_coding|7/10|c.90+5G>T||||||,T|splice_region_variant&intron_variant|LOW|Zm00001d044740|Zm00001d044740|transcript|Zm00001d044740_T008.1|protein_coding|7/10|c.90+5G>T||||||,T|splice_region_variant&intron_variant|LOW|Zm00001d044740|Zm00001d044740|transcript|Zm00001d044740_T010.1|protein_coding|5/6|c.*397+5G>T||||||,T|splice_region_variant&intron_variant|LOW|Zm00001d044740|Zm00001d044740|transcript|Zm00001d044740_T011.1|protein_coding|5/8|c.90+5G>T||||||,T|splice_region_variant&intron_variant|LOW|Zm00001d044740|Zm00001d044740|transcript|Zm00001d044740_T013.1|protein_coding|6/7|c.*397+5G>T||||||,T|splice_region_variant&intron_variant|LOW|Zm00001d044740|Zm00001d044740|transcript|Zm00001d044740_T015.1|protein_coding|7/8|c.-261+5G>T||||||,T|splice_region_variant&intron_variant|LOW|Zm00001d044740|Zm00001d044740|transcript|Zm00001d044740_T017.1|protein_coding|6/8|c.*266+5G>T||||||,T|splice_region_variant&intron_variant|LOW|Zm00001d044740|Zm00001d044740|transcript|Zm00001d044740_T020.1|protein_coding|6/6|c.*266+5G>T||||||,T|splice_region_variant&intron_variant|LOW|Zm00001d044740|Zm00001d044740|transcript|Zm00001d044740_T022.1|protein_coding|8/10|c.*1667+5G>T||||||,T|splice_region_variant&intron_variant|LOW|Zm00001d044740|Zm00001d044740|transcript|Zm00001d044740_T026.1|protein_coding|6/7|c.*414+5G>T||||||,T|splice_region_variant&intron_variant|LOW|Zm00001d044740|Zm00001d044740|transcript|Zm00001d044740_T027.1|protein_coding|6/8|c.*397+5G>T||||||,T|splice_region_variant&intron_variant|LOW|Zm00001d044740|Zm00001d044740|transcript|Zm00001d044740_T029.1|protein_coding|6/8|c.*266+5G>T||||||,T|splice_region_variant&intron_variant|LOW|Zm00001d044740|Zm00001d044740|transcript|Zm00001d044740_T030.1|protein_coding|4/6|c.*1241+5G>T||||||,T|splice_region_variant&intron_variant|LOW|Zm00001d044740|Zm00001d044740|transcript|Zm00001d044740_T033.1|protein_coding|7/9|c.*382+5G>T||||||,T|splice_region_variant&intron_variant|LOW|Zm00001d044740|Zm00001d044740|transcript|Zm00001d044740_T037.1|protein_coding|4/5|c.-645+5G>T||||||,T|splice_region_variant&intron_variant|LOW|Zm00001d044740|Zm00001d044740|transcript|Zm00001d044740_T038.1|protein_coding|5/7|c.90+5G>T||||||,T|splice_region_variant&intron_variant|LOW|Zm00001d044740|Zm00001d044740|transcript|Zm00001d044740_T041.1|protein_coding|1/2|c.33+5G>T||||||,T|5_prime_UTR_variant|MODIFIER|Zm00001d044740|Zm00001d044740|transcript|Zm00001d044740_T009.1|protein_coding|4/5|c.-488G>T|||||488|,T|5_prime_UTR_variant|MODIFIER|Zm00001d044740|Zm00001d044740|transcript|Zm00001d044740_T016.1|protein_coding|5/6|c.-488G>T|||||488|,T|5_prime_UTR_variant|MODIFIER|Zm00001d044740|Zm00001d044740|transcript|Zm00001d044740_T018.1|protein_coding|4/5|c.-488G>T|||||488|,T|5_prime_UTR_variant|MODIFIER|Zm00001d044740|Zm00001d044740|transcript|Zm00001d044740_T024.1|protein_coding|5/6|c.-488G>T|||||488|,T|5_prime_UTR_variant|MODIFIER|Zm00001d044740|Zm00001d044740|transcript|Zm00001d044740_T025.1|protein_coding|3/4|c.-488G>T|||||488|,T|5_prime_UTR_variant|MODIFIER|Zm00001d044740|Zm00001d044740|transcript|Zm00001d044740_T028.1|protein_coding|7/8|c.-488G>T|||||488|,T|5_prime_UTR_variant|MODIFIER|Zm00001d044740|Zm00001d044740|transcript|Zm00001d044740_T031.1|protein_coding|2/3|c.-488G>T|||||488|,T|5_prime_UTR_variant|MODIFIER|Zm00001d044740|Zm00001d044740|transcript|Zm00001d044740_T032.1|protein_coding|5/6|c.-488G>T|||||488|,T|5_prime_UTR_variant|MODIFIER|Zm00001d044740|Zm00001d044740|transcript|Zm00001d044740_T034.1|protein_coding|3/4|c.-488G>T|||||488|,T|5_prime_UTR_variant|MODIFIER|Zm00001d044740|Zm00001d044740|transcript|Zm00001d044740_T035.1|protein_coding|1/2|c.-488G>T|||||488|,T|5_prime_UTR_variant|MODIFIER|Zm00001d044740|Zm00001d044740|transcript|Zm00001d044740_T039.1|protein_coding|3/4|c.-488G>T|||||488|,T|5_prime_UTR_variant|MODIFIER|Zm00001d044740|Zm00001d044740|transcript|Zm00001d044740_T040.1|protein_coding|2/3|c.-488G>T|||||488|,T|3_prime_UTR_variant|MODIFIER|Zm00001d044740|Zm00001d044740|transcript|Zm00001d044740_T012.1|protein_coding|6/7|c.*2576G>T|||||5014|,T|3_prime_UTR_variant|MODIFIER|Zm00001d044740|Zm00001d044740|transcript|Zm00001d044740_T014.1|protein_coding|3/4|c.*3602G>T|||||5014|,T|3_prime_UTR_variant|MODIFIER|Zm00001d044740|Zm00001d044740|transcript|Zm00001d044740_T019.1|protein_coding|5/6|c.*271G>T|||||487|,T|3_prime_UTR_variant|MODIFIER|Zm00001d044740|Zm00001d044740|transcript|Zm00001d044740_T021.1|protein_coding|6/7|c.*271G>T|||||487|,T|3_prime_UTR_variant|MODIFIER|Zm00001d044740|Zm00001d044740|transcript|Zm00001d044740_T023.1|protein_coding|3/4|c.*3685G>T|||||5014|,T|3_prime_UTR_variant|MODIFIER|Zm00001d044740|Zm00001d044740|transcript|Zm00001d044740_T036.1|protein_coding|5/5|c.*402G>T|||||487|,T|upstream_gene_variant|MODIFIER|Zm00001d027046|Zm00001d027046|transcript|Zm00001d027046_T001.1|lincRNA||n.-2269G>T|||||1623|,T|downstream_gene_variant|MODIFIER|Zm00001d044740|Zm00001d044740|transcript|Zm00001d044740_T001.1|protein_coding||c.*1638G>T|||||1638| | H109: 0 | I109: 3 | K109: 3 | L109: 9 | M109: 0/0 | N109: 56 | O109: 0 | Q109: 56 | R109: 99 | S109: 0/0 | T109: 39 | U109: 0 | W109: 39 | X109: 99 | Y109: splice_region_variant&intron_variant | Z109: LOW | AA109: Zm00001d044740 | AB109: transcript | AC109: protein_coding | AD109: c.90+5G>T
A110: 9 | B110: 884044 | D110: T | E110: C | F110: 315.16 | G110: AC=2;AF=0.333;AN=6;DP=115;ExcessHet=0.4576;FS=0.000;MLEAC=2;MLEAF=0.333;MQ=45.09;QD=31.52;SOR=4.804;ANN=C|missense_variant|MODERATE|Zm00001d044740|Zm00001d044740|transcript|Zm00001d044740_T009.1|protein_coding|4/5|c.8T>C|p.Phe3Ser|4512/6197|8/504|3/167||,C|missense_variant|MODERATE|Zm00001d044740|Zm00001d044740|transcript|Zm00001d044740_T015.1|protein_coding|8/9|c.8T>C|p.Phe3Ser|2336/4015|8/504|3/167||,C|missense_variant|MODERATE|Zm00001d044740|Zm00001d044740|transcript|Zm00001d044740_T016.1|protein_coding|5/6|c.8T>C|p.Phe3Ser|4785/6489|8/504|3/167||,C|missense_variant|MODERATE|Zm00001d044740|Zm00001d044740|transcript|Zm00001d044740_T018.1|protein_coding|4/5|c.8T>C|p.Phe3Ser|4715/6429|8/504|3/167||,C|missense_variant|MODERATE|Zm00001d044740|Zm00001d044740|transcript|Zm00001d044740_T024.1|protein_coding|5/6|c.8T>C|p.Phe3Ser|2500/4176|8/504|3/167||,C|missense_variant|MODERATE|Zm00001d044740|Zm00001d044740|transcript|Zm00001d044740_T025.1|protein_coding|3/4|c.8T>C|p.Phe3Ser|4713/6398|8/504|3/167||,C|missense_variant|MODERATE|Zm00001d044740|Zm00001d044740|transcript|Zm00001d044740_T028.1|protein_coding|7/8|c.8T>C|p.Phe3Ser|2367/4045|8/504|3/167||,C|missense_variant|MODERATE|Zm00001d044740|Zm00001d044740|transcript|Zm00001d044740_T031.1|protein_coding|2/3|c.8T>C|p.Phe3Ser|4555/6243|8/504|3/167||,C|missense_variant|MODERATE|Zm00001d044740|Zm00001d044740|transcript|Zm00001d044740_T032.1|protein_coding|5/6|c.8T>C|p.Phe3Ser|4121/5827|8/411|3/136||,C|missense_variant|MODERATE|Zm00001d044740|Zm00001d044740|transcript|Zm00001d044740_T034.1|protein_coding|3/4|c.8T>C|p.Phe3Ser|4535/6222|8/504|3/167||,C|missense_variant|MODERATE|Zm00001d044740|Zm00001d044740|transcript|Zm00001d044740_T035.1|protein_coding|1/2|c.8T>C|p.Phe3Ser|4076/5778|8/504|3/167||,C|missense_variant|MODERATE|Zm00001d044740|Zm00001d044740|transcript|Zm00001d044740_T039.1|protein_coding|3/4|c.8T>C|p.Phe3Ser|3272/4948|8/504|3/167||,C|missense_variant|MODERATE|Zm00001d044740|Zm00001d044740|transcript|Zm00001d044740_T040.1|protein_coding|2/3|c.8T>C|p.Phe3Ser|1188/2875|8/504|3/167||,C|3_prime_UTR_variant|MODIFIER|Zm00001d044740|Zm00001d044740|transcript|Zm00001d044740_T012.1|protein_coding|6/7|c.*3071T>C|||||5509|,C|3_prime_UTR_variant|MODIFIER|Zm00001d044740|Zm00001d044740|transcript|Zm00001d044740_T013.1|protein_coding|7/8|c.*665T>C|||||982|,C|3_prime_UTR_variant|MODIFIER|Zm00001d044740|Zm00001d044740|transcript|Zm00001d044740_T014.1|protein_coding|3/4|c.*4097T>C|||||5509|,C|3_prime_UTR_variant|MODIFIER|Zm00001d044740|Zm00001d044740|transcript|Zm00001d044740_T019.1|protein_coding|5/6|c.*766T>C|||||982|,C|3_prime_UTR_variant|MODIFIER|Zm00001d044740|Zm00001d044740|transcript|Zm00001d044740_T021.1|protein_coding|6/7|c.*766T>C|||||982|,C|3_prime_UTR_variant|MODIFIER|Zm00001d044740|Zm00001d044740|transcript|Zm00001d044740_T023.1|protein_coding|3/4|c.*4180T>C|||||5509|,C|3_prime_UTR_variant|MODIFIER|Zm00001d044740|Zm00001d044740|transcript|Zm00001d044740_T036.1|protein_coding|5/5|c.*897T>C|||||982|,C|upstream_gene_variant|MODIFIER|Zm00001d027046|Zm00001d027046|transcript|Zm00001d027046_T001.1|lincRNA||n.-1774T>C|||||1128|,C|downstream_gene_variant|MODIFIER|Zm00001d044740|Zm00001d044740|transcript|Zm00001d044740_T001.1|protein_coding||c.*2133T>C|||||2133|,C|downstream_gene_variant|MODIFIER|Zm00001d044740|Zm00001d044740|transcript|Zm00001d044740_T020.1|protein_coding||c.*982T>C|||||16|,C|intron_variant|MODIFIER|Zm00001d044740|Zm00001d044740|transcript|Zm00001d044740_T005.1|protein_coding|5/7|c.197-153T>C||||||,C|intron_variant|MODIFIER|Zm00001d044740|Zm00001d044740|transcript|Zm00001d044740_T002.1|protein_coding|6/7|c.*267-153T>C||||||,C|intron_variant|MODIFIER|Zm00001d044740|Zm00001d044740|transcript|Zm00001d044740_T003.1|protein_coding|9/11|c.197-153T>C||||||,C|intron_variant|MODIFIER|Zm00001d044740|Zm00001d044740|transcript|Zm00001d044740_T004.1|protein_coding|7/9|c.197-153T>C||||||,C|intron_variant|MODIFIER|Zm00001d044740|Zm00001d044740|transcript|Zm00001d044740_T006.1|protein_coding|7/9|c.197-153T>C||||||,C|intron_variant|MODIFIER|Zm00001d044740|Zm00001d044740|transcript|Zm00001d044740_T007.1|protein_coding|8/10|c.197-153T>C||||||,C|intron_variant|MODIFIER|Zm00001d044740|Zm00001d044740|transcript|Zm00001d044740_T008.1|protein_coding|8/10|c.197-153T>C||||||,C|intron_variant|MODIFIER|Zm00001d044740|Zm00001d044740|transcript|Zm00001d044740_T010.1|protein_coding|5/6|c.*398-136T>C||||||,C|intron_variant|MODIFIER|Zm00001d044740|Zm00001d044740|transcript|Zm00001d044740_T011.1|protein_coding|6/8|c.197-153T>C||||||,C|intron_variant|MODIFIER|Zm00001d044740|Zm00001d044740|transcript|Zm00001d044740_T017.1|protein_coding|6/8|c.*267-136T>C||||||,C|intron_variant|MODIFIER|Zm00001d044740|Zm00001d044740|transcript|Zm00001d044740_T022.1|protein_coding|8/10|c.*1668-153T>C||||||,C|intron_variant|MODIFIER|Zm00001d044740|Zm00001d044740|transcript|Zm00001d044740_T026.1|protein_coding|6/7|c.*415-136T>C||||||,C|intron_variant|MODIFIER|Zm00001d044740|Zm00001d044740|transcript|Zm00001d044740_T027.1|protein_coding|6/8|c.*398-153T>C||||||,C|intron_variant|MODIFIER|Zm00001d044740|Zm00001d044740|transcript|Zm00001d044740_T029.1|protein_coding|6/8|c.*267-153T>C||||||,C|intron_variant|MODIFIER|Zm00001d044740|Zm00001d044740|transcript|Zm00001d044740_T030.1|protein_coding|4/6|c.*1242-153T>C||||||,C|intron_variant|MODIFIER|Zm00001d044740|Zm00001d044740|transcript|Zm00001d044740_T033.1|protein_coding|7/9|c.*383-153T>C||||||,C|intron_variant|MODIFIER|Zm00001d044740|Zm00001d044740|transcript|Zm00001d044740_T037.1|protein_coding|4/5|c.-644-153T>C||||||,C|intron_variant|MODIFIER|Zm00001d044740|Zm00001d044740|transcript|Zm00001d044740_T038.1|protein_coding|5/7|c.91-153T>C||||||,C|intron_variant|MODIFIER|Zm00001d044740|Zm00001d044740|transcript|Zm00001d044740_T041.1|protein_coding|1/2|c.34-149T>C|||||| | H110: 0 | I110: 10 | K110: 10 | L110: 30 | M110: 0/0 | N110: 56 | O110: 0 | Q110: 56 | R110: 99 | S110: 0/0 | T110: 41 | U110: 0 | W110: 41 | X110: 99 | Y110: missense_variant | Z110: MODERATE | AA110: Zm00001d044740 | AB110: transcript | AC110: protein_coding | AD110: c.8T>C | AE110: p.Phe3Ser
A111: 9 | B111: 1005939 | D111: ACGTT | E111: A | F111: 47.31 | G111: AC=2;AF=0.333;AN=6;DP=32;ExcessHet=0.4576;FS=0.000;MLEAC=1;MLEAF=0.167;MQ=60.00;QD=23.65;SOR=2.303;ANN=A|splice_region_variant&intron_variant|LOW|Zm00001d044744|Zm00001d044744|transcript|Zm00001d044744_T001.1|protein_coding|1/4|c.294+4_294+7delCGTT|||||| | H111: 0 | I111: 2 | K111: 2 | L111: 6 | M111: 0/0 | N111: 27 | O111: 0 | Q111: 27 | R111: 17 | S111: 0/0 | T111: 3 | U111: 0 | W111: 3 | X111: 9 | Y111: splice_region_variant&intron_variant | Z111: LOW | AA111: Zm00001d044744 | AB111: Endoglucanase | AC111: protein_coding | AD111: c.294+4_294+7delCGTT
A112: 9 | B112: 1008872 | C112: in Endoglucanase chain | D112: G | E112: GCGCAACGACCCGGCGGAGCGTCGGCCGGCGGGGAGA | F112: 772.1 | G112: AC=2;AF=0.333;AN=6;DP=83;ExcessHet=0.4576;FS=0.000;MLEAC=2;MLEAF=0.333;MQ=60.00;QD=28.15;SOR=5.136;ANN=GCGCAACGACCCGGCGGAGCGTCGGCCGGCGGGGAGA|conservative_inframe_insertion|MODERATE|Zm00001d044744|Zm00001d044744|transcript|Zm00001d044744_T001.1|protein_coding|5/5|c.1614_1615insCAACGACCCGGCGGAGCGTCGGCCGGCGGGGAGACG|p.Ala538_Gly539insGlnArgProGlyGlyAlaSerAlaGlyGlyGluThr|1945/2219|1615/1629|539/542||INFO_REALIGN_3_PRIME | H112: 0 | I112: 12 | K112: 12 | L112: 57 | M112: 0/0 | N112: 43 | O112: 0 | Q112: 43 | R112: 99 | S112: 0/0 | T112: 27 | U112: 0 | W112: 27 | X112: 81 | Y112: conservative_inframe_insertion | Z112: MODERATE | AA112: Zm00001d044744 | AB112: Endoglucanase | AC112: protein_coding | AD112: c.1614_1615insCAACGACCCGGCGGAGCGTCGGCCGGCGGGGAGACG | AE112: p.Ala538_Gly539insGlnArgProGlyGlyAlaSerAlaGlyGlyGluThr
A113: 9 | B113: 1016059 | C113: in AA_TRNA_LIGASE_II_ALA domain | D113: CAT | E113: C | F113: 1033.1 | G113: AC=2;AF=0.333;AN=6;DP=163;ExcessHet=0.4576;FS=0.000;MLEAC=2;MLEAF=0.333;MQ=60.00;QD=34.84;SOR=1.802;ANN=C|frameshift_variant|HIGH|Zm00001d044745|Zm00001d044745|transcript|Zm00001d044745_T006.1|protein_coding|3/13|c.278_279delTA|p.Ile93fs|332/3224|278/2961|93/986||INFO_REALIGN_3_PRIME,C|frameshift_variant|HIGH|Zm00001d044745|Zm00001d044745|transcript|Zm00001d044745_T009.1|protein_coding|3/12|c.278_279delTA|p.Ile93fs|332/3134|278/2811|93/936||INFO_REALIGN_3_PRIME,C|frameshift_variant|HIGH|Zm00001d044745|Zm00001d044745|transcript|Zm00001d044745_T010.1|protein_coding|3/12|c.278_279delTA|p.Ile93fs|332/3167|278/2844|93/947||INFO_REALIGN_3_PRIME,C|frameshift_variant|HIGH|Zm00001d044745|Zm00001d044745|transcript|Zm00001d044745_T011.1|protein_coding|3/12|c.278_279delTA|p.Ile93fs|332/3191|278/2868|93/955||INFO_REALIGN_3_PRIME,C|5_prime_UTR_variant|MODIFIER|Zm00001d044745|Zm00001d044745|transcript|Zm00001d044745_T001.1|protein_coding|3/13|c.-318_-317delTA|||||1570|INFO_REALIGN_3_PRIME,C|5_prime_UTR_variant|MODIFIER|Zm00001d044745|Zm00001d044745|transcript|Zm00001d044745_T002.1|protein_coding|3/13|c.-205_-204delTA|||||1570|INFO_REALIGN_3_PRIME,C|5_prime_UTR_variant|MODIFIER|Zm00001d044745|Zm00001d044745|transcript|Zm00001d044745_T003.1|protein_coding|3/11|c.-1571_-1570delTA|||||1570|INFO_REALIGN_3_PRIME,C|5_prime_UTR_variant|MODIFIER|Zm00001d044745|Zm00001d044745|transcript|Zm00001d044745_T004.1|protein_coding|3/13|c.-318_-317delTA|||||1570|INFO_REALIGN_3_PRIME,C|5_prime_UTR_variant|MODIFIER|Zm00001d044745|Zm00001d044745|transcript|Zm00001d044745_T005.1|protein_coding|3/12|c.-1148_-1147delTA|||||1570|INFO_REALIGN_3_PRIME,C|5_prime_UTR_variant|MODIFIER|Zm00001d044745|Zm00001d044745|transcript|Zm00001d044745_T007.1|protein_coding|3/12|c.-1148_-1147delTA|||||1570|INFO_REALIGN_3_PRIME,C|5_prime_UTR_variant|MODIFIER|Zm00001d044745|Zm00001d044745|transcript|Zm00001d044745_T008.1|protein_coding|3/11|c.-1571_-1570delTA|||||1570|INFO_REALIGN_3_PRIME,C|5_prime_UTR_variant|MODIFIER|Zm00001d044745|Zm00001d044745|transcript|Zm00001d044745_T012.1|protein_coding|3/13|c.-318_-317delTA|||||1570|INFO_REALIGN_3_PRIME,C|5_prime_UTR_variant|MODIFIER|Zm00001d044745|Zm00001d044745|transcript|Zm00001d044745_T013.1|protein_coding|3/12|c.-1148_-1147delTA|||||1570|INFO_REALIGN_3_PRIME,C|5_prime_UTR_variant|MODIFIER|Zm00001d044745|Zm00001d044745|transcript|Zm00001d044745_T014.1|protein_coding|3/13|c.-318_-317delTA|||||1570|INFO_REALIGN_3_PRIME,C|5_prime_UTR_variant|MODIFIER|Zm00001d044745|Zm00001d044745|transcript|Zm00001d044745_T015.1|protein_coding|3/13|c.-318_-317delTA|||||1570|INFO_REALIGN_3_PRIME,C|5_prime_UTR_variant|MODIFIER|Zm00001d044745|Zm00001d044745|transcript|Zm00001d044745_T016.1|protein_coding|3/13|c.-318_-317delTA|||||1570|INFO_REALIGN_3_PRIME,C|5_prime_UTR_variant|MODIFIER|Zm00001d044745|Zm00001d044745|transcript|Zm00001d044745_T017.1|protein_coding|3/13|c.-318_-317delTA|||||1570|INFO_REALIGN_3_PRIME;LOF=(Zm00001d044745|Zm00001d044745|17|0.24) | H113: 0 | I113: 24 | K113: 24 | L113: 72 | M113: 0/0 | N113: 54 | O113: 0 | Q113: 54 | R113: 99 | S113: 0/0 | T113: 54 | U113: 0 | W113: 54 | X113: 99 | Y113: frameshift_variant | Z113: HIGH | AA113: Zm00001d044745 | AB113: Probable alanine--tRNA ligase, chloroplastic, EC 6.1.1.7 (Alanyl-tRNA synthetase, AlaRS) | AC113: protein_coding | AD113: c.278_279delTA | AE113: p.Ile93fs
A114: 9 | B114: 1122323 | D114: GA | E114: G | F114: 3037.1 | G114: AC=2;AF=0.333;AN=6;BaseQRankSum=0.250;ClippingRankSum=0.00;DP=162;ExcessHet=0.4576;FS=3.198;MLEAC=2;MLEAF=0.333;MQ=60.00;MQRankSum=0.00;QD=27.25;ReadPosRankSum=-1.196e+00;SOR=0.405;ANN=G|frameshift_variant|HIGH|Zm00001d044748|Zm00001d044748|transcript|Zm00001d044748_T008.1|protein_coding|2/5|c.394delA|p.Ile132fs|742/2324|394/444|132/147||,G|3_prime_UTR_variant|MODIFIER|Zm00001d044748|Zm00001d044748|transcript|Zm00001d044748_T001.1|protein_coding|3/3|c.*713delA|||||1153|,G|3_prime_UTR_variant|MODIFIER|Zm00001d044748|Zm00001d044748|transcript|Zm00001d044748_T003.1|protein_coding|3/5|c.*713delA|||||1153|,G|3_prime_UTR_variant|MODIFIER|Zm00001d044748|Zm00001d044748|transcript|Zm00001d044748_T004.1|protein_coding|3/7|c.*713delA|||||1153|,G|3_prime_UTR_variant|MODIFIER|Zm00001d044748|Zm00001d044748|transcript|Zm00001d044748_T005.1|protein_coding|3/7|c.*713delA|||||1153|,G|3_prime_UTR_variant|MODIFIER|Zm00001d044748|Zm00001d044748|transcript|Zm00001d044748_T006.1|protein_coding|3/7|c.*713delA|||||1153|,G|3_prime_UTR_variant|MODIFIER|Zm00001d044748|Zm00001d044748|transcript|Zm00001d044748_T007.1|protein_coding|3/4|c.*713delA|||||1153|,G|intron_variant|MODIFIER|Zm00001d044748|Zm00001d044748|transcript|Zm00001d044748_T002.1|protein_coding|3/7|c.846+633delA||||||;LOF=(Zm00001d044748|Zm00001d044748|8|0.13) | H114: 1 | I114: 70 | K114: 71 | L114: 99 | M114: 0/0 | N114: 33 | O114: 0 | Q114: 33 | R114: 99 | S114: 0/0 | T114: 56 | U114: 0 | W114: 56 | X114: 99 | Y114: frameshift_variant | Z114: HIGH | AA114: Zm00001d044748 | AB114: Pyruvate dehydrogenase E1 component subunit alpha-1 mitochondrial | AC114: protein_coding | AD114: c.394delA | AE114: p.Ile132fs
A115: 9 | B115: 1124441 | D115: T | E115: TGCACCCAAACATGAAACTAAGCGTGTGTTTGGTTAGCGGGTTGAACCTGTATCAACCTGTGTTTGGTTCAAAACGTTCGCGGGTTAGGTTGGTTCCGG | F115: 718.1 | G115: AC=2;AF=0.333;AN=6;DP=170;ExcessHet=0.4576;FS=0.000;MLEAC=2;MLEAF=0.333;MQ=59.25;QD=31.95;SOR=5.784;ANN=TGCACCCAAACATGAAACTAAGCGTGTGTTTGGTTAGCGGGTTGAACCTGTATCAACCTGTGTTTGGTTCAAAACGTTCGCGGGTTAGGTTGGTTCCGG|splice_region_variant|LOW|Zm00001d044748|Zm00001d044748|transcript|Zm00001d044748_T003.1|protein_coding|5/5|c.*2634_*2635insCACCCAAACATGAAACTAAGCGTGTGTTTGGTTAGCGGGTTGAACCTGTATCAACCTGTGTTTGGTTCAAAACGTTCGCGGGTTAGGTTGGTTCCGGG||||||INFO_REALIGN_3_PRIME,TGCACCCAAACATGAAACTAAGCGTGTGTTTGGTTAGCGGGTTGAACCTGTATCAACCTGTGTTTGGTTCAAAACGTTCGCGGGTTAGGTTGGTTCCGG|3_prime_UTR_variant|MODIFIER|Zm00001d044748|Zm00001d044748|transcript|Zm00001d044748_T002.1|protein_coding|8/8|c.*343_*344insCACCCAAACATGAAACTAAGCGTGTGTTTGGTTAGCGGGTTGAACCTGTATCAACCTGTGTTTGGTTCAAAACGTTCGCGGGTTAGGTTGGTTCCGGG|||||344|INFO_REALIGN_3_PRIME,TGCACCCAAACATGAAACTAAGCGTGTGTTTGGTTAGCGGGTTGAACCTGTATCAACCTGTGTTTGGTTCAAAACGTTCGCGGGTTAGGTTGGTTCCGG|3_prime_UTR_variant|MODIFIER|Zm00001d044748|Zm00001d044748|transcript|Zm00001d044748_T001.1|protein_coding|3/3|c.*2831_*2832insCACCCAAACATGAAACTAAGCGTGTGTTTGGTTAGCGGGTTGAACCTGTATCAACCTGTGTTTGGTTCAAAACGTTCGCGGGTTAGGTTGGTTCCGGG|||||3272|INFO_REALIGN_3_PRIME,TGCACCCAAACATGAAACTAAGCGTGTGTTTGGTTAGCGGGTTGAACCTGTATCAACCTGTGTTTGGTTCAAAACGTTCGCGGGTTAGGTTGGTTCCGG|3_prime_UTR_variant|MODIFIER|Zm00001d044748|Zm00001d044748|transcript|Zm00001d044748_T003.1|protein_coding|5/5|c.*2634_*2635insCACCCAAACATGAAACTAAGCGTGTGTTTGGTTAGCGGGTTGAACCTGTATCAACCTGTGTTTGGTTCAAAACGTTCGCGGGTTAGGTTGGTTCCGGG|||||3272|INFO_REALIGN_3_PRIME,TGCACCCAAACATGAAACTAAGCGTGTGTTTGGTTAGCGGGTTGAACCTGTATCAACCTGTGTTTGGTTCAAAACGTTCGCGGGTTAGGTTGGTTCCGG|3_prime_UTR_variant|MODIFIER|Zm00001d044748|Zm00001d044748|transcript|Zm00001d044748_T004.1|protein_coding|7/7|c.*2386_*2387insCACCCAAACATGAAACTAAGCGTGTGTTTGGTTAGCGGGTTGAACCTGTATCAACCTGTGTTTGGTTCAAAACGTTCGCGGGTTAGGTTGGTTCCGGG|||||3272|INFO_REALIGN_3_PRIME,TGCACCCAAACATGAAACTAAGCGTGTGTTTGGTTAGCGGGTTGAACCTGTATCAACCTGTGTTTGGTTCAAAACGTTCGCGGGTTAGGTTGGTTCCGG|3_prime_UTR_variant|MODIFIER|Zm00001d044748|Zm00001d044748|transcript|Zm00001d044748_T005.1|protein_coding|7/7|c.*2386_*2387insCACCCAAACATGAAACTAAGCGTGTGTTTGGTTAGCGGGTTGAACCTGTATCAACCTGTGTTTGGTTCAAAACGTTCGCGGGTTAGGTTGGTTCCGGG|||||3272|INFO_REALIGN_3_PRIME,TGCACCCAAACATGAAACTAAGCGTGTGTTTGGTTAGCGGGTTGAACCTGTATCAACCTGTGTTTGGTTCAAAACGTTCGCGGGTTAGGTTGGTTCCGG|3_prime_UTR_variant|MODIFIER|Zm00001d044748|Zm00001d044748|transcript|Zm00001d044748_T006.1|protein_coding|7/7|c.*2386_*2387insCACCCAAACATGAAACTAAGCGTGTGTTTGGTTAGCGGGTTGAACCTGTATCAACCTGTGTTTGGTTCAAAACGTTCGCGGGTTAGGTTGGTTCCGGG|||||3272|INFO_REALIGN_3_PRIME,TGCACCCAAACATGAAACTAAGCGTGTGTTTGGTTAGCGGGTTGAACCTGTATCAACCTGTGTTTGGTTCAAAACGTTCGCGGGTTAGGTTGGTTCCGG|3_prime_UTR_variant|MODIFIER|Zm00001d044748|Zm00001d044748|transcript|Zm00001d044748_T007.1|protein_coding|4/4|c.*2750_*2751insCACCCAAACATGAAACTAAGCGTGTGTTTGGTTAGCGGGTTGAACCTGTATCAACCTGTGTTTGGTTCAAAACGTTCGCGGGTTAGGTTGGTTCCGGG|||||3272|INFO_REALIGN_3_PRIME,TGCACCCAAACATGAAACTAAGCGTGTGTTTGGTTAGCGGGTTGAACCTGTATCAACCTGTGTTTGGTTCAAAACGTTCGCGGGTTAGGTTGGTTCCGG|downstream_gene_variant|MODIFIER|Zm00001d044748|Zm00001d044748|transcript|Zm00001d044748_T008.1|protein_coding||c.*2067_*2068insGCACCCAAACATGAAACTAAGCGTGTGTTTGGTTAGCGGGTTGAACCTGTATCAACCTGTGTTTGGTTCAAAACGTTCGCGGGTTAGGTTGGTTCCGG|||||198| | H115: 0 | I115: 17 | K115: 17 | L115: 51 | M115: 0/0 | N115: 71 | O115: 0 | Q115: 71 | R115: 99 | S115: 0/0 | T115: 75 | U115: 0 | W115: 75 | X115: 99 | Y115: splice_region_variant | Z115: LOW | AA115: Zm00001d044748 | AB115: Pyruvate dehydrogenase E1 component subunit alpha-1 mitochondrial | AC115: protein_coding | AD115: c.*2634_*2635insCACCCAAACATGAAACTAAGCGTGTGTTTGGTTAGCGGGTTGAACCTGTATCAACCTGTGTTTGGTTCAAAACGTTCGCGGGTTAGGTTGGTTCCGGG
A116: 9 | B116: 1152429 | D116: G | E116: A | F116: 99.27 | G116: AC=2;AF=0.333;AN=6;DP=53;ExcessHet=0.4576;FS=0.000;MLEAC=2;MLEAF=0.333;MQ=34.38;QD=33.09;SOR=2.833;ANN=A|missense_variant|MODERATE|Zm00001d044749|Zm00001d044749|transcript|Zm00001d044749_T001.1|protein_coding|4/5|c.431G>A|p.Arg144Gln|598/1493|431/1326|144/441||WARNING_TRANSCRIPT_NO_STOP_CODON | H116: 0 | I116: 3 | K116: 3 | L116: 9 | M116: 0/0 | N116: 9 | O116: 0 | Q116: 9 | R116: 27 | S116: 0/0 | T116: 41 | U116: 0 | W116: 41 | X116: 99 | Y116: missense_variant | Z116: MODERATE | AA116: Zm00001d044749 | AB116: Retrotransposon-like protein | AC116: protein_coding | AD116: c.431G>A | AE116: p.Arg144Gln
A117: 9 | B117: 1152432 | D117: T | E117: C | F117: 99.27 | G117: AC=2;AF=0.333;AN=6;DP=53;ExcessHet=0.4576;FS=0.000;MLEAC=2;MLEAF=0.333;MQ=34.38;QD=33.09;SOR=2.833;ANN=C|missense_variant|MODERATE|Zm00001d044749|Zm00001d044749|transcript|Zm00001d044749_T001.1|protein_coding|4/5|c.434T>C|p.Ile145Thr|601/1493|434/1326|145/441||WARNING_TRANSCRIPT_NO_STOP_CODON | H117: 0 | I117: 3 | K117: 3 | L117: 9 | M117: 0/0 | N117: 9 | O117: 0 | Q117: 9 | R117: 27 | S117: 0/0 | T117: 41 | U117: 0 | W117: 41 | X117: 99 | Y117: missense_variant | Z117: MODERATE | AA117: Zm00001d044749 | AB117: Retrotransposon-like protein | AC117: protein_coding | AD117: c.434T>C | AE117: p.Ile145Thr
A118: 9 | B118: 1152434 | D118: G | E118: A | F118: 99.27 | G118: AC=2;AF=0.333;AN=6;DP=53;ExcessHet=0.4576;FS=0.000;MLEAC=2;MLEAF=0.333;MQ=34.38;QD=33.09;SOR=2.833;ANN=A|missense_variant|MODERATE|Zm00001d044749|Zm00001d044749|transcript|Zm00001d044749_T001.1|protein_coding|4/5|c.436G>A|p.Gly146Ser|603/1493|436/1326|146/441||WARNING_TRANSCRIPT_NO_STOP_CODON | H118: 0 | I118: 3 | K118: 3 | L118: 9 | M118: 0/0 | N118: 9 | O118: 0 | Q118: 9 | R118: 27 | S118: 0/0 | T118: 41 | U118: 0 | W118: 41 | X118: 99 | Y118: missense_variant | Z118: MODERATE | AA118: Zm00001d044749 | AB118: Retrotransposon-like protein | AC118: protein_coding | AD118: c.436G>A | AE118: p.Gly146Ser
A119: 9 | B119: 1341891 | D119: AAAGTG | E119: A | F119: 2473.1 | G119: AC=2;AF=0.333;AN=6;BaseQRankSum=-9.330e-01;ClippingRankSum=0.00;DP=157;ExcessHet=0.4576;FS=4.847;MLEAC=2;MLEAF=0.333;MQ=60.00;MQRankSum=0.00;QD=32.00;ReadPosRankSum=-1.315e+00;SOR=1.544;ANN=A|frameshift_variant&splice_region_variant|HIGH|Zm00001d044754|Zm00001d044754|transcript|Zm00001d044754_T001.1|protein_coding|13/16|c.1544_1548delCACTT|p.Ser515fs|1624/2380|1544/1740|515/579||,A|3_prime_UTR_variant|MODIFIER|Zm00001d044754|Zm00001d044754|transcript|Zm00001d044754_T005.1|protein_coding|5/8|c.*1947_*1951delCACTT|||||1947|,A|intron_variant|MODIFIER|Zm00001d044754|Zm00001d044754|transcript|Zm00001d044754_T002.1|protein_coding|13/15|c.1501+16_1501+20delCACTT||||||,A|intron_variant|MODIFIER|Zm00001d044754|Zm00001d044754|transcript|Zm00001d044754_T003.1|protein_coding|7/9|c.757+16_757+20delCACTT||||||,A|intron_variant|MODIFIER|Zm00001d044754|Zm00001d044754|transcript|Zm00001d044754_T004.1|protein_coding|13/15|c.1093+16_1093+20delCACTT||||||,A|intron_variant|MODIFIER|Zm00001d044754|Zm00001d044754|transcript|Zm00001d044754_T006.1|protein_coding|2/4|c.22+16_22+20delCACTT||||||,A|intron_variant|MODIFIER|Zm00001d044754|Zm00001d044754|transcript|Zm00001d044754_T007.1|protein_coding|1/3|c.22+16_22+20delCACTT||||||,A|intron_variant|MODIFIER|Zm00001d044754|Zm00001d044754|transcript|Zm00001d044754_T008.1|protein_coding|9/11|c.*60+16_*60+20delCACTT||||||;LOF=(Zm00001d044754|Zm00001d044754|8|0.13) | H119: 1 | I119: 57 | K119: 58 | L119: 99 | M119: 0/0 | N119: 37 | O119: 0 | Q119: 37 | R119: 99 | S119: 0/0 | T119: 52 | U119: 0 | W119: 52 | X119: 99 | Y119: frameshift_variant&splice_region_variant | Z119: HIGH | AA119: Zm00001d044754 | AB119: Pyrophosphate--fructose 6-phosphate 1-phosphotransferase subunit beta 2 | AC119: protein_coding | AD119: c.1544_1548delCACTT | AE119: p.Ser515fs
A120: 9 | B120: 1358487 | D120: C | E120: T | F120: 471.13 | G120: AC=3;AF=0.500;AN=6;BaseQRankSum=-1.040e+00;ClippingRankSum=0.00;DP=101;ExcessHet=1.5490;FS=0.000;MLEAC=3;MLEAF=0.500;MQ=56.88;MQRankSum=-7.368e+00;QD=7.36;ReadPosRankSum=-1.903e+00;SOR=0.562;ANN=T|missense_variant|MODERATE|Zm00001d044756|Zm00001d044756|transcript|Zm00001d044756_T001.1|protein_coding|2/2|c.205G>A|p.Ala69Thr|242/280|205/213|69/70||,T|upstream_gene_variant|MODIFIER|Zm00001d044754|Zm00001d044754|transcript|Zm00001d044754_T001.1|protein_coding||c.-4891G>A|||||4815|,T|upstream_gene_variant|MODIFIER|Zm00001d044755|Zm00001d044755|transcript|Zm00001d044755_T001.1|protein_coding||c.-1332G>A|||||576|,T|upstream_gene_variant|MODIFIER|Zm00001d044754|Zm00001d044754|transcript|Zm00001d044754_T002.1|protein_coding||c.-4891G>A|||||4815|,T|upstream_gene_variant|MODIFIER|Zm00001d044754|Zm00001d044754|transcript|Zm00001d044754_T004.1|protein_coding||c.-5796G>A|||||4740| | H120: 0 | I120: 2 | K120: 2 | L120: 6 | M120: 0/0 | N120: 37 | O120: 0 | Q120: 37 | R120: 99 | S120: 0/1 | T120: 49 | U120: 13 | W120: 62 | X120: 99 | Y120: missense_variant | Z120: MODERATE | AA120: Zm00001d044756 | AB120: transcript | AC120: protein_coding | AD120: c.205G>A | AE120: p.Ala69Thr
A121: 9 | B121: 1358511 | C121: in Helical transmembrane region | D121: TTGTGCAAAAAGCAAATCCACCTCTGAAGACCACAATAATAAGGAG | E121: T | F121: 285.09 | G121: AC=3;AF=0.500;AN=6;BaseQRankSum=-5.640e-01;ClippingRankSum=0.00;DP=123;ExcessHet=1.5490;FS=4.616;MLEAC=3;MLEAF=0.500;MQ=58.70;MQRankSum=-7.591e+00;QD=3.31;ReadPosRankSum=0.287;SOR=1.915;ANN=T|conservative_inframe_deletion|MODERATE|Zm00001d044756|Zm00001d044756|transcript|Zm00001d044756_T001.1|protein_coding|2/2|c.136_180delCTCCTTATTATTGTGGTCTTCAGAGGTGGATTTGCTTTTTGCACA|p.Leu46_Thr60del|217/280|136/213|46/70||,T|upstream_gene_variant|MODIFIER|Zm00001d044754|Zm00001d044754|transcript|Zm00001d044754_T001.1|protein_coding||c.-4960_-4916delCTCCTTATTATTGTGGTCTTCAGAGGTGGATTTGCTTTTTGCACA|||||4840|,T|upstream_gene_variant|MODIFIER|Zm00001d044755|Zm00001d044755|transcript|Zm00001d044755_T001.1|protein_coding||c.-1401_-1357delCTCCTTATTATTGTGGTCTTCAGAGGTGGATTTGCTTTTTGCACA|||||601|,T|upstream_gene_variant|MODIFIER|Zm00001d044754|Zm00001d044754|transcript|Zm00001d044754_T002.1|protein_coding||c.-4960_-4916delCTCCTTATTATTGTGGTCTTCAGAGGTGGATTTGCTTTTTGCACA|||||4840|,T|upstream_gene_variant|MODIFIER|Zm00001d044754|Zm00001d044754|transcript|Zm00001d044754_T004.1|protein_coding||c.-5865_-5821delCTCCTTATTATTGTGGTCTTCAGAGGTGGATTTGCTTTTTGCACA|||||4765| | H121: 0 | I121: 2 | K121: 2 | L121: 6 | M121: 0/0 | N121: 37 | O121: 0 | Q121: 37 | R121: 99 | S121: 0/1 | T121: 73 | U121: 11 | W121: 84 | X121: 99 | Y121: conservative_inframe_deletion | Z121: MODERATE | AA121: Zm00001d044756 | AB121: transcript | AC121: protein_coding | AD121: c.136_180delCTCCTTATTATTGTGGTCTTCAGAGGTGGATTTGCTTTTTGCACA | AE121: p.Leu46_Thr60del
A122: 9 | B122: 1933837 | D122: TCTTCAA | E122: T | F122: 934.43 | G122: AC=2;AF=0.333;AN=6;BaseQRankSum=1.15;ClippingRankSum=0.00;DP=101;ExcessHet=0.4576;FS=0.000;MLEAC=2;MLEAF=0.333;MQ=60.00;MQRankSum=0.00;QD=27.42;ReadPosRankSum=0.579;SOR=1.255;ANN=T|disruptive_inframe_deletion|MODERATE|Zm00001d044768|Zm00001d044768|transcript|Zm00001d044768_T001.1|protein_coding|3/4|c.741_746delCTTCAA|p.Asn247_Phe248del|1078/2210|741/1629|247/542||INFO_REALIGN_3_PRIME,T|3_prime_UTR_variant|MODIFIER|Zm00001d044768|Zm00001d044768|transcript|Zm00001d044768_T002.1|protein_coding|2/3|c.*865_*870delCTTCAA|||||865|INFO_REALIGN_3_PRIME,T|downstream_gene_variant|MODIFIER|Zm00001d044769|Zm00001d044769|transcript|Zm00001d044769_T001.1|protein_coding||c.*1977_*1982delTTGAAG|||||1982| | H122: 1 | I122: 23 | K122: 24 | L122: 18 | M122: 0/0 | N122: 49 | O122: 0 | Q122: 49 | R122: 99 | S122: 0/0 | T122: 27 | U122: 0 | W122: 27 | X122: 49 | Y122: disruptive_inframe_deletion | Z122: MODERATE | AA122: Zm00001d044768 | AB122: Protein NRT1/ PTR FAMILY 5.8 | AC122: protein_coding | AD122: c.741_746delCTTCAA | AE122: p.Asn247_Phe248del
A123: 9 | B123: 1978011 | C123: in molecular processing chain | D123: A | E123: ACTG | F123: 435.16 | G123: AC=2;AF=0.333;AN=6;DP=55;ExcessHet=0.4576;FS=0.000;MLEAC=2;MLEAF=0.333;MQ=60.00;QD=32.66;SOR=3.442;ANN=ACTG|conservative_inframe_insertion|MODERATE|Zm00001d044771|Zm00001d044771|transcript|Zm00001d044771_T001.1|protein_coding|1/1|c.1078_1079insCAG|p.Ala359dup|1078/1113|1078/1113|360/370||,ACTG|upstream_gene_variant|MODIFIER|Zm00001d044772|Zm00001d044772|transcript|Zm00001d044772_T001.1|protein_coding||c.-3506_-3505insCTG|||||3505| | H123: 0 | I123: 11 | K123: 11 | L123: 33 | M123: 0/0 | N123: 37 | O123: 0 | Q123: 37 | R123: 99 | S123: 0/0 | T123: 7 | U123: 0 | W123: 7 | X123: 21 | Y123: conservative_inframe_insertion | Z123: MODERATE | AA123: Zm00001d044771 | AB123: Metalloendoproteinase 5-MMP | AC123: protein_coding | AD123: c.1078_1079insCAG | AE123: p.Ala359dup
A124: 9 | B124: 1978016 | C124: in molecular processing chain | D124: G | E124: GACCAAC | F124: 403.22 | G124: AC=2;AF=0.333;AN=6;DP=54;ExcessHet=0.4576;FS=0.000;MLEAC=2;MLEAF=0.333;MQ=60.00;QD=29.46;SOR=3.258;ANN=GACCAAC|disruptive_inframe_insertion|MODERATE|Zm00001d044771|Zm00001d044771|transcript|Zm00001d044771_T001.1|protein_coding|1/1|c.1073_1074insGTTGGT|p.Ala358_Ala359insLeuVal|1073/1113|1073/1113|358/370||,GACCAAC|upstream_gene_variant|MODIFIER|Zm00001d044772|Zm00001d044772|transcript|Zm00001d044772_T001.1|protein_coding||c.-3501_-3500insACCAAC|||||3500| | H124: 0 | I124: 10 | K124: 10 | L124: 30 | M124: 0/0 | N124: 37 | O124: 0 | Q124: 37 | R124: 99 | S124: 0/0 | T124: 7 | U124: 0 | W124: 7 | X124: 18 | Y124: disruptive_inframe_insertion | Z124: MODERATE | AA124: Zm00001d044771 | AB124: Metalloendoproteinase 5-MMP | AC124: protein_coding | AD124: c.1073_1074insGTTGGT | AE124: p.Ala358_Ala359insLeuVal
A125: 9 | B125: 2258353 | D125: T | E125: TTTGGCCATGACGTCCCAAAAAAAAAAGATAAGTGAATGGATGCAGCAGCAAGAGCACCTACAATCAAATCCATCGACTAGTAGTAGAGCAGTGGGCTACAACAGAGCTGGGATCAACCA | F125: 1856.15 | G125: AC=2;AF=0.333;AN=6;BaseQRankSum=-1.470e-01;ClippingRankSum=0.00;DP=100;ExcessHet=0.4576;FS=0.000;MLEAC=2;MLEAF=0.333;MQ=60.00;MQRankSum=0.00;QD=30.05;ReadPosRankSum=-3.073e+00;SOR=3.611;ANN=TTTGGCCATGACGTCCCAAAAAAAAAAGATAAGTGAATGGATGCAGCAGCAAGAGCACCTACAATCAAATCCATCGACTAGTAGTAGAGCAGTGGGCTACAACAGAGCTGGGATCAACCA|frameshift_variant&stop_gained|HIGH|Zm00001d044783|Zm00001d044783|transcript|Zm00001d044783_T001.1|protein_coding|1/1|c.496_497insTGGTTGATCCCAGCTCTGTTGTAGCCCACTGCTCTACTACTAGTCGATGGATTTGATTGTAGGTGCTCTTGCTGCTGCATCCATTCACTTATCTTTTTTTTTTGGGACGTCATGGCCAA|p.Lys166fs|496/525|496/525|166/174||;LOF=(Zm00001d044783|Zm00001d044783|1|1.00) | H125: 2 | I125: 16 | K125: 19 | L125: 27 | M125: 0/0 | N125: 41 | O125: 0 | Q125: 41 | R125: 99 | S125: 0/0 | T125: 25 | U125: 0 | W125: 25 | X125: 42 | Y125: frameshift_variant&stop_gained | Z125: HIGH | AA125: Zm00001d044783 | AB125: transcript | AC125: protein_coding | AD125: c.496_497insTGGTTGATCCCAGCTCTGTTGTAGCCCACTGCTCTACTACTAGTCGATGGATTTGATTGTAGGTGCTCTTGCTGCTGCATCCATTCACTTATCTTTTTTTTTTGGGACGTCATGGCCAA | AE125: p.Lys166fs
A126: 9 | B126: 3065028 | D126: G | E126: GCCA | F126: 81.47 | G126: AC=2;AF=0.500;AN=4;DP=37;ExcessHet=0.7918;FS=0.000;MLEAC=2;MLEAF=0.500;MQ=60.00;QD=27.16;SOR=1.179;ANN=GCCA|disruptive_inframe_insertion|MODERATE|Zm00001d044808|Zm00001d044808|transcript|Zm00001d044808_T001.1|protein_coding|1/1|c.161_162insTGG|p.Gly54dup|161/1236|161/1236|54/411|| | H126: 0 | I126: 3 | K126: 3 | L126: 9 | M126: 0/0 | N126: 34 | O126: 0 | Q126: 34 | R126: 99 | S126: ./. | T126: 0 | U126: 0 | W126: 0 | X126: . | Y126: disruptive_inframe_insertion | Z126: MODERATE | AA126: Zm00001d044808 | AB126: RING-H2 finger protein ATL46 | AC126: protein_coding | AD126: c.161_162insTGG | AE126: p.Gly54dup
A127: 9 | B127: 3872789 | D127: T | E127: TGCTGCGGAGGAAGC | F127: 90.85 | G127: AC=2;AF=0.333;AN=6;DP=42;ExcessHet=0.4576;FS=0.000;MLEAC=2;MLEAF=0.333;MQ=54.35;QD=30.28;SOR=1.179;ANN=TGCTGCGGAGGAAGC|frameshift_variant|HIGH|Zm00001d044818|Zm00001d044818|transcript|Zm00001d044818_T001.1|protein_coding|2/4|c.573_574insGCTTCCTCCGCAGC|p.Ile192fs|573/1188|573/1188|191/395||,TGCTGCGGAGGAAGC|downstream_gene_variant|MODIFIER|Zm00001d044819|Zm00001d044819|transcript|Zm00001d044819_T001.1|protein_coding||c.*3942_*3943insGCTTCCTCCGCAGC|||||3342|,TGCTGCGGAGGAAGC|downstream_gene_variant|MODIFIER|Zm00001d044819|Zm00001d044819|transcript|Zm00001d044819_T002.1|protein_coding||c.*3942_*3943insGCTTCCTCCGCAGC|||||3342|,TGCTGCGGAGGAAGC|downstream_gene_variant|MODIFIER|Zm00001d044819|Zm00001d044819|transcript|Zm00001d044819_T003.1|protein_coding||c.*3942_*3943insGCTTCCTCCGCAGC|||||3342|,TGCTGCGGAGGAAGC|downstream_gene_variant|MODIFIER|Zm00001d044819|Zm00001d044819|transcript|Zm00001d044819_T004.1|protein_coding||c.*3942_*3943insGCTTCCTCCGCAGC|||||3379|,TGCTGCGGAGGAAGC|downstream_gene_variant|MODIFIER|Zm00001d044819|Zm00001d044819|transcript|Zm00001d044819_T005.1|protein_coding||c.*3942_*3943insGCTTCCTCCGCAGC|||||3379|,TGCTGCGGAGGAAGC|downstream_gene_variant|MODIFIER|Zm00001d044819|Zm00001d044819|transcript|Zm00001d044819_T006.1|protein_coding||c.*3942_*3943insGCTTCCTCCGCAGC|||||3382|,TGCTGCGGAGGAAGC|downstream_gene_variant|MODIFIER|Zm00001d044819|Zm00001d044819|transcript|Zm00001d044819_T007.1|protein_coding||c.*3942_*3943insGCTTCCTCCGCAGC|||||3390|,TGCTGCGGAGGAAGC|downstream_gene_variant|MODIFIER|Zm00001d044819|Zm00001d044819|transcript|Zm00001d044819_T008.1|protein_coding||c.*3942_*3943insGCTTCCTCCGCAGC|||||3390|,TGCTGCGGAGGAAGC|downstream_gene_variant|MODIFIER|Zm00001d044819|Zm00001d044819|transcript|Zm00001d044819_T009.1|protein_coding||c.*3942_*3943insGCTTCCTCCGCAGC|||||3398|,TGCTGCGGAGGAAGC|downstream_gene_variant|MODIFIER|Zm00001d044819|Zm00001d044819|transcript|Zm00001d044819_T010.1|protein_coding||c.*3942_*3943insGCTTCCTCCGCAGC|||||3398|,TGCTGCGGAGGAAGC|downstream_gene_variant|MODIFIER|Zm00001d044819|Zm00001d044819|transcript|Zm00001d044819_T011.1|protein_coding||c.*3942_*3943insGCTTCCTCCGCAGC|||||3407|,TGCTGCGGAGGAAGC|downstream_gene_variant|MODIFIER|Zm00001d044819|Zm00001d044819|transcript|Zm00001d044819_T012.1|protein_coding||c.*3942_*3943insGCTTCCTCCGCAGC|||||3407|,TGCTGCGGAGGAAGC|downstream_gene_variant|MODIFIER|Zm00001d044819|Zm00001d044819|transcript|Zm00001d044819_T013.1|protein_coding||c.*3942_*3943insGCTTCCTCCGCAGC|||||3407|,TGCTGCGGAGGAAGC|downstream_gene_variant|MODIFIER|Zm00001d044819|Zm00001d044819|transcript|Zm00001d044819_T014.1|protein_coding||c.*3942_*3943insGCTTCCTCCGCAGC|||||3442|,TGCTGCGGAGGAAGC|downstream_gene_variant|MODIFIER|Zm00001d044819|Zm00001d044819|transcript|Zm00001d044819_T015.1|protein_coding||c.*3942_*3943insGCTTCCTCCGCAGC|||||3652|,TGCTGCGGAGGAAGC|downstream_gene_variant|MODIFIER|Zm00001d044819|Zm00001d044819|transcript|Zm00001d044819_T016.1|protein_coding||c.*3942_*3943insGCTTCCTCCGCAGC|||||3652|;LOF=(Zm00001d044818|Zm00001d044818|1|1.00) | H127: 0 | I127: 3 | K127: 3 | L127: 9 | M127: 0/0 | N127: 35 | O127: 0 | Q127: 35 | R127: 99 | S127: 0/0 | T127: 3 | U127: 0 | W127: 3 | X127: 9 | Y127: frameshift_variant | Z127: HIGH | AA127: Zm00001d044818 | AB127: Auxin-responsive protein | AC127: protein_coding | AD127: c.573_574insGCTTCCTCCGCAGC | AE127: p.Ile192fs
A128: 9 | B128: 3878475 | D128: TAAA | E128: TAA,T | F128: 3122.05 | G128: AC=1,1;AF=0.167,0.167;AN=6;BaseQRankSum=1.38;ClippingRankSum=0.00;DP=218;ExcessHet=3.9794;FS=0.520;MLEAC=1,1;MLEAF=0.167,0.167;MQ=71.16;MQRankSum=0.00;QD=23.30;ReadPosRankSum=-9.990e-01;SOR=0.648;ANN=T|splice_region_variant&intron_variant|LOW|Zm00001d044819|Zm00001d044819|transcript|Zm00001d044819_T001.1|protein_coding|30/38|c.3667-10_3667-8delTTT||||||,T|splice_region_variant&intron_variant|LOW|Zm00001d044819|Zm00001d044819|transcript|Zm00001d044819_T002.1|protein_coding|30/38|c.3667-10_3667-8delTTT||||||,T|splice_region_variant&intron_variant|LOW|Zm00001d044819|Zm00001d044819|transcript|Zm00001d044819_T003.1|protein_coding|29/37|c.3520-10_3520-8delTTT||||||,T|splice_region_variant&intron_variant|LOW|Zm00001d044819|Zm00001d044819|transcript|Zm00001d044819_T004.1|protein_coding|30/38|c.3577-10_3577-8delTTT||||||,T|splice_region_variant&intron_variant|LOW|Zm00001d044819|Zm00001d044819|transcript|Zm00001d044819_T005.1|protein_coding|30/38|c.3667-10_3667-8delTTT||||||,T|splice_region_variant&intron_variant|LOW|Zm00001d044819|Zm00001d044819|transcript|Zm00001d044819_T006.1|protein_coding|29/37|c.3499-10_3499-8delTTT||||||,T|splice_region_variant&intron_variant|LOW|Zm00001d044819|Zm00001d044819|transcript|Zm00001d044819_T007.1|protein_coding|30/38|c.3667-10_3667-8delTTT||||||,T|splice_region_variant&intron_variant|LOW|Zm00001d044819|Zm00001d044819|transcript|Zm00001d044819_T008.1|protein_coding|28/36|c.3448-10_3448-8delTTT||||||,T|splice_region_variant&intron_variant|LOW|Zm00001d044819|Zm00001d044819|transcript|Zm00001d044819_T009.1|protein_coding|30/38|c.3667-10_3667-8delTTT||||||,T|splice_region_variant&intron_variant|LOW|Zm00001d044819|Zm00001d044819|transcript|Zm00001d044819_T010.1|protein_coding|27/35|c.2584-10_2584-8delTTT||||||,T|splice_region_variant&intron_variant|LOW|Zm00001d044819|Zm00001d044819|transcript|Zm00001d044819_T011.1|protein_coding|29/37|c.3499-10_3499-8delTTT||||||,T|splice_region_variant&intron_variant|LOW|Zm00001d044819|Zm00001d044819|transcript|Zm00001d044819_T012.1|protein_coding|30/38|c.2263-10_2263-8delTTT||||||,T|splice_region_variant&intron_variant|LOW|Zm00001d044819|Zm00001d044819|transcript|Zm00001d044819_T013.1|protein_coding|30/38|c.3667-10_3667-8delTTT||||||,T|splice_region_variant&intron_variant|LOW|Zm00001d044819|Zm00001d044819|transcript|Zm00001d044819_T014.1|protein_coding|26/34|c.3241-10_3241-8delTTT||||||,T|splice_region_variant&intron_variant|LOW|Zm00001d044819|Zm00001d044819|transcript|Zm00001d044819_T015.1|protein_coding|30/38|c.3667-10_3667-8delTTT||||||,T|splice_region_variant&intron_variant|LOW|Zm00001d044819|Zm00001d044819|transcript|Zm00001d044819_T016.1|protein_coding|30/38|c.2752-10_2752-8delTTT||||||,T|upstream_gene_variant|MODIFIER|Zm00001d044818|Zm00001d044818|transcript|Zm00001d044818_T001.1|protein_coding||c.-3948_-3946delTTT|||||3946|,TAA|upstream_gene_variant|MODIFIER|Zm00001d044818|Zm00001d044818|transcript|Zm00001d044818_T001.1|protein_coding||c.-3948delT|||||3948|,TAA|intron_variant|MODIFIER|Zm00001d044819|Zm00001d044819|transcript|Zm00001d044819_T001.1|protein_coding|30/38|c.3667-10delT||||||,TAA|intron_variant|MODIFIER|Zm00001d044819|Zm00001d044819|transcript|Zm00001d044819_T002.1|protein_coding|30/38|c.3667-10delT||||||,TAA|intron_variant|MODIFIER|Zm00001d044819|Zm00001d044819|transcript|Zm00001d044819_T003.1|protein_coding|29/37|c.3520-10delT||||||,TAA|intron_variant|MODIFIER|Zm00001d044819|Zm00001d044819|transcript|Zm00001d044819_T004.1|protein_coding|30/38|c.3577-10delT||||||,TAA|intron_variant|MODIFIER|Zm00001d044819|Zm00001d044819|transcript|Zm00001d044819_T005.1|protein_coding|30/38|c.3667-10delT||||||,TAA|intron_variant|MODIFIER|Zm00001d044819|Zm00001d044819|transcript|Zm00001d044819_T006.1|protein_coding|29/37|c.3499-10delT||||||,TAA|intron_variant|MODIFIER|Zm00001d044819|Zm00001d044819|transcript|Zm00001d044819_T007.1|protein_coding|30/38|c.3667-10delT||||||,TAA|intron_variant|MODIFIER|Zm00001d044819|Zm00001d044819|transcript|Zm00001d044819_T008.1|protein_coding|28/36|c.3448-10delT||||||,TAA|intron_variant|MODIFIER|Zm00001d044819|Zm00001d044819|transcript|Zm00001d044819_T009.1|protein_coding|30/38|c.3667-10delT||||||,TAA|intron_variant|MODIFIER|Zm00001d044819|Zm00001d044819|transcript|Zm00001d044819_T010.1|protein_coding|27/35|c.2584-10delT||||||,TAA|intron_variant|MODIFIER|Zm00001d044819|Zm00001d044819|transcript|Zm00001d044819_T011.1|protein_coding|29/37|c.3499-10delT||||||,TAA|intron_variant|MODIFIER|Zm00001d044819|Zm00001d044819|transcript|Zm00001d044819_T012.1|protein_coding|30/38|c.2263-10delT||||||,TAA|intron_variant|MODIFIER|Zm00001d044819|Zm00001d044819|transcript|Zm00001d044819_T013.1|protein_coding|30/38|c.3667-10delT||||||,TAA|intron_variant|MODIFIER|Zm00001d044819|Zm00001d044819|transcript|Zm00001d044819_T014.1|protein_coding|26/34|c.3241-10delT||||||,TAA|intron_variant|MODIFIER|Zm00001d044819|Zm00001d044819|transcript|Zm00001d044819_T015.1|protein_coding|30/38|c.3667-10delT||||||,TAA|intron_variant|MODIFIER|Zm00001d044819|Zm00001d044819|transcript|Zm00001d044819_T016.1|protein_coding|30/38|c.2752-10delT|||||| | H128: 7 | I128: 0 | J128: 75 | K128: 82 | L128: 34 | M128: 0/1 | N128: 43 | O128: 9 | P128: 0 | Q128: 52 | R128: 99 | S128: 0/0 | T128: 54 | U128: 2 | V128: 0 | W128: 63 | X128: 99 | Y128: splice_region_variant&intron_variant | Z128: LOW | AA128: Zm00001d044819 | AB128: Myosin-9 | AC128: protein_coding | AD128: c.3667-10_3667-8delTTT
A129: 9 | B129: 3922329 | D129: CTA | E129: C | F129: 2312.86 | G129: AC=2;AF=0.333;AN=6;BaseQRankSum=-1.080e-01;ClippingRankSum=0.00;DP=159;ExcessHet=0.4576;FS=5.092;MLEAC=1;MLEAF=0.167;MQ=58.99;MQRankSum=-4.280e-01;QD=31.71;ReadPosRankSum=0.029;SOR=0.163;ANN=C|splice_acceptor_variant&splice_region_variant&intron_variant|HIGH|Zm00001d044823|Zm00001d044823|transcript|Zm00001d044823_T013.1|protein_coding|3/6|c.*31-3_*31-2delTA||||||,C|splice_region_variant|LOW|Zm00001d044823|Zm00001d044823|transcript|Zm00001d044823_T009.1|protein_coding|5/8|c.*535_*536delTA||||||,C|3_prime_UTR_variant|MODIFIER|Zm00001d044823|Zm00001d044823|transcript|Zm00001d044823_T009.1|protein_coding|5/8|c.*535_*536delTA|||||609|,C|downstream_gene_variant|MODIFIER|Zm00001d044822|Zm00001d044822|transcript|Zm00001d044822_T001.1|protein_coding||c.*2478_*2479delTA|||||2478|,C|intron_variant|MODIFIER|Zm00001d044823|Zm00001d044823|transcript|Zm00001d044823_T002.1|protein_coding|3/6|c.1288-125_1288-124delTA||||||,C|intron_variant|MODIFIER|Zm00001d044823|Zm00001d044823|transcript|Zm00001d044823_T001.1|protein_coding|3/6|c.*492+117_*492+118delTA||||||,C|intron_variant|MODIFIER|Zm00001d044823|Zm00001d044823|transcript|Zm00001d044823_T003.1|protein_coding|5/8|c.1288-125_1288-124delTA||||||,C|intron_variant|MODIFIER|Zm00001d044823|Zm00001d044823|transcript|Zm00001d044823_T004.1|protein_coding|4/7|c.1288-125_1288-124delTA||||||,C|intron_variant|MODIFIER|Zm00001d044823|Zm00001d044823|transcript|Zm00001d044823_T005.1|protein_coding|4/6|c.1288-125_1288-124delTA||||||,C|intron_variant|MODIFIER|Zm00001d044823|Zm00001d044823|transcript|Zm00001d044823_T006.1|protein_coding|4/7|c.1288-125_1288-124delTA||||||,C|intron_variant|MODIFIER|Zm00001d044823|Zm00001d044823|transcript|Zm00001d044823_T007.1|protein_coding|4/7|c.1288-125_1288-124delTA||||||,C|intron_variant|MODIFIER|Zm00001d044823|Zm00001d044823|transcript|Zm00001d044823_T008.1|protein_coding|5/8|c.*446+60_*446+61delTA||||||,C|intron_variant|MODIFIER|Zm00001d044823|Zm00001d044823|transcript|Zm00001d044823_T010.1|protein_coding|4/7|c.1288-125_1288-124delTA||||||,C|intron_variant|MODIFIER|Zm00001d044823|Zm00001d044823|transcript|Zm00001d044823_T011.1|protein_coding|4/7|c.1288-125_1288-124delTA||||||,C|intron_variant|MODIFIER|Zm00001d044823|Zm00001d044823|transcript|Zm00001d044823_T012.1|protein_coding|4/7|c.1288-125_1288-124delTA||||||,C|intron_variant|MODIFIER|Zm00001d044823|Zm00001d044823|transcript|Zm00001d044823_T014.1|protein_coding|4/7|c.1288-125_1288-124delTA||||||,C|intron_variant|MODIFIER|Zm00001d044823|Zm00001d044823|transcript|Zm00001d044823_T015.1|protein_coding|4/6|c.1288-125_1288-124delTA||||||;LOF=(Zm00001d044823|Zm00001d044823|15|0.07) | H129: 4 | I129: 57 | K129: 61 | L129: 4 | M129: 0/0 | N129: 29 | O129: 0 | Q129: 29 | R129: 51 | S129: 0/0 | T129: 69 | U129: 0 | W129: 69 | X129: 99 | Y129: splice_acceptor_variant&splice_region_variant&intron_variant | Z129: HIGH | AA129: Zm00001d044823 | AB129: Beta-13-galactosyltransferase GALT1 | AC129: protein_coding | AD129: c.*31-3_*31-2delTA
A130: 9 | B130: 3987108 | C130: in Peptidase_M41 domain | D130: GCA | E130: G | F130: 692.2 | G130: AC=2;AF=0.333;AN=6;DP=77;ExcessHet=0.4576;FS=0.000;MLEAC=2;MLEAF=0.333;MQ=60.00;QD=30.53;SOR=4.294;ANN=G|frameshift_variant|HIGH|Zm00001d044824|Zm00001d044824|transcript|Zm00001d044824_T001.1|protein_coding|2/3|c.157_158delCA|p.Gln53fs|157/591|157/591|53/196||INFO_REALIGN_3_PRIME,G|downstream_gene_variant|MODIFIER|Zm00001d044825|Zm00001d044825|transcript|Zm00001d044825_T001.1|protein_coding||c.*775_*776delTG|||||776|;LOF=(Zm00001d044824|Zm00001d044824|1|1.00) | H130: 0 | I130: 17 | K130: 17 | L130: 51 | M130: 0/0 | N130: 43 | O130: 0 | Q130: 43 | R130: 99 | S130: 0/0 | T130: 6 | U130: 0 | W130: 6 | X130: 18 | Y130: frameshift_variant | Z130: HIGH | AA130: Zm00001d044824 | AB130: ATP-dependent zinc metalloprotease FTSH 6 chloroplastic | AC130: protein_coding | AD130: c.157_158delCA | AE130: p.Gln53fs
A131: 9 | B131: 3987132 | C131: in Peptidase_M41 domain | D131: CG | E131: C | F131: 408.49 | G131: AC=2;AF=0.333;AN=6;DP=71;ExcessHet=0.4576;FS=0.000;MLEAC=2;MLEAF=0.333;MQ=60.00;QD=27.23;SOR=4.047;ANN=C|frameshift_variant|HIGH|Zm00001d044824|Zm00001d044824|transcript|Zm00001d044824_T001.1|protein_coding|2/3|c.184delG|p.Ala62fs|184/591|184/591|62/196||INFO_REALIGN_3_PRIME,C|downstream_gene_variant|MODIFIER|Zm00001d044825|Zm00001d044825|transcript|Zm00001d044825_T001.1|protein_coding||c.*752delC|||||752|;LOF=(Zm00001d044824|Zm00001d044824|1|1.00) | H131: 0 | I131: 15 | K131: 15 | L131: 45 | M131: 0/0 | N131: 43 | O131: 0 | Q131: 43 | R131: 99 | S131: 0/0 | T131: 4 | U131: 0 | W131: 4 | X131: 12 | Y131: frameshift_variant | Z131: HIGH | AA131: Zm00001d044824 | AB131: ATP-dependent zinc metalloprotease FTSH 6 chloroplastic | AC131: protein_coding | AD131: c.184delG | AE131: p.Ala62fs
A132: 9 | B132: 3987270 | D132: ACT | E132: A | F132: 49.52 | G132: AC=2;AF=0.500;AN=4;DP=45;ExcessHet=0.7918;FS=0.000;MLEAC=2;MLEAF=0.500;MQ=60.00;QD=24.76;SOR=0.693;ANN=A|splice_region_variant&intron_variant|LOW|Zm00001d044824|Zm00001d044824|transcript|Zm00001d044824_T001.1|protein_coding|2/2|c.312+5_312+6delCT||||||,A|downstream_gene_variant|MODIFIER|Zm00001d044825|Zm00001d044825|transcript|Zm00001d044825_T001.1|protein_coding||c.*613_*614delAG|||||614| | H132: 0 | I132: 2 | K132: 2 | L132: 6 | M132: 0/0 | N132: 43 | O132: 0 | Q132: 43 | R132: 99 | S132: ./. | T132: 0 | U132: 0 | W132: 0 | X132: . | Y132: splice_region_variant&intron_variant | Z132: LOW | AA132: Zm00001d044824 | AB132: ATP-dependent zinc metalloprotease FTSH 6 chloroplastic | AC132: protein_coding | AD132: c.312+5_312+6delCT
A133: 9 | B133: 4091861 | D133: TGGATCCGTACGTCGGCCCCGCAGGGCTCGA | E133: T | F133: 358.34 | G133: AC=2;AF=0.333;AN=6;DP=54;ExcessHet=0.4576;FS=0.000;MLEAC=2;MLEAF=0.333;MQ=60.00;QD=31.34;SOR=1.402;ANN=T|splice_donor_variant&splice_region_variant&5_prime_UTR_variant&intron_variant|HIGH|Zm00001d044826|Zm00001d044826|transcript|Zm00001d044826_T002.1|protein_coding|1/4|c.-42_-37+24delGGATCCGTACGTCGGCCCCGCAGGGCTCGA|||||186|,T|splice_donor_variant&splice_region_variant&5_prime_UTR_variant&intron_variant|HIGH|Zm00001d044826|Zm00001d044826|transcript|Zm00001d044826_T003.1|protein_coding|1/3|c.-42_-37+24delGGATCCGTACGTCGGCCCCGCAGGGCTCGA|||||186|,T|splice_region_variant|LOW|Zm00001d044826|Zm00001d044826|transcript|Zm00001d044826_T002.1|protein_coding|1/4|c.-42_-37+24delGGATCCGTACGTCGGCCCCGCAGGGCTCGA||||||,T|splice_region_variant|LOW|Zm00001d044826|Zm00001d044826|transcript|Zm00001d044826_T003.1|protein_coding|1/3|c.-42_-37+24delGGATCCGTACGTCGGCCCCGCAGGGCTCGA||||||,T|intron_variant|MODIFIER|Zm00001d044826|Zm00001d044826|transcript|Zm00001d044826_T001.1|protein_coding|2/4|c.394-179_394-150delGGATCCGTACGTCGGCCCCGCAGGGCTCGA||||||,T|intron_variant|MODIFIER|Zm00001d044826|Zm00001d044826|transcript|Zm00001d044826_T004.1|protein_coding|1/1|c.96+15_96+44delGGATCCGTACGTCGGCCCCGCAGGGCTCGA||||||,T|non_coding_transcript_variant|MODIFIER|Zm00001d044826|Zm00001d044826|transcript|Zm00001d044826_T002.1|protein_coding|1/4|c.-42_-37+24delGGATCCGTACGTCGGCCCCGCAGGGCTCGA||||||,T|non_coding_transcript_variant|MODIFIER|Zm00001d044826|Zm00001d044826|transcript|Zm00001d044826_T003.1|protein_coding|1/3|c.-42_-37+24delGGATCCGTACGTCGGCCCCGCAGGGCTCGA|||||| | H133: 0 | I133: 9 | K133: 9 | L133: 27 | M133: 0/0 | N133: 40 | O133: 0 | Q133: 40 | R133: 99 | S133: 0/0 | T133: 5 | U133: 0 | W133: 5 | X133: 15 | Y133: splice_donor_variant&splice_region_variant&5_prime_UTR_variant&intron_variant | Z133: HIGH | AA133: Zm00001d044826 | AB133: Aquaporin NIP2-3 (NOD26-like intrinsic protein 2-3) | AC133: protein_coding | AD133: c.-42_-37+24delGGATCCGTACGTCGGCCCCGCAGGGCTCGA
A134: 9 | B134: 4901067 | C134: in Glutaredoxin domain | D134: C | E134: CG | F134: 48.58 | G134: AC=2;AF=0.333;AN=6;DP=37;ExcessHet=0.4576;FS=0.000;MLEAC=2;MLEAF=0.333;MQ=60.00;QD=24.29;SOR=0.693;ANN=CG|frameshift_variant|HIGH|Zm00001d044841|Zm00001d044841|transcript|Zm00001d044841_T001.1|protein_coding|1/1|c.813_814insC|p.Val272fs|813/1314|813/1314|271/437||;LOF=(Zm00001d044841|Zm00001d044841|1|1.00) | H134: 0 | I134: 2 | K134: 2 | L134: 6 | M134: 0/0 | N134: 34 | O134: 0 | Q134: 34 | R134: 99 | S134: 0/0 | T134: 1 | U134: 0 | W134: 1 | X134: 3 | Y134: frameshift_variant | Z134: HIGH | AA134: Zm00001d044841 | AB134: Glutaredoxin family protein | AC134: protein_coding | AD134: c.813_814insC | AE134: p.Val272fs
A135: 9 | B135: 4901072 | C135: in Glutaredoxin domain | D135: C | E135: CGACT | F135: 48.58 | G135: AC=2;AF=0.333;AN=6;DP=37;ExcessHet=0.4576;FS=0.000;MLEAC=2;MLEAF=0.333;MQ=60.00;QD=24.29;SOR=0.693;ANN=CGACT|frameshift_variant|HIGH|Zm00001d044841|Zm00001d044841|transcript|Zm00001d044841_T001.1|protein_coding|1/1|c.808_809insAGTC|p.Gly270fs|808/1314|808/1314|270/437||;LOF=(Zm00001d044841|Zm00001d044841|1|1.00) | H135: 0 | I135: 2 | K135: 2 | L135: 6 | M135: 0/0 | N135: 34 | O135: 0 | Q135: 34 | R135: 99 | S135: 0/0 | T135: 1 | U135: 0 | W135: 1 | X135: 3 | Y135: frameshift_variant | Z135: HIGH | AA135: Zm00001d044841 | AB135: Glutaredoxin family protein | AC135: protein_coding | AD135: c.808_809insAGTC | AE135: p.Gly270fs
A136: 9 | B136: 4901077 | C136: in Glutaredoxin domain | D136: GCT | E136: G | F136: 49.52 | G136: AC=2;AF=0.500;AN=4;DP=36;ExcessHet=0.7918;FS=0.000;MLEAC=2;MLEAF=0.500;MQ=60.00;QD=24.76;SOR=0.693;ANN=G|frameshift_variant|HIGH|Zm00001d044841|Zm00001d044841|transcript|Zm00001d044841_T001.1|protein_coding|1/1|c.802_803delAG|p.Ser268fs|803/1314|802/1314|268/437||;LOF=(Zm00001d044841|Zm00001d044841|1|1.00) | H136: 0 | I136: 2 | K136: 2 | L136: 6 | M136: 0/0 | N136: 34 | O136: 0 | Q136: 34 | R136: 99 | S136: ./. | T136: 0 | U136: 0 | W136: 0 | X136: . | Y136: frameshift_variant | Z136: HIGH | AA136: Zm00001d044841 | AB136: Glutaredoxin family protein | AC136: protein_coding | AD136: c.802_803delAG | AE136: p.Ser268fs
A137: 9 | B137: 5087844 | D137: AC | E137: A | F137: 1156.1 | G137: AC=2;AF=0.333;AN=6;BaseQRankSum=1.25;ClippingRankSum=0.00;DP=95;ExcessHet=0.4576;FS=4.124;MLEAC=2;MLEAF=0.333;MQ=91.86;MQRankSum=0.00;QD=28.43;ReadPosRankSum=-5.300e-01;SOR=1.599;ANN=A|splice_region_variant&intron_variant|LOW|Zm00001d044850|Zm00001d044850|transcript|Zm00001d044850_T001.1|protein_coding|4/7|c.342-8delG|||||| | H137: 0 | I137: 30 | K137: 30 | L137: 90 | M137: 0/0 | N137: 20 | O137: 0 | Q137: 20 | R137: 60 | S137: 0/0 | T137: 42 | U137: 1 | W137: 43 | X137: 89 | Y137: splice_region_variant&intron_variant | Z137: LOW | AA137: Zm00001d044850 | AB137: Putative MADS-box transcription factor family protein | AC137: protein_coding | AD137: c.342-8delG
A138: 9 | B138: 7737596 | D138: G | E138: A | F138: 15.24 | G138: AC=2;AF=0.500;AN=4;DP=54;ExcessHet=0.7918;FS=0.000;MLEAC=1;MLEAF=0.250;MQ=49.48;QD=15.24;SOR=1.609;ANN=A|missense_variant|MODERATE|Zm00001d044936|Zm00001d044936|transcript|Zm00001d044936_T001.1|protein_coding|2/2|c.502G>A|p.Ala168Thr|502/1728|502/1728|168/575||,A|upstream_gene_variant|MODIFIER|Zm00001d044935|Zm00001d044935|transcript|Zm00001d044935_T001.1|protein_coding||c.-4280C>T|||||4280|,A|upstream_gene_variant|MODIFIER|Zm00001d044935|Zm00001d044935|transcript|Zm00001d044935_T002.1|protein_coding||c.-4280C>T|||||4280| | H138: 0 | I138: 1 | K138: 1 | L138: 3 | M138: 0/0 | N138: 52 | O138: 0 | Q138: 52 | R138: 99 | S138: ./. | T138: 0 | U138: 0 | W138: 0 | X138: . | Y138: missense_variant | Z138: MODERATE | AA138: Zm00001d044936 | AB138: Galactoside 2-alpha-L-fucosyltransferase | AC138: protein_coding | AD138: c.502G>A | AE138: p.Ala168Thr
A139: 9 | B139: 7737603 | D139: C | E139: T | F139: 58.56 | G139: AC=2;AF=0.500;AN=4;DP=55;ExcessHet=0.7918;FS=0.000;MLEAC=2;MLEAF=0.500;MQ=52.11;QD=29.28;SOR=0.693;ANN=T|missense_variant|MODERATE|Zm00001d044936|Zm00001d044936|transcript|Zm00001d044936_T001.1|protein_coding|2/2|c.509C>T|p.Ala170Val|509/1728|509/1728|170/575||,T|upstream_gene_variant|MODIFIER|Zm00001d044935|Zm00001d044935|transcript|Zm00001d044935_T001.1|protein_coding||c.-4287G>A|||||4287|,T|upstream_gene_variant|MODIFIER|Zm00001d044935|Zm00001d044935|transcript|Zm00001d044935_T002.1|protein_coding||c.-4287G>A|||||4287| | H139: 0 | I139: 2 | K139: 2 | L139: 6 | M139: 0/0 | N139: 52 | O139: 0 | Q139: 52 | R139: 99 | S139: ./. | T139: 0 | U139: 0 | W139: 0 | X139: . | Y139: missense_variant | Z139: MODERATE | AA139: Zm00001d044936 | AB139: Galactoside 2-alpha-L-fucosyltransferase | AC139: protein_coding | AD139: c.509C>T | AE139: p.Ala170Val

Sheet Table S6
A1: Supplemental Table S6. Wilcoxon Rank Sum statistics from MapMan analysis of dataset SI Table S2A
A2: albino-605F | F2: tha1 | J2: ptac12 | N2: ppr5-1 | R2: murE-2
A3: bin | B3: name | C3: elements | D3: p-value (Benjamini-Hochberg corrected) | E3: PageMan Z score | F3: bin | G3: name | H3: elements | I3: p-value (Benjamini-Hochberg corrected) | J3: bin | K3: name | L3: elements | M3: p-value (Benjamini-Hochberg corrected) | N3: bin | O3: name | P3: elements | Q3: p-value (Benjamini-Hochberg corrected) | R3: bin | S3: name | T3: elements | U3: p-value (Benjamini-Hochberg corrected)
A4: 1.1 | B4: Photosynthesis.photophosphorylation | C4: 372 | D4: 0 | E4: ∞+ | F4: 1.1.1 | G4: Photosynthesis.photophosphorylation.photosystem II | H4: 162 | I4: 4.86E-05 | J4: 7.15.1 | K4: Coenzyme metabolism.chlorophyll metabolism.chlorophyll biosynthesis | L4: 24 | M4: 1.26E-04 | N4: 1.1.1 | O4: Photosynthesis.photophosphorylation.photosystem II | P4: 162 | Q4: 5.12E-22 | R4: 1.1.1 | S4: Photosynthesis.photophosphorylation.photosystem II | T4: 162 | U4: 1.71E-33
A5: 11.1 | B5: Chromatin organisation.chromatin structure | C5: 112 | D5: 0 | E5: ∞+ | F5: 7.13 | G5: Coenzyme metabolism.tetrapyrrole biosynthesis | H5: 32 | I5: 8.13E-05 | J5: 7.13 | K5: Coenzyme metabolism.tetrapyrrole biosynthesis | L5: 32 | M5: 4.13E-04 | N5: 1.1.4 | O5: Photosynthesis.photophosphorylation.photosystem I | P5: 57 | Q5: 5.33E-14 | R5: 1.1.4 | S5: Photosynthesis.photophosphorylation.photosystem I | T5: 57 | U5: 2.20E-17
A6: 11.1.1 | B6: Chromatin organisation.chromatin structure.DNA wrapping | C6: 87 | D6: 0 | E6: ∞+ | F6: 1.2 | G6: Photosynthesis.calvin cycle | H6: 65 | I6: 1.36E-04 | J6: 1.1.1 | K6: Photosynthesis.photophosphorylation.photosystem II | L6: 162 | M6: 0.003001679469 | N6: 5.2 | O6: Lipid metabolism.glycerolipid metabolism | P6: 263 | Q6: 2.49E-05 | R6: 1.2 | S6: Photosynthesis.calvin cycle | T6: 65 | U6: 0.001162590559
A7: 17 | B7: Protein biosynthesis | C7: 1119 | D7: 0 | E7: ∞+ | F7: 7.15.1 | G7: Coenzyme metabolism.chlorophyll metabolism.chlorophyll biosynthesis | H7: 24 | I7: 3.12E-04 | J7: 4.1 | K7: Amino acid metabolism.glutamate group amino acid biosynthesis | L7: 56 | M7: 0.003467076191 | N7: 25.2 | O7: Nutrient uptake.sulfur assimilation | P7: 14 | Q7: 6.76E-05 | R7: 4.6.7 | S7: Amino acid metabolism.amino acid degradation.branched-chain amino acids | T7: 26 | U7: 0.002941036729
A8: 17.1 | B8: Protein biosynthesis.ribosome biogenesis | C8: 601 | D8: 0 | E8: ∞+ | F8: 4.3 | G8: Amino acid metabolism.pyruvate group amino acid biosynthesis | H8: 31 | I8: 0.002013316228 | J8: 25.2 | K8: Nutrient uptake.sulfur assimilation | L8: 14 | M8: 0.004767532989 | N8: 4.3 | O8: Amino acid metabolism.pyruvate group amino acid biosynthesis | P8: 31 | Q8: 9.52E-05 | R8: 1.1.2 | S8: Photosynthesis.photophosphorylation.cytochrome b6/f complex | T8: 35 | U8: 0.007028818705
A9: 17.1.2 | B9: Protein biosynthesis.ribosome biogenesis.large ribosomal subunit (LSU) | C9: 287 | D9: 0 | E9: ∞+ | F9: 5.1 | G9: Lipid metabolism.fatty acid metabolism | H9: 235 | I9: 0.005471449524 | J9: 4.3 | K9: Amino acid metabolism.pyruvate group amino acid biosynthesis | L9: 31 | M9: 0.008546522594 | N9: 1.2 | O9: Photosynthesis.calvin cycle | P9: 65 | Q9: 0.002916406549 | R9: 1.3 | S9: Photosynthesis.photorespiration | T9: 34 | U9: 0.009807643364
A10: 17.1.2.1 | B10: Protein biosynthesis.ribosome biogenesis.large ribosomal subunit (LSU).LSU proteome | C10: 225 | D10: 0 | E10: ∞+ | F10: 4.1 | G10: Amino acid metabolism.glutamate group amino acid biosynthesis | H10: 56 | I10: 0.008055274926 | J10: 5.2 | K10: Lipid metabolism.glycerolipid metabolism | L10: 263 | M10: 0.01324869843 | N10: 4.2 | O10: Amino acid metabolism.aspartate group amino acid biosynthesis | P10: 81 | Q10: 0.008243683967 | R10: 4.3 | S10: Amino acid metabolism.pyruvate group amino acid biosynthesis | T10: 31 | U10: 0.0119603867
A11: 17.1.3.1 | B11: Protein biosynthesis.ribosome biogenesis.small ribosomal subunit (SSU).SSU proteome | C11: 137 | D11: 0 | E11: 4.21 | F11: 4.2 | G11: Amino acid metabolism.aspartate group amino acid biosynthesis | H11: 81 | I11: 0.009021369121 | J11: 4.6.7 | K11: Amino acid metabolism.amino acid degradation.branched-chain amino acids | L11: 26 | M11: 0.01846370019 | N11: 21.1 | O11: Cell wall organisation.cellulose | P11: 77 | Q11: 0.01427453259 | R11: 21.4 | S11: Cell wall organisation.cell wall proteins | T11: 109 | U11: 0.021202338
A12: 17.6 | B12: Protein biosynthesis.organellar translation machinery | C12: 322 | D12: 0 | E12: ∞+ | F12: 6.2.1 | G12: Nucleotide metabolism.pyrimidines.de novo biosynthesis | H12: 18 | I12: 0.01749469491 | J12: 4.2 | K12: Amino acid metabolism.aspartate group amino acid biosynthesis | L12: 81 | M12: 0.0299575625 | N12: 21.4 | O12: Cell wall organisation.cell wall proteins | P12: 109 | Q12: 0.01641601498 | R12: 3.10 | S12: Carbohydrate metabolism.gluconeogenesis | T12: 9 | U12: 0.021202338
A13: 17.6.2 | B13: Protein biosynthesis.organellar translation machinery.plastidial ribosome biogenesis | C13: 106 | D13: 0 | E13: ∞+ | F13: 4.6.7 | G13: Amino acid metabolism.amino acid degradation.branched-chain amino acids | H13: 26 | I13: 0.019661442 | J13: 6.2.1 | K13: Nucleotide metabolism.pyrimidines.de novo biosynthesis | L13: 18 | M13: 0.1296356468 | N13: 3.10 | O13: Carbohydrate metabolism.gluconeogenesis | P13: 9 | Q13: 0.01665534046 | R13: 6.2.1 | S13: Nucleotide metabolism.pyrimidines.de novo biosynthesis | T13: 18 | U13: 0.02970597828
A14: 24 | B14: Solute transport | C14: 1477 | D14: 2.46E-16 | E14: -8.20 | F14: 5.2 | G14: Lipid metabolism.glycerolipid metabolism | H14: 263 | I14: 0.05957493592 | J14: 2.4.1 | K14: Cellular respiration.oxidative phosphorylation.NADH dehydrogenase complex | L14: 105 | M14: 0.1751444874 | N14: 1.1.2 | O14: Photosynthesis.photophosphorylation.cytochrome b6/f complex | P14: 35 | Q14: 0.02106309025 | R14: 25.2 | S14: Nutrient uptake.sulfur assimilation | T14: 14 | U14: 0.03245224503
A15: 17.6.2.2 | B15: Protein biosynthesis.organellar translation machinery.plastidial ribosome biogenesis.large ribosomal subunit proteome | C15: 46 | D15: 1.53E-13 | E15: 7.38 | F15: 25.2 | G15: Nutrient uptake.sulfur assimilation | H15: 14 | I15: 0.087661233 | J15: 9.1 | K15: Redox homeostasis.reactive oxygen scavenging | L15: 22 | M15: 0.2370543023 | N15: 6.2.1 | O15: Nucleotide metabolism.pyrimidines.de novo biosynthesis | P15: 18 | Q15: 0.02371331836 | R15: 3.2 | S15: Carbohydrate metabolism.starch metabolism | T15: 69 | U15: 0.04653568395
A16: 24.2 | B16: Solute transport.carrier-mediated transport | C16: 1007 | D16: 4.13E-13 | E16: -7.25 | F16: 9.3 | G16: Redox homeostasis.thiol-based redox regulation | H16: 53 | I16: 0.1179487463 | J16: 6.3.2 | K16: Nucleotide metabolism.deoxynucleotides.salvage pathway | L16: 15 | M16: 0.3322598836 | N16: 4.6.7 | O16: Amino acid metabolism.amino acid degradation.branched-chain amino acids | P16: 26 | Q16: 0.04269051339 | R16: 3.11 | S16: Carbohydrate metabolism.fermentation | T16: 10 | U16: 0.1625000528
A17: 1 | B17: Photosynthesis | C17: 494 | D17: 5.25E-13 | E17: 7.22 | F17: 2.3 | G17: Cellular respiration.tricarboxylic acid cycle | H17: 74 | I17: 0.1646469753 | J17: 6.1.2 | K17: Nucleotide metabolism.purines.GMP biosynthesis | L17: 9 | M17: 0.3721039247 | N17: 4.1 | O17: Amino acid metabolism.glutamate group amino acid biosynthesis | P17: 56 | Q17: 0.06033774321 | R17: 4.1 | S17: Amino acid metabolism.glutamate group amino acid biosynthesis | T17: 56 | U17: 0.1695663595
A18: 22 | B18: Vesicle trafficking | C18: 889 | D18: 1.48E-11 | E18: -6.75 | F18: 25.3 | G18: Nutrient uptake.phosphorus assimilation | H18: 30 | I18: 0.2009458726 | J18: 1.2 | K18: Photosynthesis.calvin cycle | L18: 65 | M18: 0.4449041801 | N18: 21.3 | O18: Cell wall organisation.pectin | P18: 175 | Q18: 0.1363510128 | R18: 4.6.8 | S18: Amino acid metabolism.amino acid degradation.aromatic amino acids | T18: 18 | U18: 0.1810301009
A19: 11.1.1.2 | B19: Chromatin organisation.chromatin structure.DNA wrapping.histone H3-H4 tetramer | C19: 39 | D19: 2.20E-10 | E19: 6.35 | F19: 9.1 | G19: Redox homeostasis.reactive oxygen scavenging | H19: 22 | I19: 0.2258992841 | J19: 9.3 | K19: Redox homeostasis.thiol-based redox regulation | L19: 53 | M19: 0.4526061209 | N19: 3.2 | O19: Carbohydrate metabolism.starch metabolism | P19: 69 | Q19: 0.2509223043 | R19: 4.6.4 | S19: Amino acid metabolism.amino acid degradation.lysine degradation | T19: 6 | U19: 0.2075744296
A20: 11.1.1.1 | B20: Chromatin organisation.chromatin structure.DNA wrapping.histone H2A-H2B dimer | C20: 48 | D20: 4.09E-09 | E20: 5.88 | F20: 3.2 | G20: Carbohydrate metabolism.starch metabolism | H20: 69 | I20: 0.3136645247 | J20: 1.1.3 | K20: Photosynthesis.photophosphorylation.Cytb6/f to PS-I electron carriers | L20: 6 | M20: 0.4567875826 | N20: 3.11 | O20: Carbohydrate metabolism.fermentation | P20: 10 | Q20: 0.3016911867 | R20: 25.3 | S20: Nutrient uptake.phosphorus assimilation | T20: 30 | U20: 0.3070179119
A21: 14.5.2 | B21: RNA biosynthesis.DNA-binding transcriptional regulation.alpha-helix exposed by beta-structure | C21: 69 | D21: 6.47E-09 | E21: -5.80 | F21: 4.6.4 | G21: Amino acid metabolism.amino acid degradation.lysine degradation | H21: 6 | I21: 0.3446933088 | J21: 1.1.4 | K21: Photosynthesis.photophosphorylation.photosystem I | L21: 57 | M21: 0.4574167332 | N21: 6.1.1 | O21: Nucleotide metabolism.purines.ribonucleotide (RN) anabolism | P21: 24 | Q21: 0.3030463845 | R21: 3.6 | S21: Carbohydrate metabolism.mannose metabolism | T21: 9 | U21: 0.3234652286
A22: 14.5.6.1 | B22: RNA biosynthesis.DNA-binding transcriptional regulation.alpha-helix exposed by beta-structure.MADS/AGL transcription factor | C22: 69 | D22: 6.47E-09 | E22: -5.80 | F22: 4.6.3 | G22: Amino acid metabolism.amino acid degradation.proline degradation | H22: 4 | I22: 0.3625971544 | J22: 25.3 | K22: Nutrient uptake.phosphorus assimilation | L22: 30 | M22: 0.5039381339 | N22: 6.1.2 | O22: Nucleotide metabolism.purines.GMP biosynthesis | P22: 9 | Q22: 0.3680807323 | R22: 21.3 | S22: Cell wall organisation.pectin | T22: 175 | U22: 0.3312441278
A23: 14.7.1 | B23: RNA biosynthesis.organellar gene expression machinery.plastid-encoded RNA polymerase (PEP) complex | C23: 31 | D23: 4.90E-08 | E23: 5.46 | F23: 2.4.3 | G23: Cellular respiration.oxidative phosphorylation.cytochrome c reductase complex | H23: 46 | I23: 0.3633119861 | J23: 21.6 | K23: Cell wall organisation.lignin | L23: 49 | M23: 0.5039381339 | N23: 7.13 | O23: Coenzyme metabolism.tetrapyrrole biosynthesis | P23: 32 | Q23: 0.3883461125 | R23: 6.2.4 | S23: Nucleotide metabolism.pyrimidines.catabolism | T23: 12 | U23: 0.3312441278
A24: 19.1 | B24: Protein homeostasis.protein quality control | C24: 278 | D24: 2.25E-07 | F24: 2.4.1 | G24: Cellular respiration.oxidative phosphorylation.NADH dehydrogenase complex | H24: 105 | I24: 0.3979338649 | J24: 9.2 | K24: Redox homeostasis.glutathione-based redox regulation | L24: 77 | M24: 0.5042829802 | N24: 3.9 | O24: Carbohydrate metabolism.oxidative pentose phosphate pathway | P24: 21 | Q24: 0.3890870762 | R24: 6.1.1 | S24: Nucleotide metabolism.purines.ribonucleotide (RN) anabolism | T24: 24 | U24: 0.3693090215
A25: 24.2.1 | B25: Solute transport.carrier-mediated transport.DMT-type transporter superfamily | C25: 163 | D25: 4.71E-07 | E25: -5.04 | F25: 6.1.2 | G25: Nucleotide metabolism.purines.GMP biosynthesis | H25: 9 | I25: 0.4029859632 | J25: 6.1.1 | K25: Nucleotide metabolism.purines.ribonucleotide (RN) anabolism | L25: 24 | M25: 0.5080459324 | N25: 6.3.1 | O25: Nucleotide metabolism.deoxynucleotides.biosynthesis | P25: 9 | Q25: 0.4071927954 | R25: 6.1.2 | S25: Nucleotide metabolism.purines.GMP biosynthesis | T25: 9 | U25: 0.3970401479
A26: 1.1.8.1 | B26: Photosynthesis.photophosphorylation.chlororespiration.NADH dehydrogenase-like (NDH) complex | C26: 64 | D26: 2.88E-06 | F26: 4.6.5 | G26: Amino acid metabolism.amino acid degradation.threonine degradation | H26: 9 | I26: 0.4056655146 | J26: 2.1 | K26: Cellular respiration.glycolysis | L26: 51 | M26: 0.607059501 | N26: 1.4 | O26: Photosynthesis.CAM/C4 photosynthesis | P26: 31 | Q26: 0.4071927954 | R26: 5.4 | S26: Lipid metabolism.phytosterol metabolism | T26: 42 | U26: 0.4253079153
A27: 1.1.8 | B27: Photosynthesis.photophosphorylation.chlororespiration | C27: 66 | D27: 4.20E-06 | F27: 4.5 | G27: Amino acid metabolism.shikimate group amino acid biosynthesis | H27: 60 | I27: 0.4304458874 | J27: 6.1.3 | K27: Nucleotide metabolism.purines.salvage pathway | L27: 10 | M27: 0.6325650572 | N27: 25.3 | O27: Nutrient uptake.phosphorus assimilation | P27: 30 | Q27: 0.440917755 | R27: 4.6.9 | S27: Amino acid metabolism.amino acid degradation.methionine degradation | T27: 2 | U27: 0.4255845918
A28: 18.5.1.2.1 | B28: Protein modification.dephosphorylation.protein serine/threonine protein phosphatase activities.PPM Mn/Mg-dependent protein phosphatase activities.clade A protein phosphatase | C28: 14 | D28: 4.20E-06 | E28: -4.60 | F28: 4.6.8 | G28: Amino acid metabolism.amino acid degradation.aromatic amino acids | H28: 18 | I28: 0.4725821961 | J28: 25.4.1 | K28: Nutrient uptake.iron uptake.reduction-based strategy | L28: 10 | M28: 0.6384571573 | N28: 3.6 | O28: Carbohydrate metabolism.mannose metabolism | P28: 9 | Q28: 0.4416562509 | R28: 7.15.1 | S28: Coenzyme metabolism.chlorophyll metabolism.chlorophyll biosynthesis | T28: 24 | U28: 0.430339512
A29: 8.1.4 | B29: Secondary metabolism.terpenoid biosynthesis.terpene biosynthesis | C29: 43 | D29: 5.41E-06 | E29: -4.55 | F29: 6.3.2 | G29: Nucleotide metabolism.deoxynucleotides.salvage pathway | H29: 15 | I29: 0.5126844668 | J29: 4.6.5 | K29: Amino acid metabolism.amino acid degradation.threonine degradation | L29: 9 | M29: 0.6403441826 | N29: 1.3 | O29: Photosynthesis.photorespiration | P29: 34 | Q29: 0.460306518 | R29: 1.4 | S29: Photosynthesis.CAM/C4 photosynthesis | T29: 31 | U29: 0.4403770326
A30: 14.7 | B30: RNA biosynthesis.organellar gene expression machinery | C30: 69 | D30: 5.41E-06 | E30: 4.55 | F30: 3.1 | G30: Carbohydrate metabolism.sucrose metabolism | H30: 78 | I30: 0.5248673524 | J30: 4.4 | K30: Amino acid metabolism.serine group amino acid biosynthesis | L30: 19 | M30: 0.6403441826 | N30: 1.1.3 | O30: Photosynthesis.photophosphorylation.Cytb6/f to PS-I electron carriers | P30: 6 | Q30: 0.4765850964 | R30: 2.4.3 | S30: Cellular respiration.oxidative phosphorylation.cytochrome c reductase complex | T30: 46 | U30: 0.4403770326
A31: 29.5.4 | B31: Plant organogenesis.flower formation.floral meristem identity | C31: 20 | D31: 6.93E-06 | E31: -4.50 | F31: 3.9 | G31: Carbohydrate metabolism.oxidative pentose phosphate pathway | H31: 21 | I31: 0.529703966 | J31: 4.6.4 | K31: Amino acid metabolism.amino acid degradation.lysine degradation | L31: 6 | M31: 0.6466657118 | N31: 2.4.3 | O31: Cellular respiration.oxidative phosphorylation.cytochrome c reductase complex | P31: 46 | Q31: 0.5459780403 | R31: 4.2 | S31: Amino acid metabolism.aspartate group amino acid biosynthesis | T31: 81 | U31: 0.473507273
A32: 16.4 | B32: RNA homeostasis.plastidial mRNA homeostasis | C32: 27 | D32: 6.93E-06 | E32: 4.50 | F32: 21.4 | G32: Cell wall organisation.cell wall proteins | H32: 109 | I32: 0.5569039619 | J32: 1.1.2 | K32: Photosynthesis.photophosphorylation.cytochrome b6/f complex | L32: 35 | M32: 0.68529538 | N32: 2.2 | O32: Cellular respiration.pyruvate oxidation | P32: 18 | Q32: 0.5516660778 | R32: 5.2 | S32: Lipid metabolism.glycerolipid metabolism | T32: 263 | U32: 0.4806038103
A33: 20.2 | B33: Cytoskeleton organisation.microfilament network | C33: 219 | D33: 7.06E-06 | E33: -4.49 | F33: 6.1.1 | G33: Nucleotide metabolism.purines.ribonucleotide (RN) anabolism | H33: 24 | I33: 0.6573328097 | J33: 4.6.3 | K33: Amino acid metabolism.amino acid degradation.proline degradation | L33: 4 | M33: 0.6883274931 | N33: 6.2.4 | O33: Nucleotide metabolism.pyrimidines.catabolism | P33: 12 | Q33: 0.5676612009 | R33: 2.4.5 | S33: Cellular respiration.oxidative phosphorylation.cytochrome c oxidase complex | T33: 52 | U33: 0.5118659596
A34: 14.5.3.1.4 | B34: RNA biosynthesis.DNA-binding transcriptional regulation.helix-turn-helix DNA-binding domain.HOMEO domain.TALE transcription factor family | C34: 32 | D34: 7.53E-06 | E34: -4.48 | F34: 2.4.5 | G34: Cellular respiration.oxidative phosphorylation.cytochrome c oxidase complex | H34: 52 | I34: 0.6710896452 | J34: 3.1 | K34: Carbohydrate metabolism.sucrose metabolism | L34: 78 | M34: 0.6883274931 | N34: 4.6.1 | O34: Amino acid metabolism.amino acid degradation.arginine degradation | P34: 7 | Q34: 0.5746518396 | R34: 9.1 | S34: Redox homeostasis.reactive oxygen scavenging | T34: 22 | U34: 0.5356784978
A35: 12 | B35: Cell division | C35: 751 | D35: 8.91E-06 | E35: 4.44 | F35: 1.4 | G35: Photosynthesis.CAM/C4 photosynthesis | H35: 31 | I35: 0.7018209724 | J35: 21.2 | K35: Cell wall organisation.hemicellulose | L35: 200 | M35: 0.6883274931 | N35: 6.1.5 | O35: Nucleotide metabolism.purines.catabolism | P35: 20 | Q35: 0.5904767745 | R35: 25.1.4 | S35: Nutrient uptake.nitrogen assimilation.ammonium assimilation | T35: 8 | U35: 0.5356784978
A36: 23.1 | B36: Protein translocation.chloroplast | C36: 77 | D36: 8.91E-06 | F36: 21.2 | G36: Cell wall organisation.hemicellulose | H36: 200 | I36: 0.7018209724 | J36: 25.1.2 | K36: Nutrient uptake.nitrogen assimilation.nitrate uptake system | L36: 20 | M36: 0.6950963744 | N36: 4.4 | O36: Amino acid metabolism.serine group amino acid biosynthesis | P36: 19 | Q36: 0.631822725 | R36: 25.4.1 | S36: Nutrient uptake.iron uptake.reduction-based strategy | T36: 10 | U36: 0.5580128002
A37: 11.1.1.2.1 | B37: Chromatin organisation.chromatin structure.DNA wrapping.histone H3-H4 tetramer.histone *(H3) | C37: 18 | D37: 9.46E-06 | E37: 4.43 | F37: 1.1.2 | G37: Photosynthesis.photophosphorylation.cytochrome b6/f complex | H37: 35 | I37: 0.7071469876 | J37: 1.4 | K37: Photosynthesis.CAM/C4 photosynthesis | L37: 31 | M37: 0.6950963744 | N37: 2.1 | O37: Cellular respiration.glycolysis | P37: 51 | Q37: 0.6512295905 | R37: 4.4 | S37: Amino acid metabolism.serine group amino acid biosynthesis | T37: 19 | U37: 0.5723829807
A38: 17.1.3 | B38: Protein biosynthesis.ribosome biogenesis.small ribosomal subunit (SSU) | C38: 235 | D38: 2.56E-05 | F38: 1.1.4 | G38: Photosynthesis.photophosphorylation.photosystem I | H38: 57 | I38: 0.707161524 | J38: 3.6 | K38: Carbohydrate metabolism.mannose metabolism | L38: 9 | M38: 0.7016564475 | N38: 25.1.2 | O38: Nutrient uptake.nitrogen assimilation.nitrate uptake system | P38: 20 | Q38: 0.6724113262 | R38: 1.1.3 | S38: Photosynthesis.photophosphorylation.Cytb6/f to PS-I electron carriers | T38: 6 | U38: 0.5903640776
A39: 18 | B39: Protein modification | C39: 1547 | D39: 3.06E-05 | F39: 4.6.1 | G39: Amino acid metabolism.amino acid degradation.arginine degradation | H39: 7 | I39: 0.7132848128 | J39: 6.3.1 | K39: Nucleotide metabolism.deoxynucleotides.biosynthesis | L39: 9 | M39: 0.7071919751 | N39: 9.3 | O39: Redox homeostasis.thiol-based redox regulation | P39: 53 | Q39: 0.681597429 | R39: 4.5 | S39: Amino acid metabolism.shikimate group amino acid biosynthesis | T39: 60 | U39: 0.5926342885
A40: 14.5.3.1.4.1 | B40: RNA biosynthesis.DNA-binding transcriptional regulation.helix-turn-helix DNA-binding domain.HOMEO domain.TALE transcription factor family.KNOX class-I/II transcription factor | C40: 16 | D40: 6.05E-05 | E40: -4.01 | F40: 6.1.3 | G40: Nucleotide metabolism.purines.salvage pathway | H40: 10 | I40: 0.7142885379 | J40: 3.2 | K40: Carbohydrate metabolism.starch metabolism | L40: 69 | M40: 0.7076939964 | N40: 25.1.4 | O40: Nutrient uptake.nitrogen assimilation.ammonium assimilation | P40: 8 | Q40: 0.716570837 | R40: 6.3.1 | S40: Nucleotide metabolism.deoxynucleotides.biosynthesis | T40: 9 | U40: 0.5966409369
A41: 19.1.9 | B41: Protein homeostasis.protein quality control.smallHsp holdase chaperone activities | C41: 24 | D41: 8.50E-05 | F41: 4.6.9 | G41: Amino acid metabolism.amino acid degradation.methionine degradation | H41: 2 | I41: 0.7142885379 | J41: 1.3 | K41: Photosynthesis.photorespiration | L41: 34 | M41: 0.7085464088 | N41: 4.6.2 | O41: Amino acid metabolism.amino acid degradation.gamma-aminobutyrate (GABA) | P41: 6 | Q41: 0.7317265267 | R41: 21.1 | S41: Cell wall organisation.cellulose | T41: 77 | U41: 0.6143552392
A42: 24.2.1.5 | B42: Solute transport.carrier-mediated transport.DMT-type transporter superfamily.solute transporter *(UmamiT1/2/++) | C42: 44 | D42: 9.77E-05 | E42: -3.90 | F42: 1.1.3 | G42: Photosynthesis.photophosphorylation.Cytb6/f to PS-I electron carriers | H42: 6 | I42: 0.7142885379 | J42: 2.4.5 | K42: Cellular respiration.oxidative phosphorylation.cytochrome c oxidase complex | L42: 52 | M42: 0.7190565707 | N42: 9.1 | O42: Redox homeostasis.reactive oxygen scavenging | P42: 22 | Q42: 0.7317265267 | R42: 3.9 | S42: Carbohydrate metabolism.oxidative pentose phosphate pathway | T42: 21 | U42: 0.632691342
A43: 1.1.1.3 | B43: Photosynthesis.photophosphorylation.photosystem II.assembly | C43: 41 | D43: 9.77E-05 | F43: 2.1 | G43: Cellular respiration.glycolysis | H43: 51 | I43: 0.7142885379 | J43: 3.11 | K43: Carbohydrate metabolism.fermentation | L43: 10 | M43: 0.7276623235 | N43: 6.3.2 | O43: Nucleotide metabolism.deoxynucleotides.salvage pathway | P43: 15 | Q43: 0.7317265267 | R43: 3.3 | S43: Carbohydrate metabolism.trehalose metabolism | T43: 14 | U43: 0.6479906286
A44: 1.1.1 | B44: Photosynthesis.photophosphorylation.photosystem II | C44: 162 | D44: 1.07E-04 | F44: 5.5 | G44: Lipid metabolism.lipid-A biosynthesis | H44: 9 | I44: 0.7220805967 | J44: 25.4.4.3 | K44: Nutrient uptake.iron uptake.iron homeostasis.regulatory protein *(TMN11) | L44: 5 | M44: 0.7302671725 | N44: 5.4 | O44: Lipid metabolism.phytosterol metabolism | P44: 42 | Q44: 0.7498553878 | R44: 6.1.5 | S44: Nucleotide metabolism.purines.catabolism | T44: 20 | U44: 0.6579355695
A45: 17.6.2.3 | B45: Protein biosynthesis.organellar translation machinery.plastidial ribosome biogenesis.small ribosomal subunit proteome | C45: 46 | D45: 1.64E-04 | F45: 25.1.4 | G45: Nutrient uptake.nitrogen assimilation.ammonium assimilation | H45: 8 | I45: 0.7301708178 | J45: 5.3 | K45: Lipid metabolism.sphingolipid metabolism | L45: 90 | M45: 0.734580228 | N45: 25.4.1 | O45: Nutrient uptake.iron uptake.reduction-based strategy | P45: 10 | Q45: 0.7525529057 | R45: 2.1 | S45: Cellular respiration.glycolysis | T45: 51 | U45: 0.6850910865
A46: 11.1.1.1.2 | B46: Chromatin organisation.chromatin structure.DNA wrapping.histone H2A-H2B dimer.histone *(H2B/HTB) | C46: 18 | D46: 1.91E-04 | E46: 3.73 | F46: 2.2 | G46: Cellular respiration.pyruvate oxidation | H46: 18 | I46: 0.7339780094 | J46: 3.9 | K46: Carbohydrate metabolism.oxidative pentose phosphate pathway | L46: 21 | M46: 0.7424611332 | N46: 25.4.4.3 | O46: Nutrient uptake.iron uptake.iron homeostasis.regulatory protein *(TMN11) | P46: 5 | Q46: 0.7599330771 | R46: 4.6.2 | S46: Amino acid metabolism.amino acid degradation.gamma-aminobutyrate (GABA) | T46: 6 | U46: 0.6880953912
A47: 11.1.1.1.1 | B47: Chromatin organisation.chromatin structure.DNA wrapping.histone H2A-H2B dimer.histone *(H2A/HTA) | C47: 30 | D47: 2.34E-04 | E47: 3.68 | F47: 21.3 | G47: Cell wall organisation.pectin | H47: 175 | I47: 0.7370638377 | J47: 2.4.3 | K47: Cellular respiration.oxidative phosphorylation.cytochrome c reductase complex | L47: 46 | M47: 0.7691153701 | N47: 2.4.5 | O47: Cellular respiration.oxidative phosphorylation.cytochrome c oxidase complex | P47: 52 | Q47: 0.7629555254 | R47: 9.3 | S47: Redox homeostasis.thiol-based redox regulation | T47: 53 | U47: 0.7003645817
A48: 18.4 | B48: Protein modification.phosphorylation | C48: 896 | D48: 2.36E-04 | F48: 6.3.1 | G48: Nucleotide metabolism.deoxynucleotides.biosynthesis | H48: 9 | I48: 0.7433795954 | J48: 5.5 | K48: Lipid metabolism.lipid-A biosynthesis | L48: 9 | M48: 0.7747971021 | N48: 9.2 | O48: Redox homeostasis.glutathione-based redox regulation | P48: 77 | Q48: 0.7976062298 | R48: 2.3 | S48: Cellular respiration.tricarboxylic acid cycle | T48: 74 | U48: 0.7059457036
A49: 19 | B49: Protein homeostasis | C49: 1769 | D49: 2.36E-04 | F49: 3.3 | G49: Carbohydrate metabolism.trehalose metabolism | H49: 14 | I49: 0.7433795954 | J49: 6.3.3 | K49: Nucleotide metabolism.deoxynucleotides.catabolism | L49: 4 | M49: 0.7902540398 | N49: 4.6.8 | O49: Amino acid metabolism.amino acid degradation.aromatic amino acids | P49: 18 | Q49: 0.8075444737 | R49: 6.3.3 | S49: Nucleotide metabolism.deoxynucleotides.catabolism | T49: 4 | U49: 0.7163919863
A50: 27 | B50: Multi-process regulation | C50: 906 | D50: 2.94E-04 | F50: 5.4 | G50: Lipid metabolism.phytosterol metabolism | H50: 42 | I50: 0.749842209 | J50: 3.3 | K50: Carbohydrate metabolism.trehalose metabolism | L50: 14 | M50: 0.8100201191 | N50: 3.1 | O50: Carbohydrate metabolism.sucrose metabolism | P50: 78 | Q50: 0.8100598659 | R50: 6.3.2 | S50: Nucleotide metabolism.deoxynucleotides.salvage pathway | T50: 15 | U50: 0.7171690151
A51: 11.1.1.2.2 | B51: Chromatin organisation.chromatin structure.DNA wrapping.histone H3-H4 tetramer.histone *(H4) | C51: 21 | D51: 2.94E-04 | E51: 3.62 | F51: 9.2 | G51: Redox homeostasis.glutathione-based redox regulation | H51: 77 | I51: 0.7556651926 | J51: 21.4 | K51: Cell wall organisation.cell wall proteins | L51: 109 | M51: 0.8228476054 | N51: 2.4.1 | O51: Cellular respiration.oxidative phosphorylation.NADH dehydrogenase complex | P51: 105 | Q51: 0.8124705425 | R51: 25.4.4.3 | S51: Nutrient uptake.iron uptake.iron homeostasis.regulatory protein *(TMN11) | T51: 5 | U51: 0.760783867
A52: 18.8 | B52: Protein modification.S-glutathionylation | C52: 24 | D52: 3.60E-04 | E52: 3.57 | F52: 3.10 | G52: Carbohydrate metabolism.gluconeogenesis | H52: 9 | I52: 0.7740576868 | J52: 21.1 | K52: Cell wall organisation.cellulose | L52: 77 | M52: 0.8246685128 | N52: 2.3 | O52: Cellular respiration.tricarboxylic acid cycle | P52: 74 | Q52: 0.8149590177 | R52: 9.2 | S52: Redox homeostasis.glutathione-based redox regulation | T52: 77 | U52: 0.7875426734
A53: 18.8.1 | B53: Protein modification.S-glutathionylation.glutaredoxin | C53: 24 | D53: 3.60E-04 | E53: 3.57 | F53: 3.4 | G53: Carbohydrate metabolism.oligosaccharide metabolism | H53: 17 | I53: 0.7835127506 | J53: 6.2.4 | K53: Nucleotide metabolism.pyrimidines.catabolism | L53: 12 | M53: 0.826115635 | N53: 3.4 | O53: Carbohydrate metabolism.oligosaccharide metabolism | P53: 17 | Q53: 0.8308167301 | R53: 21.2 | S53: Cell wall organisation.hemicellulose | T53: 200 | U53: 0.7918219594
A54: 14.5.4.3.1 | B54: RNA biosynthesis.DNA-binding transcriptional regulation.other all-alpha-helix DNA-binding domain.NF-Y transcription factor complex.component *(NF-YA) | C54: 18 | D54: 3.60E-04 | E54: -3.57 | F54: 25.4.4.3 | G54: Nutrient uptake.iron uptake.iron homeostasis.regulatory protein *(TMN11) | H54: 5 | I54: 0.7948323717 | J54: 3.10 | K54: Carbohydrate metabolism.gluconeogenesis | L54: 9 | M54: 0.8513846317 | N54: 4.6.5 | O54: Amino acid metabolism.amino acid degradation.threonine degradation | P54: 9 | Q54: 0.8404123951 | R54: 4.6.6 | S54: Amino acid metabolism.amino acid degradation.cysteine degradation | T54: 11 | U54: 0.8315490737
A55: 19.3.7.4 | B55: Protein homeostasis.proteolysis.protease inhibitor activities.PR6 protease inhibitor | C55: 9 | D55: 4.52E-04 | F55: 1.3 | G55: Photosynthesis.photorespiration | H55: 34 | I55: 0.7948323717 | J55: 6.1.5 | K55: Nucleotide metabolism.purines.catabolism | L55: 20 | M55: 0.867343174 | N55: 4.6.3 | O55: Amino acid metabolism.amino acid degradation.proline degradation | P55: 4 | Q55: 0.8468605644 | R55: 5.1 | S55: Lipid metabolism.fatty acid metabolism | T55: 235 | U55: 0.8318097262
A56: 18.4.4 | B56: Protein modification.phosphorylation.CAMK protein kinase activities | C56: 121 | D56: 5.21E-04 | E56: -3.47 | F56: 6.3.3 | G56: Nucleotide metabolism.deoxynucleotides.catabolism | H56: 4 | I56: 0.8183792225 | J56: 4.5 | K56: Amino acid metabolism.shikimate group amino acid biosynthesis | L56: 60 | M56: 0.8718785638 | N56: 6.2.2 | O56: Nucleotide metabolism.pyrimidines.salvage pathway | P56: 8 | Q56: 0.8499770974 | R56: 7.13 | S56: Coenzyme metabolism.tetrapyrrole biosynthesis | T56: 32 | U56: 0.8371012726
A57: 27.6.2 | B57: Multi-process regulation.phosphoinositide signalling.phosphoinositide homeostasis | C57: 107 | D57: 6.72E-04 | E57: -3.40 | F57: 21.1 | G57: Cell wall organisation.cellulose | H57: 77 | I57: 0.8286417161 | J57: 5.4 | K57: Lipid metabolism.phytosterol metabolism | L57: 42 | M57: 0.8845663452 | N57: 5.5 | O57: Lipid metabolism.lipid-A biosynthesis | P57: 9 | Q57: 0.8662357645 | R57: 4.6.3 | S57: Amino acid metabolism.amino acid degradation.proline degradation | T57: 4 | U57: 0.8398308999
A58: 21 | B58: Cell wall organisation | C58: 713 | D58: 7.95E-04 | F58: 4.6.6 | G58: Amino acid metabolism.amino acid degradation.cysteine degradation | H58: 11 | I58: 0.8386394824 | J58: 4.6.6 | K58: Amino acid metabolism.amino acid degradation.cysteine degradation | L58: 11 | M58: 0.8865443696 | N58: 4.6.4 | O58: Amino acid metabolism.amino acid degradation.lysine degradation | P58: 6 | Q58: 0.8710836197 | R58: 2.2 | S58: Cellular respiration.pyruvate oxidation | T58: 18 | U58: 0.8411663712
A59: 12.2.1.1.2 | B59: Cell division.cell cycle organisation.cell cycle control.CYCLIN regulatory protein activities.regulatory protein *(CYCB) | C59: 9 | D59: 7.95E-04 | E59: 3.35 | F59: 3.11 | G59: Carbohydrate metabolism.fermentation | H59: 10 | I59: 0.8453575176 | J59: 2.3 | K59: Cellular respiration.tricarboxylic acid cycle | L59: 74 | M59: 0.8904104603 | N59: 21.6 | O59: Cell wall organisation.lignin | P59: 49 | Q59: 0.8754044533 | R59: 6.2.2 | S59: Nucleotide metabolism.pyrimidines.salvage pathway | T59: 8 | U59: 0.8449874709
A60: 21.1 | B60: Cell wall organisation.cellulose | C60: 77 | D60: 8.04E-04 | F60: 25.4.1 | G60: Nutrient uptake.iron uptake.reduction-based strategy | H60: 10 | I60: 0.8522571441 | J60: 4.6.1 | K60: Amino acid metabolism.amino acid degradation.arginine degradation | L60: 7 | M60: 0.8934616809 | N60: 21.2 | O60: Cell wall organisation.hemicellulose | P60: 200 | Q60: 0.878965555 | R60: 25.1.2 | S60: Nutrient uptake.nitrogen assimilation.nitrate uptake system | T60: 20 | U60: 0.8482868523
A61: 14.7.1.2 | B61: RNA biosynthesis.organellar gene expression machinery.plastid-encoded RNA polymerase (PEP) complex.essential co-factor components | C61: 12 | D61: 8.78E-04 | E61: 3.33 | F61: 25.1.2 | G61: Nutrient uptake.nitrogen assimilation.nitrate uptake system | H61: 20 | I61: 0.869539022 | J61: 25.1.4 | K61: Nutrient uptake.nitrogen assimilation.ammonium assimilation | L61: 8 | M61: 0.8943640213 | N61: 6.3.3 | O61: Nucleotide metabolism.deoxynucleotides.catabolism | P61: 4 | Q61: 0.8926389104 | R61: 21.6 | S61: Cell wall organisation.lignin | T61: 49 | U61: 0.8828804976
A62: 12.1.1 | B62: Cell division.DNA replication.preinitiation | C62: 35 | D62: 9.81E-04 | E62: 3.30 | F62: 5.3 | G62: Lipid metabolism.sphingolipid metabolism | H62: 90 | I62: 0.8877126774 | J62: 5.1 | K62: Lipid metabolism.fatty acid metabolism | L62: 235 | M62: 0.9243249345 | N62: 5.1 | O62: Lipid metabolism.fatty acid metabolism | P62: 235 | Q62: 0.9020185467 | R62: 4.6.5 | S62: Amino acid metabolism.amino acid degradation.threonine degradation | T62: 9 | U62: 0.8891129315
A63: 12.1 | B63: Cell division.DNA replication | C63: 163 | D63: 0.001355015497 | E63: 3.20 | F63: 4.6.2 | G63: Amino acid metabolism.amino acid degradation.gamma-aminobutyrate (GABA) | H63: 6 | I63: 0.8877126774 | J63: 2.2 | K63: Cellular respiration.pyruvate oxidation | L63: 18 | M63: 0.9248693469 | N63: 4.5 | O63: Amino acid metabolism.shikimate group amino acid biosynthesis | P63: 60 | Q63: 0.9078876708 | R63: 2.4.1 | S63: Cellular respiration.oxidative phosphorylation.NADH dehydrogenase complex | T63: 105 | U63: 0.8954528023
A64: 12.2 | B64: Cell division.cell cycle organisation | C64: 280 | D64: 0.001369824135 | F64: 6.2.4 | G64: Nucleotide metabolism.pyrimidines.catabolism | H64: 12 | I64: 0.8897199368 | J64: 4.6.8 | K64: Amino acid metabolism.amino acid degradation.aromatic amino acids | L64: 18 | M64: 0.9441048478 | N64: 4.6.9 | O64: Amino acid metabolism.amino acid degradation.methionine degradation | P64: 2 | Q64: 0.9095857213 | R64: 3.1 | S64: Carbohydrate metabolism.sucrose metabolism | T64: 78 | U64: 0.9037035923
A65: 1.1.8.1.6 | B65: Photosynthesis.photophosphorylation.chlororespiration.NADH dehydrogenase-like (NDH) complex.assembly and maintenance | C65: 18 | D65: 0.001469196972 | E65: 3.18 | F65: 3.6 | G65: Carbohydrate metabolism.mannose metabolism | H65: 9 | I65: 0.8898757289 | J65: 21.3 | K65: Cell wall organisation.pectin | L65: 175 | M65: 0.9461179251 | N65: 5.3 | O65: Lipid metabolism.sphingolipid metabolism | P65: 90 | Q65: 0.9143398574 | R65: 6.1.3 | S65: Nucleotide metabolism.purines.salvage pathway | T65: 10 | U65: 0.9116529896
A66: 8.1.4.2 | B66: Secondary metabolism.terpenoid biosynthesis.terpene biosynthesis.mono-/sesquiterpene-/diterpene synthase | C66: 24 | D66: 0.001494134077 | E66: -3.18 | F66: 4.4 | G66: Amino acid metabolism.serine group amino acid biosynthesis | H66: 19 | I66: 0.9531422539 | J66: 6.2.2 | K66: Nucleotide metabolism.pyrimidines.salvage pathway | L66: 8 | M66: 0.9494646907 | N66: 6.1.3 | O66: Nucleotide metabolism.purines.salvage pathway | P66: 10 | Q66: 0.9243339709 | R66: 4.6.1 | S66: Amino acid metabolism.amino acid degradation.arginine degradation | T66: 7 | U66: 0.9252179446
A67: 5.1 | B67: Lipid metabolism.fatty acid metabolism | C67: 235 | D67: 0.001616813156 | E67: 3.15 | F67: 6.2.2 | G67: Nucleotide metabolism.pyrimidines.salvage pathway | H67: 8 | I67: 0.9595422523 | J67: 4.6.9 | K67: Amino acid metabolism.amino acid degradation.methionine degradation | L67: 2 | M67: 0.9644859945 | N67: 4.6.6 | O67: Amino acid metabolism.amino acid degradation.cysteine degradation | P67: 11 | Q67: 0.9399708959 | R67: 5.5 | S67: Lipid metabolism.lipid-A biosynthesis | T67: 9 | U67: 0.9484201454
